Workbook

Sheet Cover Page
B2: Building Energy Code Savings Calculator
C5: Calculator Version | G5: ='Version Control'!C6 -> 1.6
C7: Calculator Uses
C8: - | D8: Guidance and scoping to determine how energy codes can contribute to meeting emission reduction targets over Phase I and Phase II timelines of 2017 to 2040.
C10: - | D10: Visualize energy and emission savings contributions for both residential and commercial buildings.
C11: - | D11: Not intended to be used in full State Implementation Plans (SIP).
C12: - | D12: Able to be used for State Compliance Plans for air quality/emission-related policies.
C14: Description and Instructions
C15: - | D15: Four (4) step process as outlined in the navigation bar on the right.
C16: - | D16: Instructions for individual steps included within each page.
C17: - | D17: Click the "Calculator Assumptions" button for an outline of calculator assumptions for advanced users.
C18: - | D18: Click the "Next" button to get started.
C19: - | D19: Use "Next" and "Back" buttons on each page to navigate through the calculator steps.
C20: - | D20: The boxes on the navigation bar are also clickable to navigate between steps.
C22: Calculator & Methodology Developers
D23: ENERGY EFFICIENT CODES COALITION

Sheet Step 1 - Location
A1: State | B1: State | C1: Name
A2: S_PA | B2: Step 1: Location and Baseline
A3: =VLOOKUP(A2,'Input Validations'!$B$3:$C$54,2,FALSE) -> Pennsylvania
L4: Step 1 Instructions
L18: Model Residential Energy Code
L20: IECC 2009 | O20: ↓
L21: Compliance Rate
L22: 0.75
L24: Model Commercial Energy Code
L26: ASHRAE 90.1 2007 | O26: ↓
G27: State / Territory | L27: Compliance Rate
G28: Nationwide | J28: ↓ | L28: 0.75
G29: Metro Area | K29: * Projected future code version with nominal savings estimates
G30: - | J30: ↓
A32: =IF(AND(StateInput<>"",ResCodeBaselineInput<>"",L22<>"",ComCodeBaselineInput<>"",L28<>""),1,0) -> 1

Sheet Step 2 - Building Growth
B2: Step 2: Building Growth Projection
C4: Step 2 Instructions
C6: TBD
C10: Residential | G10: Commercial
C12: Growth Projection Assumption | G12: Growth Projection Assumption
C13: PNNL Projections (default) | E13: ↓ | G13: PNNL Projections (default) | I13: ↓
C14: Year | D14: Annual Rate % | G14: Year | H14: Annual Rate %
C22: Projected Residential Housing Units | H22: Projected Commercial Floorspace
C31: *Lightly colored lines inidate PNNL default projection to be used as a reference
A33: =IF(AND(GrowthTypeRes<>"",GrowthTypeCom<>""),1,0) -> 1

Sheet Step 3 - Code Updates
B2: Step 3: Code Update Schedule
C5: Step 3 Instructions
C10: Residential | G10: Commercial
C12: Projected Residential Energy Code | D12: Projected Effective Date | E12: Estimated Code Compliance Rate | G12: Projected Commercial Energy Code | H12: Projected Effective Date | I12: Estimated Code Compliance Rate
C14: =ResCodeBaselineInput -> IECC 2009 | D14: Current | E14: ='Step 1 - Location'!L22 -> 0.75 | G14: =ComCodeBaselineInput -> ASHRAE 90.1 2007 | H14: Current | I14: ='Step 1 - Location'!L28 -> 0.75
G15: ASHRAE 90.1 2010 | H15: 2019 | I15: 0.75
C20: * Projected future code version with nominal savings estimates - see "Assumptions" tab on home tab for more details
C22: Projected Residential MWh Savings | H22: Projected Commercial MWh Savings
C25: [Display total kWh and CO2]
A33: =IF(AND(C15<>"",D15<>"",E15<>"",G15<>"",H15<>"",I15<>""),1,0) -> 0

Sheet Step 4 - Results
B2: Snapshot Emission Results
C6: 2030 Snapshot - Electricity
C8: Avoided Emissions / Energy | D8: Residential | E8: Commercial | F8: Total
C9: Additional Annual MWh | D9: ='Energy+Emissions Calculation'!T27 -> 0 | E9: ='Energy+Emissions Calculation'!AZ27 -> 3946396.293 | F9: =E9+D9 -> 3946396.293
C10: Cumulative Annual MWh | D10: ='Energy+Emissions Calculation'!T35 -> 0 | E10: ='Energy+Emissions Calculation'!AZ35 -> 48367925.61 | F10: =E10+D10 -> 48367925.61
C11: Additional Annual Metric Metric tons of CO2 | D11: ='Energy+Emissions Calculation'!T32 -> 0 | E11: ='Energy+Emissions Calculation'!AZ32 -> 2686795.569 | F11: =E11+D11 -> 2686795.569
C12: Cumulative Annual Metric Metric tons of CO2 | D12: ='Energy+Emissions Calculation'!T40 -> 0 | E12: ='Energy+Emissions Calculation'!AZ40 -> 32929974.23 | F12: =E12+D12 -> 32929974.23
C13: 2040 Snapshot - Electricity
C15: Avoided Emissions / Energy | D15: Residential | E15: Commercial | F15: Total
C16: Additional Annual MWh | D16: ='Energy+Emissions Calculation'!AD27 -> 0 | E16: ='Energy+Emissions Calculation'!BJ27 -> 4817148.708 | F16: =E16+D16 -> 4817148.708
C17: Cumulative Annual MWh | D17: ='Energy+Emissions Calculation'!AD35 -> 0 | E17: ='Energy+Emissions Calculation'!BJ35 -> 93946381.25 | F17: =E17+D17 -> 93946381.25
C18: Additional Annual Metric Metric tons of CO2 | D18: ='Energy+Emissions Calculation'!AD32 -> 0 | E18: ='Energy+Emissions Calculation'!BJ32 -> 3279623.445 | F18: =E18+D18 -> 3279623.445
C19: Cumulative Annual Metric Metric tons of CO2 | D19: ='Energy+Emissions Calculation'!AD40 -> 0 | E19: ='Energy+Emissions Calculation'!BJ40 -> 63960814.41 | F19: =E19+D19 -> 63960814.41
C20: Cost & Savings
C21: Cost & Savings
C22: Projections Through 2040 | D22: Residential | E22: Commercial | F22: Total
C23: Energy Cost Savings (Millions $ NPV) | D23: ='Cost Calculation'!C14 -> 0 | E23: ='Cost Calculation'!AJ14 -> 40279.91999 | F23: =E23+D23 -> 40279.91999
C24: Costs (Millions $ NPV) | D24: ='Cost Calculation'!C24 -> 0 | E24: ='Cost Calculation'!AJ24 -> 22722.98561 | F24: =E24+D24 -> 22722.98561
C25: Benefit-Cost Ratio | D25: =IFERROR(D23/D24,0) -> 0 | E25: =IFERROR(E23/E24,0) -> 1.772650861 | F25: =IFERROR(F23/F24,0) -> 1.772650861
C27: Emissions Reductions - Electricity and Gas
D28: Avoided Through 2030 | G28: Avoided Through 2040
C29: Emissions | D29: Residential | E29: Commercial | F29: Total | G29: Residential | H29: Commercial | I29: Total
C30: Metric tons of NOx | D30: ='Energy+Emissions Calculation'!T90 -> 0 | E30: ='Energy+Emissions Calculation'!AZ90 -> 24001.64682 | F30: =SUM(D30:E30) -> 24001.64682 | G30: ='Energy+Emissions Calculation'!AD90 -> 0 | H30: ='Energy+Emissions Calculation'!BJ90 -> 46619.07317 | I30: =SUM(G30:H30) -> 46619.07317
C31: Metric tons of SOx | D31: ='Energy+Emissions Calculation'!T91 -> 0 | E31: ='Energy+Emissions Calculation'!AZ91 -> 28126.24427 | F31: 28126.24427 | G31: ='Energy+Emissions Calculation'!AD91 -> 0 | H31: ='Energy+Emissions Calculation'!BJ91 -> 54630.3947 | I31: 54630.3947
C32: Metric tons of CH4 | D32: ='Energy+Emissions Calculation'!T92 -> 0 | E32: ='Energy+Emissions Calculation'!AZ92 -> 93.64642887 | F32: 93.64642887 | G32: ='Energy+Emissions Calculation'!AD92 -> 0 | H32: ='Energy+Emissions Calculation'!BJ92 -> 181.8920907 | I32: 181.8920907
C33: Metric tons of N2O | D33: ='Energy+Emissions Calculation'!T93 -> 0 | E33: ='Energy+Emissions Calculation'!AZ93 -> 9.516024389 | F33: 9.516024389 | G33: ='Energy+Emissions Calculation'!AD93 -> 0 | H33: ='Energy+Emissions Calculation'!BJ93 -> 18.48324161 | I33: 18.48324161
C34: Metric tons of CO2 | D34: ='Energy+Emissions Calculation'!T94 -> 0 | E34: ='Energy+Emissions Calculation'!AZ94 -> 37769638.44 | F34: 37769638.44 | G34: ='Energy+Emissions Calculation'!AD94 -> 0 | H34: ='Energy+Emissions Calculation'!BJ94 -> 73361030.23 | I34: 73361030.23
C35: Metric tons of CO2e | D35: ='Energy+Emissions Calculation'!T95 -> 0 | E35: ='Energy+Emissions Calculation'!AZ95 -> 37774554.99 | F35: 37774554.99 | G35: ='Energy+Emissions Calculation'!AD95 -> 0 | H35: ='Energy+Emissions Calculation'!BJ95 -> 73370579.77 | I35: 73370579.77

Sheet Step 4 - Results 2
B2: Customized Energy and Emission Results by Year
D5: Custom Result Instructions
D6: Select the Building Sector, Fuel Type, and Metric from the drop down menus below to display the annual avoided emissions or energy usage in the table to the right. This page is printable and formatted to display the input summary, custom result selections, and results.
D8: Metric tons
D9: Inputs for Custom Results by Year | J9: =IF(AND(D11="Total",D12="MWh"),"Values for Selected Combination Not Applicable",IF(AND(D11="Total",D12="MMBtu"),"Values for Selected Combination Not Applicable",IF(AND(D11="Natural Gas",D12="MWh"),"Values for Selected Combination Not Applicable",IF(AND(D11="Electricity",D12="MMBtu"),"Values for Selected Combination Not Applicable","")))) -> 
D10: Total | E10: Building Sector | K10: =StateInput&" "&IF(CSAInput="[statewide]","- Statewide","- "&CSAInput) -> Nationwide - -
D11: Electricity | E11: Fuel Type | K11: =IF(D12<>"MWh",IF(D12<>"MMBtu",D8&" of "&D12,D12&" Results"),D12&" Results") -> MWh Results
D12: MWh | E12: Select Metric to Display | K12: Year | L12: Add'l Annual | M12: Cumulative
L13: Avoided | M13: Avoided
K14: 2014 | L14: =SUMIFS(ValueLookup,SectorLookup,$D$10,FuelLookup,$D$11,UnitLookup,$D$12,YearLookup,K14) -> 0 | M14: =SUM($L$14:L14) -> 0
D15: Input Summary (Non-editable) | K15: =K14+1 -> 2015 | L15: =SUMIFS(ValueLookup,SectorLookup,$D$10,FuelLookup,$D$11,UnitLookup,$D$12,YearLookup,K15) -> 0 | M15: =SUM($L$14:L15) -> 0
D16: State / Territory | F16: Projected Residential Energy Code | G16: Projected Effective Date | H16: Estimated Code Compliance Rate | K16: 2016 | L16: =SUMIFS(ValueLookup,SectorLookup,$D$10,FuelLookup,$D$11,UnitLookup,$D$12,YearLookup,K16) -> 0 | M16: =SUM($L$14:L16) -> 0
D17: =StateInput -> Nationwide | K17: 2017 | L17: =SUMIFS(ValueLookup,SectorLookup,$D$10,FuelLookup,$D$11,UnitLookup,$D$12,YearLookup,K17) -> 0 | M17: =SUM($L$14:L17) -> 0
D18: Metro Area | F18: =IF('Step 3 - Code Updates'!C14=0,"",'Step 3 - Code Updates'!C14) -> IECC 2009 | G18: =IF('Step 3 - Code Updates'!D14=0,"",'Step 3 - Code Updates'!D14) -> Current | H18: =IF('Step 3 - Code Updates'!E14=0,"",'Step 3 - Code Updates'!E14) -> 0.75 | K18: 2018 | L18: =SUMIFS(ValueLookup,SectorLookup,$D$10,FuelLookup,$D$11,UnitLookup,$D$12,YearLookup,K18) -> 0 | M18: =SUM($L$14:L18) -> 0
D19: =CSAInput -> - | F19: =IF('Step 3 - Code Updates'!C15=0,"",'Step 3 - Code Updates'!C15) ->  | G19: =IF('Step 3 - Code Updates'!D15=0,"",'Step 3 - Code Updates'!D15) ->  | H19: =IF('Step 3 - Code Updates'!E15=0,"",'Step 3 - Code Updates'!E15) ->  | K19: 2019 | L19: =SUMIFS(ValueLookup,SectorLookup,$D$10,FuelLookup,$D$11,UnitLookup,$D$12,YearLookup,K19) -> 4148989.72 | M19: =SUM($L$14:L19) -> 4148989.72
F20: =IF('Step 3 - Code Updates'!C16=0,"",'Step 3 - Code Updates'!C16) ->  | G20: =IF('Step 3 - Code Updates'!D16=0,"",'Step 3 - Code Updates'!D16) ->  | H20: =IF('Step 3 - Code Updates'!E16=0,"",'Step 3 - Code Updates'!E16) ->  | K20: 2020 | L20: =SUMIFS(ValueLookup,SectorLookup,$D$10,FuelLookup,$D$11,UnitLookup,$D$12,YearLookup,K20) -> 4091870.272 | M20: =SUM($L$14:L20) -> 8240859.992
D21: Model Residential Energy Code | F21: =IF('Step 3 - Code Updates'!C17=0,"",'Step 3 - Code Updates'!C17) ->  | G21: =IF('Step 3 - Code Updates'!D17=0,"",'Step 3 - Code Updates'!D17) ->  | H21: =IF('Step 3 - Code Updates'!E17=0,"",'Step 3 - Code Updates'!E17) ->  | K21: 2021 | L21: =SUMIFS(ValueLookup,SectorLookup,$D$10,FuelLookup,$D$11,UnitLookup,$D$12,YearLookup,K21) -> 4087467.184 | M21: =SUM($L$14:L21) -> 12328327.18
F22: =IF('Step 3 - Code Updates'!C18=0,"",'Step 3 - Code Updates'!C18) ->  | G22: =IF('Step 3 - Code Updates'!D18=0,"",'Step 3 - Code Updates'!D18) ->  | H22: =IF('Step 3 - Code Updates'!E18=0,"",'Step 3 - Code Updates'!E18) ->  | K22: 2022 | L22: =SUMIFS(ValueLookup,SectorLookup,$D$10,FuelLookup,$D$11,UnitLookup,$D$12,YearLookup,K22) -> 4069476.171 | M22: =SUM($L$14:L22) -> 16397803.35
D23: =ResCodeBaselineInput -> IECC 2009 | F23: =IF('Step 3 - Code Updates'!C19=0,"",'Step 3 - Code Updates'!C19) ->  | G23: =IF('Step 3 - Code Updates'!D19=0,"",'Step 3 - Code Updates'!D19) ->  | H23: =IF('Step 3 - Code Updates'!E19=0,"",'Step 3 - Code Updates'!E19) ->  | K23: 2023 | L23: =SUMIFS(ValueLookup,SectorLookup,$D$10,FuelLookup,$D$11,UnitLookup,$D$12,YearLookup,K23) -> 4054022.481 | M23: =SUM($L$14:L23) -> 20451825.83
D24: Compliance Rate | K24: 2024 | L24: =SUMIFS(ValueLookup,SectorLookup,$D$10,FuelLookup,$D$11,UnitLookup,$D$12,YearLookup,K24) -> 4063141.902 | M24: =SUM($L$14:L24) -> 24514967.73
D25: ='Step 1 - Location'!L22 -> 0.75 | F25: Projected Commercial Energy Code | G25: Projected Effective Date | H25: Estimated Code Compliance Rate | K25: 2025 | L25: =SUMIFS(ValueLookup,SectorLookup,$D$10,FuelLookup,$D$11,UnitLookup,$D$12,YearLookup,K25) -> 4064205.297 | M25: =SUM($L$14:L25) -> 28579173.03
K26: 2026 | L26: =SUMIFS(ValueLookup,SectorLookup,$D$10,FuelLookup,$D$11,UnitLookup,$D$12,YearLookup,K26) -> 4005942.3 | M26: =SUM($L$14:L26) -> 32585115.33
D27: Model Commercial Energy Code | F27: =IF('Step 3 - Code Updates'!G14=0,"",'Step 3 - Code Updates'!G14) -> ASHRAE 90.1 2007 | G27: =IF('Step 3 - Code Updates'!H14=0,"",'Step 3 - Code Updates'!H14) -> Current | H27: =IF('Step 3 - Code Updates'!I14=0,"",'Step 3 - Code Updates'!I14) -> 0.75 | K27: 2027 | L27: =SUMIFS(ValueLookup,SectorLookup,$D$10,FuelLookup,$D$11,UnitLookup,$D$12,YearLookup,K27) -> 3956035.709 | M27: =SUM($L$14:L27) -> 36541151.04
F28: =IF('Step 3 - Code Updates'!G15=0,"",'Step 3 - Code Updates'!G15) -> ASHRAE 90.1 2010 | G28: =IF('Step 3 - Code Updates'!H15=0,"",'Step 3 - Code Updates'!H15) -> 2019 | H28: =IF('Step 3 - Code Updates'!I15=0,"",'Step 3 - Code Updates'!I15) -> 0.75 | K28: 2028 | L28: =SUMIFS(ValueLookup,SectorLookup,$D$10,FuelLookup,$D$11,UnitLookup,$D$12,YearLookup,K28) -> 3939246.581 | M28: =SUM($L$14:L28) -> 40480397.62
D29: =ComCodeBaselineInput -> ASHRAE 90.1 2007 | F29: =IF('Step 3 - Code Updates'!G16=0,"",'Step 3 - Code Updates'!G16) ->  | G29: =IF('Step 3 - Code Updates'!H16=0,"",'Step 3 - Code Updates'!H16) ->  | H29: =IF('Step 3 - Code Updates'!I16=0,"",'Step 3 - Code Updates'!I16) ->  | K29: 2029 | L29: =SUMIFS(ValueLookup,SectorLookup,$D$10,FuelLookup,$D$11,UnitLookup,$D$12,YearLookup,K29) -> 3941131.699 | M29: =SUM($L$14:L29) -> 44421529.32
D30: Compliance Rate | F30: =IF('Step 3 - Code Updates'!G17=0,"",'Step 3 - Code Updates'!G17) ->  | G30: =IF('Step 3 - Code Updates'!H17=0,"",'Step 3 - Code Updates'!H17) ->  | H30: =IF('Step 3 - Code Updates'!I17=0,"",'Step 3 - Code Updates'!I17) ->  | K30: 2030 | L30: =SUMIFS(ValueLookup,SectorLookup,$D$10,FuelLookup,$D$11,UnitLookup,$D$12,YearLookup,K30) -> 3946396.293 | M30: =SUM($L$14:L30) -> 48367925.61
D31: ='Step 1 - Location'!L28 -> 0.75 | F31: =IF('Step 3 - Code Updates'!G18=0,"",'Step 3 - Code Updates'!G18) ->  | G31: =IF('Step 3 - Code Updates'!H18=0,"",'Step 3 - Code Updates'!H18) ->  | H31: =IF('Step 3 - Code Updates'!I18=0,"",'Step 3 - Code Updates'!I18) ->  | K31: 2031 | L31: =SUMIFS(ValueLookup,SectorLookup,$D$10,FuelLookup,$D$11,UnitLookup,$D$12,YearLookup,K31) -> 4002490.98 | M31: =SUM($L$14:L31) -> 52370416.59
F32: =IF('Step 3 - Code Updates'!G19=0,"",'Step 3 - Code Updates'!G19) ->  | G32: =IF('Step 3 - Code Updates'!H19=0,"",'Step 3 - Code Updates'!H19) ->  | H32: =IF('Step 3 - Code Updates'!I19=0,"",'Step 3 - Code Updates'!I19) ->  | K32: 2032 | L32: =SUMIFS(ValueLookup,SectorLookup,$D$10,FuelLookup,$D$11,UnitLookup,$D$12,YearLookup,K32) -> 4155654.914 | M32: =SUM($L$14:L32) -> 56526071.5
K33: 2033 | L33: =SUMIFS(ValueLookup,SectorLookup,$D$10,FuelLookup,$D$11,UnitLookup,$D$12,YearLookup,K33) -> 4294180.585 | M33: =SUM($L$14:L33) -> 60820252.09
D34: Growth Projection Assumption | G34: Growth Projection Assumption | K34: 2034 | L34: =SUMIFS(ValueLookup,SectorLookup,$D$10,FuelLookup,$D$11,UnitLookup,$D$12,YearLookup,K34) -> 4424019.384 | M34: =SUM($L$14:L34) -> 65244271.47
D35: ='Step 2 - Building Growth'!C13 -> PNNL Projections (default) | G35: ='Step 2 - Building Growth'!G13 -> PNNL Projections (default) | K35: 2035 | L35: =SUMIFS(ValueLookup,SectorLookup,$D$10,FuelLookup,$D$11,UnitLookup,$D$12,YearLookup,K35) -> 4585610.536 | M35: =SUM($L$14:L35) -> 69829882.01
D36: Year | E36: Annual Rate % | G36: Year | H36: Annual Rate % | K36: 2036 | L36: =SUMIFS(ValueLookup,SectorLookup,$D$10,FuelLookup,$D$11,UnitLookup,$D$12,YearLookup,K36) -> 4766142.475 | M36: =SUM($L$14:L36) -> 74596024.48
D37: =IF('Step 2 - Building Growth'!C15=0,"",'Step 2 - Building Growth'!C15) ->  | E37: =IF('Step 2 - Building Growth'!D15=0,"",'Step 2 - Building Growth'!D15) ->  | G37: =IF('Step 2 - Building Growth'!G15=0,"",'Step 2 - Building Growth'!G15) ->  | H37: =IF('Step 2 - Building Growth'!H15=0,"",'Step 2 - Building Growth'!H15) ->  | K37: 2037 | L37: =SUMIFS(ValueLookup,SectorLookup,$D$10,FuelLookup,$D$11,UnitLookup,$D$12,YearLookup,K37) -> 4828997.644 | M37: =SUM($L$14:L37) -> 79425022.13
D38: =IF('Step 2 - Building Growth'!C16=0,"",'Step 2 - Building Growth'!C16) ->  | E38: =IF('Step 2 - Building Growth'!D16=0,"",'Step 2 - Building Growth'!D16) ->  | G38: =IF('Step 2 - Building Growth'!G16=0,"",'Step 2 - Building Growth'!G16) ->  | H38: =IF('Step 2 - Building Growth'!H16=0,"",'Step 2 - Building Growth'!H16) ->  | K38: 2038 | L38: =SUMIFS(ValueLookup,SectorLookup,$D$10,FuelLookup,$D$11,UnitLookup,$D$12,YearLookup,K38) -> 4856209.392 | M38: =SUM($L$14:L38) -> 84281231.52
D39: =IF('Step 2 - Building Growth'!C17=0,"",'Step 2 - Building Growth'!C17) ->  | E39: =IF('Step 2 - Building Growth'!D17=0,"",'Step 2 - Building Growth'!D17) ->  | G39: =IF('Step 2 - Building Growth'!G17=0,"",'Step 2 - Building Growth'!G17) ->  | H39: =IF('Step 2 - Building Growth'!H17=0,"",'Step 2 - Building Growth'!H17) ->  | K39: 2039 | L39: =SUMIFS(ValueLookup,SectorLookup,$D$10,FuelLookup,$D$11,UnitLookup,$D$12,YearLookup,K39) -> 4848001.026 | M39: =SUM($L$14:L39) -> 89129232.55
D40: =IF('Step 2 - Building Growth'!C18=0,"",'Step 2 - Building Growth'!C18) ->  | E40: =IF('Step 2 - Building Growth'!D18=0,"",'Step 2 - Building Growth'!D18) ->  | G40: =IF('Step 2 - Building Growth'!G18=0,"",'Step 2 - Building Growth'!G18) ->  | H40: =IF('Step 2 - Building Growth'!H18=0,"",'Step 2 - Building Growth'!H18) ->  | K40: 2040 | L40: =SUMIFS(ValueLookup,SectorLookup,$D$10,FuelLookup,$D$11,UnitLookup,$D$12,YearLookup,K40) -> 4817148.708 | M40: =SUM($L$14:L40) -> 93946381.25
D41: =IF('Step 2 - Building Growth'!C19=0,"",'Step 2 - Building Growth'!C19) ->  | E41: =IF('Step 2 - Building Growth'!D19=0,"",'Step 2 - Building Growth'!D19) ->  | G41: =IF('Step 2 - Building Growth'!G19=0,"",'Step 2 - Building Growth'!G19) ->  | H41: =IF('Step 2 - Building Growth'!H19=0,"",'Step 2 - Building Growth'!H19) -> 

Sheet Assumptions
B2: Calculator Assumptions
C5: Projected Energy Savings of Future Model Energy Codes
C6: % savings over previous code
C7: Residential | E7: Commercial
C8: IECC 2015 | D8: 0.009 | E8: ASHRAE 90.1 2013 | F8: 0.087
C9: IECC 2018 | D9: 0.005 | E9: ASHRAE 90.1 2016 | F9: 0.1393325326
C10: IECC 2021 | D10: 0.05 | E10: ASHRAE 90.1 2019 | F10: 0.05
C11: IECC 2024 | D11: 0.05 | E11: ASHRAE 90.1 2022 | F11: 0.05
C12: IECC 2027 | D12: 0.05 | E12: ASHRAE 90.1 2025 | F12: 0.05
C13: PassiveHouse | D13: 0.5 | E13: PassiveHouse | F13: 0.4
C14: ↑PassiveHouse is % Over 2006 IECC | F14: ↑PassiveHouse is % Over 90.1-2010
C15: Financial | F15: Source: | G15: NYSERDA Analysis
C16: Interest Rate | D16: 0.05
C18: Emissions
C19: SAR (default) | D19: Global Warming potential
C20: 2016 (default) | D20: eGRID Emissions Year

Sheet 111d Emission Targets (hidden)
B2: 111d Emission Target Calculations
B3: U.S. EPA Goal Computation Appendix 1 and 2: 20140602tsd-state-goal-data-computation_1.xls - Appendix 1: Proposed Goals
C5: Step 1 (2012 Data for Fossil Sources) | M5: Step 2 (HRI) | N5: Step 3a & 3b (Redispatch) | U5: Step 4a Nuclear | V5: Step 4b Renewable (MWh) | AF5: Step 5 (Demand Side EE - % of avoided MWh sales) | AR5: Step 6&7 (State Goal Phase I & II (lbs/MWh))
B6: State | C6: Coal Rate (lb/MWh) | D6: NGCC Rate (lb/MWh) | E6: O/G rate (lb/MWh) | F6: Other Emissions (lbs) | G6: Hist Coal Gen (MWh) | H6: Hist NGCC Gen. (MWh) | I6: Historic OG steam Gen. (MWh) | J6: Other Gen. (MWh) | K6: NGCC Capacity (MW ) | L6: Under Construction NGCC Capacity (MW) | M6: Adj. Coal Rate (lbs/MWh) | N6: Redispatched Coal Gen. (MWh) | O6: Redispatch O/G steam Gen. (MWh) | P6: Redispatched NGCC Gen. (MWh) | Q6: Other Emissions (lbs) | R6: Other Gen. (MWh) | S6: 2012 NGCC Capacity Factor* | T6: Post Redispatch Assumed NGCC Capacity Factor for Existing Fleet | U6: Nuclear Generation Under Construction and "At Risk" (MWh) | V6: 2020 Existing and Incremental RE | W6: 2021 Existing and Incremental RE | X6: 2022 Existing and Incremental RE | Y6: 2023 Existing and Incremental RE | Z6: 2024 Existing and Incremental RE | AA6: 2025 Existing and Incremental RE | AB6: 2026 Existing and Incremental RE | AC6: 2027 Existing and Incremental RE | AD6: 2028 Existing and Incremental RE | AE6: 2029 Existing and Incremental RE | AF6: 2020 EE Potential | AG6: 2021 EE Potential | AH6: 2022 EE Potential | AI6: 2023 EE Potential | AJ6: 2024 EE Potential | AK6: 2025 EE Potential | AL6: 2026 EE Potential | AM6: 2027 EE Potential | AN6: 2028 EE Potential | AO6: 2029 EE Potential (%) | AP6: State Generation as % of sales | AQ6: 2012 Total MWh (sales x 1.0751) | AR6: 2020 | AS6: 2021 | AT6: 2022 | AU6: 2023 | AV6: 2024 | AW6: 2025 | AX6: 2026 | AY6: 2027 | AZ6: 2028 | BA6: 2029 | BB6: Interim Goal (2020 - 2029 average) | BC6: Final Goal (2030 and thereafter) | BE6: Final Goal (2030 and thereafter) Target MWh
B7: =StateInput -> Nationwide | C7: =INDEX(C8:C56,MATCH($B$7,$B$8:$B$56)) -> 2437.922987 | D7: =INDEX(D8:D56,MATCH($B$7,$B$8:$B$56)) -> 0 | E7: 0 | F7: 637810628.8 | G7: 14447406 | H7: 0 | I7: 0 | J7: 257516.7019 | K7: 0 | L7: 0 | M7: 2291.647608 | N7: 14447406 | O7: 0 | P7: 0 | Q7: 637810628.8 | R7: 257516.7019 | S7: 0 | T7: 0 | U7: 0 | V7: 1598643.113 | W7: 1696078.238 | X7: 1799451.902 | Y7: 1909126.05 | Z7: 2025484.689 | AA7: 2148935.228 | AB7: 2279909.91 | AC7: 2418867.321 | AD7: 2566293.997 | AE7: 2722706.129 | AF7: 0.03362686168 | AG7: 0.04511968432 | AH7: 0.05629984465 | AI7: 0.06649147268 | AJ7: 0.07573434109 | AK7: 0.08406633253 | AL7: 0.09152352561 | AM7: 0.09814027685 | AN7: 0.1039492989 | AO7: 0.1089817353 | AP7: 2.076769471 | AQ7: 14904523.06 | AR7: 2008.132085 | AS7: 1976.524855 | AT7: 1945.75374 | AU7: 1916.843804 | AV7: 1889.568953 | AW7: 1863.726589 | AX7: 1839.134083 | AY7: 1815.625878 | AZ7: 1793.051071 | BA7: 1771.271429 | BB7: 1881.963249 | BC7: 1771.271429 | BE7: 19051949.62
B8: Alabama | C8: 2264.035412 | D8: 876.6837607 | E8: 0 | F8: 0 | G8: 46045176 | H8: 53492095.96 | I8: 0 | J8: 0 | K8: 10333.1 | L8: 0 | M8: =C8*0.94 -> 2128.193287 | N8: =MAX(G8-((P8-H8)*(G8/(G8+I8))), 0) -> 36001106.68 | O8: =MAX(I8-((P8-H8)*(I8/(I8+G8))),0) -> 0 | P8: =MIN(((K8*8784*0.7)+(0.15*L8*8784)), SUM(G8:I8)) -> 63536165.28 | Q8: =0.55*8784*D8*L8+F8 -> 0 | R8: =L8*8784*0.55+J8 -> 0 | S8: =H8/(8784*K8) -> 0.5893409999 | T8: =(P8-(0.15*8784*L8))/(8784*K8) -> 0.7 | U8: 2329528.283 | V8: 4596882.742 | W8: 5214380.887 | X8: 5914827.408 | Y8: 6709364.741 | Z8: 7610632.081 | AA8: 8632966.444 | AB8: 9792630.735 | AC8: 11108072.45 | AD8: 12600217.13 | AE8: 14292801.24 | AF8: 0.01356544886 | AG8: 0.02111024917 | AH8: 0.03002074341 | AI8: 0.04014290082 | AJ8: 0.0513217653 | AK8: 0.06187806833 | AL8: 0.07146716806 | AM8: 0.08012855279 | AN8: 0.08789981995 | AO8: 0.09481676313 | AP8: 1.506272935 | AQ8: 92654857.35 | AR8: =(($M8*$N8)+($O8*$E8)+($D8*$P8)+$Q8)/($N8+$O8+$P8+$R8+$U8+V8+(MIN(AF8*$AQ8,$AQ8*$AP8*AF8))) -> 1228.348644 | AS8: =(($M8*$N8)+($O8*$E8)+($D8*$P8)+$Q8)/($N8+$O8+$P8+$R8+$U8+W8+(MIN(AG8*$AQ8,$AQ8*$AP8*AG8))) -> 1213.517044 | AT8: 1196.767491 | AU8: 1178.304744 | AV8: 1158.324225 | AW8: 1138.388907 | AX8: 1118.676724 | AY8: 1098.997903 | AZ8: 1079.169459 | BA8: 1059.014866 | BB8: =AVERAGE(AR8:BA8) -> 1146.951001 | BC8: =BA8 -> 1059.014866 | BE8: =($N8+$O8+$P8+$R8+$U8+AE8+(MIN(AO8*$AQ8,$AQ8*$AP8*AO8))) -> 124944835.2
B9: Alaska | C9: 2851.863978 | D9: 1149.034332 | E9: 0 | F9: 1179006934 | G9: 215407 | H9: 2204942.001 | I9: 0 | J9: 741852.8306 | K9: 589 | L9: 0 | M9: =C9*0.94 -> 2680.75214 | N9: 0 | O9: 0 | P9: 2420349.001 | Q9: =0.55*8784*D9*L9+F9 -> 1179006934 | R9: =L9*8784*0.55+J9 -> 741852.8306 | S9: =H9/(8784*K9) -> 0.426176549 | T9: =(P9-(0.15*8784*L9))/(8784*K9) -> 0.4678109375 | V9: 61595 | W9: 68633 | X9: 76475 | Y9: 85213 | Z9: 94950 | AA9: 105799 | AB9: 117887 | AC9: 131357 | AD9: 146365 | AE9: 163089 | AF9: 0.01221242184 | AG9: 0.01952157051 | AH9: 0.0282445042 | AI9: 0.03822887053 | AJ9: 0.0493203674 | AK9: 0.06020473719 | AL9: 0.07012653458 | AM9: 0.07912146877 | AN9: 0.08722358688 | AO9: 0.09446534587 | AP9: 0.9557559445 | AQ9: 6898283.466 | AR9: 1198.454727 | AS9: 1178.753238 | AT9: 1156.260573 | AU9: 1131.623246 | AV9: 1105.447251 | AW9: 1080.529616 | AX9: 1058.152639 | AY9: 1037.968628 | AZ9: 1019.680645 | BA9: 1003.030071 | BB9: =AVERAGE(AR9:BA9) -> 1096.990063 | BC9: =BA9 -> 1003.030071 | BE9: =($N9+$O9+$P9+$R9+$U9+AE9+(MIN(AO9*$AQ9,$AQ9*$AP9*AO9))) -> 3948107.983
B10: Arizona | C10: 2268.104277 | D10: 899.860914 | E10: 1562.914449 | F10: 17227768.09 | G10: 24335930 | H10: 26782325.4 | I10: 1033871.403 | J10: 19361.38426 | K10: 11201.5 | L10: 0 | M10: 2132.01802 | N10: 0 | O10: 0 | P10: 52152126.81 | Q10: 17227768.09 | R10: 19361.38426 | S10: 0.2721947673 | T10: 0.5300337371 | U10: 1818486.111 | V10: 2150929.796 | W10: 2282026.044 | X10: 2421112.431 | Y10: 2568675.943 | Z10: 2725233.252 | AA10: 2891332.515 | AB10: 3067555.303 | AC10: 3254518.63 | AD10: 3452877.118 | AE10: 3663325.286 | AF10: 0.05236799987 | AG10: 0.06277228145 | AH10: 0.07219770695 | AI10: 0.08068824313 | AJ10: 0.08828567033 | AK10: 0.09502968926 | AL10: 0.1009580225 | AM10: 0.1061065111 | AN10: 0.1105092065 | AO10: 0.1141984577 | AP10: 1.425122211 | AQ10: 80700600.06 | AR10: 777.690833 | AS10: 765.3831408 | AT10: 754.318531 | AU10: 744.358803 | AV10: 735.3845773 | AW10: 727.2920115 | AX10: 719.9901601 | AY10: 713.3988347 | AZ10: 707.4468543 | BA10: 702.0706057 | BB10: 734.7334351 | BC10: 702.0706057 | BE10: 66869183.65
B11: Arkansas | C11: 2276.167166 | D11: 827.2061176 | E11: 1446.362601 | F11: 789080955.3 | G11: 28378831 | H11: 15651185 | I11: 860469.7734 | J11: 1310917.188 | K11: 5588.4 | L11: 0 | M11: 2139.597136 | N11: 10218692.59 | O11: 309839.2635 | P11: 34361953.92 | Q11: 789080955.3 | R11: 1310917.188 | S11: 0.3188360454 | T11: 0.7 | U11: 842037.1297 | V11: 2288229.021 | W11: 2479266.075 | X11: 2686252.212 | Y11: 2910518.971 | Z11: 3153509.057 | AA11: 3416785.623 | AB11: 3702042.322 | AC11: 4011114.207 | AD11: 4345989.532 | AE11: 4708822.547 | AF11: 0.01523775665 | AG11: 0.02314061262 | AH11: 0.03238611909 | AI11: 0.04282056791 | AJ11: 0.05421134918 | AK11: 0.0646136672 | AL11: 0.07406569508 | AM11: 0.08260381604 | AN11: 0.0902627026 | AO11: 0.09707539224 | AP11: 1.139879546 | AQ11: 50378720.48 | AR11: 1028.467387 | AS11: 1016.513097 | AT11: 1003.198154 | AU11: 988.7609638 | AV11: 973.5013315 | AW11: 959.2322564 | AX11: 945.8247979 | AY11: 933.1624501 | AZ11: 921.1390653 | BA11: 909.6571459 | BB11: 967.945665 | BC11: 909.6571459 | BE11: 56642796.69
B12: California | C12: 2184.382466 | D12: 866.6253276 | E12: 1405.088146 | F12: 9203690698 | G12: 933157 | H12: 81298989.27 | I12: 10403921 | J12: 14405899.25 | K12: 20765.3 | L12: 1855.2 | M12: 2053.319518 | N12: 0 | O12: 0 | P12: 92636067.27 | Q12: 1.697111679e+10 | R12: 23368741.49 | S12: 0.44571229 | T12: 0.4944653038 | U12: 1034647.927 | V12: 37968065.87 | W12: 40282167.89 | X12: 41150704.38 | Y12: 41150704.38 | Z12: 41150704.38 | AA12: 41150704.38 | AB12: 41150704.38 | AC12: 41150704.38 | AD12: 41150704.38 | AE12: 41150704.38 | AF12: 0.04945600793 | AG12: 0.06036256098 | AH12: 0.07029777048 | AI12: 0.07929946997 | AJ12: 0.08740371056 | AK12: 0.09464484048 | AL12: 0.1010555809 | AM12: 0.1066670986 | AN12: 0.1115090747 | AO12: 0.1156097711 | AP12: 0.7106578908 | AQ12: 279029344.7 | AR12: 590.0691645 | AS12: 574.4651161 | AT12: 564.9914778 | AU12: 559.1926485 | AV12: 554.0728472 | AW12: 549.5769726 | AX12: 545.6571265 | AY12: 542.2715747 | AZ12: 539.383889 | BA12: 536.9622367 | BB12: 555.6643054 | BC12: 536.9622367 | BE12: 181114931.9
B13: Colorado | C13: 2225.535912 | D13: 927.72581 | E13: 5177.309709 | F13: 45518965.42 | G13: 34385542 | H13: 8811705.995 | I13: 618 | J13: 62201.51327 | K13: 3315.3 | L13: 200 | M13: 2092.003757 | N13: 22548824.09 | O13: 405.2625749 | P13: 20648636.64 | Q13: 941924752.1 | R13: 1028441.513 | S13: 0.3025832182 | T13: 0.7 | V13: 7845382.61 | W13: 8323548.019 | X13: 8830856.96 | Y13: 9369085.691 | Z13: 9940118.733 | AA13: 10545955.46 | AB13: 10839819.6 | AC13: 10839819.6 | AD13: 10839819.6 | AE13: 10839819.6 | AF13: 0.03922863134 | AG13: 0.05080790168 | AH13: 0.0613620242 | AI13: 0.07093607562 | AJ13: 0.07957292013 | AK13: 0.08731331566 | AL13: 0.09419601496 | AM13: 0.1002578619 | AN13: 0.1055338832 | AO13: 0.1100573752 | AP13: 0.8907732843 | AQ13: 57717062.8 | AR13: 1243.74803 | AS13: 1219.543901 | AT13: 1196.765278 | AU13: 1175.221534 | AV13: 1154.744495 | AW13: 1135.184953 | AX13: 1122.911582 | AY13: 1117.100241 | AZ13: 1112.090991 | BA13: 1107.831853 | BB13: 1158.514286 | BC13: 1107.831853 | BE13: 60724486.87
B14: Connecticut | C14: 3146.040036 | D14: 809.8915394 | E14: 1763.571052 | F14: 16456559.38 | G14: 99461 | H14: 15299704.4 | I14: 335267 | J14: 30041.16559 | K14: 2749.2 | L14: 0 | M14: 2957.277634 | N14: 0 | O14: 0 | P14: 15734432.4 | Q14: 16456559.38 | R14: 30041.16559 | S14: 0.6335550804 | T14: 0.6515570055 | U14: 971137.1724 | V14: 1071107.703 | W14: 1205972.298 | X14: 1357817.874 | Y14: 1528782.529 | Z14: 1721273.57 | AA14: 1938001.415 | AB14: 2182017.75 | AC14: 2456758.507 | AD14: 2766092.238 | AE14: 3114374.591 | AF14: 0.04714546436 | AG14: 0.05863735836 | AH14: 0.06918897046 | AI14: 0.07882709144 | AJ14: 0.08757729003 | AK14: 0.09546395663 | AL14: 0.1025103453 | AM14: 0.1087386137 | AN14: 0.1141698623 | AO14: 0.1188241707 | AP14: 1.061594349 | AQ14: 31707212.58 | AR14: 661.0674901 | AS14: 644.3999056 | AT14: 628.9497275 | AU14: 614.5143063 | AV14: 600.9141406 | AW14: 587.9880862 | AX14: 575.5896534 | AY14: 563.584178 | AZ14: 551.8467124 | BA14: 540.2605353 | BB14: 596.9114735 | BC14: 540.2605353 | BE14: 23617568.57
B15: Delaware | C15: 2136.9024 | D15: 979.3554366 | E15: 1429.842915 | F15: 2008472.833 | G15: 1406502 | H15: 5179270 | I15: 1076070 | J15: 1432.357275 | K15: 1193 | L15: 0 | M15: 2008.688256 | N15: 184878.7452 | O15: 141444.8549 | P15: 7335518.4 | Q15: 2008472.833 | R15: 1432.357275 | S15: 0.4942375988 | T15: 0.7 | V15: 247756.6392 | W15: 290517.2044 | X15: 340657.8583 | Y15: 399452.3376 | Z15: 468394.2147 | AA15: 549234.8391 | AB15: 644027.8274 | AC15: 755181.232 | AD15: 885518.7136 | AE15: 1038351.271 | AF15: 0.01144121371 | AG15: 0.01863117966 | AH15: 0.02727156304 | AI15: 0.03721191194 | AJ15: 0.04829886625 | AK15: 0.05943084571 | AL15: 0.06961101106 | AM15: 0.07887075008 | AN15: 0.08724001741 | AO15: 0.09474739177 | AP15: 0.4508876082 | AQ15: 12384432.76 | AR15: 973.0125644 | AS15: 963.000966 | AT15: 951.3842845 | AU15: 938.2358421 | AV15: 923.6228223 | AW15: 908.16476 | AX15: 892.3284028 | AY15: 875.9240163 | AZ15: 858.7591108 | BA15: 840.640596 | BB15: 912.5073365 | BC15: 840.640596 | BE15: 9230693.857
B16: Florida | C16: 2250.727235 | D16: 864.2511733 | E16: 1528.879971 | F16: 6223480134 | G16: 44537196 | H16: 133320419.3 | I16: 10025973 | J16: 3567382.708 | K16: 29485.1 | L16: 1157 | M16: 2115.683601 | N16: 4131158.166 | O16: 929984.0122 | P16: 182822446.1 | Q16: 1.105438353e+10 | R16: 9157081.108 | S16: 0.5147563806 | T16: 0.7 | U16: 1623103.935 | V16: 7489632.44 | W16: 8495712.951 | X16: 9636940.013 | Y16: 10931467.83 | Z16: 12399889.25 | AA16: 14065563.37 | AB16: 15954987.09 | AC16: 18098216.64 | AD16: 20529345.7 | AE16: 22109613.6 | AF16: 0.020262588 | AG16: 0.02910708494 | AH16: 0.03915762031 | AI16: 0.05025881157 | AJ16: 0.06081906512 | AK16: 0.07040104992 | AL16: 0.07904704932 | AM16: 0.08679727895 | AN16: 0.09368998529 | AO16: 0.0997615395 | AP16: 0.9020014819 | AQ16: 237246975.4 | AR16: 851.4482643 | AS16: 839.8817502 | AT16: 827.1214715 | AU16: 813.3449619 | AV16: 799.8123006 | AW16: 786.7643581 | AX16: 774.0568942 | AY16: 761.5523421 | AZ16: 749.1183624 | BA16: 740.2090815 | BB16: 794.3309787 | BC16: 740.2090815 | BE16: 242122069.4
B17: Georgia | C17: 2294.550102 | D17: 841.1690127 | E17: 0 | F17: 68345446.74 | G17: 40972090 | H17: 37591123 | I17: 0 | J17: 83815.36127 | K17: 8354.9 | L17: 0 | M17: 2156.877096 | N17: 27190603.88 | O17: 0 | P17: 51372609.12 | Q17: 68345446.74 | R17: 83815.36127 | S17: 0.5122143211 | T17: 0.7 | U17: 19220561.26 | V17: 5427968.094 | W17: 6157105.733 | X17: 6984188.254 | Y17: 7922372.57 | Z17: 8986582.958 | AA17: 10193748.47 | AB17: 11563072.23 | AC17: 12230636.38 | AD17: 12230636.38 | AE17: 12230636.38 | AF17: 0.01761493537 | AG17: 0.0259646854 | AH17: 0.0355923581 | AI17: 0.04634317517 | AJ17: 0.0573401247 | AK17: 0.06735179257 | AL17: 0.07641853162 | AM17: 0.08457876403 | AN17: 0.09186907021 | AO17: 0.09832427348 | AP17: 0.877493388 | AQ17: 140815385.3 | AR17: 966.3991215 | AS17: 950.5299028 | AT17: 932.9833671 | AU17: 914.0201885 | AV17: 894.5825641 | AW17: 875.7948188 | AX17: 857.4523976 | AY17: 845.5320569 | AZ17: 839.2605438 | BA17: 833.7845838 | BB17: 891.0339545 | BC17: 833.7845838 | BE17: 122247622.5
B18: Hawaii | C18: 2077.017389 | D18: 0 | E18: 1694.922669 | F18: 366833182.5 | G18: 1502308 | H18: 0 | I18: 4093831 | J18: 250089.5878 | K18: 0 | L18: 0 | M18: 1952.396345 | N18: 1502308 | O18: 4093831 | P18: 0 | Q18: 366833182.5 | R18: 250089.5878 | V18: 1046926.868 | W18: 1046926.868 | X18: 1046926.868 | Y18: 1046926.868 | Z18: 1046926.868 | AA18: 1046926.868 | AB18: 1046926.868 | AC18: 1046926.868 | AD18: 1046926.868 | AE18: 1046926.868 | AF18: 0.0129359516 | AG18: 0.02039059746 | AH18: 0.02924378415 | AI18: 0.03934290847 | AJ18: 0.05053357719 | AK18: 0.06131261469 | AL18: 0.07113300075 | AM18: 0.08003026228 | AN18: 0.08803827201 | AO18: 0.09518932005 | AP18: 0.9623673241 | AQ18: 10363057.69 | AR18: 1458.048692 | AS18: 1442.773634 | AT18: 1425.043518 | AU18: 1405.342903 | AV18: 1384.139583 | AW18: 1364.312476 | AX18: 1346.736851 | AY18: 1331.199822 | AZ18: 1317.519057 | BA18: 1305.537819 | BB18: 1378.065435 | BC18: 1305.537819 | BE18: 7842485.027
B19: Idaho | C19: 0 | D19: 857.9888373 | E19: 0 | F19: 0 | G19: 0 | H19: 1639922 | I19: 0 | J19: 0 | K19: 620 | L19: 0 | P19: 1639922 | Q19: 0 | R19: 0 | S19: 0.3011197044 | T19: 0.3011197044 | V19: 3185880.328 | W19: 3196687.17 | X19: 3196687.17 | Y19: 3196687.17 | Z19: 3196687.17 | AA19: 3196687.17 | AB19: 3196687.17 | AC19: 3196687.17 | AD19: 3196687.17 | AE19: 3196687.17 | AF19: 0.03804322022 | AG19: 0.04984220782 | AH19: 0.06062772345 | AI19: 0.07044072434 | AJ19: 0.07932022387 | AK19: 0.08730337995 | AL19: 0.09442557941 | AM19: 0.1007205184 | AN19: 0.1062202793 | AO19: 0.1109554037 | AP19: 0.4682553742 | AQ19: 25492619.61 | AR19: 266.4875735 | AS19: 259.0471251 | AT19: 253.0489838 | AU19: 247.8280369 | AV19: 243.2860226 | AW19: 239.3423243 | AX19: 235.9303182 | AY19: 232.9946055 | AZ19: 230.4888882 | BA19: 228.374323 | BB19: 243.6828201 | BC19: 228.374323 | BE19: 6161090.053
B20: Illinois | C20: 2334.131478 | D20: 865.1104995 | E20: 0 | F20: 502713810.9 | G20: 79166165 | H20: 7870423.005 | I20: 0 | J20: 727383.2205 | K20: 3395.6 | L20: 0 | M20: 2194.08359 | N20: =MAX(G20-((P20-H20)*(G20/(G20+I20))), 0) -> 66157722.73 | O20: =MAX(I20-((P20-H20)*(I20/(I20+G20))),0) -> 0 | P20: 20878865.28 | Q20: 502713810.9 | R20: 727383.2205 | S20: 0.2638695173 | T20: 0.7 | U20: 5305342.003 | V20: 10562948.77 | W20: 11194781.06 | X20: 11864406.97 | Y20: 12574087.15 | Z20: 13326217.49 | AA20: 14123337.18 | AB20: 14968137.31 | AC20: 15863469.92 | AD20: 16812357.65 | AE20: 17818003.95 | AF20: 0.04361158168 | AG20: 0.05526846295 | AH20: 0.06596496293 | AI20: 0.0757314453 | AJ20: 0.08459689588 | AK20: 0.09258897578 | AL20: 0.09973407244 | AM20: 0.1060573485 | AN20: 0.1115827885 | AO20: 0.1163332442 | AP20: 1.269901435 | AQ20: 154319858.3 | AR20: 1483.48369 | AS20: 1451.514236 | AT20: 1422.25648 | AU20: 1395.384314 | AV20: 1370.616256 | AW20: 1347.707512 | AX20: 1326.443632 | AY20: 1306.635408 | AZ20: 1288.114729 | BA20: 1270.731199 | BB20: 1366.288746 | BC20: 1270.731199 | BE20: 128839846.9
B21: Indiana | C21: 2158.14277 | D21: 913.9540287 | E21: 0 | F21: 2498940947 | G21: 87213268 | H21: 12839309 | I21: 0 | J21: 1631176.695 | K21: 2767.7 | L21: 0 | M21: 2028.654204 | N21: 83034543.24 | O21: 0 | P21: 17018033.76 | Q21: 2498940947 | R21: 1631176.695 | S21: 0.5281171977 | T21: 0.7 | V21: 4474097.554 | W21: 4741719.726 | X21: 5025349.96 | Y21: 5325945.791 | Z21: 5644522.032 | AA21: 5982154.198 | AB21: 6339982.136 | AC21: 6719213.874 | AD21: 7121129.7 | AE21: 7547086.483 | AF21: 0.03195672759 | AG21: 0.04326510438 | AH21: 0.05490668738 | AI21: 0.06558799699 | AJ21: 0.07533938362 | AK21: 0.08418982017 | AL21: 0.09216695522 | AM21: 0.099297164 | AN21: 0.1056055973 | AO21: 0.1111162281 | AP21: 1.028396075 | AQ21: 113071949.2 | AR21: 1698.996763 | AS21: 1675.396451 | AT21: 1651.657187 | AU21: 1629.885178 | AV21: 1609.890127 | AW21: 1591.503659 | AX21: 1574.57596 | AY21: 1558.972989 | AZ21: 1544.574142 | BA21: 1531.270287 | BB21: 1606.672274 | BC21: 1531.270287 | BE21: 121794968.7
B22: Iowa | C22: 2251.332843 | D22: 894.230685 | E22: 2421.686068 | F22: 0 | G22: 33055156 | H22: 1437496 | I22: 305111 | J22: 0 | K22: 1263.9 | L22: 0 | M22: 2116.252872 | N22: 26779113.81 | O22: 247180.8693 | P22: 7771468.32 | Q22: 0 | R22: 0 | S22: 0.129479676 | T22: 0.7 | U22: 277784.4925 | V22: 8565920.548 | W22: 8565920.548 | X22: 8565920.548 | Y22: 8565920.548 | Z22: 8565920.548 | AA22: 8565920.548 | AB22: 8565920.548 | AC22: 8565920.548 | AD22: 8565920.548 | AE22: 8565920.548 | AF22: 0.04645813861 | AG22: 0.057815702 | AH22: 0.0682119741 | AI22: 0.07767929415 | AJ22: 0.08624852461 | AK22: 0.09394911078 | AL22: 0.100809138 | AM22: 0.1068553863 | AN22: 0.1121133831 | AO22: 0.1166074528 | AP22: 1.130338757 | AQ22: 49141853.41 | AR22: 1398.370075 | AS22: 1381.579404 | AT22: 1366.559508 | AU22: 1353.16303 | AV22: 1341.261839 | AW22: 1330.744234 | AX22: 1321.512641 | AY22: 1313.481703 | AZ22: 1306.576696 | BA22: 1300.732194 | BB22: 1341.398132 | BC22: 1300.732194 | BE22: 49371774.39
B23: Kansas | C23: 2363.849611 | D23: 0 | E23: 1560.42627 | F23: 0 | G23: 27979593 | H23: 0 | I23: 1632997 | J23: 0 | K23: 0 | L23: 0 | M23: 2222.018634 | N23: 27979593 | O23: 1632997 | P23: 0 | Q23: 0 | R23: 0 | U23: 542728.2652 | V23: 7238912.609 | W23: 7843266.684 | X23: 8498076.382 | Y23: 8884938.154 | Z23: 8884938.154 | AA23: 8884938.154 | AB23: 8884938.154 | AC23: 8884938.154 | AD23: 8884938.154 | AE23: 8884938.154 | AF23: 0.01220215122 | AG23: 0.01953473461 | AH23: 0.02829551261 | AI23: 0.03833318408 | AJ23: 0.0494939561 | AK23: 0.06047423245 | AL23: 0.07050169742 | AM23: 0.07960898354 | AN23: 0.08782722616 | AO23: 0.09518612487 | AP23: 1.102800982 | AQ23: 43319516.05 | AR23: 1706.60686 | AS23: 1666.099833 | AT23: 1622.887161 | AU23: 1590.123499 | AV23: 1571.456398 | AW23: 1553.51401 | AX23: 1537.482809 | AY23: 1523.206775 | AZ23: 1510.550019 | BA23: 1499.393901 | BB23: 1578.132126 | BC23: 1499.393901 | BE23: 43163673.28
B24: Kentucky | C24: 2166.326405 | D24: 0 | E24: 0 | F24: 0 | G24: 84358283 | H24: 0 | I24: 0 | J24: 0 | K24: 0 | L24: 640 | M24: 2036.34682 | N24: 83515019 | O24: 0 | P24: 843264 | Q24: =0.55*8784*907*L24+F24 -> 2804414976 | R24: 3091968 | V24: 551117.608 | W24: 625149.1027 | X24: 709125.2302 | Y24: 804381.8506 | Z24: 912434.2697 | AA24: 1035001.344 | AB24: 1174032.824 | AC24: 1331740.369 | AD24: 1510632.73 | AE24: 1713555.658 | AF24: 0.01909815514 | AG24: 0.02776663117 | AH24: 0.03769285854 | AI24: 0.04872224047 | AJ24: 0.05959773947 | AK24: 0.06950345031 | AL24: 0.07847692351 | AM24: 0.08655394304 | AN24: 0.09376860483 | AO24: 0.1001533917 | AP24: 0.9717977753 | AQ24: 95736031.6 | AR24: =(($M24*$N24)+($O24*$E24)+(907*$P24)+$Q24)/($N24+$O24+$P24+$R24+$U24+V24+(MIN(AF24*$AQ24,$AQ24*$AP24*AF24))) -> 1934.042188 | AS24: =(($M24*$N24)+($O24*$E24)+(907*$P24)+$Q24)/($N24+$O24+$P24+$R24+$U24+W24+(MIN(AG24*$AQ24,$AQ24*$AP24*AG24))) -> 1915.258021 | AT24: 1894.20804 | AU24: 1871.31553 | AV24: 1848.999694 | AW24: 1828.666773 | AX24: 1810.101142 | AY24: 1793.106452 | AZ24: 1777.501675 | BA24: 1763.117688 | BB24: 1843.63172 | BC24: 1763.117688 | BE24: 98481683.87
B25: Louisiana | C25: 2323.219567 | D25: 766.2998574 | E25: 1581.210303 | F25: 3267065650 | G25: 24300393 | H25: 19771182.01 | I25: 14254748 | J25: 5223728.374 | K25: 6508.4 | L25: 0 | M25: 2183.826393 | N25: 11538767.06 | O25: 6768706.031 | P25: 40018849.92 | Q25: 3267065650 | R25: 5223728.374 | S25: 0.3458327122 | T25: 0.7 | U25: 985225.0124 | V25: 3348948.077 | W25: 3628541.233 | X25: 3931476.743 | Y25: 4259703.387 | Z25: 4615332.642 | AA25: 5000652.267 | AB25: 5418141.017 | AC25: 5870484.591 | AD25: 6360592.91 | AE25: 6891618.832 | AF25: 0.01137546755 | AG25: 0.01850437094 | AH25: 0.0270580137 | AI25: 0.03688383382 | AJ25: 0.04782739109 | AK25: 0.0587899031 | AL25: 0.06878053223 | AM25: 0.07783667477 | AN25: 0.08599397149 | AO25: 0.09328638531 | AP25: 0.9007919885 | AQ25: 91094021.8 | AR25: 1014.781931 | AS25: 1002.191232 | AT25: 987.9450358 | AU25: 972.3393393 | AV25: 955.6586234 | AW25: 939.1457878 | AX25: 923.7749622 | AY25: 909.3942202 | AZ25: 895.8677992 | BA25: 883.0733173 | BB25: 948.4172248 | BC25: 883.0733173 | BE25: 79081674.23
B26: Maine | C26: 0 | D26: 847.5920859 | E26: 2635.127465 | F26: 0 | G26: 0 | H26: 4053378 | I26: 59067 | J26: 0 | K26: 1388.6 | L26: 0 | M26: 0 | N26: 0 | O26: 0 | P26: 4112445 | Q26: 0 | R26: 0 | S26: 0.3323132195 | T26: 0.3371557841 | V26: 3611728.432 | W26: 3611728.432 | X26: 3611728.432 | Y26: 3611728.432 | Z26: 3611728.432 | AA26: 3611728.432 | AB26: 3611728.432 | AC26: 3611728.432 | AD26: 3611728.432 | AE26: 3611728.432 | AF26: 0.05373600706 | AG26: 0.06471473916 | AH26: 0.07476804913 | AI26: 0.08392205619 | AJ26: 0.09220168166 | AK26: 0.09963069166 | AL26: 0.1062317381 | AM26: 0.112026398 | AN26: 0.1170352115 | AO26: 0.1212777174 | AP26: 1.325208058 | AQ26: 12429294.53 | AR26: 415.3533201 | AS26: 408.7075996 | AT26: 402.8059001 | AU26: 397.578456 | AV26: 392.9658346 | AW26: 388.9172573 | AX26: 385.3892532 | AY26: 382.344571 | AZ26: 379.7512962 | BA26: 377.582131 | BB26: 393.1395619 | BC26: 377.582131 | BE26: 9231569.901
B27: Maryland | C27: 2157.995813 | D27: 975.1773954 | E27: 1544.241383 | F27: 48214762.49 | G27: 16297835 | H27: 676555.594 | I27: 2892354 | J27: 20917.47184 | K27: 288.8 | L27: 0 | M27: 2028.516064 | N27: 15364291.77 | O27: 2726679.387 | P27: 1775773.44 | Q27: 48214762.49 | R27: 20917.47184 | S27: 0.2666944471 | T27: 0.7 | U27: 787533.355 | V27: 1697994.523 | W27: 1991053.09 | X27: 2334690.927 | Y27: 2737637.561 | Z27: 3210129.156 | AA27: 3764168.547 | AB27: 4413830.148 | AC27: 5175617.493 | AD27: 5982068.576 | AE27: 5982068.576 | AF27: 0.04207478171 | AG27: 0.05379500916 | AH27: 0.06454447042 | AI27: 0.07435542781 | AJ27: 0.08325867575 | AK27: 0.09128359941 | AL27: 0.09845823098 | AM27: 0.1048093035 | AN27: 0.1103623023 | AO27: 0.1151415147 | AP27: 0.6082003317 | AQ27: 66455749.76 | AR27: 1543.474432 | AS27: 1495.830886 | AT27: 1450.398128 | AU27: 1406.504888 | AV27: 1363.544231 | AW27: 1320.964214 | AX27: 1278.263687 | AY27: 1234.992704 | AZ27: 1194.079089 | BA27: 1186.712434 | BB27: 1347.476469 | BC27: 1186.712434 | BE27: 31311100.84
B28: Massachusetts | C28: 2082.504077 | D28: 886.3174409 | E28: 1756.554529 | F28: 33906455.55 | G28: 2268133 | H28: 23603159.82 | I28: 329883.237 | J28: 34983.96913 | K28: 6625.1 | L28: 0 | M28: 1957.553832 | N28: 4.656612873e-10 | O28: 5.820766091e-11 | P28: 26201176.05 | Q28: 33906455.55 | R28: 34983.96913 | S28: 0.4055882659 | T28: 0.4502316488 | U28: 316260.4623 | V28: 2962380.326 | W28: 3335377.573 | X28: 3755339.399 | Y28: 4228179.177 | Z28: 4760554.84 | AA28: 5359962.632 | AB28: 6034842.655 | AC28: 6794697.72 | AD28: 7650227.147 | AE28: 8613477.421 | AF28: 0.04434019349 | AG28: 0.05604529365 | AH28: 0.06680388784 | AI28: 0.07664304683 | AJ28: 0.08558860925 | AK28: 0.09366522575 | AL28: 0.1008964013 | AM28: 0.1073045357 | AN28: 0.1129109628 | AO28: 0.1177359876 | AP28: 0.7476763369 | AQ28: 59467354.63 | AR28: 738.6224625 | AS28: 718.2421049 | AT28: 698.853721 | AU28: 680.2457696 | AV28: 662.2293783 | AW28: 644.6348937 | AX28: 627.3094856 | AY28: 610.1156274 | AZ28: 592.9303152 | BA28: 575.6449097 | BB28: 654.8828668 | BC28: 575.6449097 | BE28: 40400714.7
B29: Michigan | C29: 2254.951046 | D29: 810.2861277 | E29: 1586.13537 | F29: 3044925860 | G29: 53210780 | H29: 18499950.61 | I29: 774872 | J29: 4299172.876 | K29: 5008.4 | L29: 0 | M29: 2119.653983 | N29: 41091564.49 | O29: 598388.198 | P29: 30795649.92 | Q29: 3044925860 | R29: 4299172.876 | S29: 0.4205128146 | T29: 0.7 | U29: 1827908.797 | V29: 4775710.479 | W29: 5061373.899 | X29: 5364124.535 | Y29: 5684984.472 | Z29: 6025036.935 | AA29: 6385429.943 | AB29: 6767380.182 | AC29: 7172177.119 | AD29: 7601187.349 | AE29: 8055859.212 | AF29: 0.04592530126 | AG29: 0.05744747525 | AH29: 0.06801987197 | AI29: 0.07767125555 | AJ29: 0.08642908361 | AK29: 0.09431955612 | AL29: 0.1013676624 | AM29: 0.107597226 | AN29: 0.113030948 | AO29: 0.1176904485 | AP29: 1.038919876 | AQ29: 112690037.1 | AR29: 1310.324799 | AS29: 1287.299478 | AT29: 1266.311014 | AU29: 1247.14327 | AV29: 1229.608093 | AW29: 1213.54064 | AX29: 1198.795584 | AY29: 1185.244006 | AZ29: 1172.770825 | BA29: 1161.272665 | BB29: 1227.231037 | BC29: 1161.272665 | BE29: 99931084.5
B30: Minnesota | C30: 2317.982239 | D30: 862.6494868 | E30: 1590.783435 | F30: 83925611.74 | G30: 21989584 | H30: 5715510.022 | I30: 29243 | J30: 97924.44774 | K30: 2768.2 | L30: 0 | M30: 2178.903305 | N30: 10699000.72 | O30: 14228.13993 | P30: 17021108.16 | Q30: 83925611.74 | R30: 97924.44774 | S30: 0.2350526756 | T30: 0.7 | U30: 840189.5441 | V30: 7888544.359 | W30: 7888544.359 | X30: 7888544.359 | Y30: 7888544.359 | Z30: 7888544.359 | AA30: 7888544.359 | AB30: 7888544.359 | AC30: 7888544.359 | AD30: 7888544.359 | AE30: 7888544.359 | AF30: 0.04800846803 | AG30: 0.0592436071 | AH30: 0.06952164317 | AI30: 0.07887472562 | AJ30: 0.08733353471 | AK30: 0.09492734093 | AL30: 0.1016840619 | AM30: 0.1076303166 | AN30: 0.112791478 | AO30: 0.1171917221 | AP30: 0.8283650091 | AQ30: 73094473.98 | AR30: 965.3906261 | AS30: 949.0329167 | AT30: 934.5467943 | AU30: 921.743388 | AV30: 910.4625586 | AW30: 900.5679691 | AX30: 891.943163 | AY30: 884.4884225 | AZ30: 878.1182343 | BA30: 872.7592324 | BB30: 910.9053305 | BC30: 872.7592324 | BE30: 43656825.78
B31: Mississippi | C31: 2493.927851 | D31: 848.1755128 | E31: 1388.206362 | F31: 0 | G31: 7503114 | H31: 31813676.74 | I31: 4402778 | J31: 0 | K31: 7894.4 | L31: 150 | M31: 2344.29218 | N31: 0 | O31: 0 | P31: 43719568.74 | Q31: =0.55*8784*D31*L31+4703731231 -> 5318387062 | R31: =L31*8784*0.55+5836968 -> 6561648 | S31: 0.4587778153 | T31: 0.6276198614 | U31: 631874.2696 | V31: 2498625.703 | W31: 2834265.488 | X31: 3214991.684 | Y31: 3646860.738 | Z31: 4136742.658 | AA31: 4692430.297 | AB31: 5322763.321 | AC31: 5458429.501 | AD31: 5458429.501 | AE31: 5458429.501 | AF31: 0.01399843513 | AG31: 0.02165347703 | AH31: 0.03067765609 | AI31: 0.04091759898 | AJ31: 0.05221863153 | AK31: 0.06279648154 | AL31: 0.07241727993 | AM31: 0.08111772718 | AN31: 0.08893279908 | AO31: 0.09589582297 | AP31: 0.9863437988 | AQ31: 52021589.39 | AR31: 783.3042733 | AS31: 772.9032903 | AT31: 761.1954811 | AU31: 748.3346726 | AV31: 734.4676622 | AW31: 720.7534444 | AX31: 707.2405958 | AY31: 700.4397278 | AZ31: 695.8302627 | BA31: 691.7741594 | BB31: 731.624357 | BC31: 691.7741594 | BE31: 61292047.59
B32: Missouri | C32: 2084.558793 | D32: 889.7216432 | E32: 0 | F32: 0 | G32: 72939512 | H32: 4854569 | I32: 0 | J32: 0 | K32: 2078.7 | L32: 0 | M32: 1959.485266 | N32: 65012570.44 | O32: 0 | P32: 12781510.56 | Q32: 0 | R32: 0 | S32: 0.2658682856 | T32: 0.7 | U32: 549656.7111 | V32: 1638287.302 | W32: 1736282.932 | X32: 1840140.258 | Y32: 1950209.904 | Z32: 2066863.465 | AA32: 2190494.763 | AB32: 2321521.179 | AC32: 2460385.058 | AD32: 2607555.205 | AE32: 2763528.467 | AF32: 0.01575754352 | AG32: 0.02382548077 | AH32: 0.03325681271 | AI32: 0.04389936753 | AJ32: 0.05541189523 | AK32: 0.0659625704 | AL32: 0.07558276564 | AM32: 0.08430242606 | AN32: 0.09215012572 | AO32: 0.09915312166 | AP32: 0.9947165469 | AQ32: 88626254.46 | AR32: 1705.310933 | AS32: 1688.518359 | AT32: 1669.517393 | AU32: 1648.722899 | AV32: 1626.850099 | AW32: 1606.99696 | AX32: 1588.979372 | AY32: 1572.635569 | AZ32: 1557.822744 | BA32: 1544.414249 | BB32: 1620.976858 | BC32: 1544.414249 | BE32: 89848407.26
B33: Montana | C33: 2437.922987 | D33: 0 | E33: 0 | F33: 637810628.8 | G33: 14447406 | H33: 0 | I33: 0 | J33: 257516.7019 | K33: 0 | L33: 0 | M33: 2291.647608 | N33: 14447406 | O33: 0 | P33: 0 | Q33: 637810628.8 | R33: 257516.7019 | V33: 1598643.113 | W33: 1696078.238 | X33: 1799451.902 | Y33: 1909126.05 | Z33: 2025484.689 | AA33: 2148935.228 | AB33: 2279909.91 | AC33: 2418867.321 | AD33: 2566293.997 | AE33: 2722706.129 | AF33: 0.03362686168 | AG33: 0.04511968432 | AH33: 0.05629984465 | AI33: 0.06649147268 | AJ33: 0.07573434109 | AK33: 0.08406633253 | AL33: 0.09152352561 | AM33: 0.09814027685 | AN33: 0.1039492989 | AO33: 0.1089817353 | AP33: 2.076769471 | AQ33: 14904523.06 | AR33: 2008.132085 | AS33: 1976.524855 | AT33: 1945.75374 | AU33: 1916.843804 | AV33: 1889.568953 | AW33: 1863.726589 | AX33: 1839.134083 | AY33: 1815.625878 | AZ33: 1793.051071 | BA33: 1771.271429 | BB33: 1881.963249 | BC33: 1771.271429 | BE33: 19051949.62
B34: Nebraska | C34: 2181.153847 | D34: 1097.076134 | E34: 1754.956561 | F34: 0 | G34: 24660983 | H34: 423637.999 | I34: 37524 | J34: 0 | K34: 468.3 | L34: 0 | M34: 2050.284616 | N34: 22208869.08 | O34: 33792.87855 | P34: 2879483.04 | Q34: 0 | R34: 0 | S34: 0.1029860552 | T34: 0.7 | U34: 574830.0647 | V34: 1856031.643 | W34: 2010985.895 | X34: 2178876.791 | Y34: 2360784.37 | Z34: 2557878.842 | AA34: 2771428.111 | AB34: 3002805.939 | AC34: 3253500.774 | AD34: 3525125.334 | AE34: 3819426.976 | AF34: 0.02196519245 | AG34: 0.03126563682 | AH34: 0.04179146581 | AI34: 0.05338825353 | AJ34: 0.06407845162 | AK34: 0.07382916858 | AL34: 0.08267173486 | AM34: 0.09063604472 | AN34: 0.09775061411 | AO34: 0.1040426362 | AP34: 1.134379913 | AQ34: 33143117.22 | AR34: 1723.871748 | AS34: 1696.092325 | AT34: 1666.139261 | AU34: 1634.508073 | AV34: 1604.840185 | AW34: =(($M34*$N34)+($O34*$E34)+($D34*$P34)+$Q34)/($N34+$O34+$P34+$R34+$U34+AA34+(MIN(AK34*$AQ34,$AQ34*$AP34*AK34))) -> 1576.978692 | AX34: 1550.673057 | AY34: 1525.697978 | AZ34: 1501.849219 | BA34: 1478.940223 | BB34: 1595.959076 | BC34: 1478.940223 | BE34: 32964699.33
B35: Nevada | C35: 2274.596567 | D35: 882.5272922 | E35: 1459.143134 | F35: 172680512 | G35: 4133662 | H35: 23783255.67 | I35: 279983 | J35: 198036.6677 | K35: 6381.2 | L35: 0 | M35: 2138.120773 | N35: 0 | O35: 0 | P35: 28196900.67 | Q35: 172680512 | R35: 198036.6677 | S35: 0.4243035065 | T35: 0.503044831 | V35: 3761261.83 | W35: 3990505.627 | X35: 4233721.523 | Y35: 4491761.096 | Z35: 4765527.832 | AA35: 5055980.277 | AB35: 5364135.404 | AC35: 5691072.168 | AD35: 6037935.283 | AE35: 6405939.234 | AF35: 0.02952003936 | AG35: 0.0402169663 | AH35: 0.0518032416 | AI35: 0.06238447841 | AJ35: 0.07200123154 | AK35: 0.08069213021 | AL35: 0.08849396563 | AM35: 0.09544177453 | AN35: 0.1015689189 | AO35: 0.106907162 | AP35: 0.9666930908 | AQ35: 37821929.84 | AR35: =(($M35*$N35)+($O35*$E35)+($D35*$P35)+$Q35)/($N35+$O35+$P35+$R35+$U35+V35+(MIN(AF35*$AQ35,$AQ35*$AP35*AF35))) -> 753.9288507 | AS35: 740.1144794 | AT35: 725.8185325 | AU35: 712.5082828 | AV35: 700.0593127 | AW35: 688.3623454 | AX35: 677.3207549 | AY35: 666.8485539 | AZ35: 656.8687584 | BA35: 647.3120539 | BB35: 696.9141925 | BC35: 647.3120539 | BE35: 38709637.42
B36: New Hampshire | C36: 2382.021855 | D36: 877.5772182 | E36: 1889.447104 | F36: 0 | G36: 1281341 | H36: 6946869 | I36: 72614 | J36: 0 | K36: 1505.5 | L36: 0 | M36: 2239.100544 | N36: 0 | O36: 0 | P36: 8300824 | Q36: 0 | R36: 0 | S36: 0.5253104282 | T36: 0.6276942044 | U36: 575615.2886 | V36: 2219729.594 | W36: 2499218.699 | X36: 2813898.65 | Y36: 3168200.371 | Z36: 3567112.693 | AA36: 4016252.597 | AB36: 4521944.303 | AC36: 4822223.016 | AD36: 4822223.016 | AE36: 4822223.016 | AF36: 0.02839241128 | AG36: 0.03904023582 | AH36: 0.0508052164 | AI36: 0.06193384639 | AJ36: 0.07213196092 | AK36: 0.08142588993 | AL36: 0.08984075757 | AM36: 0.09740052521 | AN36: 0.1041280328 | AO36: 0.1100450382 | AP36: 1.949719329 | AQ36: 11686617.6 | AR36: 637.4367078 | AS36: 615.6754333 | AT36: 593.0126296 | AU36: 570.5172941 | AV36: 548.2705937 | AW36: 526.1820289 | AX36: 504.1842205 | AY36: 490.9780306 | AZ36: 488.3900243 | BA36: 486.1362571 | BB36: 546.078322 | BC36: 486.1362571 | BE36: 14984716.59
B37: New Jersey | C37: 2101.720795 | D37: 889.1961785 | E37: 1472.691192 | F37: 2431861784 | G37: 2602990 | H37: 20015729.51 | I37: 173972 | J37: 2295215.174 | K37: 5832.3 | L37: 0 | M37: 1975.617547 | N37: 0 | O37: 0 | P37: 22792691.51 | Q37: 2431861784 | R37: 2295215.174 | S37: 0.3906962487 | T37: 0.4449010498 | U37: 1616036.92 | V37: 2421244.21 | W37: 2839129.162 | X37: 3329137.294 | Y37: 3903716.417 | Z37: 4577462.725 | AA37: 5367491.579 | AB37: 6293872.3 | AC37: 7380137.994 | AD37: 8653883.366 | AE37: 10147465.72 | AF37: 0.01247602854 | AG37: 0.01987578319 | AH37: 0.02870459274 | AI37: 0.03881152362 | AJ37: 0.05004296365 | AK37: 0.06102767444 | AL37: 0.07106544236 | AM37: 0.08018743305 | AN37: 0.08842338794 | AO37: 0.095801681 | AP37: 0.7618647725 | AQ37: 80689387.84 | AR37: 759.3645947 | AS37: 737.8219264 | AT37: 713.8582749 | AU37: 687.9835184 | AV37: 660.6667883 | AW37: 633.642868 | AX37: 607.4698707 | AY37: 581.8243257 | AZ37: 556.4361794 | BA37: 531.0863861 | BB37: 647.0154733 | BC37: 531.0863861 | BE37: 42740760.39
B38: New Mexico | C38: 2340.935976 | D38: 907.4086279 | E38: 1313.445906 | F38: 0 | G38: 11353987 | H38: 5730957 | I38: 2208001 | J38: 0 | K38: 1662.4 | L38: 0 | M38: 2200.479818 | N38: 7594318.652 | O38: 1476861.228 | P38: 10221765.12 | Q38: 0 | R38: 0 | S38: 0.3924635181 | T38: 0.7 | V38: 3261075.832 | W38: 3459833.973 | X38: 3670706.152 | Y38: 3894430.704 | Z38: 4131790.963 | AA38: 4383618.007 | AB38: 4650793.568 | AC38: 4721995.633 | AD38: 4721995.633 | AE38: 4721995.633 | AF38: 0.03103501324 | AG38: 0.04194863787 | AH38: 0.05321881814 | AI38: 0.06347074631 | AJ38: 0.07275034365 | AK38: 0.08110124952 | AL38: 0.08856493281 | AM38: 0.09518079792 | AN38: 0.1009862856 | AO38: 0.1060169689 | AP38: 1.500642235 | AQ38: 24919278.46 | AR38: 1197.143742 | AS38: 1173.464682 | AT38: 1149.709367 | AU38: 1127.466452 | AV38: 1106.532148 | AW38: 1086.727828 | AX38: 1067.895944 | AY38: 1058.342201 | AZ38: 1052.571357 | BA38: 1047.621349 | BB38: 1106.747507 | BC38: 1047.621349 | BE38: 26656807
B39: New York | C39: 2219.402796 | D39: 933.7663946 | E39: 1366.253478 | F39: 1921012400 | G39: 4156143.408 | H39: 44002776.77 | I39: 12502558 | J39: 2590211.482 | K39: 9847.6 | L39: 0 | M39: 2086.238628 | N39: 27582.20307 | O39: 82973.09783 | P39: 60550922.88 | Q39: 1921012400 | R39: 2590211.482 | S39: 0.5086948683 | T39: 0.7 | U39: 2410637.29 | V39: 8344247.822 | W39: 9394883.163 | X39: 10577805.4 | Y39: 11909670.94 | Z39: 13409233.45 | AA39: 15097607.87 | AB39: 16998567.75 | AC39: 19138880.03 | AD39: 21548681.86 | AE39: 24261905.06 | AF39: 0.04417793981 | AG39: 0.05589195416 | AH39: 0.06665870142 | AI39: 0.07650537335 | AJ39: 0.08545792462 | AK39: 0.0935411172 | AL39: 0.100778563 | AM39: 0.1071927646 | AN39: 0.1128051548 | AO39: 0.117636134 | AP39: 0.9305061957 | AQ39: 153914184.4 | AR39: 729.8601606 | AS39: 705.8868096 | AT39: 683.4651744 | AU39: 662.2955901 | AV39: 642.1191178 | AW39: 622.7100638 | AX39: 603.8705619 | AY39: 585.4267582 | AZ39: 567.2262623 | BA39: 549.1366073 | BB39: 635.1997106 | BC39: 549.1366073 | BE39: 106771855.9
B40: North Carolina | C40: 2044.285345 | D40: 851.2301159 | E40: 0 | F40: 826846419 | G40: 50607838 | H40: 15195335 | I40: 0 | J40: 362531.2586 | K40: 4709.1 | L40: 2249 | M40: 1921.628224 | N40: 33884576.52 | O40: 0 | P40: 31918596.48 | Q40: 1.007577556e+10 | R40: 11227900.06 | S40: 0.3673499956 | T40: 0.7 | U40: 2295625.088 | V40: 4476628.244 | W40: 5077972.632 | X40: 5760095.465 | Y40: 6533847.693 | Z40: 7411537.871 | AA40: 8407127.957 | AB40: 9536455.418 | AC40: 10817485.16 | AD40: 11668176.31 | AE40: 11668176.31 | AF40: 0.02371170137 | AG40: 0.03324818058 | AH40: 0.04392081746 | AI40: 0.05510063822 | AJ40: 0.06528184483 | AK40: 0.07450651894 | AL40: 0.0828147094 | AM40: 0.09024452744 | AN40: 0.09683223735 | AO40: 0.1026123429 | AP40: 0.8612382456 | AQ40: 137704068.5 | AR40: 1181.768577 | AS40: 1158.596329 | AT40: 1133.603119 | AU40: 1107.842576 | AV40: 1083.392981 | AW40: 1059.950322 | AX40: 1037.237373 | AY40: 1014.998792 | AZ40: 998.8350103 | BA40: 992.1980349 | BB40: 1076.842311 | BC40: 992.1980349 | BE40: 103164288.9
B41: North Dakota | C41: 2367.847027 | D41: 0 | E41: 0 | F41: 0 | G41: 28186691 | H41: 0 | I41: 0 | J41: 0 | K41: 0 | L41: 0 | M41: 2225.776205 | N41: 28186691 | O41: 0 | P41: 0 | Q41: 0 | R41: 0 | V41: 5459956.51 | W41: 5459956.51 | X41: 5459956.51 | Y41: 5459956.51 | Z41: 5459956.51 | AA41: 5459956.51 | AB41: 5459956.51 | AC41: 5459956.51 | AD41: 5459956.51 | AE41: 5459956.51 | AF41: 0.0139050776 | AG41: 0.02158873192 | AH41: 0.03066894823 | AI41: 0.04099397797 | AJ41: 0.05240981445 | AK41: 0.0631723548 | AL41: 0.07299289726 | AM41: 0.08190288555 | AN41: 0.08993232259 | AO41: 0.09710982861 | AP41: 2.594946616 | AQ41: 15822199.4 | AR41: 1852.478891 | AS41: 1845.852769 | AT41: 1838.083151 | AU41: 1829.327485 | AV41: 1819.743401 | AW41: 1810.799304 | AX41: 1802.714416 | AY41: 1795.441366 | AZ41: 1788.937184 | BA41: 1783.162863 | BB41: 1816.654083 | BC41: 1783.162863 | BE41: 35183138.58
B42: Ohio | C42: 2126.491945 | D42: 962.644165 | E42: 1331.859476 | F42: 284732505.6 | G42: 86473075 | H42: 20907183.12 | I42: 321602 | J42: 214178.3423 | K42: 4342.5 | L42: 539 | M42: 1998.902429 | N42: 79993007.74 | O42: 297501.9828 | P42: 27411350.4 | Q42: 2791474084 | R42: 2818195.142 | S42: 0.5481045015 | T42: 0.7 | U42: 993077.2512 | V42: 3286936.617 | W42: 3854232.284 | X42: 4519438.075 | Y42: 5299452.397 | Z42: 6214090.168 | AA42: 7286586.184 | AB42: 8544185.356 | AC42: 10018834.82 | AD42: 11747995.51 | AE42: 13775593.77 | AF42: 0.04167689859 | AG42: 0.05348089612 | AH42: 0.06431975586 | AI42: 0.074224055 | AJ42: 0.08322298456 | AK42: 0.09134440295 | AL42: 0.09861488726 | AM42: 0.1050597825 | AN42: 0.1107032487 | AO42: 0.1155683061 | AP42: 0.85969039 | AQ42: 163906374.5 | AR42: 1570.142095 | AS42: 1541.645456 | AT42: 1514.625751 | AU42: 1488.734272 | AV42: 1463.633407 | AW42: 1438.990977 | AX42: 1414.475786 | AY42: 1389.754468 | AZ42: 1364.48977 | BA42: 1338.34053 | BB42: 1452.483251 | BC42: 1338.34053 | BE42: 141573310.1
B43: Oklahoma | C43: 2304.712007 | D43: 891.4786809 | E43: 1382.024909 | F43: 13854903.01 | G43: 29102160 | H43: 29943376 | I43: 8488757.723 | J43: 13846.75772 | K43: 8035.1 | L43: 0 | M43: 2166.429287 | N43: 14034401.13 | O43: 4093669.713 | P43: 49406222.88 | Q43: 13854903.01 | R43: 13846.75772 | S43: 0.4242454083 | T43: 0.7 | V43: 11742784.58 | W43: 12723152.78 | X43: 13785368.84 | Y43: 14936265.98 | Z43: 15579317.63 | AA43: 15579317.63 | AB43: 15579317.63 | AC43: 15579317.63 | AD43: 15579317.63 | AE43: 15579317.63 | AF43: 0.01855664886 | AG43: 0.02711825302 | AH43: 0.03694970029 | AI43: 0.04789649976 | AJ43: 0.0588448523 | AK43: 0.06882083755 | AL43: 0.07786207624 | AM43: 0.08600442029 | AN43: 0.09328203133 | AO43: 0.09972745572 | AP43: 1.144440127 | AQ43: 63797104.86 | AR43: 995.5980612 | AS43: 977.0635651 | AT43: 957.3399578 | AU43: 936.6434423 | AV43: 922.1808795 | AW43: 915.4746972 | AX43: 909.4805857 | AY43: 904.1492002 | AZ43: 899.4366432 | BA43: 895.3037934 | BB43: 931.2670826 | BC43: 895.3037934 | BE43: 89489781.06
B44: Oregon | C44: 2079.525222 | D44: 852.6290575 | E44: 0 | F44: 103545341.2 | G44: 2640259 | H44: 11424291 | I44: 0 | J44: 123816.3049 | K44: 3434.6 | L44: 0 | M44: 1954.753709 | N44: 0 | O44: 0 | P44: 14064550 | Q44: 103545341.2 | R44: 123816.3049 | S44: 0.3786698819 | T44: 0.4661839836 | V44: 9131577.035 | W44: 9688134.247 | X44: 10278612.86 | Y44: 10905080.35 | Z44: 11569730.18 | AA44: 12274889.51 | AB44: 12567372.37 | AC44: 12567372.37 | AD44: 12567372.37 | AE44: 12567372.37 | AF44: 0.04655913268 | AG44: 0.05766088672 | AH44: 0.06777756038 | AI44: 0.07694876624 | AJ44: 0.08521223425 | AK44: 0.09260389726 | AL44: 0.0991579727 | AM44: 0.1049070405 | AN44: 0.1098821175 | AO44: 0.1141127282 | AP44: 1.112149578 | AQ44: 50195189.09 | AR44: 471.42671 | AS44: 451.8127775 | AT44: 434.0073829 | AU44: 417.717545 | AV44: 402.705249 | AW44: 388.7751881 | AX44: 381.161329 | AY44: 377.7263366 | AZ44: 374.8033771 | BA44: 372.353164 | BB44: 407.2489059 | BC44: 372.353164 | BE44: 32483648.64
B45: Pennsylvania | C45: 2107.95817 | D45: 854.6162266 | E45: 1514.989842 | F45: 3150956118 | G45: 87052562 | H45: 50028719.11 | I45: 1638387 | J45: 3804205.325 | K45: 9581.8 | L45: 0 | M45: 1981.480679 | N45: 78328894.49 | O45: 1474201.787 | P45: 58916571.84 | Q45: 3150956118 | R45: 3804205.325 | S45: 0.5944015798 | T45: 0.7 | U45: 4480395.04 | V45: 8430147.012 | W45: 9885114.487 | X45: 11591196.25 | Y45: 13591732.36 | Z45: 15937543 | AA45: 18688219.43 | AB45: 21913637.85 | AC45: 25695734.45 | AD45: 30130586.87 | AE45: 35330854.88 | AF45: 0.0467051259 | AG45: 0.05806362157 | AH45: 0.06846355192 | AI45: 0.0779366278 | AJ45: 0.08651311425 | AK45: 0.09422188829 | AL45: 0.1010904942 | AM45: 0.1071451964 | AN45: 0.1124110307 | AO45: 0.1169118521 | AP45: 1.42201248 | AQ45: 155577427.5 | AR45: 1296.507229 | AS45: 1271.330052 | AT45: 1246.360619 | AU45: 1221.289741 | AV45: 1195.810956 | AW45: 1169.620743 | AX45: 1142.420631 | AY45: 1113.921425 | AZ45: 1083.849762 | BA45: 1051.957069 | BB45: 1179.306823 | BC45: 1051.957069 | BE45: 200523968.5
B46: Rhode Island | C46: 0 | D46: 917.881459 | E46: 0 | F46: 0 | G46: 0 | H46: 8140017.283 | I46: 0 | J46: 0 | K46: 1960.7 | L46: 0 | P46: 8140017.283 | Q46: 0 | R46: 0 | S46: 0.4726306162 | T46: 0.4726306162 | V46: 163745.5971 | W46: 184363.0231 | X46: 207576.4165 | Y46: 233712.6392 | Z46: 263139.7084 | AA46: 296271.979 | AB46: 333575.9779 | AC46: 375576.973 | AD46: 422866.3691 | AE46: 476110.0361 | AF46: 0.03895541545 | AG46: 0.05106145734 | AH46: 0.06220920683 | AI46: 0.07242626279 | AJ46: 0.08173897291 | AK46: 0.09017247863 | AL46: 0.09775075814 | AM46: 0.1044966677 | AN46: 0.1104319814 | AO46: 0.115577429 | AP46: 0.9763015035 | AQ46: 8287229.883 | AR46: 866.877696 | AS46: 855.1144236 | AT46: 844.1577284 | AU46: 833.9068506 | AV46: 824.2678879 | AW46: 815.1522078 | AX46: 806.4750679 | AY46: 798.1544075 | AZ46: 790.1097855 | BA46: 782.26145 | BB46: 821.6477505 | BC46: 782.26145 | BE46: 9551245.226
B47: South Carolina | C47: 2164.050232 | D47: 846.748332 | E47: 1730.393668 | F47: 10850546.87 | G47: 28460318 | H47: 11209393.61 | I47: 405616 | J47: 14670.81465 | K47: 2839.2 | L47: 0 | M47: 2034.207218 | N47: =MAX(G47-((P47-H47)*(G47/(G47+I47))), 0) -> 22299837.72 | O47: =MAX(I47-((P47-H47)*(I47/(I47+G47))),0) -> 317816.9329 | P47: 17457672.96 | Q47: 10850546.87 | R47: 14670.81465 | S47: 0.4494628549 | T47: 0.7 | U47: 20340660.49 | V47: 3548748.663 | W47: 4025451.211 | X47: 4566189.097 | Y47: 5179564.172 | Z47: 5875333.772 | AA47: 6664565.934 | AB47: 7559815.461 | AC47: 8575323.64 | AD47: 9675568.188 | AE47: 9675568.188 | AF47: 0.02320488596 | AG47: 0.0326421321 | AH47: 0.04322692242 | AI47: 0.05446625394 | AJ47: 0.06470444993 | AK47: 0.07398371366 | AL47: 0.08234420994 | AM47: 0.08982416052 | AN47: 0.09645993502 | AO47: 0.1022861376 | AP47: 1.150810292 | AQ47: 83622302.57 | AR47: 920.8992736 | AS47: 903.5483274 | AT47: 884.7710954 | AU47: 865.1849768 | AV47: 846.4628428 | AW47: 828.3837376 | AX47: 810.7446009 | AY47: 793.3572751 | AZ47: 776.5595372 | BA47: 771.749698 | BB47: 840.1661365 | BC47: 771.749698 | BE47: 78659629.45
B48: South Dakota | C48: 2266.002238 | D48: 1131.233023 | E48: 0 | F48: 0 | G48: 2923161 | H48: 27096 | I48: 0 | J48: 0 | K48: 324 | L48: 0 | M48: 2130.042104 | N48: 958045.8 | O48: 0 | P48: 1992211.2 | Q48: 0 | R48: 0 | S48: 0.009520677326 | T48: 0.7 | V48: 1818849.895 | W48: 1818849.895 | X48: 1818849.895 | Y48: 1818849.895 | Z48: 1818849.895 | AA48: 1818849.895 | AB48: 1818849.895 | AC48: 1818849.895 | AD48: 1818849.895 | AE48: 1818849.895 | AF48: 0.0160034747 | AG48: 0.02411009259 | AH48: 0.03356927579 | AI48: 0.04422845295 | AJ48: 0.05567605536 | AK48: 0.06615855469 | AL48: 0.07570844863 | AM48: 0.08435675143 | AN48: 0.09213305387 | AO48: 0.09906558064 | AP48: 0.8231743247 | AQ48: 12615449.17 | AR48: 870.1263109 | AS48: 855.532876 | AT48: 839.1115266 | AU48: 821.3463905 | AV48: 803.0863412 | AW48: 787.0636394 | AX48: 773.013066 | AY48: 760.7149526 | AZ48: 749.9862499 | BA48: 740.6736579 | BB48: 800.0655011 | BC48: 740.6736579 | BE48: 5797874.602
B49: Tennessee | C49: 2244.486976 | D49: 812.8607781 | E49: 0 | F49: 0 | G49: 34373696 | H49: 6548896.957 | I49: 0 | J49: 0 | K49: 1601.3 | L49: 0 | M49: 2109.817757 | N49: 31076519.52 | O49: 0 | P49: 9846073.44 | Q49: 0 | R49: 0 | S49: 0.4655894452 | T49: 0.7 | U49: 10416619.07 | V49: 1384845.624 | W49: 1570871.601 | X49: 1781886.402 | Y49: 2021246.771 | Z49: 2292760.36 | AA49: 2600746.303 | AB49: 2950103.924 | AC49: 3346390.669 | AD49: 3795910.517 | AE49: 4305814.257 | AF49: 0.02211870959 | AG49: 0.03138497154 | AH49: 0.04184274321 | AI49: 0.05331722151 | AJ49: 0.06379862649 | AK49: 0.07332560273 | AL49: 0.08193497965 | AM49: 0.08966185218 | AN49: 0.09653965783 | AO49: 0.1026002502 | AP49: 0.7180638962 | AQ49: 103619720.5 | AR49: 1353.127323 | AS49: 1331.68394 | AT49: 1308.260384 | AU49: 1283.31439 | AV49: 1260.202254 | AW49: 1238.6278 | AX49: 1218.322155 | AY49: 1199.037531 | AZ49: 1180.542212 | BA49: 1162.616553 | BB49: 1253.573454 | BC49: 1162.616553 | BE49: 63279057.44
B50: Texas | C50: 2238.605065 | D50: 837.4826385 | E50: 1376.725529 | F50: 2.339588144e+10 | G50: 138705137.9 | H50: 148010277.7 | I50: 20911868 | J50: 35025953.08 | K50: 37547.7 | L50: 0 | M50: 2104.288761 | N50: 66698232.67 | O50: 10055753.22 | P50: 230873297.8 | Q50: 2.339588144e+10 | R50: 35025953.08 | S50: 0.4487621366 | T50: 0.7 | U50: 2291006.124 | V50: 46879905.64 | W50: 50793761.71 | X50: 55034373.32 | Y50: 59629020.28 | Z50: 64607259.88 | AA50: 70001117.06 | AB50: 75845290.44 | AC50: 82177375.5 | AD50: 85962501.96 | AE50: 85962501.96 | AF50: 0.01781956462 | AG50: 0.02623271866 | AH50: 0.03593072921 | AI50: 0.04675920899 | AJ50: 0.05779823045 | AK50: 0.06786047613 | AL50: 0.07698394235 | AM50: 0.08520483705 | AN50: 0.09255765947 | AO50: 0.09907527616 | AP50: 0.9811686393 | AQ50: 392523451.2 | AR50: 930.4155585 | AS50: 914.0145088 | AT50: 896.3984111 | AU50: 877.8056381 | AV50: 859.0430562 | AW50: 840.9905808 | AX50: 823.5189085 | AY50: 806.5123132 | AZ50: 795.0738926 | BA50: 790.8191461 | BB50: 853.4592014 | BC50: 790.8191461 | BE50: 469063774.4
B51: Utah | C51: 2070.875559 | D51: 884.4869407 | E51: 1866.974358 | F51: 0 | G51: 27332140 | H51: 5447362 | I51: 120348 | J51: 0 | K51: 1953.4 | L51: 0 | M51: 1946.623026 | N51: 20797210.47 | O51: 91573.60843 | P51: 12011065.92 | Q51: 0 | R51: 0 | S51: 0.3174700252 | T51: 0.7 | V51: 1393352.891 | W51: 1478275.856 | X51: 1568374.76 | Y51: 1663965.071 | Z51: 1765381.481 | AA51: 1872979.083 | AB51: 1987134.613 | AC51: 2108247.767 | AD51: 2236742.604 | AE51: 2373069.026 | AF51: 0.03624667213 | AG51: 0.04819143513 | AH51: 0.05911678149 | AI51: 0.06906394987 | AJ51: 0.07807222227 | AK51: 0.08617901301 | AL51: 0.09341995364 | AM51: 0.09982897395 | AN51: 0.1054383793 | AO51: 0.1102789242 | AP51: 1.272930916 | AQ51: 31955592.94 | AR51: 1446.453448 | AS51: 1427.662057 | AT51: 1410.414792 | AU51: 1394.555814 | AV51: 1379.946742 | AW51: 1366.463973 | AX51: 1353.996448 | AY51: 1342.443788 | AZ51: 1331.714724 | BA51: 1321.725772 | BB51: 1377.537756 | BC51: 1321.725772 | BE51: 38796947.44
B52: Virginia | C52: 2267.841932 | D52: 903.2593312 | E52: 1652.364702 | F52: 2581898592 | G52: 13641552 | H52: 23070349.85 | I52: 343908 | J52: 1140287.982 | K52: 4346.1 | L52: 1928 | M52: 2131.771416 | N52: 7600564.64 | O52: 191612.7274 | P52: 29263632.48 | Q52: 1.099535605e+10 | R52: 10454841.58 | S52: 0.6043132804 | T52: 0.7 | U52: 1645274.962 | V52: 4458735.563 | W52: 5228273.178 | X52: 6130626.057 | Y52: 7188716.919 | Z52: 8429424.737 | AA52: 9884267.554 | AB52: 11192008.06 | AC52: 11192008.06 | AD52: 11192008.06 | AE52: 11192008.06 | AF52: 0.01227562285 | AG52: 0.01955246195 | AH52: 0.02821689372 | AI52: 0.03811480317 | AJ52: 0.04909108736 | AK52: 0.05980081297 | AL52: 0.06953168871 | AM52: 0.07832484096 | AN52: 0.08621940804 | AO52: 0.09325263324 | AP52: 0.580092832 | AQ52: 115890388.4 | AR52: 990.9509083 | AS52: 968.5563185 | AT52: 943.4065887 | AU52: 915.8044211 | AV52: 886.0433303 | AW52: 855.4854784 | AX52: 829.67291 | AY52: 822.1980466 | AZ52: 815.6008753 | BA52: 809.8120326 | BB52: 883.753091 | BC52: 809.8120326 | BE52: 66617046.34
B53: Washington | C53: 2431.875629 | D53: 823.0834448 | E53: 0 | F53: 841079242.1 | G53: 3735730 | H53: 5665045 | I53: 0 | J53: 1181813.684 | K53: 3485.1 | L53: 0 | M53: 2285.963091 | N53: 0 | O53: 0 | P53: 9400775 | Q53: 841079242.1 | R53: 1181813.684 | S53: 0.1850528563 | T53: 0.3070832209 | U53: 506700.3463 | V53: 10407601.52 | W53: 11041930.69 | X53: 11714921.36 | Y53: 12428929.9 | Z53: 13186456.29 | AA53: 13990152.88 | AB53: 14842833.69 | AC53: 15747484.23 | AD53: 16707272 | AE53: 17725557.52 | AF53: 0.04243741867 | AG53: 0.05387982215 | AH53: 0.06432329481 | AI53: 0.0738081055 | AJ53: 0.08237261054 | AK53: 0.09005334066 | AL53: 0.09688508401 | AM53: 0.1029009653 | AN53: 0.1081325214 | AO53: 0.1126097732 | AP53: 1.076913156 | AQ53: 99270907.72 | AR53: 333.6757841 | AS53: 312.1807472 | AT53: 293.8953974 | AU53: 278.1209688 | AV53: 264.3427405 | AW53: 252.1729492 | AX53: 241.3137331 | AY53: 231.5323676 | AZ53: 222.6442909 | BA53: 214.5012094 | BB53: 264.4380188 | BC53: 214.5012094 | BE53: 39993720.96
B54: West Virginia | C54: 2056.169387 | D54: 0 | E54: 0 | F54: 569069878.8 | G54: 70074636 | H54: 0 | I54: 0 | J54: 270212.8326 | K54: 0 | L54: 0 | M54: 1932.799224 | N54: 70074636 | O54: 0 | P54: 0 | Q54: 569069878.8 | R54: 270212.8326 | V54: 2451206.098 | W54: 2874262.202 | X54: 3370333.98 | Y54: 3952023.281 | Z54: 4634106.918 | AA54: 5433912.05 | AB54: 6371756.347 | AC54: 7471464.126 | AD54: 8760971.566 | AE54: 10273036.38 | AF54: 0.01772681928 | AG54: 0.02620262146 | AH54: 0.0360061453 | AI54: 0.04698471802 | AJ54: 0.05828301504 | AK54: 0.0686315764 | AL54: 0.07806026724 | AM54: 0.08659759387 | AN54: 0.09427075608 | AO54: 0.1011056974 | AP54: 2.333002083 | AQ54: 33131615.8 | AR54: 1853.407199 | AS54: 1835.798723 | AT54: 1815.681179 | AU54: 1793.050805 | AV54: 1768.421944 | AW54: 1742.53272 | AX54: 1715.061201 | AY54: 1685.673237 | AZ54: 1654.027199 | BA54: 1619.781223 | BB54: 1748.343543 | BC54: 1619.781223 | BE54: 83967680.34
B55: Wisconsin | C55: 2362.862035 | D55: 833.4473153 | E55: 1797.886632 | F55: 133623054.4 | G55: 32112721 | H55: 10244272.95 | I55: 47668 | J55: 160189.2098 | K55: 2977.3 | L55: 0 | M55: 2221.090313 | N55: 24062121.99 | O55: 35717.72168 | P55: 18306822.24 | Q55: 133623054.4 | R55: 160189.2098 | S55: 0.3917114054 | T55: 0.7 | U55: 546885.3327 | V55: 4066361.628 | W55: 4309594.709 | X55: 4567376.995 | Y55: 4840578.761 | Z55: 5130122.337 | AA55: 5436985.222 | AB55: 5762203.387 | AC55: 6106874.769 | AD55: 6472162.98 | AE55: 6859301.234 | AF55: 0.04675555758 | AG55: 0.0581995149 | AH55: 0.06869418637 | AI55: 0.07826866425 | AJ55: 0.08695071885 | AK55: 0.09476684851 | AL55: 0.1017423275 | AM55: 0.1079012519 | AN55: 0.1132665839 | AO55: 0.1178601937 | AP55: 0.8397046461 | AQ55: 73988478.76 | AR55: 1375.712858 | AS55: 1349.991518 | AT55: 1326.347746 | AU55: 1304.548356 | AV55: 1284.38951 | AW55: 1265.691808 | AX55: 1248.29629 | AY55: 1232.061176 | AZ55: 1216.859168 | BA55: 1202.57523 | BB55: 1280.647366 | BC55: 1202.57523 | BE55: 57293511.16
B56: Wyoming | C56: 2330.539938 | D56: 0 | E56: 0 | F56: 0 | G56: 42907427 | H56: 0 | I56: 0 | J56: 0 | K56: 0 | L56: 220 | M56: 2190.707542 | N56: 42617555 | O56: 0 | P56: 289872 | Q56: =0.55*8784*907*L56+F56 -> 964017648 | R56: 1062864 | V56: 5535669.131 | W56: 5873060.642 | X56: 6231015.708 | Y56: 6610787.648 | Z56: 7013706.172 | AA56: 7441182.032 | AB56: 7894711.965 | AC56: 8375883.931 | AD56: 8886382.675 | AE56: 9427995.624 | AF56: 0.01610976772 | AG56: 0.02416911169 | AH56: 0.03354335674 | AI56: 0.04407815449 | AJ56: 0.05530043908 | AK56: 0.06553219255 | AL56: 0.0748132785 | AM56: 0.08318166633 | AN56: 0.09067351738 | AO56: 0.09732326714 | AP56: 2.561502489 | AQ56: 18245902.69 | AR56: =(($M56*$N56)+($O56*$E56)+(907*$P56)+$Q56)/($N56+$O56+$P56+$R56+$U56+V56+(MIN(AF56*$AQ56,$AQ56*$AP56*AF56))) -> 1899.39208 | AS56: =(($M56*$N56)+($O56*$E56)+(907*$P56)+$Q56)/($N56+$O56+$P56+$R56+$U56+W56+(MIN(AG56*$AQ56,$AQ56*$AP56*AG56))) -> 1881.093254 | AT56: 1861.50997 | AU56: 1840.788822 | AV56: 1819.274213 | AW56: 1798.035059 | AX56: 1776.995337 | AY56: 1756.083973 | AZ56: 1735.2345 | BA56: 1714.384791 | BB56: 1808.2792 | BC56: 1714.384791 | BE56: 55174037.48

Sheet Version Control (hidden)
B2: Calculator Version Control
C5: Version # | D5: Date | E5: Comments
C6: =INDEX(C7:C26,MATCH(MAX(D7:D26),D7:D26,0)) -> 1.6 | D6: =VLOOKUP(C6,C7:E26,2,FALSE) -> 2018-11-27 | E6: =VLOOKUP(D6,D7:F25,2,FALSE) -> Fixed Commercial code costs for national option as they were showing up as $0
C7: 1 | D7: 2015-04-23 | E7: First relesase as 111(d) Calculator
C8: 1.1 | D8: 2015-04-24 | E8: Minor updates to results field
E9: Fixing typos
E10: Updated calculator title for 111(d) to clean power plan
C11: 1.2 | D11: 2018-05-30 | E11: Rebranded/formatted toward energy code savings rather than 111(d)/cpp
E12: Modified for use by CSA-level users
C13: 1.3 | D13: 2018-07-25 | E13: Modified to not show savings for non-upgraded codes
C14: 1.4 | D14: 2018-08-30 | E14: Update egrid electricity emissions to include new 2016 data released in 2018
E15: Added passive house to residential at 50% better than 2006 IECC
E16: Ability to select egrid emission year
E17: Added Customizable emissions result display to 2nd results tab
E18: Updated 1st results tab to focus less on electricity only as 111(d) calculator did
C19: 1.5 | D19: 2018-10-30 | E19: Added a National option for viewing impact
E20: Added Passive House to commercial at 40% better than ASHRAE 90.1-2010
E21: fixed 2030/2040 snap shot for electricity as some info didn't come through
C22: 1.6 | D22: 2018-11-27 | E22: Fixed Commercial code costs for national option as they were showing up as $0

Sheet Energy+Emissions Calculation (hidden)
B2: Residential + Commercial Code Projection + Energy/Emission Savings by Year
B5: Residential Electricity | AH5: Commercial Electricity
B6: Code Projection + Energy Savings | AH6: Code Projection + Energy Savings | BP6: Electricity | BQ6: MWh | BR6: Residential | BS6: 2013 | BT6: =TRANSPOSE('Energy+Emissions Calculation'!$C$21:$AD$21) -> 0
C7: 2013 | D7: 2014 | E7: 2015 | F7: 2016 | G7: 2017 | H7: 2018 | I7: 2019 | J7: 2020 | K7: 2021 | L7: 2022 | M7: 2023 | N7: 2024 | O7: 2025 | P7: 2026 | Q7: 2027 | R7: 2028 | S7: 2029 | T7: 2030 | U7: 2031 | V7: 2032 | W7: 2033 | X7: 2034 | Y7: 2035 | Z7: 2036 | AA7: 2037 | AB7: 2038 | AC7: 2039 | AD7: 2040 | AI7: 2013 | AJ7: 2014 | AK7: 2015 | AL7: 2016 | AM7: 2017 | AN7: 2018 | AO7: 2019 | AP7: 2020 | AQ7: 2021 | AR7: 2022 | AS7: 2023 | AT7: 2024 | AU7: 2025 | AV7: 2026 | AW7: 2027 | AX7: 2028 | AY7: 2029 | AZ7: 2030 | BA7: 2031 | BB7: 2032 | BC7: 2033 | BD7: 2034 | BE7: 2035 | BF7: 2036 | BG7: 2037 | BH7: 2038 | BI7: 2039 | BJ7: 2040 | BP7: Electricity | BQ7: MWh | BR7: Residential | BS7: 2014 | BT7: 0
B8: Baseline | AH8: Baseline | BP8: Electricity | BQ8: MWh | BR8: Residential | BS8: 2015 | BT8: 0
B9: Energy Code | C9: =C13 -> IECC 2009 | D9: =C9 -> IECC 2009 | E9: IECC 2009 | F9: IECC 2009 | G9: IECC 2009 | H9: IECC 2009 | I9: IECC 2009 | J9: IECC 2009 | K9: IECC 2009 | L9: IECC 2009 | M9: IECC 2009 | N9: IECC 2009 | O9: IECC 2009 | P9: IECC 2009 | Q9: IECC 2009 | R9: IECC 2009 | S9: IECC 2009 | T9: IECC 2009 | U9: IECC 2009 | V9: IECC 2009 | W9: IECC 2009 | X9: IECC 2009 | Y9: IECC 2009 | Z9: IECC 2009 | AA9: IECC 2009 | AB9: IECC 2009 | AC9: IECC 2009 | AD9: IECC 2009 | AH9: Energy Code | AI9: =AI13 -> ASHRAE 90.1 2007 | AJ9: =AI9 -> ASHRAE 90.1 2007 | AK9: =AJ9 -> ASHRAE 90.1 2007 | AL9: =AK9 -> ASHRAE 90.1 2007 | AM9: =AL9 -> ASHRAE 90.1 2007 | AN9: =AM9 -> ASHRAE 90.1 2007 | AO9: =AN9 -> ASHRAE 90.1 2007 | AP9: =AO9 -> ASHRAE 90.1 2007 | AQ9: =AP9 -> ASHRAE 90.1 2007 | AR9: =AQ9 -> ASHRAE 90.1 2007 | AS9: =AR9 -> ASHRAE 90.1 2007 | AT9: =AS9 -> ASHRAE 90.1 2007 | AU9: =AT9 -> ASHRAE 90.1 2007 | AV9: =AU9 -> ASHRAE 90.1 2007 | AW9: =AV9 -> ASHRAE 90.1 2007 | AX9: =AW9 -> ASHRAE 90.1 2007 | AY9: =AX9 -> ASHRAE 90.1 2007 | AZ9: =AY9 -> ASHRAE 90.1 2007 | BA9: =AZ9 -> ASHRAE 90.1 2007 | BB9: =BA9 -> ASHRAE 90.1 2007 | BC9: =BB9 -> ASHRAE 90.1 2007 | BD9: =BC9 -> ASHRAE 90.1 2007 | BE9: =BD9 -> ASHRAE 90.1 2007 | BF9: =BE9 -> ASHRAE 90.1 2007 | BG9: =BF9 -> ASHRAE 90.1 2007 | BH9: =BG9 -> ASHRAE 90.1 2007 | BI9: =BH9 -> ASHRAE 90.1 2007 | BJ9: =BI9 -> ASHRAE 90.1 2007 | BP9: Electricity | BQ9: MWh | BR9: Residential | BS9: 2016 | BT9: 0
B10: Compliance Rate | C10: =ResBaselineCompliance -> 0.75 | D10: 0.75 | E10: 0.75 | F10: 0.75 | G10: 0.75 | H10: 0.75 | I10: 0.75 | J10: 0.75 | K10: 0.75 | L10: 0.75 | M10: 0.75 | N10: 0.75 | O10: 0.75 | P10: 0.75 | Q10: 0.75 | R10: 0.75 | S10: 0.75 | T10: 0.75 | U10: 0.75 | V10: 0.75 | W10: 0.75 | X10: 0.75 | Y10: 0.75 | Z10: 0.75 | AA10: 0.75 | AB10: 0.75 | AC10: 0.75 | AD10: 0.75 | AH10: Compliance Rate | AI10: =ComBaselineCompliance -> 0.75 | AJ10: 0.75 | AK10: 0.75 | AL10: 0.75 | AM10: 0.75 | AN10: 0.75 | AO10: 0.75 | AP10: 0.75 | AQ10: 0.75 | AR10: 0.75 | AS10: 0.75 | AT10: 0.75 | AU10: 0.75 | AV10: 0.75 | AW10: 0.75 | AX10: 0.75 | AY10: 0.75 | AZ10: 0.75 | BA10: 0.75 | BB10: 0.75 | BC10: 0.75 | BD10: 0.75 | BE10: 0.75 | BF10: 0.75 | BG10: 0.75 | BH10: 0.75 | BI10: 0.75 | BJ10: 0.75 | BP10: Electricity | BQ10: MWh | BR10: Residential | BS10: 2017 | BT10: 0
B11: kWh Consumption | C11: =HLOOKUP(C9,ResElec,2,FALSE)*C10+ElecIECC2006*(1-C10) -> 9314.674891 | D11: =HLOOKUP(D9,ResElec,2,FALSE)*D10+ElecIECC2006*(1-D10) -> 9314.674891 | E11: 9314.674891 | F11: 9314.674891 | G11: 9314.674891 | H11: 9314.674891 | I11: 9314.674891 | J11: 9314.674891 | K11: 9314.674891 | L11: 9314.674891 | M11: 9314.674891 | N11: 9314.674891 | O11: 9314.674891 | P11: 9314.674891 | Q11: 9314.674891 | R11: 9314.674891 | S11: 9314.674891 | T11: 9314.674891 | U11: 9314.674891 | V11: 9314.674891 | W11: 9314.674891 | X11: 9314.674891 | Y11: 9314.674891 | Z11: 9314.674891 | AA11: 9314.674891 | AB11: 9314.674891 | AC11: 9314.674891 | AD11: 9314.674891 | AH11: kWh Consumption | AI11: =HLOOKUP(AI9,ComElec,2,FALSE)*AI10+Elec9012004*(1-AI10) -> 14.69188618 | AJ11: 14.69188618 | AK11: 14.69188618 | AL11: 14.69188618 | AM11: 14.69188618 | AN11: 14.69188618 | AO11: 14.69188618 | AP11: 14.69188618 | AQ11: 14.69188618 | AR11: 14.69188618 | AS11: 14.69188618 | AT11: 14.69188618 | AU11: 14.69188618 | AV11: 14.69188618 | AW11: 14.69188618 | AX11: 14.69188618 | AY11: 14.69188618 | AZ11: 14.69188618 | BA11: 14.69188618 | BB11: 14.69188618 | BC11: 14.69188618 | BD11: 14.69188618 | BE11: 14.69188618 | BF11: 14.69188618 | BG11: 14.69188618 | BH11: 14.69188618 | BI11: 14.69188618 | BJ11: 14.69188618 | BP11: Electricity | BQ11: MWh | BR11: Residential | BS11: 2018 | BT11: 0
B12: Upgrade | AH12: Upgrade | BP12: Electricity | BQ12: MWh | BR12: Residential | BS12: 2019 | BT12: 0
B13: Energy Code | C13: =IF(ResCodeBaselineInput="IECC 2006 (default)","IECC 2006",ResCodeBaselineInput) -> IECC 2009 | D13: =IFERROR(INDEX(ResCodeTable,MATCH(D7,ResCodeDate,0),1),C13) -> IECC 2009 | E13: IECC 2009 | F13: IECC 2009 | G13: IECC 2009 | H13: IECC 2009 | I13: IECC 2009 | J13: IECC 2009 | K13: IECC 2009 | L13: IECC 2009 | M13: IECC 2009 | N13: IECC 2009 | O13: IECC 2009 | P13: IECC 2009 | Q13: IECC 2009 | R13: IECC 2009 | S13: IECC 2009 | T13: IECC 2009 | U13: IECC 2009 | V13: IECC 2009 | W13: IECC 2009 | X13: IECC 2009 | Y13: IECC 2009 | Z13: IECC 2009 | AA13: IECC 2009 | AB13: IECC 2009 | AC13: IECC 2009 | AD13: IECC 2009 | AH13: Energy Code | AI13: =IF(ComCodeBaselineInput="ASHRAE 90.1 2004 (default)","ASHRAE 90.1 2004",ComCodeBaselineInput) -> ASHRAE 90.1 2007 | AJ13: =IFERROR(INDEX(ComCodeTable,MATCH(AJ7,ComCodeDate,0),1),AI13) -> ASHRAE 90.1 2007 | AK13: ASHRAE 90.1 2007 | AL13: ASHRAE 90.1 2007 | AM13: ASHRAE 90.1 2007 | AN13: ASHRAE 90.1 2007 | AO13: ASHRAE 90.1 2010 | AP13: ASHRAE 90.1 2010 | AQ13: ASHRAE 90.1 2010 | AR13: ASHRAE 90.1 2010 | AS13: ASHRAE 90.1 2010 | AT13: ASHRAE 90.1 2010 | AU13: ASHRAE 90.1 2010 | AV13: ASHRAE 90.1 2010 | AW13: ASHRAE 90.1 2010 | AX13: ASHRAE 90.1 2010 | AY13: ASHRAE 90.1 2010 | AZ13: ASHRAE 90.1 2010 | BA13: ASHRAE 90.1 2010 | BB13: ASHRAE 90.1 2010 | BC13: ASHRAE 90.1 2010 | BD13: ASHRAE 90.1 2010 | BE13: ASHRAE 90.1 2010 | BF13: ASHRAE 90.1 2010 | BG13: ASHRAE 90.1 2010 | BH13: ASHRAE 90.1 2010 | BI13: ASHRAE 90.1 2010 | BJ13: ASHRAE 90.1 2010 | BP13: Electricity | BQ13: MWh | BR13: Residential | BS13: 2020 | BT13: 0
B14: Compliance Rate | C14: ='Step 3 - Code Updates'!E14 -> 0.75 | D14: =IFERROR(INDEX(ResCodeTable,MATCH(D7,ResCodeDate,0),3),C14) -> 0.75 | E14: 0.75 | F14: 0.75 | G14: 0.75 | H14: 0.75 | I14: 0.75 | J14: 0.75 | K14: 0.75 | L14: 0.75 | M14: 0.75 | N14: 0.75 | O14: 0.75 | P14: 0.75 | Q14: 0.75 | R14: 0.75 | S14: 0.75 | T14: 0.75 | U14: 0.75 | V14: 0.75 | W14: 0.75 | X14: 0.75 | Y14: 0.75 | Z14: 0.75 | AA14: 0.75 | AB14: 0.75 | AC14: 0.75 | AD14: 0.75 | AH14: Compliance Rate | AI14: ='Step 3 - Code Updates'!I14 -> 0.75 | AJ14: =IFERROR(INDEX(ComCodeTable,MATCH(AJ7,ComCodeDate,0),3),AI14) -> 0.75 | AK14: 0.75 | AL14: 0.75 | AM14: 0.75 | AN14: 0.75 | AO14: 0.75 | AP14: 0.75 | AQ14: 0.75 | AR14: 0.75 | AS14: 0.75 | AT14: 0.75 | AU14: 0.75 | AV14: 0.75 | AW14: 0.75 | AX14: 0.75 | AY14: 0.75 | AZ14: 0.75 | BA14: 0.75 | BB14: 0.75 | BC14: 0.75 | BD14: 0.75 | BE14: 0.75 | BF14: 0.75 | BG14: 0.75 | BH14: 0.75 | BI14: 0.75 | BJ14: 0.75 | BP14: Electricity | BQ14: MWh | BR14: Residential | BS14: 2021 | BT14: 0
B15: kWh Consumption | C15: =IF(AND(C9=C13,C10=C14),C11,IF(C13=C9,HLOOKUP(C13,ResElec,2,FALSE)*C14,HLOOKUP(C13,ResElec,2,FALSE)*C14+C11*(1-C14))) -> 9314.674891 | D15: 9314.674891 | E15: 9314.674891 | F15: 9314.674891 | G15: 9314.674891 | H15: 9314.674891 | I15: 9314.674891 | J15: 9314.674891 | K15: 9314.674891 | L15: 9314.674891 | M15: 9314.674891 | N15: 9314.674891 | O15: 9314.674891 | P15: 9314.674891 | Q15: 9314.674891 | R15: 9314.674891 | S15: 9314.674891 | T15: 9314.674891 | U15: 9314.674891 | V15: 9314.674891 | W15: 9314.674891 | X15: 9314.674891 | Y15: 9314.674891 | Z15: 9314.674891 | AA15: 9314.674891 | AB15: 9314.674891 | AC15: 9314.674891 | AD15: 9314.674891 | AH15: kWh Consumption | AI15: =IF(AND(AI9=AI13,AI10=AI14),AI11,IF(AI13=AI9,HLOOKUP(AI13,ComElec,2,FALSE)*AI14,HLOOKUP(AI13,ComElec,2,FALSE)*AI14+AI11*(1-AI14))) -> 14.69188618 | AJ15: 14.69188618 | AK15: 14.69188618 | AL15: 14.69188618 | AM15: 14.69188618 | AN15: 14.69188618 | AO15: 12.64107897 | AP15: 12.64107897 | AQ15: 12.64107897 | AR15: 12.64107897 | AS15: 12.64107897 | AT15: 12.64107897 | AU15: 12.64107897 | AV15: 12.64107897 | AW15: 12.64107897 | AX15: 12.64107897 | AY15: 12.64107897 | AZ15: 12.64107897 | BA15: 12.64107897 | BB15: 12.64107897 | BC15: 12.64107897 | BD15: 12.64107897 | BE15: 12.64107897 | BF15: 12.64107897 | BG15: 12.64107897 | BH15: 12.64107897 | BI15: 12.64107897 | BJ15: 12.64107897 | BP15: Electricity | BQ15: MWh | BR15: Residential | BS15: 2022 | BT15: 0
B16: Savings per Home | AH16: Savings per Sq. Ft. | BP16: Electricity | BQ16: MWh | BR16: Residential | BS16: 2023 | BT16: 0
B17: kWh Savings Per Home | C17: =C11-C15 -> 0 | D17: 0 | E17: 0 | F17: 0 | G17: 0 | H17: 0 | I17: 0 | J17: 0 | K17: 0 | L17: 0 | M17: 0 | N17: 0 | O17: 0 | P17: 0 | Q17: 0 | R17: 0 | S17: 0 | T17: 0 | U17: 0 | V17: 0 | W17: 0 | X17: 0 | Y17: 0 | Z17: 0 | AA17: 0 | AB17: 0 | AC17: 0 | AD17: 0 | AH17: kWh Savings per Sq. Ft. | AI17: =AI11-AI15 -> 0 | AJ17: 0 | AK17: 0 | AL17: 0 | AM17: 0 | AN17: 0 | AO17: 2.050807209 | AP17: 2.050807209 | AQ17: 2.050807209 | AR17: 2.050807209 | AS17: 2.050807209 | AT17: 2.050807209 | AU17: 2.050807209 | AV17: 2.050807209 | AW17: 2.050807209 | AX17: 2.050807209 | AY17: 2.050807209 | AZ17: 2.050807209 | BA17: 2.050807209 | BB17: 2.050807209 | BC17: 2.050807209 | BD17: 2.050807209 | BE17: 2.050807209 | BF17: 2.050807209 | BG17: 2.050807209 | BH17: 2.050807209 | BI17: 2.050807209 | BJ17: 2.050807209 | BP17: Electricity | BQ17: MWh | BR17: Residential | BS17: 2024 | BT17: 0
BP18: Electricity | BQ18: MWh | BR18: Residential | BS18: 2025 | BT18: 0
B19: Statewide Savings | AH19: Statewide Savings | BP19: Electricity | BQ19: MWh | BR19: Residential | BS19: 2026 | BT19: 0
B20: Building Projection | C20: =IFERROR('Building Growth Projections'!D9,) -> - | D20: =IFERROR('Building Growth Projections'!E9,) -> - | E20: =IFERROR('Building Growth Projections'!F9,) -> - | F20: =IFERROR('Building Growth Projections'!G9,) -> - | G20: =IFERROR('Building Growth Projections'!H9,) -> 1853483.158 | H20: =IFERROR('Building Growth Projections'!I9,) -> 1823988.986 | I20: =IFERROR('Building Growth Projections'!J9,) -> 1806189.771 | J20: =IFERROR('Building Growth Projections'!K9,) -> 1782731.283 | K20: =IFERROR('Building Growth Projections'!L9,) -> 1750191.263 | L20: =IFERROR('Building Growth Projections'!M9,) -> 1754654.162 | M20: =IFERROR('Building Growth Projections'!N9,) -> 1790121.188 | N20: =IFERROR('Building Growth Projections'!O9,) -> 1832686.55 | O20: =IFERROR('Building Growth Projections'!P9,) -> 1859979.486 | P20: =IFERROR('Building Growth Projections'!Q9,) -> 1863973.91 | Q20: =IFERROR('Building Growth Projections'!R9,) -> 1845708.321 | R20: =IFERROR('Building Growth Projections'!S9,) -> 1820371.772 | S20: =IFERROR('Building Growth Projections'!T9,) -> 1807567.97 | T20: =IFERROR('Building Growth Projections'!U9,) -> 1815788.915 | U20: =IFERROR('Building Growth Projections'!V9,) -> 1798043.501 | V20: =IFERROR('Building Growth Projections'!W9,) -> 1771416.945 | W20: =IFERROR('Building Growth Projections'!X9,) -> 1799819.467 | X20: =IFERROR('Building Growth Projections'!Y9,) -> 1818758.36 | Y20: =IFERROR('Building Growth Projections'!Z9,) -> 1831350.172 | Z20: =IFERROR('Building Growth Projections'!AA9,) -> 1842344.906 | AA20: =IFERROR('Building Growth Projections'!AB9,) -> 1839373.011 | AB20: =IFERROR('Building Growth Projections'!AC9,) -> 1832798.851 | AC20: =IFERROR('Building Growth Projections'!AD9,) -> 1836617.811 | AD20: =IFERROR('Building Growth Projections'!AE9,) -> 1835040.478 | AH20: Building Projection | AI20: =IFERROR('Building Growth Projections'!AK9,) -> - | AJ20: =IFERROR('Building Growth Projections'!AL9,) -> - | AK20: =IFERROR('Building Growth Projections'!AM9,) -> - | AL20: =IFERROR('Building Growth Projections'!AN9,) -> - | AM20: =IFERROR('Building Growth Projections'!AO9,) -> 1921684.508 | AN20: =IFERROR('Building Growth Projections'!AP9,) -> 1990972.614 | AO20: =IFERROR('Building Growth Projections'!AQ9,) -> 2023100.807 | AP20: =IFERROR('Building Growth Projections'!AR9,) -> 1995248.629 | AQ20: =IFERROR('Building Growth Projections'!AS9,) -> 1993101.627 | AR20: =IFERROR('Building Growth Projections'!AT9,) -> 1984328.977 | AS20: =IFERROR('Building Growth Projections'!AU9,) -> 1976793.559 | AT20: =IFERROR('Building Growth Projections'!AV9,) -> 1981240.306 | AU20: =IFERROR('Building Growth Projections'!AW9,) -> 1981758.831 | AV20: =IFERROR('Building Growth Projections'!AX9,) -> 1953349.043 | AW20: =IFERROR('Building Growth Projections'!AY9,) -> 1929013.947 | AX20: =IFERROR('Building Growth Projections'!AZ9,) -> 1920827.352 | AY20: =IFERROR('Building Growth Projections'!BA9,) -> 1921746.56 | AZ20: =IFERROR('Building Growth Projections'!BB9,) -> 1924313.644 | BA20: =IFERROR('Building Growth Projections'!BC9,) -> 1951666.135 | BB20: =IFERROR('Building Growth Projections'!BD9,) -> 2026350.842 | BC20: =IFERROR('Building Growth Projections'!BE9,) -> 2093897.742 | BD20: =IFERROR('Building Growth Projections'!BF9,) -> 2157208.813 | BE20: =IFERROR('Building Growth Projections'!BG9,) -> 2236002.739 | BF20: =IFERROR('Building Growth Projections'!BH9,) -> 2324032.437 | BG20: =IFERROR('Building Growth Projections'!BI9,) -> 2354681.426 | BH20: =IFERROR('Building Growth Projections'!BJ9,) -> 2367950.225 | BI20: =IFERROR('Building Growth Projections'!BK9,) -> 2363947.72 | BJ20: =IFERROR('Building Growth Projections'!BL9,) -> 2348903.733 | BP20: Electricity | BQ20: MWh | BR20: Residential | BS20: 2027 | BT20: 0
B21: MWh Savings Per Year | C21: =IFERROR(C20*C17/1000,0) -> 0 | D21: =IFERROR(D20*D17/1000,0) -> 0 | E21: 0 | F21: 0 | G21: 0 | H21: 0 | I21: 0 | J21: 0 | K21: 0 | L21: 0 | M21: 0 | N21: 0 | O21: 0 | P21: 0 | Q21: 0 | R21: 0 | S21: 0 | T21: 0 | U21: 0 | V21: 0 | W21: 0 | X21: 0 | Y21: 0 | Z21: 0 | AA21: 0 | AB21: 0 | AC21: 0 | AD21: 0 | AH21: MWh Savings Per Year | AI21: =IFERROR(AI20*AI17,0) -> 0 | AJ21: =IFERROR(AJ20*AJ17,0) -> 0 | AK21: 0 | AL21: 0 | AM21: 0 | AN21: 0 | AO21: 4148989.72 | AP21: 4091870.272 | AQ21: 4087467.184 | AR21: 4069476.171 | AS21: 4054022.481 | AT21: 4063141.902 | AU21: 4064205.297 | AV21: 4005942.3 | AW21: 3956035.709 | AX21: 3939246.581 | AY21: 3941131.699 | AZ21: 3946396.293 | BA21: 4002490.98 | BB21: 4155654.914 | BC21: 4294180.585 | BD21: 4424019.384 | BE21: 4585610.536 | BF21: 4766142.475 | BG21: 4828997.644 | BH21: 4856209.392 | BI21: 4848001.026 | BJ21: 4817148.708 | BP21: Electricity | BQ21: MWh | BR21: Residential | BS21: 2028 | BT21: 0
B22: Cumulative MWh Savings | C22: =C21 -> 0 | D22: =D21+C22 -> 0 | E22: =E21+D22 -> 0 | F22: 0 | G22: 0 | H22: 0 | I22: 0 | J22: 0 | K22: 0 | L22: 0 | M22: 0 | N22: 0 | O22: 0 | P22: 0 | Q22: 0 | R22: 0 | S22: 0 | T22: 0 | U22: 0 | V22: 0 | W22: 0 | X22: 0 | Y22: 0 | Z22: 0 | AA22: 0 | AB22: 0 | AC22: 0 | AD22: 0 | AH22: Cumulative MWh Savings | AI22: =AI21 -> 0 | AJ22: =AJ21+AI22 -> 0 | AK22: =AK21+AJ22 -> 0 | AL22: =AL21+AK22 -> 0 | AM22: =AM21+AL22 -> 0 | AN22: =AN21+AM22 -> 0 | AO22: =AO21+AN22 -> 4148989.72 | AP22: =AP21+AO22 -> 8240859.992 | AQ22: =AQ21+AP22 -> 12328327.18 | AR22: =AR21+AQ22 -> 16397803.35 | AS22: =AS21+AR22 -> 20451825.83 | AT22: =AT21+AS22 -> 24514967.73 | AU22: =AU21+AT22 -> 28579173.03 | AV22: =AV21+AU22 -> 32585115.33 | AW22: =AW21+AV22 -> 36541151.04 | AX22: =AX21+AW22 -> 40480397.62 | AY22: =AY21+AX22 -> 44421529.32 | AZ22: =AZ21+AY22 -> 48367925.61 | BA22: =BA21+AZ22 -> 52370416.59 | BB22: =BB21+BA22 -> 56526071.5 | BC22: =BC21+BB22 -> 60820252.09 | BD22: =BD21+BC22 -> 65244271.47 | BE22: =BE21+BD22 -> 69829882.01 | BF22: =BF21+BE22 -> 74596024.48 | BG22: =BG21+BF22 -> 79425022.13 | BH22: =BH21+BG22 -> 84281231.52 | BI22: =BI21+BH22 -> 89129232.55 | BJ22: =BJ21+BI22 -> 93946381.25 | BP22: Electricity | BQ22: MWh | BR22: Residential | BS22: 2029 | BT22: 0
BP23: Electricity | BQ23: MWh | BR23: Residential | BS23: 2030 | BT23: 0
B24: Electricity Emissions Calculations | AH24: Electricity Emissions Calculations | BP24: Electricity | BQ24: MWh | BR24: Residential | BS24: 2031 | BT24: 0
C25: 2013 | D25: 2014 | E25: 2015 | F25: 2016 | G25: 2017 | H25: 2018 | I25: 2019 | J25: 2020 | K25: 2021 | L25: 2022 | M25: 2023 | N25: 2024 | O25: 2025 | P25: 2026 | Q25: 2027 | R25: 2028 | S25: 2029 | T25: 2030 | U25: 2031 | V25: 2032 | W25: 2033 | X25: 2034 | Y25: 2035 | Z25: 2036 | AA25: 2037 | AB25: 2038 | AC25: 2039 | AD25: 2040 | AI25: 2013 | AJ25: 2014 | AK25: 2015 | AL25: 2016 | AM25: 2017 | AN25: 2018 | AO25: 2019 | AP25: 2020 | AQ25: 2021 | AR25: 2022 | AS25: 2023 | AT25: 2024 | AU25: 2025 | AV25: 2026 | AW25: 2027 | AX25: 2028 | AY25: 2029 | AZ25: 2030 | BA25: 2031 | BB25: 2032 | BC25: 2033 | BD25: 2034 | BE25: 2035 | BF25: 2036 | BG25: 2037 | BH25: 2038 | BI25: 2039 | BJ25: 2040 | BP25: Electricity | BQ25: MWh | BR25: Residential | BS25: 2032 | BT25: 0
B26: Metric Metric tons Per Year | AH26: Metric Metric tons Per Year | BP26: Electricity | BQ26: MWh | BR26: Residential | BS26: 2033 | BT26: 0
B27: MWh Savings per year | C27: =C21 -> 0 | D27: 0 | E27: 0 | F27: 0 | G27: 0 | H27: 0 | I27: 0 | J27: 0 | K27: 0 | L27: 0 | M27: 0 | N27: 0 | O27: 0 | P27: 0 | Q27: 0 | R27: 0 | S27: 0 | T27: 0 | U27: 0 | V27: 0 | W27: 0 | X27: 0 | Y27: 0 | Z27: 0 | AA27: 0 | AB27: 0 | AC27: 0 | AD27: 0 | AH27: MWh Savings per year | AI27: =AI21 -> 0 | AJ27: =AJ21 -> 0 | AK27: 0 | AL27: 0 | AM27: 0 | AN27: 0 | AO27: 4148989.72 | AP27: 4091870.272 | AQ27: 4087467.184 | AR27: 4069476.171 | AS27: 4054022.481 | AT27: 4063141.902 | AU27: 4064205.297 | AV27: 4005942.3 | AW27: 3956035.709 | AX27: 3939246.581 | AY27: 3941131.699 | AZ27: 3946396.293 | BA27: 4002490.98 | BB27: 4155654.914 | BC27: 4294180.585 | BD27: 4424019.384 | BE27: 4585610.536 | BF27: 4766142.475 | BG27: 4828997.644 | BH27: 4856209.392 | BI27: 4848001.026 | BJ27: 4817148.708 | BP27: Electricity | BQ27: MWh | BR27: Residential | BS27: 2034 | BT27: 0
B28: NOx | C28: =HLOOKUP($B28,EmissionsTable,3,FALSE)*C$27/PoundsPerMetricTon -> 0 | D28: 0 | E28: 0 | F28: 0 | G28: 0 | H28: 0 | I28: 0 | J28: 0 | K28: 0 | L28: 0 | M28: =HLOOKUP($B28,EmissionsTable,3,FALSE)*M$27/PoundsPerMetricTon -> 0 | N28: 0 | O28: 0 | P28: 0 | Q28: 0 | R28: 0 | S28: 0 | T28: 0 | U28: 0 | V28: 0 | W28: =HLOOKUP($B28,EmissionsTable,3,FALSE)*W$27/PoundsPerMetricTon -> 0 | X28: 0 | Y28: 0 | Z28: 0 | AA28: 0 | AB28: 0 | AC28: 0 | AD28: 0 | AH28: NOx | AI28: =HLOOKUP($AH28,EmissionsTable,3,FALSE)*AI$27/PoundsPerMetricTon -> 0 | AJ28: 0 | AK28: 0 | AL28: 0 | AM28: 0 | AN28: 0 | AO28: 2058.855836 | AP28: 2030.511416 | AQ28: 2028.326469 | AR28: 2019.398777 | AS28: =HLOOKUP($AH28,EmissionsTable,3,FALSE)*AS$27/PoundsPerMetricTon -> 2011.730182 | AT28: 2016.255518 | AU28: 2016.783207 | AV28: 1987.871323 | AW28: 1963.106143 | AX28: 1954.774864 | AY28: 1955.710317 | AZ28: 1958.32277 | BA28: 1986.158672 | BB28: 2062.16331 | BC28: =HLOOKUP($AH28,EmissionsTable,3,FALSE)*BC$27/PoundsPerMetricTon -> 2130.903992 | BD28: 2195.333983 | BE28: 2275.520464 | BF28: 2365.105945 | BG28: 2396.296606 | BH28: 2409.799909 | BI28: 2405.726666 | BJ28: 2390.416801 | BP28: Electricity | BQ28: MWh | BR28: Residential | BS28: 2035 | BT28: 0
B29: SOx | C29: 0 | D29: 0 | E29: 0 | F29: 0 | G29: 0 | H29: 0 | I29: 0 | J29: 0 | K29: 0 | L29: 0 | M29: 0 | N29: 0 | O29: 0 | P29: 0 | Q29: 0 | R29: 0 | S29: 0 | T29: 0 | U29: 0 | V29: 0 | W29: 0 | X29: 0 | Y29: 0 | Z29: 0 | AA29: 0 | AB29: 0 | AC29: 0 | AD29: 0 | AH29: SOx | AI29: 0 | AJ29: 0 | AK29: 0 | AL29: 0 | AM29: 0 | AN29: 0 | AO29: 2412.662872 | AP29: 2379.447564 | AQ29: 2376.887142 | AR29: 2366.425258 | AS29: 2357.438843 | AT29: 2362.741842 | AU29: 2363.360212 | AV29: 2329.479923 | AW29: 2300.458936 | AX29: 2290.695955 | AY29: 2291.792163 | AZ29: 2294.853556 | BA29: 2327.47296 | BB29: 2416.538723 | BC29: 2497.092247 | BD29: 2572.594302 | BE29: 2666.560544 | BF29: 2771.54097 | BG29: 2808.091635 | BH29: 2823.915433 | BI29: 2819.142217 | BJ29: 2801.201406 | BP29: Electricity | BQ29: MWh | BR29: Residential | BS29: 2036 | BT29: 0
B30: CH4 | C30: =HLOOKUP($B30,EmissionsTable,3,FALSE)*C$27/1000/PoundsPerMetricTon -> 0 | D30: 0 | E30: 0 | F30: 0 | G30: 0 | H30: 0 | I30: 0 | J30: 0 | K30: 0 | L30: 0 | M30: =HLOOKUP($B30,EmissionsTable,3,FALSE)*M$27/1000/PoundsPerMetricTon -> 0 | N30: 0 | O30: 0 | P30: 0 | Q30: 0 | R30: 0 | S30: 0 | T30: 0 | U30: 0 | V30: 0 | W30: =HLOOKUP($B30,EmissionsTable,3,FALSE)*W$27/1000/PoundsPerMetricTon -> 0 | X30: 0 | Y30: 0 | Z30: 0 | AA30: 0 | AB30: 0 | AC30: 0 | AD30: 0 | AH30: CH4 | AI30: =HLOOKUP($AH30,EmissionsTable,3,FALSE)*AI$27/1000/PoundsPerMetricTon -> 0 | AJ30: 0 | AK30: 0 | AL30: 0 | AM30: 0 | AN30: 0 | AO30: 0.2088967073 | AP30: 0.2060208109 | AQ30: 0.2057991207 | AR30: 0.2048932945 | AS30: =HLOOKUP($AH30,EmissionsTable,3,FALSE)*AS$27/1000/PoundsPerMetricTon -> 0.2041152196 | AT30: 0.2045743716 | AU30: 0.2046279123 | AV30: 0.2016944395 | AW30: 0.1991817019 | AX30: 0.1983363893 | AY30: 0.1984313027 | AZ30: 0.1986963688 | BA30: 0.2015206697 | BB30: 0.209232292 | BC30: =HLOOKUP($AH30,EmissionsTable,3,FALSE)*BC$27/1000/PoundsPerMetricTon -> 0.216206895 | BD30: 0.2227441244 | BE30: 0.2308800471 | BF30: 0.239969616 | BG30: 0.2431342991 | BH30: 0.2445043783 | BI30: 0.2440910968 | BJ30: 0.2425377192 | BP30: Electricity | BQ30: MWh | BR30: Residential | BS30: 2037 | BT30: 0
B31: N2O | C31: 0 | D31: 0 | E31: 0 | F31: 0 | G31: 0 | H31: 0 | I31: 0 | J31: 0 | K31: 0 | L31: 0 | M31: 0 | N31: 0 | O31: 0 | P31: 0 | Q31: 0 | R31: 0 | S31: 0 | T31: 0 | U31: 0 | V31: 0 | W31: 0 | X31: 0 | Y31: 0 | Z31: 0 | AA31: 0 | AB31: 0 | AC31: 0 | AD31: 0 | AH31: N2O | AI31: 0 | AJ31: 0 | AK31: 0 | AL31: 0 | AM31: 0 | AN31: 0 | AO31: 0.03387514173 | AP31: 0.03340878015 | AQ31: 0.03337283038 | AR31: 0.03322593966 | AS31: 0.03309976534 | AT31: 0.03317422242 | AU31: 0.03318290469 | AV31: 0.03270720641 | AW31: 0.03229973545 | AX31: 0.03216265772 | AY31: 0.03217804909 | AZ31: 0.03222103277 | BA31: 0.03267902751 | BB31: 0.03392956086 | BC31: 0.03506057757 | BD31: 0.03612066883 | BE31: 0.03744000764 | BF31: 0.03891399178 | BG31: 0.03942718364 | BH31: 0.03964935865 | BI31: 0.03958234003 | BJ31: 0.03933044096 | BP31: Electricity | BQ31: MWh | BR31: Residential | BS31: 2038 | BT31: 0
B32: CO2 | C32: =HLOOKUP($B32,EmissionsTable,3,FALSE)*C$27/PoundsPerMetricTon -> 0 | D32: 0 | E32: 0 | F32: 0 | G32: 0 | H32: 0 | I32: 0 | J32: 0 | K32: 0 | L32: 0 | M32: =HLOOKUP($B32,EmissionsTable,3,FALSE)*M$27/PoundsPerMetricTon -> 0 | N32: 0 | O32: 0 | P32: 0 | Q32: 0 | R32: 0 | S32: 0 | T32: 0 | U32: 0 | V32: 0 | W32: =HLOOKUP($B32,EmissionsTable,3,FALSE)*W$27/PoundsPerMetricTon -> 0 | X32: 0 | Y32: 0 | Z32: 0 | AA32: 0 | AB32: 0 | AC32: 0 | AD32: 0 | AH32: CO2 | AI32: =HLOOKUP($AH32,EmissionsTable,3,FALSE)*AI$27/PoundsPerMetricTon -> 0 | AJ32: 0 | AK32: 0 | AL32: 0 | AM32: 0 | AN32: 0 | AO32: 2824725.742 | AP32: 2785837.534 | AQ32: 2782839.813 | AR32: 2770591.125 | AS32: =HLOOKUP($AH32,EmissionsTable,3,FALSE)*AS$27/PoundsPerMetricTon -> 2760069.905 | AT32: 2766278.612 | AU32: 2767002.595 | AV32: 2727335.833 | AW32: 2693358.301 | AX32: 2681927.884 | AY32: 2683211.315 | AZ32: 2686795.569 | BA32: 2724986.097 | BB32: 2829263.557 | BC32: =HLOOKUP($AH32,EmissionsTable,3,FALSE)*BC$27/PoundsPerMetricTon -> 2923574.956 | BD32: 3011972.138 | BE32: 3121987.037 | BF32: 3244897.251 | BG32: 3287690.468 | BH32: 3306216.839 | BI32: 3300628.398 | BJ32: 3279623.445 | BP32: Electricity | BQ32: MWh | BR32: Residential | BS32: 2039 | BT32: 0
B33: CO2e | C33: 0 | D33: 0 | E33: 0 | F33: 0 | G33: 0 | H33: 0 | I33: 0 | J33: 0 | K33: 0 | L33: 0 | M33: 0 | N33: 0 | O33: 0 | P33: 0 | Q33: 0 | R33: 0 | S33: 0 | T33: 0 | U33: 0 | V33: 0 | W33: 0 | X33: 0 | Y33: 0 | Z33: 0 | AA33: 0 | AB33: 0 | AC33: 0 | AD33: 0 | AH33: CO2e | AI33: 0 | AJ33: 0 | AK33: 0 | AL33: 0 | AM33: 0 | AN33: 0 | AO33: 2824740.63 | AP33: 2785852.217 | AQ33: 2782854.48 | AR33: 2770605.728 | AS33: 2760084.452 | AT33: 2766293.192 | AU33: 2767017.179 | AV33: 2727350.208 | AW33: 2693372.497 | AX33: 2681942.02 | AY33: 2683225.457 | AZ33: 2686809.73 | BA33: 2725000.459 | BB33: 2829278.469 | BC33: 2923590.365 | BD33: 3011988.013 | BE33: 3122003.492 | BF33: 3244914.354 | BG33: 3287707.796 | BH33: 3306234.265 | BI33: 3300645.795 | BJ33: 3279640.731 | BP33: Electricity | BQ33: MWh | BR33: Residential | BS33: 2040 | BT33: 0
B34: Cumulative Metric Metric tons | AH34: Cumulative Metric Metric tons | BP34: Electricity | BQ34: NOx | BR34: Residential | BS34: 2013 | BT34: =TRANSPOSE('Energy+Emissions Calculation'!$C$28:$AD$28) -> 0
B35: Cumulative MWh Savings | C35: =C22 -> 0 | D35: =D22 -> 0 | E35: 0 | F35: 0 | G35: 0 | H35: 0 | I35: 0 | J35: 0 | K35: 0 | L35: 0 | M35: 0 | N35: 0 | O35: 0 | P35: 0 | Q35: 0 | R35: 0 | S35: 0 | T35: 0 | U35: 0 | V35: 0 | W35: 0 | X35: 0 | Y35: 0 | Z35: 0 | AA35: 0 | AB35: 0 | AC35: 0 | AD35: 0 | AH35: Cumulative MWh Savings | AI35: =AI22 -> 0 | AJ35: =AJ22 -> 0 | AK35: 0 | AL35: 0 | AM35: 0 | AN35: 0 | AO35: 4148989.72 | AP35: 8240859.992 | AQ35: 12328327.18 | AR35: 16397803.35 | AS35: 20451825.83 | AT35: 24514967.73 | AU35: 28579173.03 | AV35: 32585115.33 | AW35: 36541151.04 | AX35: 40480397.62 | AY35: 44421529.32 | AZ35: 48367925.61 | BA35: 52370416.59 | BB35: 56526071.5 | BC35: 60820252.09 | BD35: 65244271.47 | BE35: 69829882.01 | BF35: 74596024.48 | BG35: 79425022.13 | BH35: 84281231.52 | BI35: 89129232.55 | BJ35: 93946381.25 | BP35: Electricity | BQ35: NOx | BR35: Residential | BS35: 2014 | BT35: 0
B36: NOx | C36: =HLOOKUP($B36,EmissionsTable,3,FALSE)*C$35/PoundsPerMetricTon -> 0 | D36: 0 | E36: 0 | F36: 0 | G36: 0 | H36: 0 | I36: 0 | J36: 0 | K36: 0 | L36: 0 | M36: =HLOOKUP($B36,EmissionsTable,3,FALSE)*M$35/PoundsPerMetricTon -> 0 | N36: 0 | O36: 0 | P36: 0 | Q36: 0 | R36: 0 | S36: 0 | T36: 0 | U36: 0 | V36: 0 | W36: =HLOOKUP($B36,EmissionsTable,3,FALSE)*W$35/PoundsPerMetricTon -> 0 | X36: 0 | Y36: 0 | Z36: 0 | AA36: 0 | AB36: 0 | AC36: 0 | AD36: 0 | AH36: NOx | AI36: =HLOOKUP($AH36,EmissionsTable,3,FALSE)*AI$35/PoundsPerMetricTon -> 0 | AJ36: 0 | AK36: 0 | AL36: 0 | AM36: 0 | AN36: 0 | AO36: 2058.855836 | AP36: 4089.367252 | AQ36: 6117.693721 | AR36: 8137.092498 | AS36: =HLOOKUP($AH36,EmissionsTable,3,FALSE)*AS$35/PoundsPerMetricTon -> 10148.82268 | AT36: 12165.0782 | AU36: 14181.86141 | AV36: 16169.73273 | AW36: 18132.83887 | AX36: 20087.61374 | AY36: 22043.32405 | AZ36: 24001.64682 | BA36: 25987.80549 | BB36: 28049.9688 | BC36: =HLOOKUP($AH36,EmissionsTable,3,FALSE)*BC$35/PoundsPerMetricTon -> 30180.8728 | BD36: 32376.20678 | BE36: 34651.72724 | BF36: 37016.83319 | BG36: 39413.12979 | BH36: 41822.9297 | BI36: 44228.65637 | BJ36: 46619.07317 | BP36: Electricity | BQ36: NOx | BR36: Residential | BS36: 2015 | BT36: 0
B37: SOx | C37: 0 | D37: 0 | E37: 0 | F37: 0 | G37: 0 | H37: 0 | I37: 0 | J37: 0 | K37: 0 | L37: 0 | M37: 0 | N37: 0 | O37: 0 | P37: 0 | Q37: 0 | R37: 0 | S37: 0 | T37: 0 | U37: 0 | V37: 0 | W37: 0 | X37: 0 | Y37: 0 | Z37: 0 | AA37: 0 | AB37: 0 | AC37: 0 | AD37: 0 | AH37: SOx | AI37: 0 | AJ37: 0 | AK37: 0 | AL37: 0 | AM37: 0 | AN37: 0 | AO37: 2412.662872 | AP37: 4792.110436 | AQ37: 7168.997578 | AR37: 9535.422836 | AS37: 11892.86168 | AT37: 14255.60352 | AU37: 16618.96373 | AV37: 18948.44365 | AW37: 21248.90259 | AX37: 23539.59855 | AY37: 25831.39071 | AZ37: 28126.24427 | BA37: 30453.71722 | BB37: 32870.25595 | BC37: 35367.3482 | BD37: 37939.9425 | BE37: 40606.50304 | BF37: 43378.04401 | BG37: 46186.13565 | BH37: 49010.05108 | BI37: 51829.1933 | BJ37: 54630.3947 | BP37: Electricity | BQ37: NOx | BR37: Residential | BS37: 2016 | BT37: 0
B38: CH4 | C38: =HLOOKUP($B38,EmissionsTable,3,FALSE)*C$35/1000/PoundsPerMetricTon -> 0 | D38: 0 | E38: 0 | F38: 0 | G38: 0 | H38: 0 | I38: 0 | J38: 0 | K38: 0 | L38: 0 | M38: =HLOOKUP($B38,EmissionsTable,3,FALSE)*M$35/1000/PoundsPerMetricTon -> 0 | N38: 0 | O38: 0 | P38: 0 | Q38: 0 | R38: 0 | S38: 0 | T38: 0 | U38: 0 | V38: 0 | W38: =HLOOKUP($B38,EmissionsTable,3,FALSE)*W$35/1000/PoundsPerMetricTon -> 0 | X38: 0 | Y38: 0 | Z38: 0 | AA38: 0 | AB38: 0 | AC38: 0 | AD38: 0 | AH38: CH4 | AI38: =HLOOKUP($AH38,EmissionsTable,3,FALSE)*AI$35/1000/PoundsPerMetricTon -> 0 | AJ38: 0 | AK38: 0 | AL38: 0 | AM38: 0 | AN38: 0 | AO38: 0.2088967073 | AP38: 0.4149175183 | AQ38: 0.620716639 | AR38: 0.8256099335 | AS38: =HLOOKUP($AH38,EmissionsTable,3,FALSE)*AS$35/1000/PoundsPerMetricTon -> 1.029725153 | AT38: 1.234299525 | AU38: 1.438927437 | AV38: 1.640621877 | AW38: 1.839803578 | AX38: 2.038139968 | AY38: 2.23657127 | AZ38: 2.435267639 | BA38: 2.636788309 | BB38: 2.846020601 | BC38: =HLOOKUP($AH38,EmissionsTable,3,FALSE)*BC$35/1000/PoundsPerMetricTon -> 3.062227496 | BD38: 3.28497162 | BE38: 3.515851667 | BF38: 3.755821283 | BG38: 3.998955582 | BH38: 4.243459961 | BI38: 4.487551058 | BJ38: 4.730088777 | BP38: Electricity | BQ38: NOx | BR38: Residential | BS38: 2017 | BT38: 0
B39: N2O | C39: 0 | D39: 0 | E39: 0 | F39: 0 | G39: 0 | H39: 0 | I39: 0 | J39: 0 | K39: 0 | L39: 0 | M39: 0 | N39: 0 | O39: 0 | P39: 0 | Q39: 0 | R39: 0 | S39: 0 | T39: 0 | U39: 0 | V39: 0 | W39: 0 | X39: 0 | Y39: 0 | Z39: 0 | AA39: 0 | AB39: 0 | AC39: 0 | AD39: 0 | AH39: N2O | AI39: 0 | AJ39: 0 | AK39: 0 | AL39: 0 | AM39: 0 | AN39: 0 | AO39: 0.03387514173 | AP39: 0.06728392188 | AQ39: 0.1006567523 | AR39: 0.1338826919 | AS39: 0.1669824573 | AT39: 0.2001566797 | AU39: 0.2333395844 | AV39: 0.2660467908 | AW39: 0.2983465262 | AX39: 0.330509184 | AY39: 0.362687233 | AZ39: 0.3949082658 | BA39: 0.4275872933 | BB39: 0.4615168542 | BC39: 0.4965774318 | BD39: 0.5326981006 | BE39: 0.5701381082 | BF39: 0.6090521 | BG39: 0.6484792836 | BH39: 0.6881286423 | BI39: 0.7277109823 | BJ39: 0.7670414233 | BP39: Electricity | BQ39: NOx | BR39: Residential | BS39: 2018 | BT39: 0
B40: CO2 | C40: =HLOOKUP($B40,EmissionsTable,3,FALSE)*C$35/PoundsPerMetricTon -> 0 | D40: 0 | E40: 0 | F40: 0 | G40: 0 | H40: 0 | I40: 0 | J40: 0 | K40: 0 | L40: 0 | M40: =HLOOKUP($B40,EmissionsTable,3,FALSE)*M$35/PoundsPerMetricTon -> 0 | N40: 0 | O40: 0 | P40: 0 | Q40: 0 | R40: 0 | S40: 0 | T40: 0 | U40: 0 | V40: 0 | W40: =HLOOKUP($B40,EmissionsTable,3,FALSE)*W$35/PoundsPerMetricTon -> 0 | X40: 0 | Y40: 0 | Z40: 0 | AA40: 0 | AB40: 0 | AC40: 0 | AD40: 0 | AH40: CO2 | AI40: =HLOOKUP($AH40,EmissionsTable,3,FALSE)*AI$35/PoundsPerMetricTon -> 0 | AJ40: 0 | AK40: 0 | AL40: 0 | AM40: 0 | AN40: 0 | AO40: 2824725.742 | AP40: 5610563.276 | AQ40: 8393403.089 | AR40: 11163994.21 | AS40: =HLOOKUP($AH40,EmissionsTable,3,FALSE)*AS$35/PoundsPerMetricTon -> 13924064.12 | AT40: 16690342.73 | AU40: 19457345.33 | AV40: 22184681.16 | AW40: 24878039.46 | AX40: 27559967.34 | AY40: 30243178.66 | AZ40: 32929974.23 | BA40: 35654960.33 | BB40: 38484223.88 | BC40: =HLOOKUP($AH40,EmissionsTable,3,FALSE)*BC$35/PoundsPerMetricTon -> 41407798.84 | BD40: 44419770.98 | BE40: 47541758.01 | BF40: 50786655.26 | BG40: 54074345.73 | BH40: 57380562.57 | BI40: 60681190.97 | BJ40: 63960814.41 | BP40: Electricity | BQ40: NOx | BR40: Residential | BS40: 2019 | BT40: 0
B41: CO2e | C41: 0 | D41: 0 | E41: 0 | F41: 0 | G41: 0 | H41: 0 | I41: 0 | J41: 0 | K41: 0 | L41: 0 | M41: 0 | N41: 0 | O41: 0 | P41: 0 | Q41: 0 | R41: 0 | S41: 0 | T41: 0 | U41: 0 | V41: 0 | W41: 0 | X41: 0 | Y41: 0 | Z41: 0 | AA41: 0 | AB41: 0 | AC41: 0 | AD41: 0 | AH41: CO2e | AI41: 0 | AJ41: 0 | AK41: 0 | AL41: 0 | AM41: 0 | AN41: 0 | AO41: 2824740.63 | AP41: 5610592.847 | AQ41: 8393447.327 | AR41: 11164053.06 | AS41: 13924137.51 | AT41: 16690430.7 | AU41: 19457447.88 | AV41: 22184798.09 | AW41: 24878170.58 | AX41: 27560112.6 | AY41: 30243338.06 | AZ41: 32930147.79 | BA41: 35655148.25 | BB41: 38484426.72 | BC41: 41408017.08 | BD41: 44420005.1 | BE41: 47542008.59 | BF41: 50786922.94 | BG41: 54074630.74 | BH41: 57380865 | BI41: 60681510.8 | BJ41: 63961151.53 | BP41: Electricity | BQ41: NOx | BR41: Residential | BS41: 2020 | BT41: 0
BP42: Electricity | BQ42: NOx | BR42: Residential | BS42: 2021 | BT42: 0
B43: Residential Gas/Oil | BP43: Electricity | BQ43: NOx | BR43: Residential | BS43: 2022 | BT43: 0
B44: Code Projection + Energy Savings | AH44: Code Projection + Energy Savings | BP44: Electricity | BQ44: NOx | BR44: Residential | BS44: 2023 | BT44: 0
C45: 2013 | D45: 2014 | E45: 2015 | F45: 2016 | G45: 2017 | H45: 2018 | I45: 2019 | J45: 2020 | K45: 2021 | L45: 2022 | M45: 2023 | N45: 2024 | O45: 2025 | P45: 2026 | Q45: 2027 | R45: 2028 | S45: 2029 | T45: 2030 | U45: 2031 | V45: 2032 | W45: 2033 | X45: 2034 | Y45: 2035 | Z45: 2036 | AA45: 2037 | AB45: 2038 | AC45: 2039 | AD45: 2040 | AI45: 2013 | AJ45: 2014 | AK45: 2015 | AL45: 2016 | AM45: 2017 | AN45: 2018 | AO45: 2019 | AP45: 2020 | AQ45: 2021 | AR45: 2022 | AS45: 2023 | AT45: 2024 | AU45: 2025 | AV45: 2026 | AW45: 2027 | AX45: 2028 | AY45: 2029 | AZ45: 2030 | BA45: 2031 | BB45: 2032 | BC45: 2033 | BD45: 2034 | BE45: 2035 | BF45: 2036 | BG45: 2037 | BH45: 2038 | BI45: 2039 | BJ45: 2040 | BP45: Electricity | BQ45: NOx | BR45: Residential | BS45: 2024 | BT45: 0
B46: Baseline | AH46: Baseline | BP46: Electricity | BQ46: NOx | BR46: Residential | BS46: 2025 | BT46: 0
B47: Energy Code | C47: =C51 -> IECC 2009 | D47: =C47 -> IECC 2009 | E47: =D47 -> IECC 2009 | F47: =E47 -> IECC 2009 | G47: =F47 -> IECC 2009 | H47: =G47 -> IECC 2009 | I47: =H47 -> IECC 2009 | J47: =I47 -> IECC 2009 | K47: =J47 -> IECC 2009 | L47: =K47 -> IECC 2009 | M47: =L47 -> IECC 2009 | N47: =M47 -> IECC 2009 | O47: =N47 -> IECC 2009 | P47: =O47 -> IECC 2009 | Q47: =P47 -> IECC 2009 | R47: =Q47 -> IECC 2009 | S47: =R47 -> IECC 2009 | T47: =S47 -> IECC 2009 | U47: =T47 -> IECC 2009 | V47: =U47 -> IECC 2009 | W47: =V47 -> IECC 2009 | X47: =W47 -> IECC 2009 | Y47: =X47 -> IECC 2009 | Z47: =Y47 -> IECC 2009 | AA47: =Z47 -> IECC 2009 | AB47: =AA47 -> IECC 2009 | AC47: =AB47 -> IECC 2009 | AD47: =AC47 -> IECC 2009 | AH47: Energy Code | AI47: =AI51 -> ASHRAE 90.1 2007 | AJ47: =AI47 -> ASHRAE 90.1 2007 | AK47: =AJ47 -> ASHRAE 90.1 2007 | AL47: =AK47 -> ASHRAE 90.1 2007 | AM47: =AL47 -> ASHRAE 90.1 2007 | AN47: =AM47 -> ASHRAE 90.1 2007 | AO47: =AN47 -> ASHRAE 90.1 2007 | AP47: =AO47 -> ASHRAE 90.1 2007 | AQ47: =AP47 -> ASHRAE 90.1 2007 | AR47: =AQ47 -> ASHRAE 90.1 2007 | AS47: =AR47 -> ASHRAE 90.1 2007 | AT47: =AS47 -> ASHRAE 90.1 2007 | AU47: =AT47 -> ASHRAE 90.1 2007 | AV47: =AU47 -> ASHRAE 90.1 2007 | AW47: =AV47 -> ASHRAE 90.1 2007 | AX47: =AW47 -> ASHRAE 90.1 2007 | AY47: =AX47 -> ASHRAE 90.1 2007 | AZ47: =AY47 -> ASHRAE 90.1 2007 | BA47: =AZ47 -> ASHRAE 90.1 2007 | BB47: =BA47 -> ASHRAE 90.1 2007 | BC47: =BB47 -> ASHRAE 90.1 2007 | BD47: =BC47 -> ASHRAE 90.1 2007 | BE47: =BD47 -> ASHRAE 90.1 2007 | BF47: =BE47 -> ASHRAE 90.1 2007 | BG47: =BF47 -> ASHRAE 90.1 2007 | BH47: =BG47 -> ASHRAE 90.1 2007 | BI47: =BH47 -> ASHRAE 90.1 2007 | BJ47: =BI47 -> ASHRAE 90.1 2007 | BP47: Electricity | BQ47: NOx | BR47: Residential | BS47: 2026 | BT47: 0
B48: Compliance Rate | C48: =ResBaselineCompliance -> 0.75 | D48: 0.75 | E48: 0.75 | F48: 0.75 | G48: 0.75 | H48: 0.75 | I48: 0.75 | J48: 0.75 | K48: 0.75 | L48: 0.75 | M48: 0.75 | N48: 0.75 | O48: 0.75 | P48: 0.75 | Q48: 0.75 | R48: 0.75 | S48: 0.75 | T48: 0.75 | U48: 0.75 | V48: 0.75 | W48: 0.75 | X48: 0.75 | Y48: 0.75 | Z48: 0.75 | AA48: 0.75 | AB48: 0.75 | AC48: 0.75 | AD48: 0.75 | AH48: Compliance Rate | AI48: =ComBaselineCompliance -> 0.75 | AJ48: 0.75 | AK48: 0.75 | AL48: 0.75 | AM48: 0.75 | AN48: 0.75 | AO48: 0.75 | AP48: 0.75 | AQ48: 0.75 | AR48: 0.75 | AS48: 0.75 | AT48: 0.75 | AU48: 0.75 | AV48: 0.75 | AW48: 0.75 | AX48: 0.75 | AY48: 0.75 | AZ48: 0.75 | BA48: 0.75 | BB48: 0.75 | BC48: 0.75 | BD48: 0.75 | BE48: 0.75 | BF48: 0.75 | BG48: 0.75 | BH48: 0.75 | BI48: 0.75 | BJ48: 0.75 | BP48: Electricity | BQ48: NOx | BR48: Residential | BS48: 2027 | BT48: 0
B49: MMBTU Consumption | C49: =HLOOKUP(C47,ResGas,2,FALSE)*C48+GasIECC2006*(1-C48) -> 33.07979566 | D49: 33.07979566 | E49: 33.07979566 | F49: 33.07979566 | G49: 33.07979566 | H49: 33.07979566 | I49: 33.07979566 | J49: 33.07979566 | K49: 33.07979566 | L49: 33.07979566 | M49: 33.07979566 | N49: 33.07979566 | O49: 33.07979566 | P49: 33.07979566 | Q49: 33.07979566 | R49: 33.07979566 | S49: 33.07979566 | T49: 33.07979566 | U49: 33.07979566 | V49: 33.07979566 | W49: 33.07979566 | X49: 33.07979566 | Y49: 33.07979566 | Z49: 33.07979566 | AA49: 33.07979566 | AB49: 33.07979566 | AC49: 33.07979566 | AD49: 33.07979566 | AH49: kBTU Consumption per sq.ft. | AI49: =HLOOKUP(AI47,ComGas,2,FALSE)*AI48+Gas9012004*(1-AI48) -> 22.400236 | AJ49: 22.400236 | AK49: 22.400236 | AL49: 22.400236 | AM49: 22.400236 | AN49: 22.400236 | AO49: 22.400236 | AP49: 22.400236 | AQ49: 22.400236 | AR49: 22.400236 | AS49: 22.400236 | AT49: 22.400236 | AU49: 22.400236 | AV49: 22.400236 | AW49: 22.400236 | AX49: 22.400236 | AY49: 22.400236 | AZ49: 22.400236 | BA49: 22.400236 | BB49: 22.400236 | BC49: 22.400236 | BD49: 22.400236 | BE49: 22.400236 | BF49: 22.400236 | BG49: 22.400236 | BH49: 22.400236 | BI49: 22.400236 | BJ49: 22.400236 | BP49: Electricity | BQ49: NOx | BR49: Residential | BS49: 2028 | BT49: 0
B50: Upgrade | AH50: Upgrade | BP50: Electricity | BQ50: NOx | BR50: Residential | BS50: 2029 | BT50: 0
B51: Energy Code | C51: =IF(ResCodeBaselineInput="IECC 2006 (default)","IECC 2006",ResCodeBaselineInput) -> IECC 2009 | D51: =IFERROR(INDEX(ResCodeTable,MATCH(D45,ResCodeDate,0),1),C51) -> IECC 2009 | E51: =IFERROR(INDEX(ResCodeTable,MATCH(E45,ResCodeDate,0),1),D51) -> IECC 2009 | F51: =IFERROR(INDEX(ResCodeTable,MATCH(F45,ResCodeDate,0),1),E51) -> IECC 2009 | G51: =IFERROR(INDEX(ResCodeTable,MATCH(G45,ResCodeDate,0),1),F51) -> IECC 2009 | H51: =IFERROR(INDEX(ResCodeTable,MATCH(H45,ResCodeDate,0),1),G51) -> IECC 2009 | I51: =IFERROR(INDEX(ResCodeTable,MATCH(I45,ResCodeDate,0),1),H51) -> IECC 2009 | J51: =IFERROR(INDEX(ResCodeTable,MATCH(J45,ResCodeDate,0),1),I51) -> IECC 2009 | K51: =IFERROR(INDEX(ResCodeTable,MATCH(K45,ResCodeDate,0),1),J51) -> IECC 2009 | L51: =IFERROR(INDEX(ResCodeTable,MATCH(L45,ResCodeDate,0),1),K51) -> IECC 2009 | M51: =IFERROR(INDEX(ResCodeTable,MATCH(M45,ResCodeDate,0),1),L51) -> IECC 2009 | N51: =IFERROR(INDEX(ResCodeTable,MATCH(N45,ResCodeDate,0),1),M51) -> IECC 2009 | O51: =IFERROR(INDEX(ResCodeTable,MATCH(O45,ResCodeDate,0),1),N51) -> IECC 2009 | P51: =IFERROR(INDEX(ResCodeTable,MATCH(P45,ResCodeDate,0),1),O51) -> IECC 2009 | Q51: =IFERROR(INDEX(ResCodeTable,MATCH(Q45,ResCodeDate,0),1),P51) -> IECC 2009 | R51: =IFERROR(INDEX(ResCodeTable,MATCH(R45,ResCodeDate,0),1),Q51) -> IECC 2009 | S51: =IFERROR(INDEX(ResCodeTable,MATCH(S45,ResCodeDate,0),1),R51) -> IECC 2009 | T51: =IFERROR(INDEX(ResCodeTable,MATCH(T45,ResCodeDate,0),1),S51) -> IECC 2009 | U51: =IFERROR(INDEX(ResCodeTable,MATCH(U45,ResCodeDate,0),1),T51) -> IECC 2009 | V51: =IFERROR(INDEX(ResCodeTable,MATCH(V45,ResCodeDate,0),1),U51) -> IECC 2009 | W51: =IFERROR(INDEX(ResCodeTable,MATCH(W45,ResCodeDate,0),1),V51) -> IECC 2009 | X51: =IFERROR(INDEX(ResCodeTable,MATCH(X45,ResCodeDate,0),1),W51) -> IECC 2009 | Y51: =IFERROR(INDEX(ResCodeTable,MATCH(Y45,ResCodeDate,0),1),X51) -> IECC 2009 | Z51: =IFERROR(INDEX(ResCodeTable,MATCH(Z45,ResCodeDate,0),1),Y51) -> IECC 2009 | AA51: =IFERROR(INDEX(ResCodeTable,MATCH(AA45,ResCodeDate,0),1),Z51) -> IECC 2009 | AB51: =IFERROR(INDEX(ResCodeTable,MATCH(AB45,ResCodeDate,0),1),AA51) -> IECC 2009 | AC51: =IFERROR(INDEX(ResCodeTable,MATCH(AC45,ResCodeDate,0),1),AB51) -> IECC 2009 | AD51: =IFERROR(INDEX(ResCodeTable,MATCH(AD45,ResCodeDate,0),1),AC51) -> IECC 2009 | AH51: Energy Code | AI51: =IF(ComCodeBaselineInput="ASHRAE 90.1 2004 (default)","ASHRAE 90.1 2004",ComCodeBaselineInput) -> ASHRAE 90.1 2007 | AJ51: =IFERROR(INDEX(ComCodeTable,MATCH(AJ45,ComCodeDate,0),1),AI51) -> ASHRAE 90.1 2007 | AK51: =IFERROR(INDEX(ComCodeTable,MATCH(AK45,ComCodeDate,0),1),AJ51) -> ASHRAE 90.1 2007 | AL51: =IFERROR(INDEX(ComCodeTable,MATCH(AL45,ComCodeDate,0),1),AK51) -> ASHRAE 90.1 2007 | AM51: =IFERROR(INDEX(ComCodeTable,MATCH(AM45,ComCodeDate,0),1),AL51) -> ASHRAE 90.1 2007 | AN51: =IFERROR(INDEX(ComCodeTable,MATCH(AN45,ComCodeDate,0),1),AM51) -> ASHRAE 90.1 2007 | AO51: =IFERROR(INDEX(ComCodeTable,MATCH(AO45,ComCodeDate,0),1),AN51) -> ASHRAE 90.1 2010 | AP51: =IFERROR(INDEX(ComCodeTable,MATCH(AP45,ComCodeDate,0),1),AO51) -> ASHRAE 90.1 2010 | AQ51: =IFERROR(INDEX(ComCodeTable,MATCH(AQ45,ComCodeDate,0),1),AP51) -> ASHRAE 90.1 2010 | AR51: =IFERROR(INDEX(ComCodeTable,MATCH(AR45,ComCodeDate,0),1),AQ51) -> ASHRAE 90.1 2010 | AS51: =IFERROR(INDEX(ComCodeTable,MATCH(AS45,ComCodeDate,0),1),AR51) -> ASHRAE 90.1 2010 | AT51: =IFERROR(INDEX(ComCodeTable,MATCH(AT45,ComCodeDate,0),1),AS51) -> ASHRAE 90.1 2010 | AU51: =IFERROR(INDEX(ComCodeTable,MATCH(AU45,ComCodeDate,0),1),AT51) -> ASHRAE 90.1 2010 | AV51: =IFERROR(INDEX(ComCodeTable,MATCH(AV45,ComCodeDate,0),1),AU51) -> ASHRAE 90.1 2010 | AW51: =IFERROR(INDEX(ComCodeTable,MATCH(AW45,ComCodeDate,0),1),AV51) -> ASHRAE 90.1 2010 | AX51: =IFERROR(INDEX(ComCodeTable,MATCH(AX45,ComCodeDate,0),1),AW51) -> ASHRAE 90.1 2010 | AY51: =IFERROR(INDEX(ComCodeTable,MATCH(AY45,ComCodeDate,0),1),AX51) -> ASHRAE 90.1 2010 | AZ51: =IFERROR(INDEX(ComCodeTable,MATCH(AZ45,ComCodeDate,0),1),AY51) -> ASHRAE 90.1 2010 | BA51: =IFERROR(INDEX(ComCodeTable,MATCH(BA45,ComCodeDate,0),1),AZ51) -> ASHRAE 90.1 2010 | BB51: =IFERROR(INDEX(ComCodeTable,MATCH(BB45,ComCodeDate,0),1),BA51) -> ASHRAE 90.1 2010 | BC51: =IFERROR(INDEX(ComCodeTable,MATCH(BC45,ComCodeDate,0),1),BB51) -> ASHRAE 90.1 2010 | BD51: =IFERROR(INDEX(ComCodeTable,MATCH(BD45,ComCodeDate,0),1),BC51) -> ASHRAE 90.1 2010 | BE51: =IFERROR(INDEX(ComCodeTable,MATCH(BE45,ComCodeDate,0),1),BD51) -> ASHRAE 90.1 2010 | BF51: =IFERROR(INDEX(ComCodeTable,MATCH(BF45,ComCodeDate,0),1),BE51) -> ASHRAE 90.1 2010 | BG51: =IFERROR(INDEX(ComCodeTable,MATCH(BG45,ComCodeDate,0),1),BF51) -> ASHRAE 90.1 2010 | BH51: =IFERROR(INDEX(ComCodeTable,MATCH(BH45,ComCodeDate,0),1),BG51) -> ASHRAE 90.1 2010 | BI51: =IFERROR(INDEX(ComCodeTable,MATCH(BI45,ComCodeDate,0),1),BH51) -> ASHRAE 90.1 2010 | BJ51: =IFERROR(INDEX(ComCodeTable,MATCH(BJ45,ComCodeDate,0),1),BI51) -> ASHRAE 90.1 2010 | BP51: Electricity | BQ51: NOx | BR51: Residential | BS51: 2030 | BT51: 0
B52: Compliance Rate | C52: ='Step 3 - Code Updates'!E14 -> 0.75 | D52: =IFERROR(INDEX(ResCodeTable,MATCH(D45,ResCodeDate,0),3),C52) -> 0.75 | E52: 0.75 | F52: 0.75 | G52: 0.75 | H52: 0.75 | I52: 0.75 | J52: 0.75 | K52: 0.75 | L52: 0.75 | M52: 0.75 | N52: 0.75 | O52: 0.75 | P52: 0.75 | Q52: 0.75 | R52: 0.75 | S52: 0.75 | T52: 0.75 | U52: 0.75 | V52: 0.75 | W52: 0.75 | X52: 0.75 | Y52: 0.75 | Z52: 0.75 | AA52: 0.75 | AB52: 0.75 | AC52: 0.75 | AD52: 0.75 | AH52: Compliance Rate | AI52: ='Step 3 - Code Updates'!I14 -> 0.75 | AJ52: =IFERROR(INDEX(ComCodeTable,MATCH(AJ45,ComCodeDate,0),3),AI52) -> 0.75 | AK52: 0.75 | AL52: 0.75 | AM52: 0.75 | AN52: 0.75 | AO52: 0.75 | AP52: 0.75 | AQ52: 0.75 | AR52: 0.75 | AS52: 0.75 | AT52: 0.75 | AU52: 0.75 | AV52: 0.75 | AW52: 0.75 | AX52: 0.75 | AY52: 0.75 | AZ52: 0.75 | BA52: 0.75 | BB52: 0.75 | BC52: 0.75 | BD52: 0.75 | BE52: 0.75 | BF52: 0.75 | BG52: 0.75 | BH52: 0.75 | BI52: 0.75 | BJ52: 0.75 | BP52: Electricity | BQ52: NOx | BR52: Residential | BS52: 2031 | BT52: 0
B53: MMBTU Consumption | C53: =IF(AND(C47=C51,C48=C52),C49,IF(C51=C47,HLOOKUP(C51,ResGas,2,FALSE)*C52,HLOOKUP(C51,ResGas,2,FALSE)*C52+C49*(1-C52))) -> 33.07979566 | D53: 33.07979566 | E53: 33.07979566 | F53: 33.07979566 | G53: 33.07979566 | H53: 33.07979566 | I53: 33.07979566 | J53: 33.07979566 | K53: 33.07979566 | L53: 33.07979566 | M53: 33.07979566 | N53: 33.07979566 | O53: 33.07979566 | P53: 33.07979566 | Q53: 33.07979566 | R53: 33.07979566 | S53: 33.07979566 | T53: 33.07979566 | U53: 33.07979566 | V53: 33.07979566 | W53: 33.07979566 | X53: 33.07979566 | Y53: 33.07979566 | Z53: 33.07979566 | AA53: 33.07979566 | AB53: 33.07979566 | AC53: 33.07979566 | AD53: 33.07979566 | AH53: kBTU Consumption per sq.ft. | AI53: =IF(AND(AI47=AI51,AI48=AI52),AI49,IF(AI51=AI47,HLOOKUP(AI51,ComGas,2,FALSE)*AI52,HLOOKUP(AI51,ComGas,2,FALSE)*AI52+AI49*(1-AI52))) -> 22.400236 | AJ53: 22.400236 | AK53: 22.400236 | AL53: 22.400236 | AM53: 22.400236 | AN53: 22.400236 | AO53: 18.53286926 | AP53: 18.53286926 | AQ53: 18.53286926 | AR53: 18.53286926 | AS53: 18.53286926 | AT53: 18.53286926 | AU53: 18.53286926 | AV53: 18.53286926 | AW53: 18.53286926 | AX53: 18.53286926 | AY53: 18.53286926 | AZ53: 18.53286926 | BA53: 18.53286926 | BB53: 18.53286926 | BC53: 18.53286926 | BD53: 18.53286926 | BE53: 18.53286926 | BF53: 18.53286926 | BG53: 18.53286926 | BH53: 18.53286926 | BI53: 18.53286926 | BJ53: 18.53286926 | BP53: Electricity | BQ53: NOx | BR53: Residential | BS53: 2032 | BT53: 0
B54: Savings per Home | AH54: Savings | BP54: Electricity | BQ54: NOx | BR54: Residential | BS54: 2033 | BT54: 0
B55: MMBTU Consumption per home | C55: =C49-C53 -> 0 | D55: 0 | E55: 0 | F55: 0 | G55: 0 | H55: 0 | I55: 0 | J55: 0 | K55: 0 | L55: 0 | M55: 0 | N55: 0 | O55: 0 | P55: 0 | Q55: 0 | R55: 0 | S55: 0 | T55: 0 | U55: 0 | V55: 0 | W55: 0 | X55: 0 | Y55: 0 | Z55: 0 | AA55: 0 | AB55: 0 | AC55: 0 | AD55: 0 | AH55: kBTU Consumption per sq.ft. | AI55: =AI49-AI53 -> 0 | AJ55: 0 | AK55: 0 | AL55: 0 | AM55: 0 | AN55: 0 | AO55: 3.867366744 | AP55: 3.867366744 | AQ55: 3.867366744 | AR55: 3.867366744 | AS55: 3.867366744 | AT55: 3.867366744 | AU55: 3.867366744 | AV55: 3.867366744 | AW55: 3.867366744 | AX55: 3.867366744 | AY55: 3.867366744 | AZ55: 3.867366744 | BA55: 3.867366744 | BB55: 3.867366744 | BC55: 3.867366744 | BD55: 3.867366744 | BE55: 3.867366744 | BF55: 3.867366744 | BG55: 3.867366744 | BH55: 3.867366744 | BI55: 3.867366744 | BJ55: 3.867366744 | BP55: Electricity | BQ55: NOx | BR55: Residential | BS55: 2034 | BT55: 0
BP56: Electricity | BQ56: NOx | BR56: Residential | BS56: 2035 | BT56: 0
B57: Statewide Savings | AH57: Statewide Savings | BP57: Electricity | BQ57: NOx | BR57: Residential | BS57: 2036 | BT57: 0
B58: Building Projection | C58: =C20 -> - | D58: =D20 -> - | E58: - | F58: - | G58: 1853483.158 | H58: 1823988.986 | I58: 1806189.771 | J58: 1782731.283 | K58: 1750191.263 | L58: 1754654.162 | M58: 1790121.188 | N58: 1832686.55 | O58: 1859979.486 | P58: 1863973.91 | Q58: 1845708.321 | R58: 1820371.772 | S58: 1807567.97 | T58: 1815788.915 | U58: 1798043.501 | V58: 1771416.945 | W58: 1799819.467 | X58: 1818758.36 | Y58: 1831350.172 | Z58: 1842344.906 | AA58: 1839373.011 | AB58: 1832798.851 | AC58: 1836617.811 | AD58: 1835040.478 | AH58: Building Projection | AI58: =AI20 -> - | AJ58: =AJ20 -> - | AK58: - | AL58: - | AM58: 1921684.508 | AN58: 1990972.614 | AO58: 2023100.807 | AP58: 1995248.629 | AQ58: 1993101.627 | AR58: 1984328.977 | AS58: 1976793.559 | AT58: 1981240.306 | AU58: 1981758.831 | AV58: 1953349.043 | AW58: 1929013.947 | AX58: 1920827.352 | AY58: 1921746.56 | AZ58: 1924313.644 | BA58: 1951666.135 | BB58: 2026350.842 | BC58: 2093897.742 | BD58: 2157208.813 | BE58: 2236002.739 | BF58: 2324032.437 | BG58: 2354681.426 | BH58: 2367950.225 | BI58: 2363947.72 | BJ58: 2348903.733 | BP58: Electricity | BQ58: NOx | BR58: Residential | BS58: 2037 | BT58: 0
B59: MMBtu Savings Per Year | C59: =IFERROR(C58*C55,0) -> 0 | D59: =IFERROR(D58*D55,0) -> 0 | E59: 0 | F59: 0 | G59: 0 | H59: 0 | I59: 0 | J59: 0 | K59: 0 | L59: 0 | M59: 0 | N59: 0 | O59: 0 | P59: 0 | Q59: 0 | R59: 0 | S59: 0 | T59: 0 | U59: 0 | V59: 0 | W59: 0 | X59: 0 | Y59: 0 | Z59: 0 | AA59: 0 | AB59: 0 | AC59: 0 | AD59: 0 | AH59: MMBtu Savings Per Year | AI59: =IFERROR(AI58*AI55,0) -> 0 | AJ59: =IFERROR(AJ58*AJ55,0) -> 0 | AK59: 0 | AL59: 0 | AM59: 0 | AN59: 0 | AO59: 7824072.782 | AP59: 7716358.195 | AQ59: 7708054.95 | AR59: 7674127.896 | AS59: 7644985.67 | AT59: 7662182.872 | AU59: 7664188.198 | AV59: 7554317.13 | AW59: 7460204.388 | AX59: 7428543.824 | AY59: 7432098.737 | AZ59: 7442026.591 | BA59: 7547808.708 | BB59: 7836641.858 | BC59: 8097870.495 | BD59: 8342717.622 | BE59: 8647442.632 | BF59: 8987885.758 | BG59: 9106416.642 | BH59: 9157731.953 | BI59: 9142252.798 | BJ59: 9084072.181 | BP59: Electricity | BQ59: NOx | BR59: Residential | BS59: 2038 | BT59: 0
B60: Cumulative MMBTU Savings | C60: =C59 -> 0 | D60: =D59+C60 -> 0 | E60: =E59+D60 -> 0 | F60: =F59+E60 -> 0 | G60: =G59+F60 -> 0 | H60: =H59+G60 -> 0 | I60: =I59+H60 -> 0 | J60: =J59+I60 -> 0 | K60: =K59+J60 -> 0 | L60: =L59+K60 -> 0 | M60: =M59+L60 -> 0 | N60: =N59+M60 -> 0 | O60: =O59+N60 -> 0 | P60: =P59+O60 -> 0 | Q60: =Q59+P60 -> 0 | R60: =R59+Q60 -> 0 | S60: =S59+R60 -> 0 | T60: =T59+S60 -> 0 | U60: =U59+T60 -> 0 | V60: =V59+U60 -> 0 | W60: =W59+V60 -> 0 | X60: =X59+W60 -> 0 | Y60: =Y59+X60 -> 0 | Z60: =Z59+Y60 -> 0 | AA60: =AA59+Z60 -> 0 | AB60: =AB59+AA60 -> 0 | AC60: =AC59+AB60 -> 0 | AD60: =AD59+AC60 -> 0 | AH60: Cumulative MMBTU Savings | AI60: =AI59 -> 0 | AJ60: =AJ59+AI60 -> 0 | AK60: =AK59+AJ60 -> 0 | AL60: =AL59+AK60 -> 0 | AM60: =AM59+AL60 -> 0 | AN60: =AN59+AM60 -> 0 | AO60: =AO59+AN60 -> 7824072.782 | AP60: =AP59+AO60 -> 15540430.98 | AQ60: =AQ59+AP60 -> 23248485.93 | AR60: =AR59+AQ60 -> 30922613.82 | AS60: =AS59+AR60 -> 38567599.49 | AT60: =AT59+AS60 -> 46229782.36 | AU60: =AU59+AT60 -> 53893970.56 | AV60: =AV59+AU60 -> 61448287.69 | AW60: =AW59+AV60 -> 68908492.08 | AX60: =AX59+AW60 -> 76337035.9 | AY60: =AY59+AX60 -> 83769134.64 | AZ60: =AZ59+AY60 -> 91211161.23 | BA60: =BA59+AZ60 -> 98758969.94 | BB60: =BB59+BA60 -> 106595611.8 | BC60: =BC59+BB60 -> 114693482.3 | BD60: =BD59+BC60 -> 123036199.9 | BE60: =BE59+BD60 -> 131683642.5 | BF60: =BF59+BE60 -> 140671528.3 | BG60: =BG59+BF60 -> 149777944.9 | BH60: =BH59+BG60 -> 158935676.9 | BI60: =BI59+BH60 -> 168077929.7 | BJ60: =BJ59+BI60 -> 177162001.9 | BP60: Electricity | BQ60: NOx | BR60: Residential | BS60: 2039 | BT60: 0
BP61: Electricity | BQ61: NOx | BR61: Residential | BS61: 2040 | BT61: 0
B62: Gas/Oil Emissions Calculations | AH62: Gas/Oil Emissions Calculations | BP62: Electricity | BQ62: SOx | BR62: Residential | BS62: 2013 | BT62: =TRANSPOSE('Energy+Emissions Calculation'!$C$29:$AD$29) -> 0
C63: 2013 | D63: 2014 | E63: 2015 | F63: 2016 | G63: 2017 | H63: 2018 | I63: 2019 | J63: 2020 | K63: 2021 | L63: 2022 | M63: 2023 | N63: 2024 | O63: 2025 | P63: 2026 | Q63: 2027 | R63: 2028 | S63: 2029 | T63: 2030 | U63: 2031 | V63: 2032 | W63: 2033 | X63: 2034 | Y63: 2035 | Z63: 2036 | AA63: 2037 | AB63: 2038 | AC63: 2039 | AD63: 2040 | AI63: 2013 | AJ63: 2014 | AK63: 2015 | AL63: 2016 | AM63: 2017 | AN63: 2018 | AO63: 2019 | AP63: 2020 | AQ63: 2021 | AR63: 2022 | AS63: 2023 | AT63: 2024 | AU63: 2025 | AV63: 2026 | AW63: 2027 | AX63: 2028 | AY63: 2029 | AZ63: 2030 | BA63: 2031 | BB63: 2032 | BC63: 2033 | BD63: 2034 | BE63: 2035 | BF63: 2036 | BG63: 2037 | BH63: 2038 | BI63: 2039 | BJ63: 2040 | BP63: Electricity | BQ63: SOx | BR63: Residential | BS63: 2014 | BT63: 0
B64: Metric Metric tons Per Year | AH64: Metric Metric tons Per Year | BP64: Electricity | BQ64: SOx | BR64: Residential | BS64: 2015 | BT64: 0
B65: MMBTU Savings per year | C65: =C59 -> 0 | D65: 0 | E65: 0 | F65: 0 | G65: 0 | H65: 0 | I65: 0 | J65: 0 | K65: 0 | L65: 0 | M65: 0 | N65: 0 | O65: 0 | P65: 0 | Q65: 0 | R65: 0 | S65: 0 | T65: 0 | U65: 0 | V65: 0 | W65: 0 | X65: 0 | Y65: 0 | Z65: 0 | AA65: 0 | AB65: 0 | AC65: 0 | AD65: 0 | AH65: MMBTU Savings per year | AI65: =AI59 -> 0 | AJ65: =AJ59 -> 0 | AK65: 0 | AL65: 0 | AM65: 0 | AN65: 0 | AO65: 7824072.782 | AP65: 7716358.195 | AQ65: 7708054.95 | AR65: 7674127.896 | AS65: 7644985.67 | AT65: 7662182.872 | AU65: 7664188.198 | AV65: 7554317.13 | AW65: 7460204.388 | AX65: 7428543.824 | AY65: 7432098.737 | AZ65: 7442026.591 | BA65: 7547808.708 | BB65: 7836641.858 | BC65: 8097870.495 | BD65: 8342717.622 | BE65: 8647442.632 | BF65: 8987885.758 | BG65: 9106416.642 | BH65: 9157731.953 | BI65: 9142252.798 | BJ65: 9084072.181 | BP65: Electricity | BQ65: SOx | BR65: Residential | BS65: 2016 | BT65: 0
B66: CH4 | C66: =C65*TonsCH4perMMBTU -> 0 | D66: 0 | E66: 0 | F66: 0 | G66: 0 | H66: 0 | I66: 0 | J66: 0 | K66: 0 | L66: 0 | M66: 0 | N66: 0 | O66: 0 | P66: 0 | Q66: 0 | R66: 0 | S66: 0 | T66: 0 | U66: 0 | V66: 0 | W66: 0 | X66: 0 | Y66: 0 | Z66: 0 | AA66: 0 | AB66: 0 | AC66: 0 | AD66: 0 | AH66: CH4 | AI66: =AI65*TonsCH4perMMBTU -> 0 | AJ66: 0 | AK66: 0 | AL66: 0 | AM66: 0 | AN66: 0 | AO66: 7.824072782 | AP66: 7.716358195 | AQ66: 7.70805495 | AR66: 7.674127896 | AS66: 7.64498567 | AT66: 7.662182872 | AU66: 7.664188198 | AV66: 7.55431713 | AW66: 7.460204388 | AX66: 7.428543824 | AY66: 7.432098737 | AZ66: 7.442026591 | BA66: 7.547808708 | BB66: 7.836641858 | BC66: 8.097870495 | BD66: 8.342717622 | BE66: 8.647442632 | BF66: 8.987885758 | BG66: 9.106416642 | BH66: 9.157731953 | BI66: 9.142252798 | BJ66: 9.084072181 | BP66: Electricity | BQ66: SOx | BR66: Residential | BS66: 2017 | BT66: 0
B67: N2O | C67: =C65*TonsN20perMMBTU -> 0 | D67: 0 | E67: 0 | F67: 0 | G67: 0 | H67: 0 | I67: 0 | J67: 0 | K67: 0 | L67: 0 | M67: 0 | N67: 0 | O67: 0 | P67: 0 | Q67: 0 | R67: 0 | S67: 0 | T67: 0 | U67: 0 | V67: 0 | W67: 0 | X67: 0 | Y67: 0 | Z67: 0 | AA67: 0 | AB67: 0 | AC67: 0 | AD67: 0 | AH67: N2O | AI67: =AI65*TonsN20perMMBTU -> 0 | AJ67: 0 | AK67: 0 | AL67: 0 | AM67: 0 | AN67: 0 | AO67: 0.7824072782 | AP67: 0.7716358195 | AQ67: 0.770805495 | AR67: 0.7674127896 | AS67: 0.764498567 | AT67: 0.7662182872 | AU67: 0.7664188198 | AV67: 0.755431713 | AW67: 0.7460204388 | AX67: 0.7428543824 | AY67: 0.7432098737 | AZ67: 0.7442026591 | BA67: 0.7547808708 | BB67: 0.7836641858 | BC67: 0.8097870495 | BD67: 0.8342717622 | BE67: 0.8647442632 | BF67: 0.8987885758 | BG67: 0.9106416642 | BH67: 0.9157731953 | BI67: 0.9142252798 | BJ67: 0.9084072181 | BP67: Electricity | BQ67: SOx | BR67: Residential | BS67: 2018 | BT67: 0
B68: CO2 | C68: =C65*tonsPerMMBTU -> 0 | D68: 0 | E68: 0 | F68: 0 | G68: 0 | H68: 0 | I68: 0 | J68: 0 | K68: 0 | L68: 0 | M68: 0 | N68: 0 | O68: 0 | P68: 0 | Q68: 0 | R68: 0 | S68: 0 | T68: 0 | U68: 0 | V68: 0 | W68: 0 | X68: 0 | Y68: 0 | Z68: 0 | AA68: 0 | AB68: 0 | AC68: 0 | AD68: 0 | AH68: CO2 | AI68: =AI65*tonsPerMMBTU -> 0 | AJ68: 0 | AK68: 0 | AL68: 0 | AM68: 0 | AN68: 0 | AO68: 415145.3018 | AP68: 409429.9658 | AQ68: 408989.3956 | AR68: 407189.2262 | AS68: 405642.9397 | AT68: 406555.4232 | AU68: 406661.8258 | AV68: 400832.0669 | AW68: 395838.4448 | AX68: 394158.5353 | AY68: 394347.159 | AZ68: 394873.9309 | BA68: 400486.73 | BB68: 415812.217 | BC68: 429673.0084 | BD68: 442664.597 | BE68: 458833.306 | BF68: 476897.2183 | BG68: 483186.467 | BH68: 485909.2574 | BI68: 485087.9334 | BJ68: 482000.8699 | BP68: Electricity | BQ68: SOx | BR68: Residential | BS68: 2019 | BT68: 0
B69: CO2e | C69: =C66*CH4GWP+C67*N2OGWP+C68*CO2GWP -> 0 | D69: 0 | E69: 0 | F69: 0 | G69: 0 | H69: 0 | I69: 0 | J69: 0 | K69: 0 | L69: 0 | M69: 0 | N69: 0 | O69: 0 | P69: 0 | Q69: 0 | R69: 0 | S69: 0 | T69: 0 | U69: 0 | V69: 0 | W69: 0 | X69: 0 | Y69: 0 | Z69: 0 | AA69: 0 | AB69: 0 | AC69: 0 | AD69: 0 | AH69: CO2e | AI69: =AI66*CH4GWP+AI67*N2OGWP+AI68*CO2GWP -> 0 | AJ69: 0 | AK69: 0 | AL69: 0 | AM69: 0 | AN69: 0 | AO69: 415552.1536 | AP69: 409831.2164 | AQ69: 409390.2145 | AR69: 407588.2808 | AS69: 406040.4789 | AT69: 406953.8567 | AU69: 407060.3636 | AV69: 401224.8914 | AW69: 396226.3755 | AX69: 394544.8196 | AY69: 394733.6281 | AZ69: 395260.9163 | BA69: 400879.2161 | BB69: 416219.7224 | BC69: 430094.0977 | BD69: 443098.4184 | BE69: 459282.9731 | BF69: 477364.5884 | BG69: 483660.0007 | BH69: 486385.4595 | BI69: 485563.3306 | BJ69: 482473.2417 | BP69: Electricity | BQ69: SOx | BR69: Residential | BS69: 2020 | BT69: 0
B70: Cumulative Metric Metric tons | AH70: Cumulative Metric Metric tons | BP70: Electricity | BQ70: SOx | BR70: Residential | BS70: 2021 | BT70: 0
B71: Cumulative MMBTU Savings | C71: =C60 -> 0 | D71: 0 | E71: 0 | F71: 0 | G71: 0 | H71: 0 | I71: 0 | J71: 0 | K71: 0 | L71: 0 | M71: 0 | N71: 0 | O71: 0 | P71: 0 | Q71: 0 | R71: 0 | S71: 0 | T71: 0 | U71: 0 | V71: 0 | W71: 0 | X71: 0 | Y71: 0 | Z71: 0 | AA71: 0 | AB71: 0 | AC71: 0 | AD71: 0 | AH71: Cumulative MMBTU Savings | AI71: =AI60 -> 0 | AJ71: 0 | AK71: 0 | AL71: 0 | AM71: 0 | AN71: 0 | AO71: 7824072.782 | AP71: 15540430.98 | AQ71: 23248485.93 | AR71: 30922613.82 | AS71: 38567599.49 | AT71: 46229782.36 | AU71: 53893970.56 | AV71: 61448287.69 | AW71: 68908492.08 | AX71: 76337035.9 | AY71: 83769134.64 | AZ71: 91211161.23 | BA71: 98758969.94 | BB71: 106595611.8 | BC71: 114693482.3 | BD71: 123036199.9 | BE71: 131683642.5 | BF71: 140671528.3 | BG71: 149777944.9 | BH71: 158935676.9 | BI71: 168077929.7 | BJ71: 177162001.9 | BP71: Electricity | BQ71: SOx | BR71: Residential | BS71: 2022 | BT71: 0
B72: CH4 | C72: =C71*TonsCH4perMMBTU -> 0 | D72: 0 | E72: 0 | F72: 0 | G72: 0 | H72: 0 | I72: 0 | J72: 0 | K72: 0 | L72: 0 | M72: 0 | N72: 0 | O72: 0 | P72: 0 | Q72: 0 | R72: 0 | S72: 0 | T72: 0 | U72: 0 | V72: 0 | W72: 0 | X72: 0 | Y72: 0 | Z72: 0 | AA72: 0 | AB72: 0 | AC72: 0 | AD72: 0 | AH72: CH4 | AI72: =AI71*TonsCH4perMMBTU -> 0 | AJ72: 0 | AK72: 0 | AL72: 0 | AM72: 0 | AN72: 0 | AO72: 7.824072782 | AP72: 15.54043098 | AQ72: 23.24848593 | AR72: 30.92261382 | AS72: 38.56759949 | AT72: 46.22978236 | AU72: 53.89397056 | AV72: 61.44828769 | AW72: 68.90849208 | AX72: 76.3370359 | AY72: 83.76913464 | AZ72: 91.21116123 | BA72: 98.75896994 | BB72: 106.5956118 | BC72: 114.6934823 | BD72: 123.0361999 | BE72: 131.6836425 | BF72: 140.6715283 | BG72: 149.7779449 | BH72: 158.9356769 | BI72: 168.0779297 | BJ72: 177.1620019 | BP72: Electricity | BQ72: SOx | BR72: Residential | BS72: 2023 | BT72: 0
B73: N2O | C73: =C71*TonsN20perMMBTU -> 0 | D73: 0 | E73: 0 | F73: 0 | G73: 0 | H73: 0 | I73: 0 | J73: 0 | K73: 0 | L73: 0 | M73: 0 | N73: 0 | O73: 0 | P73: 0 | Q73: 0 | R73: 0 | S73: 0 | T73: 0 | U73: 0 | V73: 0 | W73: 0 | X73: 0 | Y73: 0 | Z73: 0 | AA73: 0 | AB73: 0 | AC73: 0 | AD73: 0 | AH73: N2O | AI73: =AI71*TonsN20perMMBTU -> 0 | AJ73: 0 | AK73: 0 | AL73: 0 | AM73: 0 | AN73: 0 | AO73: 0.7824072782 | AP73: 1.554043098 | AQ73: 2.324848593 | AR73: 3.092261382 | AS73: 3.856759949 | AT73: 4.622978236 | AU73: 5.389397056 | AV73: 6.144828769 | AW73: 6.890849208 | AX73: 7.63370359 | AY73: 8.376913464 | AZ73: 9.121116123 | BA73: 9.875896994 | BB73: 10.65956118 | BC73: 11.46934823 | BD73: 12.30361999 | BE73: 13.16836425 | BF73: 14.06715283 | BG73: 14.97779449 | BH73: 15.89356769 | BI73: 16.80779297 | BJ73: 17.71620019 | BP73: Electricity | BQ73: SOx | BR73: Residential | BS73: 2024 | BT73: 0
B74: CO2 | C74: =C71*tonsPerMMBTU -> 0 | D74: 0 | E74: 0 | F74: 0 | G74: 0 | H74: 0 | I74: 0 | J74: 0 | K74: 0 | L74: 0 | M74: 0 | N74: 0 | O74: 0 | P74: 0 | Q74: 0 | R74: 0 | S74: 0 | T74: 0 | U74: 0 | V74: 0 | W74: 0 | X74: 0 | Y74: 0 | Z74: 0 | AA74: 0 | AB74: 0 | AC74: 0 | AD74: 0 | AH74: CO2 | AI74: =AI71*tonsPerMMBTU -> 0 | AJ74: 0 | AK74: 0 | AL74: 0 | AM74: 0 | AN74: 0 | AO74: 415145.3018 | AP74: 824575.2676 | AQ74: 1233564.663 | AR74: 1640753.889 | AS74: 2046396.829 | AT74: 2452952.252 | AU74: 2859614.078 | AV74: 3260446.145 | AW74: 3656284.59 | AX74: 4050443.125 | AY74: 4444790.284 | AZ74: 4839664.215 | BA74: 5240150.945 | BB74: 5655963.162 | BC74: 6085636.17 | BD74: 6528300.767 | BE74: 6987134.074 | BF74: 7464031.292 | BG74: 7947217.759 | BH74: 8433127.016 | BI74: 8918214.95 | BJ74: 9400215.82 | BP74: Electricity | BQ74: SOx | BR74: Residential | BS74: 2025 | BT74: 0
B75: CO2e | C75: =C72*CH4GWP+C73*N2OGWP+C74*CO2GWP -> 0 | D75: 0 | E75: 0 | F75: 0 | G75: 0 | H75: 0 | I75: 0 | J75: 0 | K75: 0 | L75: 0 | M75: 0 | N75: 0 | O75: 0 | P75: 0 | Q75: 0 | R75: 0 | S75: 0 | T75: 0 | U75: 0 | V75: 0 | W75: 0 | X75: 0 | Y75: 0 | Z75: 0 | AA75: 0 | AB75: 0 | AC75: 0 | AD75: 0 | AH75: CO2e | AI75: =AI72*CH4GWP+AI73*N2OGWP+AI74*CO2GWP -> 0 | AJ75: 0 | AK75: 0 | AL75: 0 | AM75: 0 | AN75: 0 | AO75: 415552.1536 | AP75: 825383.37 | AQ75: 1234773.585 | AR75: 1642361.865 | AS75: 2048402.344 | AT75: 2455356.201 | AU75: 2862416.565 | AV75: 3263641.456 | AW75: 3659867.831 | AX75: 4054412.651 | AY75: 4449146.279 | AZ75: 4844407.195 | BA75: 5245286.411 | BB75: 5661506.134 | BC75: 6091600.232 | BD75: 6534698.65 | BE75: 6993981.623 | BF75: 7471346.211 | BG75: 7955006.212 | BH75: 8441391.671 | BI75: 8926955.002 | BJ75: 9409428.244 | BP75: Electricity | BQ75: SOx | BR75: Residential | BS75: 2026 | BT75: 0
BP76: Electricity | BQ76: SOx | BR76: Residential | BS76: 2027 | BT76: 0
BP77: Electricity | BQ77: SOx | BR77: Residential | BS77: 2028 | BT77: 0
BP78: Electricity | BQ78: SOx | BR78: Residential | BS78: 2029 | BT78: 0
B79: Total Emissions Savings | C79: 2013 | D79: 2014 | E79: 2015 | F79: 2016 | G79: 2017 | H79: 2018 | I79: 2019 | J79: 2020 | K79: 2021 | L79: 2022 | M79: 2023 | N79: 2024 | O79: 2025 | P79: 2026 | Q79: 2027 | R79: 2028 | S79: 2029 | T79: 2030 | U79: 2031 | V79: 2032 | W79: 2033 | X79: 2034 | Y79: 2035 | Z79: 2036 | AA79: 2037 | AB79: 2038 | AC79: 2039 | AD79: 2040 | AH79: Total Emissions Savings | AI79: 2013 | AJ79: 2014 | AK79: 2015 | AL79: 2016 | AM79: 2017 | AN79: 2018 | AO79: 2019 | AP79: 2020 | AQ79: 2021 | AR79: 2022 | AS79: 2023 | AT79: 2024 | AU79: 2025 | AV79: 2026 | AW79: 2027 | AX79: 2028 | AY79: 2029 | AZ79: 2030 | BA79: 2031 | BB79: 2032 | BC79: 2033 | BD79: 2034 | BE79: 2035 | BF79: 2036 | BG79: 2037 | BH79: 2038 | BI79: 2039 | BJ79: 2040 | BP79: Electricity | BQ79: SOx | BR79: Residential | BS79: 2030 | BT79: 0
B80: Metric tons Per Year | AH80: Metric Metric tons Per Year | BP80: Electricity | BQ80: SOx | BR80: Residential | BS80: 2031 | BT80: 0
B81: Emission savings per year | AH81: MWh Savings per year | BP81: Electricity | BQ81: SOx | BR81: Residential | BS81: 2032 | BT81: 0
B82: NOx | C82: =C28 -> 0 | D82: =D28 -> 0 | E82: 0 | F82: 0 | G82: 0 | H82: 0 | I82: 0 | J82: 0 | K82: 0 | L82: 0 | M82: 0 | N82: 0 | O82: 0 | P82: 0 | Q82: 0 | R82: 0 | S82: 0 | T82: 0 | U82: 0 | V82: 0 | W82: 0 | X82: 0 | Y82: 0 | Z82: 0 | AA82: 0 | AB82: 0 | AC82: 0 | AD82: 0 | AH82: NOx | AI82: =AI28 -> 0 | AJ82: =AJ28 -> 0 | AK82: 0 | AL82: 0 | AM82: 0 | AN82: 0 | AO82: 2058.855836 | AP82: 2030.511416 | AQ82: 2028.326469 | AR82: 2019.398777 | AS82: 2011.730182 | AT82: 2016.255518 | AU82: 2016.783207 | AV82: 1987.871323 | AW82: 1963.106143 | AX82: 1954.774864 | AY82: 1955.710317 | AZ82: 1958.32277 | BA82: 1986.158672 | BB82: 2062.16331 | BC82: 2130.903992 | BD82: 2195.333983 | BE82: 2275.520464 | BF82: 2365.105945 | BG82: 2396.296606 | BH82: 2409.799909 | BI82: 2405.726666 | BJ82: 2390.416801 | BP82: Electricity | BQ82: SOx | BR82: Residential | BS82: 2033 | BT82: 0
B83: SOx | C83: =C29 -> 0 | D83: =D29 -> 0 | E83: 0 | F83: 0 | G83: 0 | H83: 0 | I83: 0 | J83: 0 | K83: 0 | L83: 0 | M83: 0 | N83: 0 | O83: 0 | P83: 0 | Q83: 0 | R83: 0 | S83: 0 | T83: 0 | U83: 0 | V83: 0 | W83: 0 | X83: 0 | Y83: 0 | Z83: 0 | AA83: 0 | AB83: 0 | AC83: 0 | AD83: 0 | AH83: SOx | AI83: =AI29 -> 0 | AJ83: =AJ29 -> 0 | AK83: 0 | AL83: 0 | AM83: 0 | AN83: 0 | AO83: 2412.662872 | AP83: 2379.447564 | AQ83: 2376.887142 | AR83: 2366.425258 | AS83: 2357.438843 | AT83: 2362.741842 | AU83: 2363.360212 | AV83: 2329.479923 | AW83: 2300.458936 | AX83: 2290.695955 | AY83: 2291.792163 | AZ83: 2294.853556 | BA83: 2327.47296 | BB83: 2416.538723 | BC83: 2497.092247 | BD83: 2572.594302 | BE83: 2666.560544 | BF83: 2771.54097 | BG83: 2808.091635 | BH83: 2823.915433 | BI83: 2819.142217 | BJ83: 2801.201406 | BP83: Electricity | BQ83: SOx | BR83: Residential | BS83: 2034 | BT83: 0
B84: CH4 | C84: =C30+C66 -> 0 | D84: =D30+D66 -> 0 | E84: 0 | F84: 0 | G84: 0 | H84: 0 | I84: 0 | J84: 0 | K84: 0 | L84: 0 | M84: 0 | N84: 0 | O84: 0 | P84: 0 | Q84: 0 | R84: 0 | S84: 0 | T84: 0 | U84: 0 | V84: 0 | W84: 0 | X84: 0 | Y84: 0 | Z84: 0 | AA84: 0 | AB84: 0 | AC84: 0 | AD84: 0 | AH84: CH4 | AI84: =AI30+AI66 -> 0 | AJ84: =AJ30+AJ66 -> 0 | AK84: 0 | AL84: 0 | AM84: 0 | AN84: 0 | AO84: 8.032969489 | AP84: 7.922379006 | AQ84: 7.91385407 | AR84: 7.879021191 | AS84: 7.84910089 | AT84: 7.866757244 | AU84: 7.86881611 | AV84: 7.756011569 | AW84: 7.65938609 | AX84: 7.626880213 | AY84: 7.63053004 | AZ84: 7.64072296 | BA84: 7.749329377 | BB84: 8.04587415 | BC84: 8.31407739 | BD84: 8.565461747 | BE84: 8.878322679 | BF84: 9.227855374 | BG84: 9.349550941 | BH84: 9.402236331 | BI84: 9.386343895 | BJ84: 9.326609901 | BP84: Electricity | BQ84: SOx | BR84: Residential | BS84: 2035 | BT84: 0
B85: N2O | C85: =C31+C67 -> 0 | D85: =D31+D67 -> 0 | E85: 0 | F85: 0 | G85: 0 | H85: 0 | I85: 0 | J85: 0 | K85: 0 | L85: 0 | M85: 0 | N85: 0 | O85: 0 | P85: 0 | Q85: 0 | R85: 0 | S85: 0 | T85: 0 | U85: 0 | V85: 0 | W85: 0 | X85: 0 | Y85: 0 | Z85: 0 | AA85: 0 | AB85: 0 | AC85: 0 | AD85: 0 | AH85: N2O | AI85: =AI31+AI67 -> 0 | AJ85: =AJ31+AJ67 -> 0 | AK85: 0 | AL85: 0 | AM85: 0 | AN85: 0 | AO85: 0.8162824199 | AP85: 0.8050445996 | AQ85: 0.8041783253 | AR85: 0.8006387293 | AS85: 0.7975983324 | AT85: 0.7993925096 | AU85: 0.7996017245 | AV85: 0.7881389194 | AW85: 0.7783201743 | AX85: 0.7750170401 | AY85: 0.7753879228 | AZ85: 0.7764236919 | BA85: 0.7874598983 | BB85: 0.8175937467 | BC85: 0.844847627 | BD85: 0.8703924311 | BE85: 0.9021842708 | BF85: 0.9377025676 | BG85: 0.9500688478 | BH85: 0.9554225539 | BI85: 0.9538076198 | BJ85: 0.9477376591 | BP85: Electricity | BQ85: SOx | BR85: Residential | BS85: 2036 | BT85: 0
B86: CO2 | C86: =C32+C68 -> 0 | D86: =D32+D68 -> 0 | E86: 0 | F86: 0 | G86: 0 | H86: 0 | I86: 0 | J86: 0 | K86: 0 | L86: 0 | M86: 0 | N86: 0 | O86: 0 | P86: 0 | Q86: 0 | R86: 0 | S86: 0 | T86: 0 | U86: 0 | V86: 0 | W86: 0 | X86: 0 | Y86: 0 | Z86: 0 | AA86: 0 | AB86: 0 | AC86: 0 | AD86: 0 | AH86: CO2 | AI86: =AI32+AI68 -> 0 | AJ86: =AJ32+AJ68 -> 0 | AK86: 0 | AL86: 0 | AM86: 0 | AN86: 0 | AO86: 3239871.044 | AP86: 3195267.5 | AQ86: 3191829.208 | AR86: 3177780.351 | AS86: 3165712.844 | AT86: 3172834.035 | AU86: 3173664.421 | AV86: 3128167.9 | AW86: 3089196.746 | AX86: 3076086.42 | AY86: 3077558.474 | AZ86: 3081669.5 | BA86: 3125472.827 | BB86: 3245075.774 | BC86: 3353247.965 | BD86: 3454636.735 | BE86: 3580820.343 | BF86: 3721794.47 | BG86: 3770876.935 | BH86: 3792126.097 | BI86: 3785716.332 | BJ86: 3761624.315 | BP86: Electricity | BQ86: SOx | BR86: Residential | BS86: 2037 | BT86: 0
B87: CO2e | C87: =C33+C69 -> 0 | D87: =D33+D69 -> 0 | E87: 0 | F87: 0 | G87: 0 | H87: 0 | I87: 0 | J87: 0 | K87: 0 | L87: 0 | M87: 0 | N87: 0 | O87: 0 | P87: 0 | Q87: 0 | R87: 0 | S87: 0 | T87: 0 | U87: 0 | V87: 0 | W87: 0 | X87: 0 | Y87: 0 | Z87: 0 | AA87: 0 | AB87: 0 | AC87: 0 | AD87: 0 | AH87: CO2e | AI87: =AI33+AI69 -> 0 | AJ87: =AJ33+AJ69 -> 0 | AK87: 0 | AL87: 0 | AM87: 0 | AN87: 0 | AO87: 3240292.784 | AP87: 3195683.434 | AQ87: 3192244.695 | AR87: 3178194.009 | AS87: 3166124.931 | AT87: 3173247.049 | AU87: 3174077.543 | AV87: 3128575.099 | AW87: 3089598.872 | AX87: 3076486.839 | AY87: 3077959.085 | AZ87: 3082070.647 | BA87: 3125879.675 | BB87: 3245498.191 | BC87: 3353684.463 | BD87: 3455086.431 | BE87: 3581286.465 | BF87: 3722278.943 | BG87: 3771367.797 | BH87: 3792619.725 | BI87: 3786209.125 | BJ87: 3762113.972 | BP87: Electricity | BQ87: SOx | BR87: Residential | BS87: 2038 | BT87: 0
B88: Cumulative Metric tons | AH88: Cumulative Metric Metric tons | BP88: Electricity | BQ88: SOx | BR88: Residential | BS88: 2039 | BT88: 0
B89: Cumulative emission savings | AH89: Cumulative MWh Savings | BP89: Electricity | BQ89: SOx | BR89: Residential | BS89: 2040 | BT89: 0
B90: NOx | C90: =C36 -> 0 | D90: =D36 -> 0 | E90: 0 | F90: 0 | G90: 0 | H90: 0 | I90: 0 | J90: 0 | K90: 0 | L90: 0 | M90: 0 | N90: 0 | O90: 0 | P90: 0 | Q90: 0 | R90: 0 | S90: 0 | T90: 0 | U90: 0 | V90: 0 | W90: 0 | X90: 0 | Y90: 0 | Z90: 0 | AA90: 0 | AB90: 0 | AC90: 0 | AD90: 0 | AH90: NOx | AI90: =AI36 -> 0 | AJ90: =AJ36 -> 0 | AK90: 0 | AL90: 0 | AM90: 0 | AN90: 0 | AO90: 2058.855836 | AP90: 4089.367252 | AQ90: 6117.693721 | AR90: 8137.092498 | AS90: 10148.82268 | AT90: 12165.0782 | AU90: 14181.86141 | AV90: 16169.73273 | AW90: 18132.83887 | AX90: 20087.61374 | AY90: 22043.32405 | AZ90: 24001.64682 | BA90: 25987.80549 | BB90: 28049.9688 | BC90: 30180.8728 | BD90: 32376.20678 | BE90: 34651.72724 | BF90: 37016.83319 | BG90: 39413.12979 | BH90: 41822.9297 | BI90: 44228.65637 | BJ90: 46619.07317 | BP90: Electricity | BQ90: CH4 | BR90: Residential | BS90: 2013 | BT90: =TRANSPOSE('Energy+Emissions Calculation'!$C$30:$AD$30) -> 0
B91: SOx | C91: =C37 -> 0 | D91: =D37 -> 0 | E91: 0 | F91: 0 | G91: 0 | H91: 0 | I91: 0 | J91: 0 | K91: 0 | L91: 0 | M91: 0 | N91: 0 | O91: 0 | P91: 0 | Q91: 0 | R91: 0 | S91: 0 | T91: 0 | U91: 0 | V91: 0 | W91: 0 | X91: 0 | Y91: 0 | Z91: 0 | AA91: 0 | AB91: 0 | AC91: 0 | AD91: 0 | AH91: SOx | AI91: =AI37 -> 0 | AJ91: =AJ37 -> 0 | AK91: 0 | AL91: 0 | AM91: 0 | AN91: 0 | AO91: 2412.662872 | AP91: 4792.110436 | AQ91: 7168.997578 | AR91: 9535.422836 | AS91: 11892.86168 | AT91: 14255.60352 | AU91: 16618.96373 | AV91: 18948.44365 | AW91: 21248.90259 | AX91: 23539.59855 | AY91: 25831.39071 | AZ91: 28126.24427 | BA91: 30453.71722 | BB91: 32870.25595 | BC91: 35367.3482 | BD91: 37939.9425 | BE91: 40606.50304 | BF91: 43378.04401 | BG91: 46186.13565 | BH91: 49010.05108 | BI91: 51829.1933 | BJ91: 54630.3947 | BP91: Electricity | BQ91: CH4 | BR91: Residential | BS91: 2014 | BT91: 0
B92: CH4 | C92: =C38+C72 -> 0 | D92: =D38+D72 -> 0 | E92: 0 | F92: 0 | G92: 0 | H92: 0 | I92: 0 | J92: 0 | K92: 0 | L92: 0 | M92: 0 | N92: 0 | O92: 0 | P92: 0 | Q92: 0 | R92: 0 | S92: 0 | T92: 0 | U92: 0 | V92: 0 | W92: 0 | X92: 0 | Y92: 0 | Z92: 0 | AA92: 0 | AB92: 0 | AC92: 0 | AD92: 0 | AH92: CH4 | AI92: =AI38+AI72 -> 0 | AJ92: =AJ38+AJ72 -> 0 | AK92: 0 | AL92: 0 | AM92: 0 | AN92: 0 | AO92: 8.032969489 | AP92: 15.9553485 | AQ92: 23.86920257 | AR92: 31.74822376 | AS92: 39.59732465 | AT92: 47.46408189 | AU92: 55.332898 | AV92: 63.08890957 | AW92: 70.74829566 | AX92: 78.37517587 | AY92: 86.00570591 | AZ92: 93.64642887 | BA92: 101.3957582 | BB92: 109.4416324 | BC92: 117.7557098 | BD92: 126.3211715 | BE92: 135.1994942 | BF92: 144.4273496 | BG92: 153.7769005 | BH92: 163.1791369 | BI92: 172.5654808 | BJ92: 181.8920907 | BP92: Electricity | BQ92: CH4 | BR92: Residential | BS92: 2015 | BT92: 0
B93: N2O | C93: =C39+C73 -> 0 | D93: =D39+D73 -> 0 | E93: 0 | F93: 0 | G93: 0 | H93: 0 | I93: 0 | J93: 0 | K93: 0 | L93: 0 | M93: 0 | N93: 0 | O93: 0 | P93: 0 | Q93: 0 | R93: 0 | S93: 0 | T93: 0 | U93: 0 | V93: 0 | W93: 0 | X93: 0 | Y93: 0 | Z93: 0 | AA93: 0 | AB93: 0 | AC93: 0 | AD93: 0 | AH93: N2O | AI93: =AI39+AI73 -> 0 | AJ93: =AJ39+AJ73 -> 0 | AK93: 0 | AL93: 0 | AM93: 0 | AN93: 0 | AO93: 0.8162824199 | AP93: 1.62132702 | AQ93: 2.425505345 | AR93: 3.226144074 | AS93: 4.023742407 | AT93: 4.823134916 | AU93: 5.622736641 | AV93: 6.41087556 | AW93: 7.189195734 | AX93: 7.964212774 | AY93: 8.739600697 | AZ93: 9.516024389 | BA93: 10.30348429 | BB93: 11.12107803 | BC93: 11.96592566 | BD93: 12.83631809 | BE93: 13.73850236 | BF93: 14.67620493 | BG93: 15.62627378 | BH93: 16.58169633 | BI93: 17.53550395 | BJ93: 18.48324161 | BP93: Electricity | BQ93: CH4 | BR93: Residential | BS93: 2016 | BT93: 0
B94: CO2 | C94: =C40+C74 -> 0 | D94: =D40+D74 -> 0 | E94: 0 | F94: 0 | G94: 0 | H94: 0 | I94: 0 | J94: 0 | K94: 0 | L94: 0 | M94: 0 | N94: 0 | O94: 0 | P94: 0 | Q94: 0 | R94: 0 | S94: 0 | T94: 0 | U94: 0 | V94: 0 | W94: 0 | X94: 0 | Y94: 0 | Z94: 0 | AA94: 0 | AB94: 0 | AC94: 0 | AD94: 0 | AH94: CO2 | AI94: =AI40+AI74 -> 0 | AJ94: =AJ40+AJ74 -> 0 | AK94: 0 | AL94: 0 | AM94: 0 | AN94: 0 | AO94: 3239871.044 | AP94: 6435138.544 | AQ94: 9626967.752 | AR94: 12804748.1 | AS94: 15970460.95 | AT94: 19143294.98 | AU94: 22316959.4 | AV94: 25445127.3 | AW94: 28534324.05 | AX94: 31610410.47 | AY94: 34687968.94 | AZ94: 37769638.44 | BA94: 40895111.27 | BB94: 44140187.04 | BC94: 47493435.01 | BD94: 50948071.74 | BE94: 54528892.09 | BF94: 58250686.56 | BG94: 62021563.49 | BH94: 65813689.59 | BI94: 69599405.92 | BJ94: 73361030.23 | BP94: Electricity | BQ94: CH4 | BR94: Residential | BS94: 2017 | BT94: 0
B95: CO2e | C95: =C41+C75 -> 0 | D95: =D41+D75 -> 0 | E95: 0 | F95: 0 | G95: 0 | H95: 0 | I95: 0 | J95: 0 | K95: 0 | L95: 0 | M95: 0 | N95: 0 | O95: 0 | P95: 0 | Q95: 0 | R95: 0 | S95: 0 | T95: 0 | U95: 0 | V95: 0 | W95: 0 | X95: 0 | Y95: 0 | Z95: 0 | AA95: 0 | AB95: 0 | AC95: 0 | AD95: 0 | AH95: CO2e | AI95: =AI41+AI75 -> 0 | AJ95: =AJ41+AJ75 -> 0 | AK95: 0 | AL95: 0 | AM95: 0 | AN95: 0 | AO95: 3240292.784 | AP95: 6435976.217 | AQ95: 9628220.912 | AR95: 12806414.92 | AS95: 15972539.85 | AT95: 19145786.9 | AU95: 22319864.44 | AV95: 25448439.54 | AW95: 28538038.41 | AX95: 31614525.25 | AY95: 34692484.34 | AZ95: 37774554.99 | BA95: 40900434.66 | BB95: 44145932.85 | BC95: 47499617.32 | BD95: 50954703.75 | BE95: 54535990.21 | BF95: 58258269.15 | BG95: 62029636.95 | BH95: 65822256.68 | BI95: 69608465.8 | BJ95: 73370579.77 | BP95: Electricity | BQ95: CH4 | BR95: Residential | BS95: 2018 | BT95: 0
BP96: Electricity | BQ96: CH4 | BR96: Residential | BS96: 2019 | BT96: 0
BP97: Electricity | BQ97: CH4 | BR97: Residential | BS97: 2020 | BT97: 0
BP98: Electricity | BQ98: CH4 | BR98: Residential | BS98: 2021 | BT98: 0
BP99: Electricity | BQ99: CH4 | BR99: Residential | BS99: 2022 | BT99: 0
BP100: Electricity | BQ100: CH4 | BR100: Residential | BS100: 2023 | BT100: 0
BP101: Electricity | BQ101: CH4 | BR101: Residential | BS101: 2024 | BT101: 0
BP102: Electricity | BQ102: CH4 | BR102: Residential | BS102: 2025 | BT102: 0
BP103: Electricity | BQ103: CH4 | BR103: Residential | BS103: 2026 | BT103: 0
BP104: Electricity | BQ104: CH4 | BR104: Residential | BS104: 2027 | BT104: 0
BP105: Electricity | BQ105: CH4 | BR105: Residential | BS105: 2028 | BT105: 0
BP106: Electricity | BQ106: CH4 | BR106: Residential | BS106: 2029 | BT106: 0
BP107: Electricity | BQ107: CH4 | BR107: Residential | BS107: 2030 | BT107: 0
BP108: Electricity | BQ108: CH4 | BR108: Residential | BS108: 2031 | BT108: 0
BP109: Electricity | BQ109: CH4 | BR109: Residential | BS109: 2032 | BT109: 0
BP110: Electricity | BQ110: CH4 | BR110: Residential | BS110: 2033 | BT110: 0
BP111: Electricity | BQ111: CH4 | BR111: Residential | BS111: 2034 | BT111: 0
BP112: Electricity | BQ112: CH4 | BR112: Residential | BS112: 2035 | BT112: 0
BP113: Electricity | BQ113: CH4 | BR113: Residential | BS113: 2036 | BT113: 0
BP114: Electricity | BQ114: CH4 | BR114: Residential | BS114: 2037 | BT114: 0
BP115: Electricity | BQ115: CH4 | BR115: Residential | BS115: 2038 | BT115: 0
BP116: Electricity | BQ116: CH4 | BR116: Residential | BS116: 2039 | BT116: 0
BP117: Electricity | BQ117: CH4 | BR117: Residential | BS117: 2040 | BT117: 0
BP118: Electricity | BQ118: N2O | BR118: Residential | BS118: 2013 | BT118: =TRANSPOSE('Energy+Emissions Calculation'!$C$31:$AD$31) -> 0
BP119: Electricity | BQ119: N2O | BR119: Residential | BS119: 2014 | BT119: 0
BP120: Electricity | BQ120: N2O | BR120: Residential | BS120: 2015 | BT120: 0
BP121: Electricity | BQ121: N2O | BR121: Residential | BS121: 2016 | BT121: 0
BP122: Electricity | BQ122: N2O | BR122: Residential | BS122: 2017 | BT122: 0
BP123: Electricity | BQ123: N2O | BR123: Residential | BS123: 2018 | BT123: 0
BP124: Electricity | BQ124: N2O | BR124: Residential | BS124: 2019 | BT124: 0
BP125: Electricity | BQ125: N2O | BR125: Residential | BS125: 2020 | BT125: 0
BP126: Electricity | BQ126: N2O | BR126: Residential | BS126: 2021 | BT126: 0
BP127: Electricity | BQ127: N2O | BR127: Residential | BS127: 2022 | BT127: 0
BP128: Electricity | BQ128: N2O | BR128: Residential | BS128: 2023 | BT128: 0
BP129: Electricity | BQ129: N2O | BR129: Residential | BS129: 2024 | BT129: 0
BP130: Electricity | BQ130: N2O | BR130: Residential | BS130: 2025 | BT130: 0
BP131: Electricity | BQ131: N2O | BR131: Residential | BS131: 2026 | BT131: 0
BP132: Electricity | BQ132: N2O | BR132: Residential | BS132: 2027 | BT132: 0
BP133: Electricity | BQ133: N2O | BR133: Residential | BS133: 2028 | BT133: 0
BP134: Electricity | BQ134: N2O | BR134: Residential | BS134: 2029 | BT134: 0
BP135: Electricity | BQ135: N2O | BR135: Residential | BS135: 2030 | BT135: 0
BP136: Electricity | BQ136: N2O | BR136: Residential | BS136: 2031 | BT136: 0
BP137: Electricity | BQ137: N2O | BR137: Residential | BS137: 2032 | BT137: 0
BP138: Electricity | BQ138: N2O | BR138: Residential | BS138: 2033 | BT138: 0
BP139: Electricity | BQ139: N2O | BR139: Residential | BS139: 2034 | BT139: 0
BP140: Electricity | BQ140: N2O | BR140: Residential | BS140: 2035 | BT140: 0
BP141: Electricity | BQ141: N2O | BR141: Residential | BS141: 2036 | BT141: 0
BP142: Electricity | BQ142: N2O | BR142: Residential | BS142: 2037 | BT142: 0
BP143: Electricity | BQ143: N2O | BR143: Residential | BS143: 2038 | BT143: 0
BP144: Electricity | BQ144: N2O | BR144: Residential | BS144: 2039 | BT144: 0
BP145: Electricity | BQ145: N2O | BR145: Residential | BS145: 2040 | BT145: 0
BP146: Electricity | BQ146: CO2 | BR146: Residential | BS146: 2013 | BT146: =TRANSPOSE('Energy+Emissions Calculation'!$C$32:$AD$32) -> 0
BP147: Electricity | BQ147: CO2 | BR147: Residential | BS147: 2014 | BT147: 0
BP148: Electricity | BQ148: CO2 | BR148: Residential | BS148: 2015 | BT148: 0
BP149: Electricity | BQ149: CO2 | BR149: Residential | BS149: 2016 | BT149: 0
BP150: Electricity | BQ150: CO2 | BR150: Residential | BS150: 2017 | BT150: 0
BP151: Electricity | BQ151: CO2 | BR151: Residential | BS151: 2018 | BT151: 0
BP152: Electricity | BQ152: CO2 | BR152: Residential | BS152: 2019 | BT152: 0
BP153: Electricity | BQ153: CO2 | BR153: Residential | BS153: 2020 | BT153: 0
BP154: Electricity | BQ154: CO2 | BR154: Residential | BS154: 2021 | BT154: 0
BP155: Electricity | BQ155: CO2 | BR155: Residential | BS155: 2022 | BT155: 0
BP156: Electricity | BQ156: CO2 | BR156: Residential | BS156: 2023 | BT156: 0
BP157: Electricity | BQ157: CO2 | BR157: Residential | BS157: 2024 | BT157: 0
BP158: Electricity | BQ158: CO2 | BR158: Residential | BS158: 2025 | BT158: 0
BP159: Electricity | BQ159: CO2 | BR159: Residential | BS159: 2026 | BT159: 0
BP160: Electricity | BQ160: CO2 | BR160: Residential | BS160: 2027 | BT160: 0
BP161: Electricity | BQ161: CO2 | BR161: Residential | BS161: 2028 | BT161: 0
BP162: Electricity | BQ162: CO2 | BR162: Residential | BS162: 2029 | BT162: 0
BP163: Electricity | BQ163: CO2 | BR163: Residential | BS163: 2030 | BT163: 0
BP164: Electricity | BQ164: CO2 | BR164: Residential | BS164: 2031 | BT164: 0
BP165: Electricity | BQ165: CO2 | BR165: Residential | BS165: 2032 | BT165: 0
BP166: Electricity | BQ166: CO2 | BR166: Residential | BS166: 2033 | BT166: 0
BP167: Electricity | BQ167: CO2 | BR167: Residential | BS167: 2034 | BT167: 0
BP168: Electricity | BQ168: CO2 | BR168: Residential | BS168: 2035 | BT168: 0
BP169: Electricity | BQ169: CO2 | BR169: Residential | BS169: 2036 | BT169: 0
BP170: Electricity | BQ170: CO2 | BR170: Residential | BS170: 2037 | BT170: 0
BP171: Electricity | BQ171: CO2 | BR171: Residential | BS171: 2038 | BT171: 0
BP172: Electricity | BQ172: CO2 | BR172: Residential | BS172: 2039 | BT172: 0
BP173: Electricity | BQ173: CO2 | BR173: Residential | BS173: 2040 | BT173: 0
BP174: Electricity | BQ174: CO2e | BR174: Residential | BS174: 2013 | BT174: =TRANSPOSE('Energy+Emissions Calculation'!$C$33:$AD$33) -> 0
BP175: Electricity | BQ175: CO2e | BR175: Residential | BS175: 2014 | BT175: 0
BP176: Electricity | BQ176: CO2e | BR176: Residential | BS176: 2015 | BT176: 0
BP177: Electricity | BQ177: CO2e | BR177: Residential | BS177: 2016 | BT177: 0
BP178: Electricity | BQ178: CO2e | BR178: Residential | BS178: 2017 | BT178: 0
BP179: Electricity | BQ179: CO2e | BR179: Residential | BS179: 2018 | BT179: 0
BP180: Electricity | BQ180: CO2e | BR180: Residential | BS180: 2019 | BT180: 0
BP181: Electricity | BQ181: CO2e | BR181: Residential | BS181: 2020 | BT181: 0
BP182: Electricity | BQ182: CO2e | BR182: Residential | BS182: 2021 | BT182: 0
BP183: Electricity | BQ183: CO2e | BR183: Residential | BS183: 2022 | BT183: 0
BP184: Electricity | BQ184: CO2e | BR184: Residential | BS184: 2023 | BT184: 0
BP185: Electricity | BQ185: CO2e | BR185: Residential | BS185: 2024 | BT185: 0
BP186: Electricity | BQ186: CO2e | BR186: Residential | BS186: 2025 | BT186: 0
BP187: Electricity | BQ187: CO2e | BR187: Residential | BS187: 2026 | BT187: 0
BP188: Electricity | BQ188: CO2e | BR188: Residential | BS188: 2027 | BT188: 0
BP189: Electricity | BQ189: CO2e | BR189: Residential | BS189: 2028 | BT189: 0
BP190: Electricity | BQ190: CO2e | BR190: Residential | BS190: 2029 | BT190: 0
BP191: Electricity | BQ191: CO2e | BR191: Residential | BS191: 2030 | BT191: 0
BP192: Electricity | BQ192: CO2e | BR192: Residential | BS192: 2031 | BT192: 0
BP193: Electricity | BQ193: CO2e | BR193: Residential | BS193: 2032 | BT193: 0
BP194: Electricity | BQ194: CO2e | BR194: Residential | BS194: 2033 | BT194: 0
BP195: Electricity | BQ195: CO2e | BR195: Residential | BS195: 2034 | BT195: 0
BP196: Electricity | BQ196: CO2e | BR196: Residential | BS196: 2035 | BT196: 0
BP197: Electricity | BQ197: CO2e | BR197: Residential | BS197: 2036 | BT197: 0
BP198: Electricity | BQ198: CO2e | BR198: Residential | BS198: 2037 | BT198: 0
BP199: Electricity | BQ199: CO2e | BR199: Residential | BS199: 2038 | BT199: 0
BP200: Electricity | BQ200: CO2e | BR200: Residential | BS200: 2039 | BT200: 0
BP201: Electricity | BQ201: CO2e | BR201: Residential | BS201: 2040 | BT201: 0
BP202: * | BQ202: Housing Starts | BR202: Residential | BS202: 2013 | BT202: =TRANSPOSE('Energy+Emissions Calculation'!$C$20:$AD$20) -> -
BP203: * | BQ203: Housing Starts | BR203: Residential | BS203: 2014 | BT203: -
... 858 more rows

Sheet Cost Calculation (hidden)
B2: Residential + Commercial Code Cost Savings by Year
B5: Residential Costs & Savings | AI5: Commercial Electricity
B6: Projected Energy Savings & Avoided Costs | AI6: Projected Energy Savings & Avoided Costs
C7: NPV | D7: 2013 | E7: 2014 | F7: 2015 | G7: 2016 | H7: 2017 | I7: 2018 | J7: 2019 | K7: 2020 | L7: 2021 | M7: 2022 | N7: 2023 | O7: 2024 | P7: 2025 | Q7: 2026 | R7: 2027 | S7: 2028 | T7: 2029 | U7: 2030 | V7: 2031 | W7: 2032 | X7: 2033 | Y7: 2034 | Z7: 2035 | AA7: 2036 | AB7: 2037 | AC7: 2038 | AD7: 2039 | AE7: 2040 | AJ7: NPV | AK7: 2013 | AL7: 2014 | AM7: 2015 | AN7: 2016 | AO7: 2017 | AP7: 2018 | AQ7: 2019 | AR7: 2020 | AS7: 2021 | AT7: 2022 | AU7: 2023 | AV7: 2024 | AW7: 2025 | AX7: 2026 | AY7: 2027 | AZ7: 2028 | BA7: 2029 | BB7: 2030 | BC7: 2031 | BD7: 2032 | BE7: 2033 | BF7: 2034 | BG7: 2035 | BH7: 2036 | BI7: 2037 | BJ7: 2038 | BK7: 2039 | BL7: 2040
B8: MWh Savings (cumulative) | C8: - | D8: ='Energy+Emissions Calculation'!C22 -> 0 | E8: ='Energy+Emissions Calculation'!D22 -> 0 | F8: ='Energy+Emissions Calculation'!E22 -> 0 | G8: ='Energy+Emissions Calculation'!F22 -> 0 | H8: ='Energy+Emissions Calculation'!G22 -> 0 | I8: ='Energy+Emissions Calculation'!H22 -> 0 | J8: ='Energy+Emissions Calculation'!I22 -> 0 | K8: ='Energy+Emissions Calculation'!J22 -> 0 | L8: ='Energy+Emissions Calculation'!K22 -> 0 | M8: ='Energy+Emissions Calculation'!L22 -> 0 | N8: ='Energy+Emissions Calculation'!M22 -> 0 | O8: ='Energy+Emissions Calculation'!N22 -> 0 | P8: ='Energy+Emissions Calculation'!O22 -> 0 | Q8: ='Energy+Emissions Calculation'!P22 -> 0 | R8: ='Energy+Emissions Calculation'!Q22 -> 0 | S8: ='Energy+Emissions Calculation'!R22 -> 0 | T8: ='Energy+Emissions Calculation'!S22 -> 0 | U8: ='Energy+Emissions Calculation'!T22 -> 0 | V8: ='Energy+Emissions Calculation'!U22 -> 0 | W8: ='Energy+Emissions Calculation'!V22 -> 0 | X8: ='Energy+Emissions Calculation'!W22 -> 0 | Y8: ='Energy+Emissions Calculation'!X22 -> 0 | Z8: ='Energy+Emissions Calculation'!Y22 -> 0 | AA8: ='Energy+Emissions Calculation'!Z22 -> 0 | AB8: ='Energy+Emissions Calculation'!AA22 -> 0 | AC8: ='Energy+Emissions Calculation'!AB22 -> 0 | AD8: ='Energy+Emissions Calculation'!AC22 -> 0 | AE8: ='Energy+Emissions Calculation'!AD22 -> 0 | AI8: MWh Savings | AJ8: - | AK8: ='Energy+Emissions Calculation'!AI22 -> 0 | AL8: ='Energy+Emissions Calculation'!AJ22 -> 0 | AM8: ='Energy+Emissions Calculation'!AK22 -> 0 | AN8: ='Energy+Emissions Calculation'!AL22 -> 0 | AO8: ='Energy+Emissions Calculation'!AM22 -> 0 | AP8: ='Energy+Emissions Calculation'!AN22 -> 0 | AQ8: ='Energy+Emissions Calculation'!AO22 -> 4148989.72 | AR8: ='Energy+Emissions Calculation'!AP22 -> 8240859.992 | AS8: ='Energy+Emissions Calculation'!AQ22 -> 12328327.18 | AT8: ='Energy+Emissions Calculation'!AR22 -> 16397803.35 | AU8: ='Energy+Emissions Calculation'!AS22 -> 20451825.83 | AV8: ='Energy+Emissions Calculation'!AT22 -> 24514967.73 | AW8: ='Energy+Emissions Calculation'!AU22 -> 28579173.03 | AX8: ='Energy+Emissions Calculation'!AV22 -> 32585115.33 | AY8: ='Energy+Emissions Calculation'!AW22 -> 36541151.04 | AZ8: ='Energy+Emissions Calculation'!AX22 -> 40480397.62 | BA8: ='Energy+Emissions Calculation'!AY22 -> 44421529.32 | BB8: ='Energy+Emissions Calculation'!AZ22 -> 48367925.61 | BC8: ='Energy+Emissions Calculation'!BA22 -> 52370416.59 | BD8: ='Energy+Emissions Calculation'!BB22 -> 56526071.5 | BE8: ='Energy+Emissions Calculation'!BC22 -> 60820252.09 | BF8: ='Energy+Emissions Calculation'!BD22 -> 65244271.47 | BG8: ='Energy+Emissions Calculation'!BE22 -> 69829882.01 | BH8: ='Energy+Emissions Calculation'!BF22 -> 74596024.48 | BI8: ='Energy+Emissions Calculation'!BG22 -> 79425022.13 | BJ8: ='Energy+Emissions Calculation'!BH22 -> 84281231.52 | BK8: ='Energy+Emissions Calculation'!BI22 -> 89129232.55 | BL8: ='Energy+Emissions Calculation'!BJ22 -> 93946381.25
B9: MMbtu Savings (cumulative) | C9: - | D9: ='Energy+Emissions Calculation'!C60 -> 0 | E9: ='Energy+Emissions Calculation'!D60 -> 0 | F9: ='Energy+Emissions Calculation'!E60 -> 0 | G9: ='Energy+Emissions Calculation'!F60 -> 0 | H9: ='Energy+Emissions Calculation'!G60 -> 0 | I9: ='Energy+Emissions Calculation'!H60 -> 0 | J9: ='Energy+Emissions Calculation'!I60 -> 0 | K9: ='Energy+Emissions Calculation'!J60 -> 0 | L9: ='Energy+Emissions Calculation'!K60 -> 0 | M9: ='Energy+Emissions Calculation'!L60 -> 0 | N9: ='Energy+Emissions Calculation'!M60 -> 0 | O9: ='Energy+Emissions Calculation'!N60 -> 0 | P9: ='Energy+Emissions Calculation'!O60 -> 0 | Q9: ='Energy+Emissions Calculation'!P60 -> 0 | R9: ='Energy+Emissions Calculation'!Q60 -> 0 | S9: ='Energy+Emissions Calculation'!R60 -> 0 | T9: ='Energy+Emissions Calculation'!S60 -> 0 | U9: ='Energy+Emissions Calculation'!T60 -> 0 | V9: ='Energy+Emissions Calculation'!U60 -> 0 | W9: ='Energy+Emissions Calculation'!V60 -> 0 | X9: ='Energy+Emissions Calculation'!W60 -> 0 | Y9: ='Energy+Emissions Calculation'!X60 -> 0 | Z9: ='Energy+Emissions Calculation'!Y60 -> 0 | AA9: ='Energy+Emissions Calculation'!Z60 -> 0 | AB9: ='Energy+Emissions Calculation'!AA60 -> 0 | AC9: ='Energy+Emissions Calculation'!AB60 -> 0 | AD9: ='Energy+Emissions Calculation'!AC60 -> 0 | AE9: ='Energy+Emissions Calculation'!AD60 -> 0 | AI9: MMbtu Savings | AJ9: - | AK9: ='Energy+Emissions Calculation'!AI60 -> 0 | AL9: ='Energy+Emissions Calculation'!AJ60 -> 0 | AM9: ='Energy+Emissions Calculation'!AK60 -> 0 | AN9: ='Energy+Emissions Calculation'!AL60 -> 0 | AO9: ='Energy+Emissions Calculation'!AM60 -> 0 | AP9: ='Energy+Emissions Calculation'!AN60 -> 0 | AQ9: ='Energy+Emissions Calculation'!AO60 -> 7824072.782 | AR9: ='Energy+Emissions Calculation'!AP60 -> 15540430.98 | AS9: ='Energy+Emissions Calculation'!AQ60 -> 23248485.93 | AT9: ='Energy+Emissions Calculation'!AR60 -> 30922613.82 | AU9: ='Energy+Emissions Calculation'!AS60 -> 38567599.49 | AV9: ='Energy+Emissions Calculation'!AT60 -> 46229782.36 | AW9: ='Energy+Emissions Calculation'!AU60 -> 53893970.56 | AX9: ='Energy+Emissions Calculation'!AV60 -> 61448287.69 | AY9: ='Energy+Emissions Calculation'!AW60 -> 68908492.08 | AZ9: ='Energy+Emissions Calculation'!AX60 -> 76337035.9 | BA9: ='Energy+Emissions Calculation'!AY60 -> 83769134.64 | BB9: ='Energy+Emissions Calculation'!AZ60 -> 91211161.23 | BC9: ='Energy+Emissions Calculation'!BA60 -> 98758969.94 | BD9: ='Energy+Emissions Calculation'!BB60 -> 106595611.8 | BE9: ='Energy+Emissions Calculation'!BC60 -> 114693482.3 | BF9: ='Energy+Emissions Calculation'!BD60 -> 123036199.9 | BG9: ='Energy+Emissions Calculation'!BE60 -> 131683642.5 | BH9: ='Energy+Emissions Calculation'!BF60 -> 140671528.3 | BI9: ='Energy+Emissions Calculation'!BG60 -> 149777944.9 | BJ9: ='Energy+Emissions Calculation'!BH60 -> 158935676.9 | BK9: ='Energy+Emissions Calculation'!BI60 -> 168077929.7 | BL9: ='Energy+Emissions Calculation'!BJ60 -> 177162001.9
B10: $ / kWh | C10: - | D10: =INDEX(ResElecPrice,2,MATCH(D7,'Energy Price Projections'!$E$122:$AH$122,0))/100 -> 0.1121259699 | E10: =INDEX(ResElecPrice,2,MATCH(E7,'Energy Price Projections'!$E$122:$AH$122,0))/100 -> 0.1138506881 | F10: =INDEX(ResElecPrice,2,MATCH(F7,'Energy Price Projections'!$E$122:$AH$122,0))/100 -> 0.1140091437 | G10: =INDEX(ResElecPrice,2,MATCH(G7,'Energy Price Projections'!$E$122:$AH$122,0))/100 -> 0.1155903497 | H10: =INDEX(ResElecPrice,2,MATCH(H7,'Energy Price Projections'!$E$122:$AH$122,0))/100 -> 0.1162057973 | I10: =INDEX(ResElecPrice,2,MATCH(I7,'Energy Price Projections'!$E$122:$AH$122,0))/100 -> 0.1163468155 | J10: =INDEX(ResElecPrice,2,MATCH(J7,'Energy Price Projections'!$E$122:$AH$122,0))/100 -> 0.1156822104 | K10: =INDEX(ResElecPrice,2,MATCH(K7,'Energy Price Projections'!$E$122:$AH$122,0))/100 -> 0.1158758929 | L10: =INDEX(ResElecPrice,2,MATCH(L7,'Energy Price Projections'!$E$122:$AH$122,0))/100 -> 0.1161186229 | M10: =INDEX(ResElecPrice,2,MATCH(M7,'Energy Price Projections'!$E$122:$AH$122,0))/100 -> 0.116290364 | N10: =INDEX(ResElecPrice,2,MATCH(N7,'Energy Price Projections'!$E$122:$AH$122,0))/100 -> 0.1161345402 | O10: =INDEX(ResElecPrice,2,MATCH(O7,'Energy Price Projections'!$E$122:$AH$122,0))/100 -> 0.1165618413 | P10: =INDEX(ResElecPrice,2,MATCH(P7,'Energy Price Projections'!$E$122:$AH$122,0))/100 -> 0.1169742608 | Q10: =INDEX(ResElecPrice,2,MATCH(Q7,'Energy Price Projections'!$E$122:$AH$122,0))/100 -> 0.1175871841 | R10: =INDEX(ResElecPrice,2,MATCH(R7,'Energy Price Projections'!$E$122:$AH$122,0))/100 -> 0.1180819841 | S10: =INDEX(ResElecPrice,2,MATCH(S7,'Energy Price Projections'!$E$122:$AH$122,0))/100 -> 0.1186570753 | T10: =INDEX(ResElecPrice,2,MATCH(T7,'Energy Price Projections'!$E$122:$AH$122,0))/100 -> 0.1192401691 | U10: =INDEX(ResElecPrice,2,MATCH(U7,'Energy Price Projections'!$E$122:$AH$122,0))/100 -> 0.1195706017 | V10: =INDEX(ResElecPrice,2,MATCH(V7,'Energy Price Projections'!$E$122:$AH$122,0))/100 -> 0.1202230685 | W10: =INDEX(ResElecPrice,2,MATCH(W7,'Energy Price Projections'!$E$122:$AH$122,0))/100 -> 0.1208083281 | X10: =INDEX(ResElecPrice,2,MATCH(X7,'Energy Price Projections'!$E$122:$AH$122,0))/100 -> 0.1212159564 | Y10: =INDEX(ResElecPrice,2,MATCH(Y7,'Energy Price Projections'!$E$122:$AH$122,0))/100 -> 0.1219396086 | Z10: =INDEX(ResElecPrice,2,MATCH(Z7,'Energy Price Projections'!$E$122:$AH$122,0))/100 -> 0.1231521231 | AA10: =INDEX(ResElecPrice,2,MATCH(AA7,'Energy Price Projections'!$E$122:$AH$122,0))/100 -> 0.1247262927 | AB10: =INDEX(ResElecPrice,2,MATCH(AB7,'Energy Price Projections'!$E$122:$AH$122,0))/100 -> 0.1260717372 | AC10: =INDEX(ResElecPrice,2,MATCH(AC7,'Energy Price Projections'!$E$122:$AH$122,0))/100 -> 0.127319642 | AD10: =INDEX(ResElecPrice,2,MATCH(AD7,'Energy Price Projections'!$E$122:$AH$122,0))/100 -> 0.1288268976 | AE10: =INDEX(ResElecPrice,2,MATCH(AE7,'Energy Price Projections'!$E$122:$AH$122,0))/100 -> 0.1296141703 | AI10: $ / kWh | AJ10: - | AK10: =INDEX(ComElecPrice,2,MATCH(AK7,'Energy Price Projections'!$E$122:$AH$122,0))/100 -> 0.09619677521 | AL10: =INDEX(ComElecPrice,2,MATCH(AL7,'Energy Price Projections'!$E$122:$AH$122,0))/100 -> 0.09645815859 | AM10: =INDEX(ComElecPrice,2,MATCH(AM7,'Energy Price Projections'!$E$122:$AH$122,0))/100 -> 0.09605665465 | AN10: =INDEX(ComElecPrice,2,MATCH(AN7,'Energy Price Projections'!$E$122:$AH$122,0))/100 -> 0.09762478273 | AO10: =INDEX(ComElecPrice,2,MATCH(AO7,'Energy Price Projections'!$E$122:$AH$122,0))/100 -> 0.09855002786 | AP10: =INDEX(ComElecPrice,2,MATCH(AP7,'Energy Price Projections'!$E$122:$AH$122,0))/100 -> 0.09895398371 | AQ10: =INDEX(ComElecPrice,2,MATCH(AQ7,'Energy Price Projections'!$E$122:$AH$122,0))/100 -> 0.09863296489 | AR10: =INDEX(ComElecPrice,2,MATCH(AR7,'Energy Price Projections'!$E$122:$AH$122,0))/100 -> 0.09866135223 | AS10: =INDEX(ComElecPrice,2,MATCH(AS7,'Energy Price Projections'!$E$122:$AH$122,0))/100 -> 0.09915442629 | AT10: =INDEX(ComElecPrice,2,MATCH(AT7,'Energy Price Projections'!$E$122:$AH$122,0))/100 -> 0.09908875696 | AU10: =INDEX(ComElecPrice,2,MATCH(AU7,'Energy Price Projections'!$E$122:$AH$122,0))/100 -> 0.09899636895 | AV10: =INDEX(ComElecPrice,2,MATCH(AV7,'Energy Price Projections'!$E$122:$AH$122,0))/100 -> 0.09893561698 | AW10: =INDEX(ComElecPrice,2,MATCH(AW7,'Energy Price Projections'!$E$122:$AH$122,0))/100 -> 0.09844592671 | AX10: =INDEX(ComElecPrice,2,MATCH(AX7,'Energy Price Projections'!$E$122:$AH$122,0))/100 -> 0.09810165923 | AY10: =INDEX(ComElecPrice,2,MATCH(AY7,'Energy Price Projections'!$E$122:$AH$122,0))/100 -> 0.09821304756 | AZ10: =INDEX(ComElecPrice,2,MATCH(AZ7,'Energy Price Projections'!$E$122:$AH$122,0))/100 -> 0.09844565268 | BA10: =INDEX(ComElecPrice,2,MATCH(BA7,'Energy Price Projections'!$E$122:$AH$122,0))/100 -> 0.09892934338 | BB10: =INDEX(ComElecPrice,2,MATCH(BB7,'Energy Price Projections'!$E$122:$AH$122,0))/100 -> 0.09927045108 | BC10: =INDEX(ComElecPrice,2,MATCH(BC7,'Energy Price Projections'!$E$122:$AH$122,0))/100 -> 0.09978360967 | BD10: =INDEX(ComElecPrice,2,MATCH(BD7,'Energy Price Projections'!$E$122:$AH$122,0))/100 -> 0.1002943775 | BE10: =INDEX(ComElecPrice,2,MATCH(BE7,'Energy Price Projections'!$E$122:$AH$122,0))/100 -> 0.1008841871 | BF10: =INDEX(ComElecPrice,2,MATCH(BF7,'Energy Price Projections'!$E$122:$AH$122,0))/100 -> 0.1013609679 | BG10: =INDEX(ComElecPrice,2,MATCH(BG7,'Energy Price Projections'!$E$122:$AH$122,0))/100 -> 0.1026861604 | BH10: =INDEX(ComElecPrice,2,MATCH(BH7,'Energy Price Projections'!$E$122:$AH$122,0))/100 -> 0.104369849 | BI10: =INDEX(ComElecPrice,2,MATCH(BI7,'Energy Price Projections'!$E$122:$AH$122,0))/100 -> 0.1057688077 | BJ10: =INDEX(ComElecPrice,2,MATCH(BJ7,'Energy Price Projections'!$E$122:$AH$122,0))/100 -> 0.1072096939 | BK10: =INDEX(ComElecPrice,2,MATCH(BK7,'Energy Price Projections'!$E$122:$AH$122,0))/100 -> 0.1091460862 | BL10: =INDEX(ComElecPrice,2,MATCH(BL7,'Energy Price Projections'!$E$122:$AH$122,0))/100 -> 0.110029248
B11: $ / MMBtu | C11: - | D11: =INDEX(ResGasPrice,2,MATCH(D7,'Energy Price Projections'!$AN$57:$BQ$57,0)) -> 11.45448702 | E11: =INDEX(ResGasPrice,2,MATCH(E7,'Energy Price Projections'!$AN$57:$BQ$57,0)) -> 11.30235106 | F11: =INDEX(ResGasPrice,2,MATCH(F7,'Energy Price Projections'!$AN$57:$BQ$57,0)) -> 11.61636748 | G11: =INDEX(ResGasPrice,2,MATCH(G7,'Energy Price Projections'!$AN$57:$BQ$57,0)) -> 12.17742934 | H11: =INDEX(ResGasPrice,2,MATCH(H7,'Energy Price Projections'!$AN$57:$BQ$57,0)) -> 12.56614297 | I11: =INDEX(ResGasPrice,2,MATCH(I7,'Energy Price Projections'!$AN$57:$BQ$57,0)) -> 13.04275442 | J11: =INDEX(ResGasPrice,2,MATCH(J7,'Energy Price Projections'!$AN$57:$BQ$57,0)) -> 13.33788464 | K11: =INDEX(ResGasPrice,2,MATCH(K7,'Energy Price Projections'!$AN$57:$BQ$57,0)) -> 13.50397316 | L11: =INDEX(ResGasPrice,2,MATCH(L7,'Energy Price Projections'!$AN$57:$BQ$57,0)) -> 13.74215378 | M11: =INDEX(ResGasPrice,2,MATCH(M7,'Energy Price Projections'!$AN$57:$BQ$57,0)) -> 13.98196508 | N11: =INDEX(ResGasPrice,2,MATCH(N7,'Energy Price Projections'!$AN$57:$BQ$57,0)) -> 14.20426837 | O11: =INDEX(ResGasPrice,2,MATCH(O7,'Energy Price Projections'!$AN$57:$BQ$57,0)) -> 14.34711682 | P11: =INDEX(ResGasPrice,2,MATCH(P7,'Energy Price Projections'!$AN$57:$BQ$57,0)) -> 14.39764822 | Q11: =INDEX(ResGasPrice,2,MATCH(Q7,'Energy Price Projections'!$AN$57:$BQ$57,0)) -> 14.50242155 | R11: =INDEX(ResGasPrice,2,MATCH(R7,'Energy Price Projections'!$AN$57:$BQ$57,0)) -> 14.58444735 | S11: =INDEX(ResGasPrice,2,MATCH(S7,'Energy Price Projections'!$AN$57:$BQ$57,0)) -> 14.71772502 | T11: =INDEX(ResGasPrice,2,MATCH(T7,'Energy Price Projections'!$AN$57:$BQ$57,0)) -> 14.86499974 | U11: =INDEX(ResGasPrice,2,MATCH(U7,'Energy Price Projections'!$AN$57:$BQ$57,0)) -> 14.99216244 | V11: =INDEX(ResGasPrice,2,MATCH(V7,'Energy Price Projections'!$AN$57:$BQ$57,0)) -> 15.158664 | W11: =INDEX(ResGasPrice,2,MATCH(W7,'Energy Price Projections'!$AN$57:$BQ$57,0)) -> 15.36830683 | X11: =INDEX(ResGasPrice,2,MATCH(X7,'Energy Price Projections'!$AN$57:$BQ$57,0)) -> 15.59480185 | Y11: =INDEX(ResGasPrice,2,MATCH(Y7,'Energy Price Projections'!$AN$57:$BQ$57,0)) -> 15.89624628 | Z11: =INDEX(ResGasPrice,2,MATCH(Z7,'Energy Price Projections'!$AN$57:$BQ$57,0)) -> 16.26009859 | AA11: =INDEX(ResGasPrice,2,MATCH(AA7,'Energy Price Projections'!$AN$57:$BQ$57,0)) -> 16.6858511 | AB11: =INDEX(ResGasPrice,2,MATCH(AB7,'Energy Price Projections'!$AN$57:$BQ$57,0)) -> 17.10148616 | AC11: =INDEX(ResGasPrice,2,MATCH(AC7,'Energy Price Projections'!$AN$57:$BQ$57,0)) -> 17.54426978 | AD11: =INDEX(ResGasPrice,2,MATCH(AD7,'Energy Price Projections'!$AN$57:$BQ$57,0)) -> 17.7826614 | AE11: =INDEX(ResGasPrice,2,MATCH(AE7,'Energy Price Projections'!$AN$57:$BQ$57,0)) -> 18.08645457 | AI11: $ / MMBtu | AJ11: - | AK11: =INDEX(ComGasPrice,2,MATCH(AK7,'Energy Price Projections'!$AN$57:$BQ$57,0)) -> 10.15008241 | AL11: =INDEX(ComGasPrice,2,MATCH(AL7,'Energy Price Projections'!$AN$57:$BQ$57,0)) -> 10.00651631 | AM11: =INDEX(ComGasPrice,2,MATCH(AM7,'Energy Price Projections'!$AN$57:$BQ$57,0)) -> 10.10062981 | AN11: =INDEX(ComGasPrice,2,MATCH(AN7,'Energy Price Projections'!$AN$57:$BQ$57,0)) -> 10.6140306 | AO11: =INDEX(ComGasPrice,2,MATCH(AO7,'Energy Price Projections'!$AN$57:$BQ$57,0)) -> 10.96711153 | AP11: =INDEX(ComGasPrice,2,MATCH(AP7,'Energy Price Projections'!$AN$57:$BQ$57,0)) -> 11.41336181 | AQ11: =INDEX(ComGasPrice,2,MATCH(AQ7,'Energy Price Projections'!$AN$57:$BQ$57,0)) -> 11.6859831 | AR11: =INDEX(ComGasPrice,2,MATCH(AR7,'Energy Price Projections'!$AN$57:$BQ$57,0)) -> 11.83446631 | AS11: =INDEX(ComGasPrice,2,MATCH(AS7,'Energy Price Projections'!$AN$57:$BQ$57,0)) -> 12.064037 | AT11: =INDEX(ComGasPrice,2,MATCH(AT7,'Energy Price Projections'!$AN$57:$BQ$57,0)) -> 12.28053959 | AU11: =INDEX(ComGasPrice,2,MATCH(AU7,'Energy Price Projections'!$AN$57:$BQ$57,0)) -> 12.479573 | AV11: =INDEX(ComGasPrice,2,MATCH(AV7,'Energy Price Projections'!$AN$57:$BQ$57,0)) -> 12.60782728 | AW11: =INDEX(ComGasPrice,2,MATCH(AW7,'Energy Price Projections'!$AN$57:$BQ$57,0)) -> 12.64388449 | AX11: =INDEX(ComGasPrice,2,MATCH(AX7,'Energy Price Projections'!$AN$57:$BQ$57,0)) -> 12.72402571 | AY11: =INDEX(ComGasPrice,2,MATCH(AY7,'Energy Price Projections'!$AN$57:$BQ$57,0)) -> 12.78199294 | AZ11: =INDEX(ComGasPrice,2,MATCH(AZ7,'Energy Price Projections'!$AN$57:$BQ$57,0)) -> 12.88573903 | BA11: =INDEX(ComGasPrice,2,MATCH(BA7,'Energy Price Projections'!$AN$57:$BQ$57,0)) -> 13.00362338 | BB11: =INDEX(ComGasPrice,2,MATCH(BB7,'Energy Price Projections'!$AN$57:$BQ$57,0)) -> 13.09858799 | BC11: =INDEX(ComGasPrice,2,MATCH(BC7,'Energy Price Projections'!$AN$57:$BQ$57,0)) -> 13.22935727 | BD11: =INDEX(ComGasPrice,2,MATCH(BD7,'Energy Price Projections'!$AN$57:$BQ$57,0)) -> 13.40903136 | BE11: =INDEX(ComGasPrice,2,MATCH(BE7,'Energy Price Projections'!$AN$57:$BQ$57,0)) -> 13.60539211 | BF11: =INDEX(ComGasPrice,2,MATCH(BF7,'Energy Price Projections'!$AN$57:$BQ$57,0)) -> 13.87840059 | BG11: =INDEX(ComGasPrice,2,MATCH(BG7,'Energy Price Projections'!$AN$57:$BQ$57,0)) -> 14.21755097 | BH11: =INDEX(ComGasPrice,2,MATCH(BH7,'Energy Price Projections'!$AN$57:$BQ$57,0)) -> 14.6230051 | BI11: =INDEX(ComGasPrice,2,MATCH(BI7,'Energy Price Projections'!$AN$57:$BQ$57,0)) -> 15.02598229 | BJ11: =INDEX(ComGasPrice,2,MATCH(BJ7,'Energy Price Projections'!$AN$57:$BQ$57,0)) -> 15.45069354 | BK11: =INDEX(ComGasPrice,2,MATCH(BK7,'Energy Price Projections'!$AN$57:$BQ$57,0)) -> 15.67302606 | BL11: =INDEX(ComGasPrice,2,MATCH(BL7,'Energy Price Projections'!$AN$57:$BQ$57,0)) -> 15.95370826
B12: $ Electricty (millions $) | C12: =NPV(IntRate,D12:AE12)*(1-IntRate)^(H7-D7) -> 0 | D12: =D8*D10*1000/10^6 -> 0 | E12: =E8*E10*1000/10^6 -> 0 | F12: 0 | G12: 0 | H12: 0 | I12: 0 | J12: 0 | K12: 0 | L12: 0 | M12: 0 | N12: 0 | O12: 0 | P12: 0 | Q12: 0 | R12: 0 | S12: 0 | T12: 0 | U12: 0 | V12: 0 | W12: 0 | X12: 0 | Y12: 0 | Z12: 0 | AA12: 0 | AB12: 0 | AC12: 0 | AD12: 0 | AE12: 0 | AI12: $ Electricty (millions $) | AJ12: =NPV(IntRate,AK12:BL12)*(1-IntRate)^(AO7-AK7) -> 32101.97387 | AK12: =AK8*AK10*1000/10^6 -> 0 | AL12: =AL8*AL10*1000/10^6 -> 0 | AM12: 0 | AN12: 0 | AO12: 0 | AP12: 0 | AQ12: 409.2271574 | AR12: 813.0543903 | AS12: 1222.408208 | AT12: 1624.837951 | AU12: 2024.656495 | AV12: 2425.403458 | AW12: 2813.503173 | AX12: 3196.65388 | AY12: 3588.817805 | AZ12: 3985.119164 | BA12: 4394.592727 | BB12: 4801.505793 | BC12: 5225.709207 | BD12: 5669.247155 | BE12: 6135.801693 | BF12: 6613.222509 | BG12: 7170.562462 | BH12: 7785.575811 | BI12: 8400.689889 | BJ12: 9035.76503 | BK12: 9728.106895 | BL12: 10336.84968
B13: $ Gas/Oil (millions $) | C13: =NPV(IntRate,D13:AE13)*(1-IntRate)^(H7-D7) -> 0 | D13: =IFERROR(D9*D11/10^6,0) -> 0 | E13: =IFERROR(E9*E11/10^6,0) -> 0 | F13: 0 | G13: 0 | H13: 0 | I13: 0 | J13: 0 | K13: 0 | L13: 0 | M13: 0 | N13: 0 | O13: 0 | P13: 0 | Q13: 0 | R13: 0 | S13: 0 | T13: 0 | U13: 0 | V13: 0 | W13: 0 | X13: 0 | Y13: 0 | Z13: 0 | AA13: 0 | AB13: 0 | AC13: 0 | AD13: 0 | AE13: 0 | AI13: $ Gas/Oil (millions $) | AJ13: =NPV(IntRate,AK13:BL13)*(1-IntRate)^(AO7-AK7) -> 8177.94612 | AK13: =AK9*AK11/10^6 -> 0 | AL13: =AL9*AL11/10^6 -> 0 | AM13: 0 | AN13: 0 | AO13: 0 | AP13: 0 | AQ13: 91.4319823 | AR13: 183.9127069 | AS13: 280.4705943 | AT13: 379.7463832 | AU13: 481.3071734 | AV13: 582.8571111 | AW13: 681.4291386 | AX13: 781.8695924 | AY13: 880.787859 | AZ13: 983.6591231 | BA13: 1089.302278 | BB13: 1194.737421 | BC13: 1306.517697 | BD13: 1429.343901 | BE13: 1560.449799 | BF13: 1707.54567 | BG13: 1872.2189 | BH13: 2057.040476 | BI13: 2250.560748 | BJ13: 2455.666436 | BK13: 2634.289772 | BL13: 2826.390894
B14: Total Savings (millions $) | C14: =C13+C12 -> 0 | D14: =D13+D12 -> 0 | E14: 0 | F14: 0 | G14: 0 | H14: 0 | I14: 0 | J14: 0 | K14: 0 | L14: 0 | M14: 0 | N14: 0 | O14: 0 | P14: 0 | Q14: 0 | R14: 0 | S14: 0 | T14: 0 | U14: 0 | V14: 0 | W14: 0 | X14: 0 | Y14: 0 | Z14: 0 | AA14: 0 | AB14: 0 | AC14: 0 | AD14: 0 | AE14: 0 | AI14: Total Savings (millions $) | AJ14: =AJ13+AJ12 -> 40279.91999 | AK14: =AK13+AK12 -> 0 | AL14: =AL13+AL12 -> 0 | AM14: =AM13+AM12 -> 0 | AN14: =AN13+AN12 -> 0 | AO14: =AO13+AO12 -> 0 | AP14: =AP13+AP12 -> 0 | AQ14: =AQ13+AQ12 -> 500.6591397 | AR14: =AR13+AR12 -> 996.9670972 | AS14: =AS13+AS12 -> 1502.878803 | AT14: =AT13+AT12 -> 2004.584334 | AU14: =AU13+AU12 -> 2505.963669 | AV14: =AV13+AV12 -> 3008.260569 | AW14: =AW13+AW12 -> 3494.932312 | AX14: =AX13+AX12 -> 3978.523472 | AY14: =AY13+AY12 -> 4469.605664 | AZ14: =AZ13+AZ12 -> 4968.778287 | BA14: =BA13+BA12 -> 5483.895005 | BB14: =BB13+BB12 -> 5996.243214 | BC14: =BC13+BC12 -> 6532.226904 | BD14: =BD13+BD12 -> 7098.591056 | BE14: =BE13+BE12 -> 7696.251492 | BF14: =BF13+BF12 -> 8320.768178 | BG14: =BG13+BG12 -> 9042.781363 | BH14: =BH13+BH12 -> 9842.616287 | BI14: =BI13+BI12 -> 10651.25064 | BJ14: =BJ13+BJ12 -> 11491.43147 | BK14: =BK13+BK12 -> 12362.39667 | BL14: =BL13+BL12 -> 13163.24058
B16: Projected Costs | AI16: Projected Costs
C17: NPV | D17: 2013 | E17: 2014 | F17: 2015 | G17: 2016 | H17: 2017 | I17: 2018 | J17: 2019 | K17: 2020 | L17: 2021 | M17: 2022 | N17: 2023 | O17: 2024 | P17: 2025 | Q17: 2026 | R17: 2027 | S17: 2028 | T17: 2029 | U17: 2030 | V17: 2031 | W17: 2032 | X17: 2033 | Y17: 2034 | Z17: 2035 | AA17: 2036 | AB17: 2037 | AC17: 2038 | AD17: 2039 | AE17: 2040 | AJ17: NPV | AK17: 2013 | AL17: 2014 | AM17: 2015 | AN17: 2016 | AO17: 2017 | AP17: 2018 | AQ17: 2019 | AR17: 2020 | AS17: 2021 | AT17: 2022 | AU17: 2023 | AV17: 2024 | AW17: 2025 | AX17: 2026 | AY17: 2027 | AZ17: 2028 | BA17: 2029 | BB17: 2030 | BC17: 2031 | BD17: 2032 | BE17: 2033 | BF17: 2034 | BG17: 2035 | BH17: 2036 | BI17: 2037 | BJ17: 2038 | BK17: 2039 | BL17: 2040
B18: Base Code | C18: - | D18: =IF(ResCodeBaselineInput="IECC 2006 (default)","IECC 2006",ResCodeBaselineInput) -> IECC 2009 | E18: IECC 2009 | F18: IECC 2009 | G18: IECC 2009 | H18: IECC 2009 | I18: IECC 2009 | J18: IECC 2009 | K18: IECC 2009 | L18: IECC 2009 | M18: IECC 2009 | N18: IECC 2009 | O18: IECC 2009 | P18: IECC 2009 | Q18: IECC 2009 | R18: IECC 2009 | S18: IECC 2009 | T18: IECC 2009 | U18: IECC 2009 | V18: IECC 2009 | W18: IECC 2009 | X18: IECC 2009 | Y18: IECC 2009 | Z18: IECC 2009 | AA18: IECC 2009 | AB18: IECC 2009 | AC18: IECC 2009 | AD18: IECC 2009 | AE18: IECC 2009 | AI18: Base Code | AJ18: - | AK18: =IF(ComCodeBaselineInput="ASHRAE 90.1 2004 (default)","ASHRAE 90.1 2004",ComCodeBaselineInput) -> ASHRAE 90.1 2007 | AL18: ASHRAE 90.1 2007 | AM18: ASHRAE 90.1 2007 | AN18: ASHRAE 90.1 2007 | AO18: ASHRAE 90.1 2007 | AP18: ASHRAE 90.1 2007 | AQ18: ASHRAE 90.1 2007 | AR18: ASHRAE 90.1 2007 | AS18: ASHRAE 90.1 2007 | AT18: ASHRAE 90.1 2007 | AU18: ASHRAE 90.1 2007 | AV18: ASHRAE 90.1 2007 | AW18: ASHRAE 90.1 2007 | AX18: ASHRAE 90.1 2007 | AY18: ASHRAE 90.1 2007 | AZ18: ASHRAE 90.1 2007 | BA18: ASHRAE 90.1 2007 | BB18: ASHRAE 90.1 2007 | BC18: ASHRAE 90.1 2007 | BD18: ASHRAE 90.1 2007 | BE18: ASHRAE 90.1 2007 | BF18: ASHRAE 90.1 2007 | BG18: ASHRAE 90.1 2007 | BH18: ASHRAE 90.1 2007 | BI18: ASHRAE 90.1 2007 | BJ18: ASHRAE 90.1 2007 | BK18: ASHRAE 90.1 2007 | BL18: ASHRAE 90.1 2007
B19: Base Cost | C19: - | D19: =HLOOKUP(D18,$C$30:$J$31,2,FALSE) -> 994.0825362 | E19: 994.0825362 | F19: 994.0825362 | G19: 994.0825362 | H19: 994.0825362 | I19: 994.0825362 | J19: 994.0825362 | K19: 994.0825362 | L19: 994.0825362 | M19: 994.0825362 | N19: 994.0825362 | O19: 994.0825362 | P19: 994.0825362 | Q19: 994.0825362 | R19: 994.0825362 | S19: 994.0825362 | T19: 994.0825362 | U19: 994.0825362 | V19: 994.0825362 | W19: 994.0825362 | X19: 994.0825362 | Y19: 994.0825362 | Z19: 994.0825362 | AA19: 994.0825362 | AB19: 994.0825362 | AC19: 994.0825362 | AD19: 994.0825362 | AE19: 994.0825362 | AI19: Base Cost | AJ19: - | AK19: =HLOOKUP(AK18,$AJ$30:$AQ$31,2,FALSE) -> 0.2192886658 | AL19: =HLOOKUP(AL18,$AJ$30:$AQ$31,2,FALSE) -> 0.2192886658 | AM19: 0.2192886658 | AN19: 0.2192886658 | AO19: 0.2192886658 | AP19: 0.2192886658 | AQ19: 0.2192886658 | AR19: 0.2192886658 | AS19: 0.2192886658 | AT19: 0.2192886658 | AU19: 0.2192886658 | AV19: 0.2192886658 | AW19: 0.2192886658 | AX19: 0.2192886658 | AY19: 0.2192886658 | AZ19: 0.2192886658 | BA19: 0.2192886658 | BB19: 0.2192886658 | BC19: 0.2192886658 | BD19: 0.2192886658 | BE19: 0.2192886658 | BF19: 0.2192886658 | BG19: 0.2192886658 | BH19: 0.2192886658 | BI19: 0.2192886658 | BJ19: 0.2192886658 | BK19: 0.2192886658 | BL19: 0.2192886658
B20: Upgrade Code | C20: - | D20: =IF(ResCodeBaselineInput="IECC 2006 (default)","IECC 2006",ResCodeBaselineInput) -> IECC 2009 | E20: =IFERROR(INDEX(ResCodeTable,MATCH(E17,ResCodeDate,0),1),D20) -> IECC 2009 | F20: IECC 2009 | G20: IECC 2009 | H20: IECC 2009 | I20: IECC 2009 | J20: IECC 2009 | K20: IECC 2009 | L20: IECC 2009 | M20: IECC 2009 | N20: IECC 2009 | O20: IECC 2009 | P20: IECC 2009 | Q20: IECC 2009 | R20: IECC 2009 | S20: IECC 2009 | T20: IECC 2009 | U20: IECC 2009 | V20: IECC 2009 | W20: IECC 2009 | X20: IECC 2009 | Y20: IECC 2009 | Z20: IECC 2009 | AA20: IECC 2009 | AB20: IECC 2009 | AC20: IECC 2009 | AD20: IECC 2009 | AE20: IECC 2009 | AI20: Upgrade Code | AJ20: - | AK20: =IF(ComCodeBaselineInput="ASHRAE 90.1 2004 (default)","ASHRAE 90.1 2004",ComCodeBaselineInput) -> ASHRAE 90.1 2007 | AL20: =IFERROR(INDEX(ComCodeTable,MATCH(AL17,ComCodeDate,0),1),AK20) -> ASHRAE 90.1 2007 | AM20: ASHRAE 90.1 2007 | AN20: ASHRAE 90.1 2007 | AO20: ASHRAE 90.1 2007 | AP20: ASHRAE 90.1 2007 | AQ20: ASHRAE 90.1 2010 | AR20: ASHRAE 90.1 2010 | AS20: ASHRAE 90.1 2010 | AT20: ASHRAE 90.1 2010 | AU20: ASHRAE 90.1 2010 | AV20: ASHRAE 90.1 2010 | AW20: ASHRAE 90.1 2010 | AX20: ASHRAE 90.1 2010 | AY20: ASHRAE 90.1 2010 | AZ20: ASHRAE 90.1 2010 | BA20: ASHRAE 90.1 2010 | BB20: ASHRAE 90.1 2010 | BC20: ASHRAE 90.1 2010 | BD20: ASHRAE 90.1 2010 | BE20: ASHRAE 90.1 2010 | BF20: ASHRAE 90.1 2010 | BG20: ASHRAE 90.1 2010 | BH20: ASHRAE 90.1 2010 | BI20: ASHRAE 90.1 2010 | BJ20: ASHRAE 90.1 2010 | BK20: ASHRAE 90.1 2010 | BL20: ASHRAE 90.1 2010
B21: Upgrade Cost | C21: - | D21: =HLOOKUP(D20,$C$30:$K$31,2,FALSE) -> 994.0825362 | E21: =HLOOKUP(E20,$C$30:$K$31,2,FALSE) -> 994.0825362 | F21: 994.0825362 | G21: 994.0825362 | H21: 994.0825362 | I21: 994.0825362 | J21: 994.0825362 | K21: 994.0825362 | L21: 994.0825362 | M21: 994.0825362 | N21: 994.0825362 | O21: 994.0825362 | P21: 994.0825362 | Q21: 994.0825362 | R21: 994.0825362 | S21: 994.0825362 | T21: 994.0825362 | U21: 994.0825362 | V21: 994.0825362 | W21: 994.0825362 | X21: 994.0825362 | Y21: 994.0825362 | Z21: 994.0825362 | AA21: 994.0825362 | AB21: 994.0825362 | AC21: 994.0825362 | AD21: 994.0825362 | AE21: 994.0825362 | AI21: Upgrade Cost | AJ21: - | AK21: =HLOOKUP(AK20,$AJ$30:$AQ$31,2,FALSE) -> 0.2192886658 | AL21: =HLOOKUP(AL20,$AJ$30:$AQ$31,2,FALSE) -> 0.2192886658 | AM21: =HLOOKUP(AM20,$AJ$30:$AQ$31,2,FALSE) -> 0.2192886658 | AN21: =HLOOKUP(AN20,$AJ$30:$AQ$31,2,FALSE) -> 0.2192886658 | AO21: =HLOOKUP(AO20,$AJ$30:$AQ$31,2,FALSE) -> 0.2192886658 | AP21: =HLOOKUP(AP20,$AJ$30:$AQ$31,2,FALSE) -> 0.2192886658 | AQ21: =HLOOKUP(AQ20,$AJ$30:$AQ$31,2,FALSE) -> 1.607172257 | AR21: =HLOOKUP(AR20,$AJ$30:$AQ$31,2,FALSE) -> 1.607172257 | AS21: =HLOOKUP(AS20,$AJ$30:$AQ$31,2,FALSE) -> 1.607172257 | AT21: =HLOOKUP(AT20,$AJ$30:$AQ$31,2,FALSE) -> 1.607172257 | AU21: =HLOOKUP(AU20,$AJ$30:$AQ$31,2,FALSE) -> 1.607172257 | AV21: =HLOOKUP(AV20,$AJ$30:$AQ$31,2,FALSE) -> 1.607172257 | AW21: =HLOOKUP(AW20,$AJ$30:$AQ$31,2,FALSE) -> 1.607172257 | AX21: =HLOOKUP(AX20,$AJ$30:$AQ$31,2,FALSE) -> 1.607172257 | AY21: =HLOOKUP(AY20,$AJ$30:$AQ$31,2,FALSE) -> 1.607172257 | AZ21: =HLOOKUP(AZ20,$AJ$30:$AQ$31,2,FALSE) -> 1.607172257 | BA21: =HLOOKUP(BA20,$AJ$30:$AQ$31,2,FALSE) -> 1.607172257 | BB21: =HLOOKUP(BB20,$AJ$30:$AQ$31,2,FALSE) -> 1.607172257 | BC21: =HLOOKUP(BC20,$AJ$30:$AQ$31,2,FALSE) -> 1.607172257 | BD21: =HLOOKUP(BD20,$AJ$30:$AQ$31,2,FALSE) -> 1.607172257 | BE21: =HLOOKUP(BE20,$AJ$30:$AQ$31,2,FALSE) -> 1.607172257 | BF21: =HLOOKUP(BF20,$AJ$30:$AQ$31,2,FALSE) -> 1.607172257 | BG21: =HLOOKUP(BG20,$AJ$30:$AQ$31,2,FALSE) -> 1.607172257 | BH21: =HLOOKUP(BH20,$AJ$30:$AQ$31,2,FALSE) -> 1.607172257 | BI21: =HLOOKUP(BI20,$AJ$30:$AQ$31,2,FALSE) -> 1.607172257 | BJ21: =HLOOKUP(BJ20,$AJ$30:$AQ$31,2,FALSE) -> 1.607172257 | BK21: =HLOOKUP(BK20,$AJ$30:$AQ$31,2,FALSE) -> 1.607172257 | BL21: =HLOOKUP(BL20,$AJ$30:$AQ$31,2,FALSE) -> 1.607172257
B22: Incremental Cost Per home | C22: - | D22: =D21-D19 -> 0 | E22: =E21-E19 -> 0 | F22: 0 | G22: 0 | H22: 0 | I22: 0 | J22: 0 | K22: 0 | L22: 0 | M22: 0 | N22: 0 | O22: 0 | P22: 0 | Q22: 0 | R22: 0 | S22: 0 | T22: 0 | U22: 0 | V22: 0 | W22: 0 | X22: 0 | Y22: 0 | Z22: 0 | AA22: 0 | AB22: 0 | AC22: 0 | AD22: 0 | AE22: 0 | AI22: Incremental Cost Per Sq.ft. | AJ22: - | AK22: =AK21-AK19 -> 0 | AL22: =AL21-AL19 -> 0 | AM22: =AM21-AM19 -> 0 | AN22: =AN21-AN19 -> 0 | AO22: =AO21-AO19 -> 0 | AP22: =AP21-AP19 -> 0 | AQ22: =AQ21-AQ19 -> 1.387883591 | AR22: =AR21-AR19 -> 1.387883591 | AS22: =AS21-AS19 -> 1.387883591 | AT22: =AT21-AT19 -> 1.387883591 | AU22: =AU21-AU19 -> 1.387883591 | AV22: =AV21-AV19 -> 1.387883591 | AW22: =AW21-AW19 -> 1.387883591 | AX22: =AX21-AX19 -> 1.387883591 | AY22: =AY21-AY19 -> 1.387883591 | AZ22: =AZ21-AZ19 -> 1.387883591 | BA22: =BA21-BA19 -> 1.387883591 | BB22: =BB21-BB19 -> 1.387883591 | BC22: =BC21-BC19 -> 1.387883591 | BD22: =BD21-BD19 -> 1.387883591 | BE22: =BE21-BE19 -> 1.387883591 | BF22: =BF21-BF19 -> 1.387883591 | BG22: =BG21-BG19 -> 1.387883591 | BH22: =BH21-BH19 -> 1.387883591 | BI22: =BI21-BI19 -> 1.387883591 | BJ22: =BJ21-BJ19 -> 1.387883591 | BK22: =BK21-BK19 -> 1.387883591 | BL22: =BL21-BL19 -> 1.387883591
B23: Building Projection | C23: - | D23: ='Energy+Emissions Calculation'!C20 -> - | E23: ='Energy+Emissions Calculation'!D20 -> - | F23: ='Energy+Emissions Calculation'!E20 -> - | G23: ='Energy+Emissions Calculation'!F20 -> - | H23: ='Energy+Emissions Calculation'!G20 -> 1853483.158 | I23: ='Energy+Emissions Calculation'!H20 -> 1823988.986 | J23: ='Energy+Emissions Calculation'!I20 -> 1806189.771 | K23: ='Energy+Emissions Calculation'!J20 -> 1782731.283 | L23: ='Energy+Emissions Calculation'!K20 -> 1750191.263 | M23: ='Energy+Emissions Calculation'!L20 -> 1754654.162 | N23: ='Energy+Emissions Calculation'!M20 -> 1790121.188 | O23: ='Energy+Emissions Calculation'!N20 -> 1832686.55 | P23: ='Energy+Emissions Calculation'!O20 -> 1859979.486 | Q23: ='Energy+Emissions Calculation'!P20 -> 1863973.91 | R23: ='Energy+Emissions Calculation'!Q20 -> 1845708.321 | S23: ='Energy+Emissions Calculation'!R20 -> 1820371.772 | T23: ='Energy+Emissions Calculation'!S20 -> 1807567.97 | U23: ='Energy+Emissions Calculation'!T20 -> 1815788.915 | V23: ='Energy+Emissions Calculation'!U20 -> 1798043.501 | W23: ='Energy+Emissions Calculation'!V20 -> 1771416.945 | X23: ='Energy+Emissions Calculation'!W20 -> 1799819.467 | Y23: ='Energy+Emissions Calculation'!X20 -> 1818758.36 | Z23: ='Energy+Emissions Calculation'!Y20 -> 1831350.172 | AA23: ='Energy+Emissions Calculation'!Z20 -> 1842344.906 | AB23: ='Energy+Emissions Calculation'!AA20 -> 1839373.011 | AC23: ='Energy+Emissions Calculation'!AB20 -> 1832798.851 | AD23: ='Energy+Emissions Calculation'!AC20 -> 1836617.811 | AE23: ='Energy+Emissions Calculation'!AD20 -> 1835040.478 | AI23: Building Projection (sq.ft.) | AJ23: - | AK23: ='Energy+Emissions Calculation'!AI20*1000 ->  | AL23: ='Energy+Emissions Calculation'!AJ20*1000 ->  | AM23: ='Energy+Emissions Calculation'!AK20*1000 ->  | AN23: ='Energy+Emissions Calculation'!AL20*1000 ->  | AO23: ='Energy+Emissions Calculation'!AM20*1000 -> 1921684508 | AP23: ='Energy+Emissions Calculation'!AN20*1000 -> 1990972614 | AQ23: ='Energy+Emissions Calculation'!AO20*1000 -> 2023100807 | AR23: ='Energy+Emissions Calculation'!AP20*1000 -> 1995248629 | AS23: ='Energy+Emissions Calculation'!AQ20*1000 -> 1993101627 | AT23: ='Energy+Emissions Calculation'!AR20*1000 -> 1984328977 | AU23: ='Energy+Emissions Calculation'!AS20*1000 -> 1976793559 | AV23: ='Energy+Emissions Calculation'!AT20*1000 -> 1981240306 | AW23: ='Energy+Emissions Calculation'!AU20*1000 -> 1981758831 | AX23: ='Energy+Emissions Calculation'!AV20*1000 -> 1953349043 | AY23: ='Energy+Emissions Calculation'!AW20*1000 -> 1929013947 | AZ23: ='Energy+Emissions Calculation'!AX20*1000 -> 1920827352 | BA23: ='Energy+Emissions Calculation'!AY20*1000 -> 1921746560 | BB23: ='Energy+Emissions Calculation'!AZ20*1000 -> 1924313644 | BC23: ='Energy+Emissions Calculation'!BA20*1000 -> 1951666135 | BD23: ='Energy+Emissions Calculation'!BB20*1000 -> 2026350842 | BE23: ='Energy+Emissions Calculation'!BC20*1000 -> 2093897742 | BF23: ='Energy+Emissions Calculation'!BD20*1000 -> 2157208813 | BG23: ='Energy+Emissions Calculation'!BE20*1000 -> 2236002739 | BH23: ='Energy+Emissions Calculation'!BF20*1000 -> 2324032437 | BI23: ='Energy+Emissions Calculation'!BG20*1000 -> 2354681426 | BJ23: ='Energy+Emissions Calculation'!BH20*1000 -> 2367950225 | BK23: ='Energy+Emissions Calculation'!BI20*1000 -> 2363947720 | BL23: ='Energy+Emissions Calculation'!BJ20*1000 -> 2348903733
B24: Total Cost (millions $) | C24: =NPV(IntRate,D24:AE24)*(1-IntRate)^(H7-D7) -> 0 | D24: =IFERROR(D23*D22/10^6,0) -> 0 | E24: =IFERROR(E23*E22/10^6,0) -> 0 | F24: 0 | G24: 0 | H24: 0 | I24: 0 | J24: 0 | K24: 0 | L24: 0 | M24: 0 | N24: 0 | O24: 0 | P24: 0 | Q24: 0 | R24: 0 | S24: 0 | T24: 0 | U24: 0 | V24: 0 | W24: 0 | X24: 0 | Y24: 0 | Z24: 0 | AA24: 0 | AB24: 0 | AC24: 0 | AD24: 0 | AE24: 0 | AI24: Total Cost (millions $) | AJ24: =NPV(IntRate,AK24:BL24)*(1-IntRate)^(AO7-AK7) -> 22722.98561 | AK24: =IFERROR(AK23*AK22/10^6,0) -> 0 | AL24: =IFERROR(AL23*AL22/10^6,0) -> 0 | AM24: 0 | AN24: 0 | AO24: 0 | AP24: 0 | AQ24: 2807.828414 | AR24: 2769.172833 | AS24: 2766.193044 | AT24: 2754.017627 | AU24: 2743.559344 | AV24: 2749.730911 | AW24: 2750.450563 | AX24: 2711.021085 | AY24: 2677.246805 | AZ24: 2665.884764 | BA24: 2667.160517 | BB24: 2670.723331 | BC24: 2708.685405 | BD24: 2812.339084 | BE24: 2906.086318 | BF24: 2993.954714 | BG24: 3103.311511 | BH24: 3225.486484 | BI24: 3268.023714 | BJ24: 3286.439262 | BK24: 3280.884251 | BL24: 3260.004948
B27: Per Home Residential Incremental Cost | F27: % savings vs previous code | AI27: Per sq. ft. Commercial Incremental Cost | AM27: % savings vs previous code
D28: ='PNNL Energy Code Savings'!D7 -> 0.1145868811 | E28: ='PNNL Energy Code Savings'!E7 -> 0.2073623243 | F28: ='PNNL Energy Code Savings'!F7 -> 0.009 | G28: ='PNNL Energy Code Savings'!G7 -> 0.005 | H28: ='PNNL Energy Code Savings'!H7 -> 0.05 | I28: ='PNNL Energy Code Savings'!I7 -> 0.05 | J28: ='PNNL Energy Code Savings'!J7 -> 0.05 | K28: ='PNNL Energy Code Savings'!K7 -> 0.5 | AM28: ='PNNL Energy Code Savings'!S7 -> 0.087 | AN28: ='PNNL Energy Code Savings'!T7 -> 0.1393325326 | AO28: ='PNNL Energy Code Savings'!U7 -> 0.05 | AP28: ='PNNL Energy Code Savings'!V7 -> 0.05 | AQ28: ='PNNL Energy Code Savings'!X7 -> 0.4
B29: Residential cost estimates from PNNL state-level reports (http://www.energycodes.gov/development/residential/iecc_analysis) and similar state-level aggregation | AI29: Residential cost estimates from PNNL state-level reports (http://www.energycodes.gov/development/residential/iecc_analysis) and similar state-level aggregation
B30: Added cost ($) | C30: IECC 2006 | D30: IECC 2009 | E30: IECC 2012 | F30: IECC 2015 | G30: IECC 2018 | H30: IECC 2021* | I30: IECC 2024* | J30: IECC 2027* | K30: PassiveHouse* | L30: % energy Δ 2006-12 | M30: $/% energy change*100 | AI30: Added cost ($) | AJ30: ASHRAE 90.1 2004 | AK30: ASHRAE 90.1 2007 | AL30: ASHRAE 90.1 2010 | AM30: ASHRAE 90.1 2013 | AN30: ASHRAE 90.1 2016 | AO30: ASHRAE 90.1 2019* | AP30: ASHRAE 90.1 2022* | AQ30: ASHRAE 90.1 2025* | AR30: % energy Δ 2006-12 | AS30: $/% energy change*100
B31: =StateInput -> Nationwide | C31: =INDEX(C32:C83,MATCH($B$31,$B$32:$B$83,0)) -> 0 | D31: =INDEX(D32:D83,MATCH($B$31,$B$32:$B$83,0)) -> 994.0825362 | E31: 2860.363405 | F31: 2948.771521 | G31: 2997.887141 | H31: 3489.04334 | I31: 3980.19954 | J31: 4471.355739 | K31: 4609.378436 | AI31: =StateInput -> Nationwide | AJ31: =INDEX(AJ32:AJ83,MATCH($B$31,$B$32:$B$82,0)) -> 0 | AK31: =INDEX(AK32:AK83,MATCH($B$31,$B$32:$B$82,0)) -> 0.2192886658 | AL31: 1.607172257 | AM31: 2.303245906 | AN31: 3.418024117 | AO31: 3.818066444 | AP31: 4.218108771 | AQ31: 7.418447386
B32: Nationwide | C32: 0 | D32: =SUMPRODUCT(D33:D83,'Building Growth Projections'!$D$20:$D$70)/'Building Growth Projections'!$D$19 -> 994.0825362 | E32: =SUMPRODUCT(E33:E83,'Building Growth Projections'!$D$20:$D$70)/'Building Growth Projections'!$D$19 -> 2860.363405 | F32: =SUMPRODUCT(F33:F83,'Building Growth Projections'!$D$20:$D$70)/'Building Growth Projections'!$D$19 -> 2948.771521 | G32: =SUMPRODUCT(G33:G83,'Building Growth Projections'!$D$20:$D$70)/'Building Growth Projections'!$D$19 -> 2997.887141 | H32: =SUMPRODUCT(H33:H83,'Building Growth Projections'!$D$20:$D$70)/'Building Growth Projections'!$D$19 -> 3489.04334 | I32: =SUMPRODUCT(I33:I83,'Building Growth Projections'!$D$20:$D$70)/'Building Growth Projections'!$D$19 -> 3980.19954 | J32: =SUMPRODUCT(J33:J83,'Building Growth Projections'!$D$20:$D$70)/'Building Growth Projections'!$D$19 -> 4471.355739 | K32: =SUMPRODUCT(K33:K83,'Building Growth Projections'!$D$20:$D$70)/'Building Growth Projections'!$D$19 -> 4609.378436 | L32: =-('PNNL Energy Code Savings'!C10-'PNNL Energy Code Savings'!E10)/'PNNL Energy Code Savings'!C10 -> -0.2981882035 | M32: =-E32/L32 -> 9592.476737 | AI32: Nationwide | AJ32: 0 | AK32: =SUMPRODUCT(AK33:AK83,'Building Growth Projections'!$AK$20:$AK$70)/'Building Growth Projections'!$AK$19 -> 0.2192886658 | AL32: =SUMPRODUCT(AL33:AL83,'Building Growth Projections'!$AK$20:$AK$70)/'Building Growth Projections'!$AK$19 -> 1.607172257 | AM32: =SUMPRODUCT(AM33:AM83,'Building Growth Projections'!$AK$20:$AK$70)/'Building Growth Projections'!$AK$19 -> 2.303245906 | AN32: =SUMPRODUCT(AN33:AN83,'Building Growth Projections'!$AK$20:$AK$70)/'Building Growth Projections'!$AK$19 -> 3.418024117 | AO32: =SUMPRODUCT(AO33:AO83,'Building Growth Projections'!$AK$20:$AK$70)/'Building Growth Projections'!$AK$19 -> 3.818066444 | AP32: =SUMPRODUCT(AP33:AP83,'Building Growth Projections'!$AK$20:$AK$70)/'Building Growth Projections'!$AK$19 -> 4.218108771 | AQ32: =SUMPRODUCT(AQ33:AQ83,'Building Growth Projections'!$AK$20:$AK$70)/'Building Growth Projections'!$AK$19 -> 7.418447386 | AR32: =-('PNNL Energy Code Savings'!P10-'PNNL Energy Code Savings'!R10)/'PNNL Energy Code Savings'!P10 -> -0.2034105562 | AS32: =-AL32/AR32 -> 7.90112513
B33: Alabama | C33: 0 | D33: 1179.769196 | E33: 3055.209339 | F33: =E33+F$28*$M33 -> 3143.112885 | G33: 3191.948188 | H33: 3680.301223 | I33: 4168.654257 | J33: 4657.007292 | K33: =J33+(K$28-SUM($D$28:$J$28))*$M33 -> 4794.242255 | L33: =-('PNNL Energy Code Savings'!C11-'PNNL Energy Code Savings'!E11)/'PNNL Energy Code Savings'!C11 -> -0.3128074491 | M33: =-E33/L33 -> 9767.060688 | AI33: Alabama | AJ33: 0 | AK33: 0.1861764374 | AL33: 1.510372496 | AM33: =AL33+AM$28*$AS33 -> 2.120400067 | AN33: =AM33+AN$28*$AS33 -> 3.097373472 | AO33: 3.44796403 | AP33: 3.798554587 | AQ33: 6.603279048 | AR33: =-('PNNL Energy Code Savings'!P11-'PNNL Energy Code Savings'!R11)/'PNNL Energy Code Savings'!P11 -> -0.2154040466 | AS33: =-AL33/AR33 -> 7.011811152
B34: Alaska | C34: 0 | D34: 883.8278238 | E34: 4503.858941 | F34: 4615.576987 | G34: 4677.642569 | H34: 5298.298381 | I34: 5918.954193 | J34: 6539.610005 | K34: =J34+(K$28-SUM($D$28:$J$28))*$M34 -> 6714.024151 | L34: =-('PNNL Energy Code Savings'!C12-'PNNL Energy Code Savings'!E12)/'PNNL Energy Code Savings'!C12 -> -0.3628306424 | M34: 12413.11624 | AI34: Alaska | AJ34: 0 | AK34: 0.4063475356 | AL34: 2.363545438 | AM34: =AL34+AM$28*$AS34 -> 3.372749195 | AN34: 4.989012589 | AO34: 5.569014748 | AP34: 6.149016907 | AQ34: 10.78903418 | AR34: =-('PNNL Energy Code Savings'!P12-'PNNL Energy Code Savings'!R12)/'PNNL Energy Code Savings'!P12 -> -0.2037531587 | AS34: 11.60004318
B35: Arizona | C35: 0 | D35: 1304.485978 | E35: 3101.650023 | F35: 3201.443978 | G35: 3256.885065 | H35: 3811.295927 | I35: 4365.706788 | J35: 4920.11765 | K35: 5075.915913 | L35: =-('PNNL Energy Code Savings'!C13-'PNNL Energy Code Savings'!E13)/'PNNL Energy Code Savings'!C13 -> -0.2797248608 | M35: 11088.21724 | AI35: Arizona | AJ35: 0 | AK35: 0.2174922531 | AL35: 1.566187612 | AM35: =AL35+AM$28*$AS35 -> 2.224944773 | AN35: 3.279959757 | AO35: 3.658555826 | AP35: 4.037151896 | AQ35: 7.065920453 | AR35: =-('PNNL Energy Code Savings'!P13-'PNNL Energy Code Savings'!R13)/'PNNL Energy Code Savings'!P13 -> -0.2068415044 | AS35: 7.571921392
B36: Arkansas | C36: 0 | D36: 946.3897829 | E36: 2694.464303 | F36: 2765.384637 | G36: 2804.784823 | H36: 3198.786679 | I36: 3592.788534 | J36: 3986.79039 | K36: 4097.511172 | L36: =-('PNNL Energy Code Savings'!C14-'PNNL Energy Code Savings'!E14)/'PNNL Energy Code Savings'!C14 -> -0.3419354839 | M36: 7880.037113 | AI36: Arkansas | AJ36: 0 | AK36: 0.2489246663 | AL36: 1.865882796 | AM36: =AL36+AM$28*$AS36 -> 2.595300296 | AN36: 3.763479465 | AO36: 4.182684925 | AP36: 4.601890385 | AQ36: 7.955534066 | AR36: =-('PNNL Energy Code Savings'!P14-'PNNL Energy Code Savings'!R14)/'PNNL Energy Code Savings'!P14 -> -0.2225499156 | AS36: 8.384109202
B37: California | C37: 0 | D37: 1439.978777 | E37: 3875.388887 | F37: 4002.539683 | G37: 4073.179014 | H37: 4779.572326 | I37: 5485.965638 | J37: 6192.358949 | K37: 6390.866695 | L37: =-('PNNL Energy Code Savings'!C15-'PNNL Energy Code Savings'!E15)/'PNNL Energy Code Savings'!C15 -> -0.2743081526 | M37: 14127.86624 | AI37: California | AJ37: 0 | AK37: 0.263082361 | AL37: 1.936076377 | AM37: =AL37+AM$28*$AS37 -> 2.812495409 | AN37: 4.216100965 | AO37: 4.719790064 | AP37: 5.223479163 | AQ37: 9.252991956 | AR37: =-('PNNL Energy Code Savings'!P15-'PNNL Energy Code Savings'!R15)/'PNNL Energy Code Savings'!P15 -> -0.1921896246 | AS37: 10.07378198
B38: Colorado | C38: 0 | D38: 841.7989543 | E38: 2430.564574 | F38: 2512.910426 | G38: 2558.658121 | H38: 3016.135074 | I38: 3473.612027 | J38: 3931.08898 | K38: 4059.647273 | L38: =-('PNNL Energy Code Savings'!C16-'PNNL Energy Code Savings'!E16)/'PNNL Energy Code Savings'!C16 -> -0.265648855 | M38: 9149.539058 | AI38: Colorado | AJ38: 0 | AK38: 0.2699779867 | AL38: 1.803967489 | AM38: =AL38+AM$28*$AS38 -> 2.599020254 | AN38: 3.872315831 | AO38: 4.329242707 | AP38: 4.786169583 | AQ38: 8.441584593 | AR38: =-('PNNL Energy Code Savings'!P16-'PNNL Energy Code Savings'!R16)/'PNNL Energy Code Savings'!P16 -> -0.1974022084 | AS38: 9.138537524
B39: Connecticut | C39: 0 | D39: 964.1279425 | E39: 2637.070235 | F39: 2732.323764 | G39: 2785.242391 | H39: 3314.428663 | I39: 3843.614934 | J39: 4372.801206 | K39: 4521.510957 | L39: =-('PNNL Energy Code Savings'!C17-'PNNL Energy Code Savings'!E17)/'PNNL Energy Code Savings'!C17 -> -0.2491627595 | M39: 10583.72543 | AI39: Connecticut | AJ39: 0 | AK39: 0.2152198417 | AL39: 1.369502029 | AM39: =AL39+AM$28*$AS39 -> 1.963510318 | AN39: 2.914828472 | AO39: 3.256212546 | AP39: 3.597596621 | AQ39: 6.328669216 | AR39: =-('PNNL Energy Code Savings'!P17-'PNNL Energy Code Savings'!R17)/'PNNL Energy Code Savings'!P17 -> -0.2005808312 | AS39: 6.827681489
B40: Delaware | C40: 0 | D40: 638.0522549 | E40: 2685.809676 | F40: 2754.431395 | G40: 2792.554572 | H40: 3173.786345 | I40: 3555.018117 | J40: 3936.24989 | K40: 4043.382076 | L40: =-('PNNL Energy Code Savings'!C18-'PNNL Energy Code Savings'!E18)/'PNNL Energy Code Savings'!C18 -> -0.3522541756 | M40: 7624.635453 | AI40: Delaware | AJ40: 0 | AK40: 0.2632540612 | AL40: 1.824302992 | AM40: =AL40+AM$28*$AS40 -> 2.545696745 | AN40: 3.701025695 | AO40: 4.115619806 | AP40: 4.530213917 | AQ40: 7.846966805 | AR40: =-('PNNL Energy Code Savings'!P18-'PNNL Energy Code Savings'!R18)/'PNNL Energy Code Savings'!P18 -> -0.2200107218 | AS40: 8.29188222
B41: District of Columbia | C41: 0 | D41: 452.2663198 | E41: 1277.358741 | F41: 1316.480297 | G41: 1338.214494 | H41: 1555.55647 | I41: 1772.898446 | J41: 1990.240422 | K41: 2051.316971 | L41: =-('PNNL Energy Code Savings'!C19-'PNNL Energy Code Savings'!E19)/'PNNL Energy Code Savings'!C19 -> -0.2938591903 | M41: 4346.839518 | AI41: District of Columbia | AJ41: 0 | AK41: 0.02799763712 | AL41: 0.3664436555 | AM41: =AL41+AM$28*$AS41 -> 0.5576721747 | AN41: 0.8639291158 | AO41: 0.9738305636 | AP41: 1.083732011 | AQ41: 1.962943594 | AR41: =-('PNNL Energy Code Savings'!P19-'PNNL Energy Code Savings'!R19)/'PNNL Energy Code Savings'!P19 -> -0.1667146625 | AS41: 2.198028956
B42: Florida | C42: 0 | D42: 1343.166886 | E42: 3105.839719 | F42: 3217.251874 | G42: 3279.147517 | H42: 3898.103938 | I42: 4517.06036 | J42: 5136.016782 | K42: 5309.953372 | L42: =-('PNNL Energy Code Savings'!C20-'PNNL Energy Code Savings'!E20)/'PNNL Energy Code Savings'!C20 -> -0.2508932462 | M42: 12379.12844 | AI42: Florida | AJ42: 0 | AK42: 0.1935431616 | AL42: 1.455290731 | AM42: =AL42+AM$28*$AS42 -> 2.045310301 | AN42: 2.990240428 | AO42: 3.329332135 | AP42: 3.668423842 | AQ42: 6.3811575 | AR42: =-('PNNL Energy Code Savings'!P20-'PNNL Energy Code Savings'!R20)/'PNNL Energy Code Savings'!P20 -> -0.2145866001 | AS42: 6.781834143
B43: Georgia | C43: 0 | D43: 1224.651036 | E43: 3219.851713 | F43: =E43+F$28*$M43 -> 3309.177485 | G43: 3358.802914 | H43: 3855.057206 | I43: 4351.311498 | J43: 4847.56579 | K43: 4987.021132 | L43: =-('PNNL Energy Code Savings'!C21-'PNNL Energy Code Savings'!E21)/'PNNL Energy Code Savings'!C21 -> -0.3244155029 | M43: 9925.085835 | AI43: Georgia | AJ43: 0 | AK43: 0.183149193 | AL43: 1.486262921 | AM43: =AL43+AM$28*$AS43 -> 2.08969549 | AN43: 3.056106848 | AO43: 3.402907175 | AP43: 3.749707502 | AQ43: 6.524110119 | AR43: =-('PNNL Energy Code Savings'!P21-'PNNL Energy Code Savings'!R21)/'PNNL Energy Code Savings'!P21 -> -0.2142822259 | AS43: 6.936006543
B44: Hawaii | C44: 0 | D44: 1741.615782 | E44: 3684.538152 | F44: 3816.335855 | G44: 3889.556801 | H44: 4621.766264 | I44: 5353.975726 | J44: 6086.185188 | K44: 6291.947683 | L44: =-('PNNL Energy Code Savings'!C22-'PNNL Energy Code Savings'!E22)/'PNNL Energy Code Savings'!C22 -> -0.2516041065 | M44: 14644.18925 | AI44: Hawaii | AJ44: 0 | AK44: 0.2262977685 | AL44: 2.113177184 | AM44: =AL44+AM$28*$AS44 -> 3.158076704 | AN44: 4.831507698 | AO44: 5.432024664 | AP44: 6.03254163 | AQ44: 10.83667736 | AR44: =-('PNNL Energy Code Savings'!P22-'PNNL Energy Code Savings'!R22)/'PNNL Energy Code Savings'!P22 -> -0.1759465014 | AS44: 12.01033932
B45: Idaho | C45: 0 | D45: 846.6843596 | E45: 2565.747165 | F45: 2653.49114 | G45: 2702.237794 | H45: 3189.704326 | I45: 3677.170859 | J45: 4164.637392 | K45: 4301.623233 | L45: =-('PNNL Energy Code Savings'!C23-'PNNL Energy Code Savings'!E23)/'PNNL Energy Code Savings'!C23 -> -0.2631716223 | M45: 9749.330653 | AI45: Idaho | AJ45: 0 | AK45: 0.2325329594 | AL45: 1.566694963 | AM45: =AL45+AM$28*$AS45 -> 2.175370365 | AN45: 3.150178242 | AO45: 3.499991692 | AP45: 3.849805142 | AQ45: 6.648312739 | AR45: =-('PNNL Energy Code Savings'!P23-'PNNL Energy Code Savings'!R23)/'PNNL Energy Code Savings'!P23 -> -0.2239329226 | AS45: 6.996268992
B46: Illinois | C46: 0 | D46: 798.420631 | E46: 2389.350375 | F46: 2466.788775 | G46: 2509.810109 | H46: 2940.023445 | I46: 3370.236782 | J46: 3800.450118 | K46: 3921.346902 | L46: =-('PNNL Energy Code Savings'!C24-'PNNL Energy Code Savings'!E24)/'PNNL Energy Code Savings'!C24 -> -0.2776936664 | M46: 8604.266728 | AI46: Illinois | AJ46: 0 | AK46: 0.2552882436 | AL46: 1.701793547 | AM46: =AL46+AM$28*$AS46 -> 2.447648233 | AN46: 3.642151938 | AO46: 4.070804057 | AP46: 4.499456175 | AQ46: 7.928673122 | AR46: =-('PNNL Energy Code Savings'!P24-'PNNL Energy Code Savings'!R24)/'PNNL Energy Code Savings'!P24 -> -0.1985052067 | AS46: 8.573042367
B47: Indiana | C47: 0 | D47: 792.1369271 | E47: 2330.87904 | F47: 2405.997816 | G47: 2447.730469 | H47: 2865.057004 | I47: 3282.383538 | J47: 3699.710072 | K47: 3816.98546 | L47: =-('PNNL Energy Code Savings'!C25-'PNNL Energy Code Savings'!E25)/'PNNL Energy Code Savings'!C25 -> -0.2792632204 | M47: 8346.530688 | AI47: Indiana | AJ47: 0 | AK47: 0.2029153461 | AL47: 1.54252269 | AM47: =AL47+AM$28*$AS47 -> 2.200811745 | AN47: 3.255077046 | AO47: 3.63340409 | AP47: 4.011731133 | AQ47: 7.038347478 | AR47: =-('PNNL Energy Code Savings'!P25-'PNNL Energy Code Savings'!R25)/'PNNL Energy Code Savings'!P25 -> -0.2038610137 | AS47: 7.566540863
B48: Iowa | C48: 0 | D48: 833.661437 | E48: 2450.907743 | F48: 2518.206137 | G48: 2555.594133 | H48: 2929.474096 | I48: 3303.354058 | J48: 3677.234021 | K48: 3782.300232 | L48: =-('PNNL Energy Code Savings'!C26-'PNNL Energy Code Savings'!E26)/'PNNL Energy Code Savings'!C26 -> -0.3277666615 | M48: 7477.599253 | AI48: Iowa | AJ48: 0 | AK48: 0.2172031743 | AL48: 1.612976088 | AM48: =AL48+AM$28*$AS48 -> 2.308107716 | AN48: 3.421377259 | AO48: 3.820878194 | AP48: 4.22037913 | AQ48: 7.416386615 | AR48: =-('PNNL Energy Code Savings'!P26-'PNNL Energy Code Savings'!R26)/'PNNL Energy Code Savings'!P26 -> -0.2018738811 | AS48: 7.990018713
B49: Kansas | C49: 0 | D49: 510.7224891 | E49: 2120.691194 | F49: 2179.351669 | G49: 2211.940822 | H49: 2537.83235 | I49: 2863.723878 | J49: 3189.615406 | K49: 3281.196104 | L49: =-('PNNL Energy Code Savings'!C27-'PNNL Energy Code Savings'!E27)/'PNNL Energy Code Savings'!C27 -> -0.3253676471 | M49: 6517.830563 | AI49: Kansas | AJ49: 0 | AK49: 0.1968099491 | AL49: 1.404928695 | AM49: =AL49+AM$28*$AS49 -> 1.9506478 | AN49: 2.824629696 | AO49: 3.138261366 | AP49: 3.451893035 | AQ49: 5.960946391 | AR49: =-('PNNL Energy Code Savings'!P27-'PNNL Energy Code Savings'!R27)/'PNNL Energy Code Savings'!P27 -> -0.223977492 | AS49: 6.272633391
B50: Kentucky | C50: 0 | D50: 541.0048538 | E50: 2261.792462 | F50: 2322.113925 | G50: 2355.625849 | H50: 2690.745088 | I50: 3025.864328 | J50: 3360.983567 | K50: 3455.157398 | L50: =-('PNNL Energy Code Savings'!C28-'PNNL Energy Code Savings'!E28)/'PNNL Energy Code Savings'!C28 -> -0.3374608493 | M50: 6702.384785 | AI50: Kentucky | AJ50: 0 | AK50: 0.2564702737 | AL50: 1.924941247 | AM50: =AL50+AM$28*$AS50 -> 2.679184658 | AN50: 3.887123103 | AO50: 4.320596328 | AP50: 4.754069552 | AQ50: 8.221855352 | AR50: =-('PNNL Energy Code Savings'!P28-'PNNL Energy Code Savings'!R28)/'PNNL Energy Code Savings'!P28 -> -0.222036926 | AS50: 8.669464498
B51: Louisiana | C51: 0 | D51: 1243.482994 | E51: 2996.092758 | F51: 3090.441279 | G51: 3142.857124 | H51: 3667.015572 | I51: 4191.174021 | J51: 4715.332469 | K51: 4862.629323 | L51: =-('PNNL Energy Code Savings'!C29-'PNNL Energy Code Savings'!E29)/'PNNL Energy Code Savings'!C29 -> -0.2858002924 | M51: 10483.16897 | AI51: Louisiana | AJ51: 0 | AK51: 0.234506242 | AL51: 1.737867055 | AM51: =AL51+AM$28*$AS51 -> 2.434236316 | AN51: 3.549487958 | AO51: 3.949700177 | AP51: 4.349912396 | AQ51: 7.551610149 | AR51: =-('PNNL Energy Code Savings'!P29-'PNNL Energy Code Savings'!R29)/'PNNL Energy Code Savings'!P29 -> -0.2171181903 | AS51: 8.004244383
B52: Maine | C52: 0 | D52: 891.8760505 | E52: 3406.101478 | F52: 3510.607602 | G52: 3568.666561 | H52: 4149.256142 | I52: 4729.845724 | J52: 5310.435305 | K52: 5473.590204 | L52: =-('PNNL Energy Code Savings'!C30-'PNNL Energy Code Savings'!E30)/'PNNL Energy Code Savings'!C30 -> -0.2933312607 | M52: 11611.79163 | AI52: Maine | AJ52: 0 | AK52: 0.1746127542 | AL52: 0.9724431299 | AM52: =AL52+AM$28*$AS52 -> 1.384765899 | AN52: 2.045110447 | AO52: 2.282077556 | AP52: 2.519044665 | AQ52: 4.414781535 | AR52: =-('PNNL Energy Code Savings'!P30-'PNNL Energy Code Savings'!R30)/'PNNL Energy Code Savings'!P30 -> -0.2051852544 | AS52: 4.739342175
B53: Maryland | C53: 0 | D53: 551.8981934 | E53: 2289.807888 | F53: =E53+F$28*$M53 -> 2351.813634 | G53: 2386.261271 | H53: 2730.737637 | I53: 3075.214004 | J53: 3419.690371 | K53: 3516.493704 | L53: =-('PNNL Energy Code Savings'!C31-'PNNL Energy Code Savings'!E31)/'PNNL Energy Code Savings'!C31 -> -0.3323606653 | M53: 6889.527333 | AI53: Maryland | AJ53: 0 | AK53: 0.1922867241 | AL53: 1.556801064 | AM53: =AL53+AM$28*$AS53 -> 2.224715938 | AN53: 3.294397212 | AO53: 3.678256335 | AP53: 4.062115458 | AQ53: 7.132988441 | AR53: =-('PNNL Energy Code Savings'!P31-'PNNL Energy Code Savings'!R31)/'PNNL Energy Code Savings'!P31 -> -0.2027828663 | AS53: 7.677182457
B54: Massachusetts | C54: 0 | D54: 970.5388795 | E54: 2648.068108 | F54: 2740.678448 | G54: 2792.128636 | H54: 3306.630522 | I54: 3821.132408 | J54: 4335.634294 | K54: 4480.2175 | L54: =-('PNNL Energy Code Savings'!C32-'PNNL Energy Code Savings'!E32)/'PNNL Energy Code Savings'!C32 -> -0.2573428962 | M54: 10290.03772 | AI54: Massachusetts | AJ54: 0 | AK54: 0.1560292873 | AL54: 1.035650397 | AM54: =AL54+AM$28*$AS54 -> 1.493048232 | AN54: 2.225581552 | AO54: 2.488453872 | AP54: 2.751326191 | AQ54: 4.854304745 | AR54: =-('PNNL Energy Code Savings'!P32-'PNNL Energy Code Savings'!R32)/'PNNL Energy Code Savings'!P32 -> -0.1969873434 | AS54: 5.257446386
B55: Michigan | C55: 0 | D55: 889.0239309 | E55: 3022.84373 | F55: 3109.290075 | G55: 3157.315822 | H55: 3637.573295 | I55: 4117.830768 | J55: 4598.088241 | K55: 4733.048222 | L55: =-('PNNL Energy Code Savings'!C33-'PNNL Energy Code Savings'!E33)/'PNNL Energy Code Savings'!C33 -> -0.3147107438 | M55: 9605.149457 | AI55: Michigan | AJ55: 0 | AK55: 0.2559229817 | AL55: 1.594177187 | AM55: =AL55+AM$28*$AS55 -> 2.241984492 | AN55: 3.279463025 | AO55: 3.651766074 | AP55: 4.024069123 | AQ55: 7.002493512 | AR55: =-('PNNL Energy Code Savings'!P33-'PNNL Energy Code Savings'!R33)/'PNNL Energy Code Savings'!P33 -> -0.214096714 | AS55: 7.446060975
B56: Minnesota | C56: 0 | D56: 1192.724866 | E56: 3809.659558 | F56: 3907.468009 | G56: 3961.806037 | H56: 4505.18632 | I56: 5048.566603 | J56: 5591.946887 | K56: 5744.645381 | L56: =-('PNNL Energy Code Savings'!C34-'PNNL Energy Code Savings'!E34)/'PNNL Energy Code Savings'!C34 -> -0.3505518764 | M56: 10867.60567 | AI56: Minnesota | AJ56: 0 | AK56: 0.26859121 | AL56: 1.742245837 | AM56: =AL56+AM$28*$AS56 -> 2.548106459 | AN56: 3.838711073 | AO56: 4.301849362 | AP56: 4.764987651 | AQ56: 8.470093962 | AR56: =-('PNNL Energy Code Savings'!P34-'PNNL Energy Code Savings'!R34)/'PNNL Energy Code Savings'!P34 -> -0.1880913195 | AS56: 9.262765776
B57: Mississippi | C57: 0 | D57: 1196.830667 | E57: 3011.060852 | F57: 3099.672651 | G57: 3148.901428 | H57: 3641.189198 | I57: 4133.476968 | J57: 4625.764738 | K57: 4764.105424 | L57: =-('PNNL Energy Code Savings'!C35-'PNNL Energy Code Savings'!E35)/'PNNL Energy Code Savings'!C35 -> -0.3058232436 | M57: 9845.755401 | AI57: Mississippi | AJ57: 0 | AK57: 0.2017288134 | AL57: 1.596635367 | AM57: =AL57+AM$28*$AS57 -> 2.259340237 | AN57: 3.320677569 | AO57: 3.701542436 | AP57: 4.082407304 | AQ57: 7.129326246 | AR57: =-('PNNL Energy Code Savings'!P35-'PNNL Energy Code Savings'!R35)/'PNNL Energy Code Savings'!P35 -> -0.2096065432 | AS57: 7.617297355
B58: Missouri | C58: 0 | D58: 582.177533 | E58: 2385.505851 | F58: 2453.623843 | G58: 2491.467172 | H58: 2869.900463 | I58: 3248.333753 | J58: 3626.767044 | K58: 3733.112812 | L58: =-('PNNL Energy Code Savings'!C36-'PNNL Energy Code Savings'!E36)/'PNNL Energy Code Savings'!C36 -> -0.3151818182 | M58: 7568.665809 | AI58: Missouri | AJ58: 0 | AK58: 0.2342242627 | AL58: 1.631415678 | AM58: =AL58+AM$28*$AS58 -> 2.276730499 | AN58: 3.310217262 | AO58: 3.681087849 | AP58: 4.051958437 | AQ58: 7.018923133 | AR58: =-('PNNL Energy Code Savings'!P36-'PNNL Energy Code Savings'!R36)/'PNNL Energy Code Savings'!P36 -> -0.2199440633 | AS58: 7.417411742
B59: Montana | C59: 0 | D59: 851.7036549 | E59: 3096.543169 | F59: 3192.403676 | G59: 3245.659513 | H59: 3778.217887 | I59: 4310.776261 | J59: 4843.334635 | K59: 4992.992001 | L59: =-('PNNL Energy Code Savings'!C37-'PNNL Energy Code Savings'!E37)/'PNNL Energy Code Savings'!C37 -> -0.2907233573 | M59: 10651.16748 | AI59: Montana | AJ59: 0 | AK59: 0.1965046343 | AL59: 1.213061594 | AM59: =AL59+AM$28*$AS59 -> 1.7077089 | AN59: 2.499898117 | AO59: 2.784178178 | AP59: 3.068458239 | AQ59: 5.342698727 | AR59: =-('PNNL Energy Code Savings'!P37-'PNNL Energy Code Savings'!R37)/'PNNL Energy Code Savings'!P37 -> -0.2133567845 | AS59: 5.685601219
B60: Nebraska | C60: 0 | D60: 753.2554446 | E60: 2076.909789 | F60: 2138.234873 | G60: 2172.304364 | H60: 2512.999272 | I60: 2853.69418 | J60: 3194.389088 | K60: 3290.129772 | L60: =-('PNNL Energy Code Savings'!C38-'PNNL Energy Code Savings'!E38)/'PNNL Energy Code Savings'!C38 -> -0.3048049353 | M60: 6813.898165 | AI60: Nebraska | AJ60: 0 | AK60: 0.1643234536 | AL60: 1.306457758 | AM60: =AL60+AM$28*$AS60 -> 1.871538112 | AN60: 2.776527501 | AO60: 3.101286325 | AP60: 3.42604515 | AQ60: 6.024115744 | AR60: =-('PNNL Energy Code Savings'!P38-'PNNL Energy Code Savings'!R38)/'PNNL Energy Code Savings'!P38 -> -0.2011427651 | AS60: 6.495176485
B61: Nevada | C61: 0 | D61: 1450.294389 | E61: 3861.306247 | F61: 3966.116956 | G61: 4024.345129 | H61: 4606.62685 | I61: 5188.908572 | J61: 5771.190293 | K61: 5934.82071 | L61: =-('PNNL Energy Code Savings'!C39-'PNNL Energy Code Savings'!E39)/'PNNL Energy Code Savings'!C39 -> -0.3315668433 | M61: 11645.63443 | AI61: Nevada | AJ61: 0 | AK61: 0.2375667108 | AL61: 1.782462364 | AM61: =AL61+AM$28*$AS61 -> 2.647171316 | AN61: 4.032022905 | AO61: 4.528982073 | AP61: 5.02594124 | AQ61: 9.001614583 | AR61: =-('PNNL Energy Code Savings'!P39-'PNNL Energy Code Savings'!R39)/'PNNL Energy Code Savings'!P39 -> -0.1793369033 | AS61: 9.939183356
B62: New Hampshire | C62: 0 | D62: 860.5270706 | E62: 2719.977873 | F62: 2813.007229 | G62: 2864.690204 | H62: 3381.519957 | I62: 3898.34971 | J62: 4415.179463 | K62: 4560.416837 | L62: =-('PNNL Energy Code Savings'!C40-'PNNL Energy Code Savings'!E40)/'PNNL Energy Code Savings'!C40 -> -0.2631406045 | M62: 10336.59506 | AI62: New Hampshire | AJ62: 0 | AK62: 0.1816845205 | AL62: 1.023935583 | AM62: =AL62+AM$28*$AS62 -> 1.438343592 | AN62: 2.102027699 | AO62: 2.340193221 | AP62: 2.578358743 | AQ62: 4.48368292 | AR62: =-('PNNL Energy Code Savings'!P40-'PNNL Energy Code Savings'!R40)/'PNNL Energy Code Savings'!P40 -> -0.2149630169 | AS62: 4.763310442
B63: New Jersey | C63: 0 | D63: 740.6501753 | E63: 2645.953872 | F63: =E63+F$28*$M63 -> 2727.052704 | G63: 2772.10761 | H63: 3222.656675 | I63: 3673.205739 | J63: 4123.754804 | K63: 4250.36625 | L63: =-('PNNL Energy Code Savings'!C41-'PNNL Energy Code Savings'!E41)/'PNNL Energy Code Savings'!C41 -> -0.293636596 | M63: 9010.98129 | AI63: New Jersey | AJ63: 0 | AK63: 0.2182887009 | AL63: 1.668002568 | AM63: =AL63+AM$28*$AS63 -> 2.461746946 | AN63: 3.732947111 | AO63: 4.18912204 | AP63: 4.64529697 | AQ63: 8.294696407 | AR63: =-('PNNL Energy Code Savings'!P41-'PNNL Energy Code Savings'!R41)/'PNNL Energy Code Savings'!P41 -> -0.1828248836 | AS63: 9.123498593
B64: New Mexico | C64: 0 | D64: 859.1365331 | E64: 2634.720954 | F64: 2717.822963 | G64: 2763.990747 | H64: 3225.668579 | I64: 3687.346411 | J64: 4149.024243 | K64: 4278.76305 | L64: =-('PNNL Energy Code Savings'!C42-'PNNL Energy Code Savings'!E42)/'PNNL Energy Code Savings'!C42 -> -0.2853419387 | M64: 9233.556643 | AI64: New Mexico | AJ64: 0 | AK64: 0.1944824231 | AL64: 1.506844394 | AM64: =AL64+AM$28*$AS64 -> 2.128079345 | AN64: 3.123001633 | AO64: 3.480033214 | AP64: 3.837064795 | AQ64: 6.693317443 | AR64: =-('PNNL Energy Code Savings'!P42-'PNNL Energy Code Savings'!R42)/'PNNL Energy Code Savings'!P42 -> -0.2110239645 | AS64: 7.140631621
B65: New York | C65: 0 | D65: 821.0324018 | E65: 2671.80381 | F65: 2750.523482 | G65: 2794.256632 | H65: 3231.58814 | I65: 3668.919648 | J65: 4106.251156 | K65: 4229.14826 | L65: =-('PNNL Energy Code Savings'!C43-'PNNL Energy Code Savings'!E43)/'PNNL Energy Code Savings'!C43 -> -0.3054666496 | M65: =-E65/L65 -> 8746.63016 | AI65: New York | AJ65: 0 | AK65: 0.2646570302 | AL65: 1.680574319 | AM65: =AL65+AM$28*$AS65 -> 2.652604005 | AN65: 4.209332258 | AO65: 4.767970009 | AP65: 5.32660776 | AQ65: 9.795709768 | AR65: =-('PNNL Energy Code Savings'!P43-'PNNL Energy Code Savings'!R43)/'PNNL Energy Code Savings'!P43 -> -0.1504171814 | AS65: =-AL65/AR65 -> 11.17275502
B66: North Carolina | C66: 0 | D66: 834.4393168 | E66: 2581.062985 | F66: 2655.926802 | G66: 2697.517812 | H66: 3113.427908 | I66: 3529.338005 | J66: 3945.248101 | K66: 4062.125447 | L66: =-('PNNL Energy Code Savings'!C44-'PNNL Energy Code Savings'!E44)/'PNNL Energy Code Savings'!C44 -> -0.3102909748 | M66: 8318.201927 | AI66: North Carolina | AJ66: 0 | AK66: 0.2398078087 | AL66: 1.778726334 | AM66: =AL66+AM$28*$AS66 -> 2.505496304 | AN66: 3.669435391 | AO66: 4.087119282 | AP66: 4.504803173 | AQ66: 7.8462743 | AR66: =-('PNNL Energy Code Savings'!P44-'PNNL Energy Code Savings'!R44)/'PNNL Energy Code Savings'!P44 -> -0.2129273324 | AS66: 8.353677819
B67: North Dakota | C67: 0 | D67: 638.1469571 | E67: 2624.61021 | F67: 2691.710383 | G67: 2728.988258 | H67: 3101.767001 | I67: 3474.545745 | J67: 3847.324488 | K67: 3952.081239 | L67: =-('PNNL Energy Code Savings'!C45-'PNNL Energy Code Savings'!E45)/'PNNL Energy Code Savings'!C45 -> -0.3520332443 | M67: 7455.57487 | AI67: North Dakota | AJ67: 0 | AK67: 0.2127511025 | AL67: 1.447284412 | AM67: =AL67+AM$28*$AS67 -> 2.075490826 | AN67: 3.081578073 | AO67: 3.442616242 | AP67: 3.80365441 | AQ67: 6.691959758 | AR67: =-('PNNL Energy Code Savings'!P45-'PNNL Energy Code Savings'!R45)/'PNNL Energy Code Savings'!P45 -> -0.2004337129 | AS67: 7.22076337
B68: Ohio | C68: 0 | D68: 808.4203206 | E68: 2296.142708 | F68: 2372.765091 | G68: 2415.333082 | H68: 2841.012989 | I68: 3266.692897 | J68: 3692.372804 | K68: 3811.995622 | L68: =-('PNNL Energy Code Savings'!C46-'PNNL Energy Code Savings'!E46)/'PNNL Energy Code Savings'!C46 -> -0.2697029703 | M68: 8513.598147 | AI68: Ohio | AJ68: 0 | AK68: 0.2024274277 | AL68: 1.510912581 | AM68: =AL68+AM$28*$AS68 -> 2.153239243 | AN68: 3.1819404 | AO68: 3.551093654 | AP68: 3.920246908 | AQ68: 6.873472942 | AR68: =-('PNNL Energy Code Savings'!P46-'PNNL Energy Code Savings'!R46)/'PNNL Energy Code Savings'!P46 -> -0.2046457079 | AS68: 7.383065084
B69: Oklahoma | C69: 0 | D69: 1215.300346 | E69: 3638.310272 | F69: 3724.712655 | G69: 3772.713979 | H69: 4252.727221 | I69: 4732.740462 | J69: 5212.753703 | K69: 5347.645052 | L69: =-('PNNL Energy Code Savings'!C47-'PNNL Energy Code Savings'!E47)/'PNNL Energy Code Savings'!C47 -> -0.3789801987 | M69: 9600.264826 | AI69: Oklahoma | AJ69: 0 | AK69: 0.2179918169 | AL69: 1.717572526 | AM69: =AL69+AM$28*$AS69 -> 2.389792706 | AN69: 3.466369028 | AO69: 3.852702465 | AP69: 4.239035902 | AQ69: 7.329703395 | AR69: =-('PNNL Energy Code Savings'!P47-'PNNL Energy Code Savings'!R47)/'PNNL Energy Code Savings'!P47 -> -0.2222914668 | AS69: 7.726668733
B70: Oregon | C70: 0 | D70: 653.1063819 | E70: 2551.541032 | F70: 2642.31296 | G70: 2692.741808 | H70: 3197.030293 | I70: 3701.318778 | J70: 4205.607263 | K70: 4347.320341 | L70: =-('PNNL Energy Code Savings'!C48-'PNNL Energy Code Savings'!E48)/'PNNL Energy Code Savings'!C48 -> -0.2529842648 | M70: 10085.7697 | AI70: Oregon | AJ70: 0 | AK70: 0.2418566136 | AL70: 1.762493906 | AM70: =AL70+AM$28*$AS70 -> 2.544989289 | AN70: 3.798173926 | AO70: 4.247883916 | AP70: 4.697593906 | AQ70: 8.295273826 | AR70: =-('PNNL Energy Code Savings'!P48-'PNNL Energy Code Savings'!R48)/'PNNL Energy Code Savings'!P48 -> -0.1959589453 | AS70: 8.994199801
B71: Pennsylvania | C71: 0 | D71: 861.8366212 | E71: 2608.3432 | F71: 2688.264392 | G71: 2732.665054 | H71: 3176.671674 | I71: 3620.678295 | J71: 4064.684916 | K71: 4189.457832 | L71: =-('PNNL Energy Code Savings'!C49-'PNNL Energy Code Savings'!E49)/'PNNL Energy Code Savings'!C49 -> -0.2937279624 | M71: 8880.132415 | AI71: Pennsylvania | AJ71: 0 | AK71: 0.2059726971 | AL71: 1.52008194 | AM71: =AL71+AM$28*$AS71 -> 2.165943891 | AN71: 3.200306894 | AO71: 3.571491923 | AP71: 3.942676952 | AQ71: 6.912157186 | AR71: =-('PNNL Energy Code Savings'!P49-'PNNL Energy Code Savings'!R49)/'PNNL Energy Code Savings'!P49 -> -0.2047606746 | AS71: 7.423700583
B72: Rhode Island | C72: 0 | D72: 960.9892787 | E72: 2626.654922 | F72: 2719.959149 | G72: 2771.794832 | H72: 3290.151652 | I72: 3808.508473 | J72: 4326.865293 | K72: 4472.531797 | L72: =-('PNNL Energy Code Savings'!C50-'PNNL Energy Code Savings'!E50)/'PNNL Energy Code Savings'!C50 -> -0.2533635922 | M72: 10367.13641 | AI72: Rhode Island | AJ72: 0 | AK72: 0.1874734009 | AL72: 1.102288902 | AM72: =AL72+AM$28*$AS72 -> 1.523387419 | AN72: 2.197786532 | AO72: 2.439797174 | AP72: 2.681807815 | AQ72: 4.61789295 | AR72: =-('PNNL Energy Code Savings'!P50-'PNNL Energy Code Savings'!R50)/'PNNL Energy Code Savings'!P50 -> -0.2277356263 | AS72: 4.840212837
B73: South Carolina | C73: 0 | D73: 1185.000461 | E73: 3158.304696 | F73: =E73+F$28*$M73 -> 3245.410573 | G73: 3293.802727 | H73: 3777.724262 | I73: 4261.645798 | J73: 4745.567334 | K73: 4881.556976 | L73: =-('PNNL Energy Code Savings'!C51-'PNNL Energy Code Savings'!E51)/'PNNL Energy Code Savings'!C51 -> -0.3263240486 | M73: 9678.430718 | AI73: South Carolina | AJ73: 0 | AK73: 0.165743412 | AL73: 1.138300589 | AM73: =AL73+AM$28*$AS73 -> 1.561503349 | AN73: 2.239272458 | AO73: 2.482492435 | AP73: 2.725712413 | AQ73: 4.671472232 | AR73: =-('PNNL Energy Code Savings'!P51-'PNNL Energy Code Savings'!R51)/'PNNL Energy Code Savings'!P51 -> -0.2340063922 | AS73: 4.864399548
B74: South Dakota | C74: 0 | D74: 780.1988856 | E74: 2792.145219 | F74: 2864.498699 | G74: 2904.695076 | H74: 3306.658852 | I74: 3708.622628 | J74: 4110.586403 | K74: 4223.544612 | L74: =-('PNNL Energy Code Savings'!C52-'PNNL Energy Code Savings'!E52)/'PNNL Energy Code Savings'!C52 -> -0.3473130402 | M74: 8039.275512 | AI74: South Dakota | AJ74: 0 | AK74: 0.1755459174 | AL74: 1.328055055 | AM74: =AL74+AM$28*$AS74 -> 1.926846248 | AN74: 2.885824332 | AO74: 3.229957202 | AP74: 3.574090071 | AQ74: 6.327153027 | AR74: =-('PNNL Energy Code Savings'!P52-'PNNL Energy Code Savings'!R52)/'PNNL Energy Code Savings'!P52 -> -0.1929567287 | AS74: 6.882657389
B75: Tennessee | C75: 0 | D75: 565.850654 | E75: 2196.88088 | F75: 2262.027817 | G75: 2298.22056 | H75: 2660.147986 | I75: 3022.075412 | J75: 3384.002838 | K75: 3485.710197 | L75: =-('PNNL Energy Code Savings'!C53-'PNNL Energy Code Savings'!E53)/'PNNL Energy Code Savings'!C53 -> -0.3034974308 | M75: 7238.548526 | AI75: Tennessee | AJ75: 0 | AK75: 0.2127096777 | AL75: 1.657852962 | AM75: =AL75+AM$28*$AS75 -> 2.338297351 | AN75: 3.428044939 | AO75: 3.819104933 | AP75: 4.210164927 | AQ75: 7.338644879 | AR75: =-('PNNL Energy Code Savings'!P53-'PNNL Energy Code Savings'!R53)/'PNNL Energy Code Savings'!P53 -> -0.2119691335 | AS75: 7.821199881
B76: Texas | C76: 0 | D76: 1139.0652 | E76: 2794.604403 | F76: 2880.571839 | G76: 2928.331526 | H76: 3405.928392 | I76: 3883.525259 | J76: 4361.122125 | K76: 4495.334434 | L76: =-('PNNL Energy Code Savings'!C54-'PNNL Energy Code Savings'!E54)/'PNNL Energy Code Savings'!C54 -> -0.2925693823 | M76: 9551.937327 | AI76: Texas | AJ76: 0 | AK76: 0.1996704667 | AL76: 1.665125179 | AM76: =AL76+AM$28*$AS76 -> 2.346839321 | AN76: 3.438620444 | AO76: 3.830410181 | AP76: 4.222199917 | AQ76: 7.356517808 | AR76: =-('PNNL Energy Code Savings'!P54-'PNNL Energy Code Savings'!R54)/'PNNL Energy Code Savings'!P54 -> -0.2125023993 | AS76: 7.835794726
B77: Utah | C77: 0 | D77: 847.4568713 | E77: 2415.775501 | F77: 2499.018357 | G77: 2545.264388 | H77: 3007.7247 | I77: 3470.185013 | J77: 3932.645325 | K77: 4062.604022 | L77: =-('PNNL Energy Code Savings'!C55-'PNNL Energy Code Savings'!E55)/'PNNL Energy Code Savings'!C55 -> -0.2611873317 | M77: 9249.206249 | AI77: Utah | AJ77: 0 | AK77: 0.1958571247 | AL77: 1.346618776 | AM77: =AL77+AM$28*$AS77 -> 1.909426875 | AN77: 2.810777196 | AO77: 3.134230127 | AP77: 3.457683058 | AQ77: 6.045306505 | AR77: =-('PNNL Energy Code Savings'!P55-'PNNL Energy Code Savings'!R55)/'PNNL Energy Code Savings'!P55 -> -0.2081630196 | AS77: 6.469058618
B78: Vermont | C78: 0 | D78: 870.4157893 | E78: 3193.926428 | F78: 3293.221437 | G78: 3348.385331 | H78: 3900.024274 | I78: 4451.663216 | J78: 5003.302159 | K78: 5158.321468 | L78: =-('PNNL Energy Code Savings'!C56-'PNNL Energy Code Savings'!E56)/'PNNL Energy Code Savings'!C56 -> -0.2894942853 | M78: 11032.77885 | AI78: Vermont | AJ78: 0 | AK78: 0.1511804428 | AL78: 0.9638177142 | AM78: =AL78+AM$28*$AS78 -> 1.436204154 | AN78: 2.192742075 | AO78: 2.464228535 | AP78: 2.735714994 | AQ78: 4.907606673 | AR78: =-('PNNL Energy Code Savings'!P56-'PNNL Energy Code Savings'!R56)/'PNNL Energy Code Savings'!P56 -> -0.1775075108 | AS78: 5.429729197
B79: Virginia | C79: 0 | D79: 529.2127316 | E79: 2541.447638 | F79: 2614.659966 | G79: 2655.333481 | H79: 3062.068637 | I79: 3468.803793 | J79: 3875.538949 | K79: 3989.837991 | L79: =-('PNNL Energy Code Savings'!C57-'PNNL Energy Code Savings'!E57)/'PNNL Energy Code Savings'!C57 -> -0.3124204537 | M79: 8134.703115 | AI79: Virginia | AJ79: 0 | AK79: 0.155897462 | AL79: 1.223712633 | AM79: =AL79+AM$28*$AS79 -> 1.765538475 | AN79: 2.633285219 | AO79: 2.944679381 | AP79: 3.256073543 | AQ79: 5.747226839 | AR79: =-('PNNL Energy Code Savings'!P57-'PNNL Energy Code Savings'!R57)/'PNNL Energy Code Savings'!P57 -> -0.1964893344 | AS79: 6.22788324
B80: Washington | C80: 0 | D80: 680.3989012 | E80: 2492.99576 | F80: 2574.51492 | G80: 2619.803341 | H80: 3072.687559 | I80: 3525.571777 | J80: 3978.455995 | K80: 4105.723657 | L80: =-('PNNL Energy Code Savings'!C58-'PNNL Energy Code Savings'!E58)/'PNNL Energy Code Savings'!C58 -> -0.2752354424 | M80: 9057.684356 | AI80: Washington | AJ80: 0 | AK80: 0.2475510706 | AL80: 1.762328489 | AM80: =AL80+AM$28*$AS80 -> 2.548676947 | AN80: 3.808032372 | AO80: 4.259956773 | AP80: 4.711881174 | AQ80: 8.32727638 | AR80: =-('PNNL Energy Code Savings'!P58-'PNNL Energy Code Savings'!R58)/'PNNL Energy Code Savings'!P58 -> -0.1949804532 | AS80: 9.038488014
B81: West Virginia | C81: 0 | D81: 673.8987632 | E81: 2355.616048 | F81: 2421.319402 | G81: 2457.821265 | H81: 2822.839896 | I81: 3187.858527 | J81: 3552.877158 | K81: 3655.453194 | L81: =-('PNNL Energy Code Savings'!C59-'PNNL Energy Code Savings'!E59)/'PNNL Energy Code Savings'!C59 -> -0.3226706595 | M81: 7300.372621 | AI81: West Virginia | AJ81: 0 | AK81: 0.2822536152 | AL81: 1.921645591 | AM81: =AL81+AM$28*$AS81 -> 2.717606892 | AN81: 3.992357512 | AO81: 4.449806536 | AP81: 4.907255559 | AQ81: 8.566847749 | AR81: =-('PNNL Energy Code Savings'!P59-'PNNL Energy Code Savings'!R59)/'PNNL Energy Code Savings'!P59 -> -0.2100393149 | AS81: 9.148980474
B82: Wisconsin | C82: 0 | D82: 501.8041793 | E82: 2929.38357 | F82: 3012.453891 | G82: 3058.604069 | H82: 3520.105851 | I82: 3981.607632 | J82: 4443.109414 | K82: 4572.798748 | L82: =-('PNNL Energy Code Savings'!C60-'PNNL Energy Code Savings'!E60)/'PNNL Energy Code Savings'!C60 -> -0.3173751096 | M82: 9230.035633 | AI82: Wisconsin | AJ82: 0 | AK82: 0.239521632 | AL82: 1.606191751 | AM82: =AL82+AM$28*$AS82 -> 2.343563566 | AN82: 3.524481755 | AO82: 3.94825866 | AP82: 4.372035566 | AQ82: 7.762250808 | AR82: =-('PNNL Energy Code Savings'!P60-'PNNL Energy Code Savings'!R60)/'PNNL Energy Code Savings'!P60 -> -0.189509118 | AS82: 8.475538105
B83: Wyoming | C83: 0 | D83: 794.4380489 | E83: 2973.962388 | F83: =E83+F$28*$M83 -> 3059.006274 | G83: 3106.252878 | H83: 3578.718911 | I83: 4051.184944 | J83: 4523.650978 | K83: 4656.421441 | L83: =-('PNNL Energy Code Savings'!C61-'PNNL Energy Code Savings'!E61)/'PNNL Energy Code Savings'!C61 -> -0.3147276395 | M83: 9449.320666 | AI83: Wyoming | AJ83: 0 | AK83: 0.1934600332 | AL83: 1.4811153 | AM83: =AL83+AM$28*$AS83 -> 2.176750759 | AN83: 3.2908272 | AO83: 3.690617694 | AP83: 4.090408187 | AQ83: 7.288732138 | AR83: =-('PNNL Energy Code Savings'!P61-'PNNL Energy Code Savings'!R61)/'PNNL Energy Code Savings'!P61 -> -0.1852364329 | AS83: 7.995809877

Sheet PNNL Energy Code Savings (hidden)
B2: PNNL Energy Code Savings Calculations
B6: Residential energy use per household by code | F6: % savings vs previous code | O6: Commercial energy use per sf by code | S6: % savings vs previous code
B7: Covered energy use as included in PNNL estimator | D7: =(C9-D9)/C9 -> 0.1145868811 | E7: =(D9-E9)/D9 -> 0.2073623243 | F7: =TRANSPOSE(Assumptions!D8:D13) -> 0.009 | G7: 0.005 | H7: 0.05 | I7: 0.05 | J7: 0.05 | K7: 0.5 | O7: Whole building energy use as included in PNNL estimator | S7: =TRANSPOSE(Assumptions!$F$8:$F$13) -> 0.087 | T7: 0.1393325326 | U7: 0.05 | V7: 0.05 | W7: 0.05 | X7: 0.4
B8: Electricity (kWh) | C8: IECC 2006 | D8: IECC 2009 | E8: IECC 2012 | F8: IECC 2015 | G8: IECC 2018 | H8: IECC 2021* | I8: IECC 2024* | J8: IECC 2027* | K8: PassiveHouse* | O8: Electricity (kWh/sf) | P8: ASHRAE 90.1 2004 | Q8: ASHRAE 90.1 2007 | R8: ASHRAE 90.1 2010 | S8: ASHRAE 90.1 2013 | T8: ASHRAE 90.1 2016 | U8: ASHRAE 90.1 2019* | V8: ASHRAE 90.1 2022* | W8: ASHRAE 90.1 2025* | X8: PassiveHouse*
B9: =StateInput -> Nationwide | C9: =INDEX(C10:C61,MATCH($B9,$B10:$B61,0)) -> 10190.44322 | D9: =INDEX(D10:D61,MATCH($B9,$B10:$B61,0)) -> 9022.752114 | E9: 7151.773264 | F9: 7087.407305 | G9: 7051.970268 | H9: 6699.371755 | I9: 6364.403167 | J9: 6046.183009 | K9: 5095.22161 | O9: =StateInput -> Nationwide | P9: =INDEX(P10:P61,MATCH($O9,$O10:$O61,0)) -> 15.01083986 | Q9: =INDEX(Q10:Q61,MATCH($O9,$O10:$O61,0)) -> 14.58556829 | R9: 11.95747657 | S9: 10.91717611 | T9: 9.396058314 | U9: 8.926255398 | V9: 8.479942629 | W9: 8.055945497 | X9: 7.174485943
B10: Nationwide | C10: =SUMPRODUCT(C11:C61,'Building Growth Projections'!$D$20:$D$70)/'Building Growth Projections'!$D$19 -> 10190.44322 | D10: =SUMPRODUCT(D11:D61,'Building Growth Projections'!$D$20:$D$70)/'Building Growth Projections'!$D$19 -> 9022.752114 | E10: =SUMPRODUCT(E11:E61,'Building Growth Projections'!$D$20:$D$70)/'Building Growth Projections'!$D$19 -> 7151.773264 | F10: =E10*(1-F$7) -> 7087.407305 | G10: =F10*(1-G$7) -> 7051.970268 | H10: =G10*(1-H$7) -> 6699.371755 | I10: =H10*(1-I$7) -> 6364.403167 | J10: =I10*(1-J$7) -> 6046.183009 | K10: =C10*(1-K$7) -> 5095.22161 | O10: Nationwide | P10: =SUMPRODUCT(P11:P61,'Building Growth Projections'!$AK$20:$AK$70)/'Building Growth Projections'!$AK$19 -> 15.01083986 | Q10: =SUMPRODUCT(Q11:Q61,'Building Growth Projections'!$AK$20:$AK$70)/'Building Growth Projections'!$AK$19 -> 14.58556829 | R10: =SUMPRODUCT(R11:R61,'Building Growth Projections'!$AK$20:$AK$70)/'Building Growth Projections'!$AK$19 -> 11.95747657 | S10: =R10*(1-S$7) -> 10.91717611 | T10: 9.396058314 | U10: 8.926255398 | V10: 8.479942629 | W10: 8.055945497 | X10: =R10*(1-X$7) -> 7.174485943
B11: Alabama | C11: 11384 | D11: 9975 | E11: 7823 | F11: =E11*(1-F$7) -> 7752.593 | G11: =F11*(1-G$7) -> 7713.830035 | H11: =G11*(1-H$7) -> 7328.138533 | I11: =H11*(1-I$7) -> 6961.731607 | J11: =I11*(1-J$7) -> 6613.645026 | K11: =C11*(1-K$7) -> 5692 | O11: Alabama | P11: 16.0042895 | Q11: 15.56896482 | R11: 12.55690078 | S11: 11.46445041 | T11: 9.867079499 | U11: 9.373725524 | V11: 8.905039248 | W11: 8.459787285 | X11: =R11*(1-X$7) -> 7.534140466
B12: Alaska | C12: 14555 | D12: 13054 | E12: 9274 | F12: =E12*(1-F$7) -> 9190.534 | G12: 9144.58133 | H12: 8687.352263 | I12: 8252.98465 | J12: 7840.335418 | K12: =C12*(1-K$7) -> 7277.5 | O12: Alaska | P12: 14.94281729 | Q12: 14.40323873 | R12: 11.89817106 | S12: =R12*(1-S$7) -> 10.86303018 | T12: 9.349456675 | U12: 8.881983841 | V12: 8.437884649 | W12: =V12*(1-W$7) -> 8.015990417 | X12: =R12*(1-X$7) -> 7.138902638
B13: Arizona | C13: 12212 | D13: 10348 | E13: 8796 | F13: 8716.836 | G13: 8673.25182 | H13: 8239.589229 | I13: 7827.609768 | J13: 7436.229279 | K13: 6106 | O13: Arizona | P13: 16.47461324 | Q13: 15.9890821 | R13: 13.06697946 | S13: 11.93015224 | T13: 10.26789392 | U13: 9.754499222 | V13: 9.266774261 | W13: 8.803435548 | X13: 7.840187674
B14: Arkansas | C14: 11470 | D14: 10109 | E14: 7548 | F14: 7480.068 | G14: 7442.66766 | H14: 7070.534277 | I14: 6717.007563 | J14: 6381.157185 | K14: 5735 | O14: Arkansas | P14: 16.1545931 | Q14: 15.66194279 | R14: 12.55938977 | S14: 11.46672286 | T14: 9.869035322 | U14: 9.375583556 | V14: 8.906804379 | W14: 8.46146416 | X14: 7.535633861
B15: California | C15: 5348 | D15: 4570 | E15: 3881 | F15: 3846.071 | G15: 3826.840645 | H15: 3635.498613 | I15: 3453.723682 | J15: 3281.037498 | K15: 2674 | O15: California | P15: 13.87463988 | Q15: 13.50372777 | R15: 11.20807805 | S15: 10.23297526 | T15: 8.8071889 | U15: 8.366829455 | V15: 7.948487982 | W15: 7.551063583 | X15: 6.724846829
B16: Colorado | C16: 7205 | D16: 6512 | E16: 5291 | F16: 5243.381 | G16: 5217.164095 | H16: 4956.30589 | I16: 4708.490596 | J16: 4473.066066 | K16: 3602.5 | O16: Colorado | P16: 14.08301082 | Q16: 13.6559468 | R16: 11.30299339 | S16: 10.31963296 | T16: 8.881772366 | U16: 8.437683747 | V16: 8.01579956 | W16: 7.615009582 | X16: 6.781796032
B17: Connecticut | C17: 5972 | D17: 5385 | E17: 4484 | F17: 4443.644 | G17: 4421.42578 | H17: 4200.354491 | I17: 3990.336766 | J17: 3790.819928 | K17: 2986 | O17: Connecticut | P17: 14.36391457 | Q17: 13.89842579 | R17: 11.48278864 | S17: 10.48378603 | T17: 9.023053574 | U17: 8.571900895 | V17: 8.14330585 | W17: 7.736140558 | X17: 6.889673187
B18: Delaware | C18: 15926 | D18: 14270 | E18: 10316 | F18: 10223.156 | G18: 10172.04022 | H18: 9663.438209 | I18: 9180.266299 | J18: 8721.252984 | K18: 7963 | O18: Delaware | P18: 16.76280835 | Q18: 16.21531446 | R18: 13.07481078 | S18: 11.93730225 | T18: 10.27404769 | U18: 9.760345308 | V18: 9.272328042 | W18: 8.80871164 | X18: 7.844886471
B19: District of Columbia | C19: 9559 | D19: 8726 | E19: 6750 | F19: 6689.25 | G19: 6655.80375 | H19: 6323.013562 | I19: 6006.862884 | J19: 5706.51974 | K19: 4779.5 | O19: District of Columbia | P19: 11.97122374 | Q19: 11.81690157 | R19: 9.975445213 | S19: 9.107581479 | T19: 7.838599086 | U19: 7.446669132 | V19: 7.074335675 | W19: 6.720618892 | X19: 5.985267128
B20: Florida | C20: 11475 | D20: 9954 | E20: 8596 | F20: 8518.636 | G20: 8476.04282 | H20: 8052.240679 | I20: 7649.628645 | J20: 7267.147213 | K20: 5737.5 | O20: Florida | P20: 16.43499875 | Q20: 15.95375134 | R20: 12.90826824 | S20: 11.78524891 | T20: 10.14318033 | U20: 9.636021312 | V20: 9.154220247 | W20: 8.696509234 | X20: 7.744960946
B21: Georgia | C21: 12746 | D21: 11196 | E21: 8611 | F21: =E21*(1-F$7) -> 8533.501 | G21: 8490.833495 | H21: 8066.29182 | I21: 7662.977229 | J21: 7279.828368 | K21: 6373 | O21: Georgia | P21: 15.29359828 | Q21: 14.87995294 | R21: 12.016452 | S21: =R21*(1-S$7) -> 10.97102068 | T21: 9.44240058 | U21: 8.970280551 | V21: 8.521766523 | W21: 8.095678197 | X21: 7.209871199
B22: Hawaii | C22: 12468 | D22: 11258 | E22: 9331 | F22: 9247.021 | G22: 9200.785895 | H22: 8740.7466 | I22: 8303.70927 | J22: 7888.523807 | K22: 6234 | O22: Hawaii | P22: 19.19952651 | Q22: 18.83147063 | R22: 15.82143699 | S22: 14.44497197 | T22: 12.43231744 | U22: 11.81070157 | V22: 11.22016649 | W22: 10.65915817 | X22: 9.492862193
B23: Idaho | C23: 7668 | D23: 6932 | E23: 5650 | F23: 5599.15 | G23: 5571.15425 | H23: 5292.596537 | I23: 5027.966711 | J23: 4776.568375 | K23: 3834 | O23: Idaho | P23: 15.19194516 | Q23: 14.67185234 | R23: 11.78996848 | S23: 10.76424122 | T23: 9.264432232 | U23: 8.801210621 | V23: 8.36115009 | W23: 7.943092585 | X23: 7.073981089
B24: Illinois | C24: 7926 | D24: 7184 | E24: 5725 | F24: 5673.475 | G24: 5645.107625 | H24: 5362.852244 | I24: 5094.709632 | J24: 4839.97415 | K24: 3963 | O24: Illinois | P24: 15.1288289 | Q24: 14.66630298 | R24: 12.12567759 | S24: 11.07074364 | T24: 9.528228892 | U24: 9.051817448 | V24: 8.599226575 | W24: 8.169265247 | X24: 7.275406555
B25: Indiana | C25: 8415 | D25: 7612 | E25: 6065 | F25: 6010.415 | G25: 5980.362925 | H25: 5681.344779 | I25: 5397.27754 | J25: 5127.413663 | K25: 4207.5 | O25: Indiana | P25: 14.33796895 | Q25: 13.94406298 | R25: 11.41501606 | S25: 10.42190967 | T25: 8.969798597 | U25: 8.521308667 | V25: 8.095243234 | W25: 7.690481072 | X25: 6.849009638
B26: Iowa | C26: 12994 | D26: 11699 | E26: 8735 | F26: 8656.385 | G26: 8613.103075 | H26: 8182.447921 | I26: 7773.325525 | J26: 7384.659249 | K26: 6497 | O26: Iowa | P26: 14.13713794 | Q26: 13.74333709 | R26: 11.28321903 | S26: 10.30157898 | T26: 8.866233889 | U26: 8.422922194 | V26: 8.001776085 | W26: 7.60168728 | X26: 6.76993142
B27: Kansas | C27: 11424 | D27: 10295 | E27: 7707 | F27: 7637.637 | G27: 7599.448815 | H27: 7219.476374 | I27: 6858.502556 | J27: 6515.577428 | K27: 5712 | O27: Kansas | P27: 15.51297825 | Q27: 15.01235073 | R27: 12.03842029 | S27: 10.99107772 | T27: 9.459663027 | U27: 8.986679876 | V27: 8.537345882 | W27: 8.110478588 | X27: 7.223052172
B28: Kentucky | C28: 13729 | D28: 12342 | E28: 9096 | F28: 9014.136 | G28: 8969.06532 | H28: 8520.612054 | I28: 8094.581451 | J28: 7689.852379 | K28: 6864.5 | O28: Kentucky | P28: 15.30423929 | Q28: 14.83924563 | R28: 11.90613305 | S28: 10.87029947 | T28: 9.355713115 | U28: 8.887927459 | V28: 8.443531086 | W28: 8.021354532 | X28: 7.143679827
B29: Louisiana | C29: 11627 | D29: 10102 | E29: 8304 | F29: 8229.264 | G29: 8188.11768 | H29: 7778.711796 | I29: 7389.776206 | J29: 7020.287396 | K29: 5813.5 | O29: Louisiana | P29: 17.25344913 | Q29: 16.73445721 | R29: 13.50741148 | S29: 12.33226668 | T29: 10.61398073 | U29: 10.0832817 | V29: 9.579117612 | W29: 9.100161731 | X29: 8.104446889
B30: Maine | C30: 6433 | D30: 5742 | E30: 4546 | F30: 4505.086 | G30: 4482.56057 | H30: 4258.432542 | I30: 4045.510914 | J30: 3843.235369 | K30: 3216.5 | O30: Maine | P30: 14.71236667 | Q30: 14.152858 | R30: 11.69360597 | S30: 10.67626225 | T30: 9.188711595 | U30: 8.729276015 | V30: 8.292812214 | W30: 7.878171604 | X30: 7.016163584
B31: Maryland | C31: 13708 | D31: 12355 | E31: 9152 | F31: =E31*(1-F$7) -> 9069.632 | G31: 9024.28384 | H31: 8573.069648 | I31: 8144.416166 | J31: 7737.195357 | K31: 6854 | O31: Maryland | P31: 13.88882317 | Q31: 13.53296485 | R31: 11.0724078 | S31: =R31*(1-S$7) -> 10.10910832 | T31: 8.700580658 | U31: 8.265551625 | V31: 7.852274044 | W31: 7.459660341 | X31: 6.643444681
B32: Massachusetts | C32: 5856 | D32: 5261 | E32: 4349 | F32: 4309.859 | G32: 4288.309705 | H32: 4073.89422 | I32: 3870.199509 | J32: 3676.689533 | K32: 2928 | O32: Massachusetts | P32: 14.36727721 | Q32: 13.92956208 | R32: 11.53710544 | S32: 10.53337727 | T32: 9.065735138 | U32: 8.612448381 | V32: 8.181825962 | W32: 7.772734664 | X32: 6.922263266
B33: Michigan | C33: 9075 | D33: 8131 | E33: 6219 | F33: 6163.029 | G33: 6132.213855 | H33: 5825.603162 | I33: 5534.323004 | J33: 5257.606854 | K33: 4537.5 | O33: Michigan | P33: 15.12625085 | Q33: 14.59042401 | R33: 11.88777025 | S33: 10.85353424 | T33: 9.341283823 | U33: 8.874219632 | V33: 8.43050865 | W33: 8.008983218 | X33: 7.132662148
B34: Minnesota | C34: 13590 | D34: 12217 | E34: 8826 | F34: 8746.566 | G34: 8702.83317 | H34: 8267.691511 | I34: 7854.306936 | J34: 7461.591589 | K34: 6795 | O34: Minnesota | P34: 14.58028574 | Q34: 14.14659152 | R34: 11.83786056 | S34: 10.80796669 | T34: 9.302065319 | U34: 8.836962053 | V34: 8.39511395 | W34: 7.975358253 | X34: 7.102716335
B35: Mississippi | C35: 12141 | D35: 10614 | E35: 8428 | F35: 8352.148 | G35: 8310.38726 | H35: 7894.867897 | I35: 7500.124502 | J35: 7125.118277 | K35: 6070.5 | O35: Mississippi | P35: 17.11474157 | Q35: 16.65048993 | R35: 13.52737976 | S35: 12.35049772 | T35: 10.62967159 | U35: 10.09818801 | V35: 9.593278611 | W35: 9.11361468 | X35: 8.116427853
B36: Missouri | C36: 11000 | D36: 9941 | E36: 7533 | F36: 7465.203 | G36: 7427.876985 | H36: 7056.483136 | I36: 6703.658979 | J36: 6368.47603 | K36: 5500 | O36: Missouri | P36: 15.77793588 | Q36: 15.26544986 | R36: 12.30767255 | S36: 11.23690504 | T36: 9.671238605 | U36: 9.187676674 | V36: 8.728292841 | W36: 8.291878199 | X36: 7.384603533
B37: Montana | C37: 7244 | D37: 6523 | E37: 5138 | F37: 5091.758 | G37: 5066.29921 | H37: 4812.98425 | I37: 4572.335037 | J37: 4343.718285 | K37: 3622 | O37: Montana | P37: 15.03960461 | Q37: 14.503813 | R37: 11.83080293 | S37: 10.80152307 | T37: 9.296519508 | U37: 8.831693532 | V37: 8.390108856 | W37: 7.970603413 | X37: 7.098481757
B38: Nebraska | C38: 11509 | D38: 10412 | E38: 8001 | F38: 7928.991 | G38: 7889.346045 | H38: 7494.878743 | I38: 7120.134806 | J38: 6764.128065 | K38: 5754.5 | O38: Nebraska | P38: 16.29354502 | Q38: 15.87178553 | R38: 13.01621632 | S38: 11.8838055 | T38: 10.22800478 | U38: 9.716604545 | V38: 9.230774318 | W38: 8.769235602 | X38: 7.809729793
B39: Nevada | C39: 10001 | D39: 8584 | E39: 6685 | F39: 6624.835 | G39: 6591.710825 | H39: 6262.125284 | I39: 5949.01902 | J39: 5651.568069 | K39: 5000.5 | O39: Nevada | P39: 15.63086098 | Q39: 15.24917344 | R39: 12.82767078 | S39: 11.71166342 | T39: 10.0798477 | U39: 9.575855311 | V39: 9.097062545 | W39: 8.642209418 | X39: 7.696602467
B40: New Hampshire | C40: 6088 | D40: 5478 | E40: 4486 | F40: 4445.626 | G40: 4423.39787 | H40: 4202.227976 | I40: 3992.116578 | J40: 3792.510749 | K40: 3044 | O40: New Hampshire | P40: 16.98439263 | Q40: 16.31485516 | R40: 13.33337635 | S40: 12.17337261 | T40: 10.47722577 | U40: 9.953364482 | V40: 9.455696258 | W40: 8.982911445 | X40: 8.000025809
B41: New Jersey | C41: 7826 | D41: 7060 | E41: 5528 | F41: =E41*(1-F$7) -> 5478.248 | G41: 5450.85676 | H41: 5178.313922 | I41: 4919.398226 | J41: 4673.428315 | K41: 3913 | O41: New Jersey | P41: 15.52895675 | Q41: 15.14934584 | R41: 12.68987704 | S41: =R41*(1-S$7) -> 11.58585774 | T41: 9.971570835 | U41: 9.472992294 | V41: 8.999342679 | W41: 8.549375545 | X41: 7.613926223
B42: New Mexico | C42: 8057 | D42: 7182 | E42: 5758 | F42: 5706.178 | G42: 5677.64711 | H42: 5393.764754 | I42: 5124.076517 | J42: 4867.872691 | K42: 4028.5 | O42: New Mexico | P42: 15.5283215 | Q42: 15.09485333 | R42: 12.25147354 | S42: 11.18559534 | T42: 9.627078011 | U42: 9.14572411 | V42: 8.688437905 | W42: 8.25401601 | X42: 7.350884121
B43: New York | C43: 7811 | D43: 7023 | E43: 5425 | F43: 5376.175 | G43: 5349.294125 | H43: 5081.829419 | I43: 4827.737948 | J43: 4586.35105 | K43: 3905.5 | O43: New York | P43: 13.20383491 | Q43: 12.88456188 | R43: 11.21775128 | S43: 10.24180692 | T43: 8.814790021 | U43: 8.37405052 | V43: 7.955347994 | W43: 7.557580594 | X43: 6.730650767
B44: North Carolina | C44: 12166 | D44: 10915 | E44: 8391 | F44: 8315.481 | G44: 8273.903595 | H44: 7860.208415 | I44: 7467.197994 | J44: 7093.838095 | K44: 6083 | O44: North Carolina | P44: 15.62066775 | Q44: 15.16052013 | R44: 12.29460063 | S44: 11.22497038 | T44: 9.660966827 | U44: 9.177918486 | V44: 8.719022562 | W44: 8.283071434 | X44: 7.37676038
B45: North Dakota | C45: 13476 | D45: 12149 | E45: 8732 | F45: 8653.412 | G45: 8610.14494 | H45: 8179.637693 | I45: 7770.655808 | J45: 7382.123018 | K45: 6738 | O45: North Dakota | P45: 15.97274439 | Q45: 15.48966412 | R45: 12.77126793 | S45: 11.66016762 | T45: 10.03552693 | U45: 9.533750586 | V45: 9.057063057 | W45: 8.604209904 | X45: 7.662760756
B46: Ohio | C46: 7575 | D46: 6847 | E46: 5532 | F46: 5482.212 | G46: 5454.80094 | H46: 5182.060893 | I46: 4922.957848 | J46: 4676.809956 | K46: 3787.5 | O46: Ohio | P46: 14.53495368 | Q46: 14.12649667 | R46: 11.5604378 | S46: 10.55467971 | T46: 9.084069454 | U46: 8.629865981 | V46: 8.198372682 | W46: 7.788454048 | X46: 6.936262678
B47: Oklahoma | C47: 13787 | D47: 11990 | E47: 8562 | F47: 8484.942 | G47: 8442.51729 | H47: 8020.391425 | I47: 7619.371854 | J47: 7238.403262 | K47: 6893.5 | O47: Oklahoma | P47: 16.41546809 | Q47: 15.94033292 | R47: 12.76644961 | S47: 11.6557685 | T47: 10.03174075 | U47: 9.530153716 | V47: 9.05364603 | W47: 8.600963728 | X47: 7.659869768
B48: Oregon | C48: 7372 | D48: 6704 | E48: 5507 | F48: 5457.437 | G48: 5430.149815 | H48: 5158.642324 | I48: 4900.710208 | J48: 4655.674698 | K48: 3686 | O48: Oregon | P48: 12.95302958 | Q48: 12.59623977 | R48: 10.41476757 | S48: 9.50868279 | T48: 8.183813935 | U48: 7.774623238 | V48: 7.385892076 | W48: 7.016597473 | X48: 6.248860541
B49: Pennsylvania | C49: 9359 | D49: 8447 | E49: 6610 | F49: 6550.51 | G49: 6517.75745 | H49: 6191.869577 | I49: 5882.276099 | J49: 5588.162294 | K49: 4679.5 | O49: Pennsylvania | P49: 14.45114537 | Q49: 14.04008606 | R49: 11.49211909 | S49: 10.49230473 | T49: 9.03038534 | U49: 8.578866073 | V49: 8.149922769 | W49: 7.742426631 | X49: 6.895271455
B50: Rhode Island | C50: 6169 | D50: 5551 | E50: 4606 | F50: 4564.546 | G50: 4541.72327 | H50: 4314.637107 | I50: 4098.905251 | J50: 3893.959989 | K50: 3084.5 | O50: Rhode Island | P50: 13.35919604 | Q50: 12.82396461 | R50: 10.31683116 | S50: 9.419266852 | T50: 8.106856546 | U50: 7.701513719 | V50: 7.316438033 | W50: 6.950616132 | X50: 6.190098698
B51: South Carolina | C51: 12745 | D51: 11209 | E51: 8586 | F51: =E51*(1-F$7) -> 8508.726 | G51: 8466.18237 | H51: 8042.873252 | I51: 7640.729589 | J51: 7258.693109 | K51: 6372.5 | O51: South Carolina | P51: 14.92461082 | Q51: 14.40035433 | R51: 11.43215648 | S51: =R51*(1-S$7) -> 10.43755887 | T51: 8.983267358 | U51: 8.53410399 | V51: 8.107398791 | W51: 7.702028851 | X51: 6.85929389
B52: South Dakota | C52: 13305 | D52: 11941 | E52: 8684 | F52: 8605.844 | G52: 8562.81478 | H52: 8134.674041 | I52: 7727.940339 | J52: 7341.543322 | K52: 6652.5 | O52: South Dakota | P52: 14.31928567 | Q52: 13.94560167 | R52: 11.55628315 | S52: 10.55088651 | T52: 9.080804775 | U52: 8.626764536 | V52: 8.195426309 | W52: 7.785654994 | X52: 6.933769888
B53: Tennessee | C53: 12066 | D53: 10928 | E53: 8404 | F53: 8328.364 | G53: 8286.72218 | H53: 7872.386071 | I53: 7478.766767 | J53: 7104.828429 | K53: 6033 | O53: Tennessee | P53: 15.48364522 | Q53: 15.05205693 | R53: 12.20159036 | S53: 11.140052 | T53: 9.587880339 | U53: 9.108486322 | V53: 8.653062006 | W53: 8.220408905 | X53: 7.320954214
B54: Texas | C54: 11170 | D54: 9708 | E54: 7902 | F54: 7830.882 | G54: 7791.72759 | H54: 7402.14121 | I54: 7032.03415 | J54: 6680.432442 | K54: 5585 | O54: Texas | P54: 16.09934015 | Q54: 15.67946185 | R54: 12.67819174 | S54: 11.57518906 | T54: 9.962388655 | U54: 9.464269222 | V54: 8.991055761 | W54: 8.541502973 | X54: 7.606915046
B55: Utah | C55: 7799 | D55: 7001 | E55: 5762 | F55: 5710.142 | G55: 5681.59129 | H55: 5397.511725 | I55: 5127.636139 | J55: 4871.254332 | K55: 3899.5 | O55: Utah | P55: 12.60991119 | Q55: 12.21770938 | R55: 9.984993999 | S55: 9.116299521 | T55: 7.846102421 | U55: 7.4537973 | V55: 7.081107435 | W55: 6.727052063 | X55: 5.990996399
B56: Vermont | C56: 6387 | D56: 5697 | E56: 4538 | F56: 4497.158 | G56: 4474.67221 | H56: 4250.9386 | I56: 4038.39167 | J56: 3836.472086 | K56: 3193.5 | O56: Vermont | P56: 14.4945718 | Q56: 14.08105115 | R56: 11.92167644 | S56: 10.88449059 | T56: 9.367926952 | U56: 8.899530605 | V56: 8.454554074 | W56: 8.031826371 | X56: 7.153005866
B57: Virginia | C57: 13357 | D57: 12126 | E57: 9184 | F57: 9101.344 | G57: 9055.83728 | H57: 8603.045416 | I57: 8172.893145 | J57: 7764.248488 | K57: 6678.5 | O57: Virginia | P57: 15.04211175 | Q57: 14.65697001 | R57: 12.08649722 | S57: 11.03497196 | T57: 9.497441371 | U57: 9.022569303 | V57: 8.571440838 | W57: 8.142868796 | X57: 7.251898332
B58: Washington | C58: 7539 | D58: 6817 | E58: 5464 | F58: 5414.824 | G58: 5387.74988 | H58: 5118.362386 | I58: 4862.444267 | J58: 4619.322053 | K58: 3769.5 | O58: Washington | P58: 13.11831584 | Q58: 12.75014267 | R58: 10.56050067 | S58: 9.641737115 | T58: 8.298329464 | U58: 7.883412991 | V58: 7.489242342 | W58: 7.114780225 | X58: 6.336300404
B59: West Virginia | C59: 14693 | D59: 13326 | E59: 9952 | F59: 9862.432 | G59: 9813.11984 | H59: 9322.463848 | I59: 8856.340656 | J59: 8413.523623 | K59: 7346.5 | O59: West Virginia | P59: 15.05646746 | Q59: 14.57904823 | R59: 11.89401735 | S59: 10.85923784 | T59: 9.34619273 | U59: 8.878883093 | V59: 8.434938939 | W59: 8.013191992 | X59: 7.136410409
B60: Wisconsin | C60: 9128 | D60: 8209 | E60: 6231 | F60: 6174.921 | G60: 6144.046395 | H60: 5836.844075 | I60: 5545.001871 | J60: 5267.751778 | K60: 4564 | O60: Wisconsin | P60: 14.45530236 | Q60: 14.03646456 | R60: 11.71589076 | S60: 10.69660826 | T60: 9.206222744 | U60: 8.745911607 | V60: 8.308616027 | W60: 7.893185225 | X60: 7.029534456
B61: Wyoming | C61: 7435 | D61: 6655 | E61: 5095 | F61: =E61*(1-F$7) -> 5049.145 | G61: =F61*(1-G$7) -> 5023.899275 | H61: =G61*(1-H$7) -> 4772.704311 | I61: =H61*(1-I$7) -> 4534.069096 | J61: 4307.365641 | K61: 3717.5 | O61: Wyoming | P61: 14.01466378 | Q61: 13.66812702 | R61: 11.41863745 | S61: =R61*(1-S$7) -> 10.42521599 | T61: =S61*(1-T$7) -> 8.972644247 | U61: =T61*(1-U$7) -> 8.524012034 | V61: =U61*(1-V$7) -> 8.097811432 | W61: 7.692920861 | X61: 6.851182471
B63: Natural gas + oil (MMBtu) | C63: IECC 2006 | D63: IECC 2009 | E63: IECC 2012 | F63: IECC 2015 | G63: IECC 2018 | H63: IECC 2021* | I63: IECC 2024* | J63: IECC 2027* | K63: PassiveHouse* | O63: Natural gas + oil (kBtu/sf) | P63: ASHRAE 90.1 2004 | Q63: ASHRAE 90.1 2007 | R63: ASHRAE 90.1 2010 | S63: ASHRAE 90.1 2013 | T63: ASHRAE 90.1 2016 | U63: ASHRAE 90.1 2019* | V63: ASHRAE 90.1 2022* | W63: ASHRAE 90.1 2025* | X63: PassiveHouse*
B64: =StateInput -> Nationwide | C64: =INDEX(C65:C116,MATCH($B64,$B65:$B116,0)) -> 35.46082969 | D64: =INDEX(D65:D116,MATCH($B64,$B65:$B116,0)) -> 32.28611765 | E64: 21.48449536 | F64: 21.2911349 | G64: 21.18467922 | H64: 20.12544526 | I64: 19.119173 | J64: 18.16321435 | K64: 17.73041485 | O64: =StateInput -> Nationwide | P64: =INDEX(P65:P116,MATCH($O64,$O65:$O116,0)) -> 23.54391572 | Q64: =INDEX(Q65:Q116,MATCH($O64,$O65:$O116,0)) -> 22.01900943 | R64: 17.24374701 | S64: 15.74354102 | T64: 13.54995358 | U64: 12.8724559 | V64: 12.2288331 | W64: 11.61739145 | X64: 10.34624821
B65: Nationwide | C65: =SUMPRODUCT(C66:C116,'Building Growth Projections'!$D$20:$D$70)/'Building Growth Projections'!$D$19 -> 35.46082969 | D65: =SUMPRODUCT(D66:D116,'Building Growth Projections'!$D$20:$D$70)/'Building Growth Projections'!$D$19 -> 32.28611765 | E65: =SUMPRODUCT(E66:E116,'Building Growth Projections'!$D$20:$D$70)/'Building Growth Projections'!$D$19 -> 21.48449536 | F65: =E65*(1-F$7) -> 21.2911349 | G65: =F65*(1-G$7) -> 21.18467922 | H65: =G65*(1-H$7) -> 20.12544526 | I65: =H65*(1-I$7) -> 19.119173 | J65: =I65*(1-J$7) -> 18.16321435 | K65: =C65*(1-K$7) -> 17.73041485 | O65: Nationwide | P65: =SUMPRODUCT(P66:P116,'Building Growth Projections'!$AK$20:$AK$70)/'Building Growth Projections'!$AK$19 -> 23.54391572 | Q65: =SUMPRODUCT(Q66:Q116,'Building Growth Projections'!$AK$20:$AK$70)/'Building Growth Projections'!$AK$19 -> 22.01900943 | R65: =SUMPRODUCT(R66:R116,'Building Growth Projections'!$AK$20:$AK$70)/'Building Growth Projections'!$AK$19 -> 17.24374701 | S65: =R65*(1-S$7) -> 15.74354102 | T65: =S65*(1-T$7) -> 13.54995358 | U65: =T65*(1-U$7) -> 12.8724559 | V65: =U65*(1-V$7) -> 12.2288331 | W65: =V65*(1-W$7) -> 11.61739145 | X65: =R65*(1-X$7) -> 10.34624821
B66: Alabama | C66: 14.9 | D66: 13.8 | E66: 9 | F66: =E66*(1-F$7) -> 8.919 | G66: 8.874405 | H66: 8.43068475 | I66: 8.009150512 | J66: =I66*(1-J$7) -> 7.608692987 | K66: =C66*(1-K$7) -> 7.45 | O66: Alabama | P66: 19.87720829 | Q66: 18.52863264 | R66: 14.91783609 | S66: =R66*(1-S$7) -> 13.61998435 | T66: 11.72227743 | U66: 11.13616356 | V66: 10.57935538 | W66: =V66*(1-W$7) -> 10.05038761 | X66: =W66*(1-X$7) -> 6.030232569
B67: Alaska | C67: 111.5 | D67: 100.7 | E67: 66.6 | F67: 66.0006 | G67: 65.670597 | H67: 62.38706715 | I67: 59.26771379 | J67: =I67*(1-J$7) -> 56.3043281 | K67: =C67*(1-K$7) -> 55.75 | O67: Alaska | P67: 57.04800427 | Q67: 53.04635307 | R67: 41.37129697 | S67: 37.77199414 | T67: 32.50912653 | U67: 30.88367021 | V67: =U67*(1-V$7) -> 29.3394867 | W67: =V67*(1-W$7) -> 27.87251236 | X67: =W67*(1-X$7) -> 16.72350742
B68: Arizona | C68: 24.8 | D68: 23.5 | E68: 17.4 | F68: 17.2434 | G68: 17.157183 | H68: 16.29932385 | I68: 15.48435766 | J68: 14.71013977 | K68: 12.4 | O68: Arizona | P68: 13.63760275 | Q68: 12.92182471 | R68: 11.56927932 | S68: 10.56275201 | T68: 9.091017026 | U68: 8.636466174 | V68: 8.204642866 | W68: 7.794410722 | X68: 4.676646433
B69: Arkansas | C69: 31.6 | D69: 28.6 | E69: 18.2 | F69: 18.0362 | G69: 17.946019 | H69: 17.04871805 | I69: 16.19628215 | J69: 15.38646804 | K69: 15.8 | O69: Arkansas | P69: 18.64484409 | Q69: 17.24020741 | R69: 12.85625866 | S69: 11.73776416 | T69: 10.10231175 | U69: 9.597196164 | V69: 9.117336356 | W69: 8.661469538 | X69: 5.196881723
B70: California | C70: 21.5 | D70: 20 | E70: 13 | F70: 12.883 | G70: 12.818585 | H70: 12.17765575 | I70: 11.56877296 | J70: 10.99033431 | K70: 10.75 | O70: California | P70: 14.04104642 | Q70: 13.2385703 | R70: 11.72106626 | S70: 10.7013335 | T70: 9.210289598 | U70: 8.749775119 | V70: 8.312286363 | W70: 7.896672045 | X70: 4.738003227
B71: Colorado | C71: 68.7 | D71: 62.5 | E71: 42.1 | F71: 41.7211 | G71: 41.5124945 | H71: 39.43686977 | I71: 37.46502629 | J71: 35.59177497 | K71: 34.35 | O71: Colorado | P71: 25.4256099 | Q71: 23.87695767 | R71: 21.08155292 | S71: 19.24745781 | T71: 16.56566077 | U71: 15.73737773 | V71: 14.95050885 | W71: 14.2029834 | X71: 8.521790042
B72: Connecticut | C72: 83.4 | D72: 75.6 | E72: 51 | F72: 50.541 | G72: 50.288295 | H72: 47.77388025 | I72: 45.38518624 | J72: 43.11592693 | K72: 41.7 | O72: Connecticut | P72: 33.03418531 | Q72: 30.78505619 | R72: 23.8966474 | S72: 21.81763908 | T72: 18.77773217 | U72: 17.83884556 | V72: 16.94690328 | W72: 16.09955812 | X72: 9.659734871
B73: Delaware | C73: 18.7 | D73: 16.7 | E73: 10.5 | F73: 10.4055 | G73: 10.3534725 | H73: 9.835798875 | I73: 9.344008931 | J73: 8.876808485 | K73: 9.35 | O73: Delaware | P73: 26.51693758 | Q73: 24.71778757 | R73: 16.38820752 | S73: 14.96243346 | T73: 12.87767972 | U73: 12.23379573 | V73: 11.62210594 | W73: 11.04100065 | X73: 6.624600388
B74: District of Columbia | C74: 10.4 | D74: 9.4 | E74: 6.5 | F74: 6.4415 | G74: 6.4092925 | H74: 6.088827875 | I74: 5.784386481 | J74: 5.495167157 | K74: 5.2 | O74: District of Columbia | P74: 16.34781633 | Q74: 14.67360369 | R74: 10.87436128 | S74: 9.92829185 | T74: 8.544957802 | U74: 8.117709912 | V74: 7.711824417 | W74: 7.326233196 | X74: 4.395739917
B75: Florida | C75: 4.4 | D75: 4.3 | E75: 3.4 | F75: 3.3694 | G75: 3.352553 | H75: 3.18492535 | I75: 3.025679082 | J75: 2.874395128 | K75: 2.2 | O75: Florida | P75: 13.74733279 | Q75: 12.98095066 | R75: 10.87152642 | S75: 9.925703624 | T75: 8.542730201 | U75: 8.115593691 | V75: 7.709814006 | W75: 7.324323306 | X75: 4.394593984
B76: Georgia | C76: 11.1 | D76: 10.2 | E76: 6.5 | F76: =E76*(1-F$7) -> 6.4415 | G76: 6.4092925 | H76: 6.088827875 | I76: 5.784386481 | J76: 5.495167157 | K76: 5.55 | O76: Georgia | P76: 20.08623182 | Q76: 18.64470867 | R76: 14.95726246 | S76: =R76*(1-S$7) -> 13.65598062 | T76: 11.75325826 | U76: 11.16559535 | V76: 10.60731558 | W76: 10.0769498 | X76: 6.04616988
B77: Hawaii | C77: 0 | D77: 0 | E77: 0 | F77: 0 | G77: 0 | H77: 0 | I77: 0 | J77: 0 | K77: 0 | O77: Hawaii | P77: 16.55533395 | Q77: 15.58529049 | R77: 14.52326896 | S77: 13.25974456 | T77: 11.41223077 | U77: 10.84161923 | V77: 10.29953827 | W77: 9.784561357 | X77: 5.870736814
B78: Idaho | C78: 70.5 | D78: 63.9 | E78: 42.9 | F78: 42.5139 | G78: 42.3013305 | H78: 40.18626397 | I78: 38.17695078 | J78: 36.26810324 | K78: 35.25 | O78: Idaho | P78: 26.43324575 | Q78: 24.67361981 | R78: 21.46540464 | S78: 19.59791444 | T78: 16.86728739 | U78: 16.02392302 | V78: 15.22272687 | W78: 14.46159052 | X78: 8.676954315
B79: Illinois | C79: 71.7 | D79: 64.9 | E79: 43.5 | F79: 43.1085 | G79: 42.8929575 | H79: 40.74830962 | I79: 38.71089414 | J79: 36.77534944 | K79: 35.85 | O79: Illinois | P79: 31.14102768 | Q79: 29.13072623 | R79: 20.78995068 | S79: 18.98122497 | T79: 16.33652283 | U79: 15.51969668 | V79: 14.74371185 | W79: 14.00652626 | X79: 8.403915755
B80: Indiana | C80: 73.1 | D80: 66.2 | E80: 44 | F80: 43.604 | G80: 43.38598 | H80: 41.216681 | I80: 39.15584695 | J80: 37.1980546 | K80: 36.55 | O80: Indiana | P80: 33.45067151 | Q80: 31.74416648 | R80: 24.74177087 | S80: 22.58923681 | T80: 19.44182123 | U80: 18.46973017 | V80: 17.54624366 | W80: 16.66893148 | X80: 10.00135889
B81: Iowa | C81: 66 | D81: 59.6 | E81: 39 | F81: 38.649 | G81: 38.455755 | H81: 36.53296725 | I81: 34.70631889 | J81: 32.97100294 | K81: 33 | O81: Iowa | P81: 31.03046116 | Q81: 28.75896842 | R81: 20.52350089 | S81: 18.73795631 | T81: 16.1271494 | U81: 15.32079193 | V81: 14.55475233 | W81: 13.82701472 | X81: 8.296208831
B82: Kansas | C82: 51.7 | D82: 46.1 | E82: 29.5 | F82: 29.2345 | G82: 29.0883275 | H82: 27.63391113 | I82: 26.25221557 | J82: 24.93960479 | K82: 25.85 | O82: Kansas | P82: 25.86646064 | Q82: 23.9254863 | R82: 16.69126453 | S82: 15.23912452 | T82: 13.11581871 | U82: 12.46002777 | V82: 11.83702638 | W82: 11.24517506 | X82: 6.747105038
B83: Kentucky | C83: 25.1 | D83: 22.6 | E83: 14.6 | F83: 14.4686 | G83: 14.396257 | H83: 13.67644415 | I83: 12.99262194 | J83: 12.34299085 | K83: 12.55 | O83: Kentucky | P83: 25.07491853 | Q83: 23.54065189 | R83: 16.91039517 | S83: 15.43919079 | T83: 13.28800924 | U83: 12.62360877 | V83: 11.99242833 | W83: 11.39280692 | X83: 6.835684151
B84: Louisiana | C84: 22.8 | D84: 21.3 | E84: 15.4 | F84: 15.2614 | G84: 15.185093 | H84: 14.42583835 | I84: 13.70454643 | J84: 13.01931911 | K84: 11.4 | O84: Louisiana | P84: 17.49919106 | Q84: 16.48376067 | R84: 13.63062876 | S84: 12.44476406 | T84: 10.71080357 | U84: 10.17526339 | V84: 9.66650022 | W84: 9.183175209 | X84: 5.509905125
B85: Maine | C85: 114.3 | D85: 103 | E85: 66 | F85: 65.406 | G85: 65.07897 | H85: 61.8250215 | I85: 58.73377043 | J85: 55.7970819 | K85: 57.15 | O85: Maine | P85: 40.35976557 | Q85: 37.22294283 | R85: 27.39089162 | S85: 25.00788405 | T85: 21.52347223 | U85: 20.44729862 | V85: 19.42493369 | W85: 18.45368701 | X85: 11.0722122
B86: Maryland | C86: 15.6 | D86: 13.9 | E86: 8.8 | F86: =E86*(1-F$7) -> 8.7208 | G86: 8.677196 | H86: 8.2433362 | I86: 7.83116939 | J86: 7.43961092 | K86: 7.8 | O86: Maryland | P86: 21.45214734 | Q86: 20.04217964 | R86: 14.7796479 | S86: =R86*(1-S$7) -> 13.49381853 | T86: 11.61369062 | U86: 11.03300609 | V86: 10.48135579 | W86: 9.957287997 | X86: 5.974372798
B87: Massachusetts | C87: 87.9 | D87: 79.1 | E87: 51.3 | F87: 50.8383 | G87: 50.5841085 | H87: 48.05490307 | I87: 45.65215792 | J87: 43.36955003 | K87: 43.95 | O87: Massachusetts | P87: 29.26461037 | Q87: 27.21138156 | R87: 20.12874054 | S87: 18.37754012 | T87: 15.81695091 | U87: 15.02610336 | V87: 14.2747982 | W87: 13.56105829 | X87: 8.136634972
B88: Michigan | C88: 98.5 | D88: 88.8 | E88: 58.4 | F88: 57.8744 | G88: 57.585028 | H88: 54.7057766 | I88: 51.97048777 | J88: 49.37196338 | K88: 49.25 | O88: Michigan | P88: 34.15253349 | Q88: 31.66052065 | R88: 23.88445854 | S88: 21.80651064 | T88: 18.76815429 | U88: 17.82974657 | V88: 16.93825925 | W88: 16.09134628 | X88: 9.65480777
B89: Minnesota | C89: 75.5 | D89: 68 | E89: 44.2 | F89: 43.8022 | G89: 43.583189 | H89: 41.40402955 | I89: 39.33382807 | J89: 37.36713667 | K89: 37.75 | O89: Minnesota | P89: 34.38853512 | Q89: 32.02194801 | R89: 22.96205827 | S89: 20.9643592 | T89: 18.04334194 | U89: 17.14117484 | V89: 16.2841161 | W89: 15.4699103 | X89: 9.281946178
B90: Mississippi | C90: 15.8 | D90: 14.5 | E90: 9.7 | F90: 9.6127 | G90: 9.5646365 | H90: 9.086404675 | I90: 8.632084441 | J90: 8.200480219 | K90: 7.9 | O90: Mississippi | P90: 21.16461866 | Q90: 19.84548808 | R90: 16.00207084 | S90: 14.60989067 | T90: 12.5742576 | U90: 11.94554472 | V90: 11.34826749 | W90: 10.78085411 | X90: 6.468512468
B91: Missouri | C91: 49.6 | D91: 44.4 | E91: 28.6 | F91: 28.3426 | G91: 28.200887 | H91: 26.79084265 | I91: 25.45130052 | J91: 24.17873549 | K91: 24.8 | O91: Missouri | P91: 25.9811224 | Q91: 24.23669311 | R91: 16.94597761 | S91: 15.47167756 | T91: 13.31596954 | U91: 12.65017107 | V91: 12.01766251 | W91: 11.41677939 | X91: 6.850067633
B92: Montana | C92: 80.7 | D92: 73.2 | E92: 48.9 | F92: 48.4599 | G92: 48.2176005 | H92: 45.80672047 | I92: 43.51638445 | J92: 41.34056523 | K92: 40.35 | O92: Montana | P92: 33.30124453 | Q92: 30.98638215 | R92: 24.45837237 | S92: 22.33049397 | T92: 19.21912969 | U92: 18.25817321 | V92: 17.34526455 | W92: 16.47800132 | X92: 9.886800792
B93: Nebraska | C93: 55.1 | D93: 49.9 | E93: 33.6 | F93: 33.2976 | G93: 33.131112 | H93: 31.4745564 | I93: 29.90082858 | J93: 28.40578715 | K93: 27.55 | O93: Nebraska | P93: 34.94641646 | Q93: 32.63201902 | R93: 23.29470477 | S93: 21.26806546 | T93: 18.30473204 | U93: 17.38949543 | V93: 16.52002066 | W93: 15.69401963 | X93: 9.416411777
B94: Nevada | C94: 39.9 | D94: 36.4 | E94: 22.9 | F94: 22.6939 | G94: 22.5804305 | H94: 21.45140897 | I94: 20.37883853 | J94: 19.3598966 | K94: 19.95 | O94: Nevada | P94: 21.46717636 | Q94: 20.16950111 | R94: 18.44054831 | S94: 16.83622061 | T94: 14.49038735 | U94: 13.76586799 | V94: 13.07757459 | W94: 12.42369586 | X94: 7.454217515
B95: New Hampshire | C95: 93.2 | D95: 84.5 | E95: 56.5 | F95: 55.9915 | G95: 55.7115425 | H95: 52.92596537 | I95: 50.27966711 | J95: 47.76568375 | K95: 46.6 | O95: New Hampshire | P95: 39.14458771 | Q95: 36.2902687 | R95: 27.39250249 | S95: 25.00935477 | T95: 21.52473803 | U95: 20.44850113 | V95: 19.42607607 | W95: 18.45477227 | X95: 11.07286336
B96: New Jersey | C96: 64.6 | D96: 57.9 | E96: 37.8 | F96: =E96*(1-F$7) -> 37.4598 | G96: 37.272501 | H96: 35.40887595 | I96: 33.63843215 | J96: 31.95651054 | K96: 32.3 | O96: New Jersey | P96: 35.84376594 | Q96: 33.53771235 | R96: 25.49439845 | S96: =R96*(1-S$7) -> 23.27638578 | T96: 20.033228 | U96: 19.0315666 | V96: 18.07998827 | W96: 17.17598886 | X96: 10.30559331
B97: New Mexico | C97: 53.8 | D97: 48.5 | E97: 30.7 | F97: 30.4237 | G97: 30.2715815 | H97: 28.75800242 | I97: 27.3201023 | J97: 25.95409719 | K97: 26.9 | O97: New Mexico | P97: 21.6854881 | Q97: 20.26290911 | R97: 17.97289467 | S97: 16.40925284 | T97: 14.12291008 | U97: 13.41676458 | V97: 12.74592635 | W97: 12.10863003 | X97: 7.265178019
B98: New York | C98: 73.1 | D98: 65.9 | E98: 43.2 | F98: 42.8112 | G98: 42.597144 | H98: 40.4672868 | I98: 38.44392246 | J98: 36.52172634 | K98: 36.55 | O98: New York | P98: 25.80404319 | Q98: 23.95729458 | R98: 18.32945451 | S98: 16.73479196 | T98: 14.40309102 | U98: 13.68293647 | V98: 12.99878964 | W98: 12.34885016 | X98: 7.409310097
B99: North Carolina | C99: 11.5 | D99: 10.5 | E99: 6.6 | F99: 6.5406 | G99: 6.507897 | H99: 6.18250215 | I99: 5.873377042 | J99: 5.57970819 | K99: 5.75 | O99: North Carolina | P99: 24.49867277 | Q99: 22.87174403 | R99: 17.41155905 | S99: 15.89675342 | T99: 13.6818185 | U99: 12.99772758 | V99: 12.3478412 | W99: 11.73044914 | X99: 7.038269483
B100: North Dakota | C100: 73.2 | D100: 66.1 | E100: 43.4 | F100: 43.0094 | G100: 42.794353 | H100: 40.65463535 | I100: 38.62190358 | J100: 36.6908084 | K100: 36.6 | O100: North Dakota | P100: 40.64716499 | Q100: 38.2176656 | R100: 29.46142283 | S100: 26.89827905 | T100: 23.15047371 | U100: 21.99295002 | V100: 20.89330252 | W100: 19.84863739 | X100: 11.90918244
B101: Ohio | C101: 69.7 | D101: 63.3 | E101: 42.9 | F101: 42.5139 | G101: 42.3013305 | H101: 40.18626397 | I101: 38.17695078 | J101: 36.26810324 | K101: 34.85 | O101: Ohio | P101: 31.96583835 | Q101: 29.75994205 | R101: 21.42398196 | S101: 19.56009553 | T101: 16.83473788 | U101: 15.99300099 | V101: 15.19335094 | W101: 14.43368339 | X101: 8.660210035
B102: Oklahoma | C102: 39.5 | D102: 35.4 | E102: 21.3 | F102: 21.1083 | G102: 21.0027585 | H102: 19.95262057 | I102: 18.95498955 | J102: 18.00724007 | K102: 19.75 | O102: Oklahoma | P102: 21.03164188 | Q102: 19.739646 | R102: 15.90422126 | S102: 14.52055401 | T102: 12.49736845 | U102: 11.87250002 | V102: 11.27887502 | W102: 10.71493127 | X102: 6.428958763
B103: Oregon | C103: 45 | D103: 41 | E103: 27.9 | F103: 27.6489 | G103: 27.5106555 | H103: 26.13512272 | I103: 24.82836659 | J103: 23.58694826 | K103: 22.5 | O103: Oregon | P103: 23.38088953 | Q103: 21.96730015 | R103: 18.26385326 | S103: 16.67489803 | T103: 14.35154225 | U103: 13.63396514 | V103: 12.95226688 | W103: 12.30465354 | X103: 7.382792124
B104: Pennsylvania | C104: 78.1 | D104: 70.7 | E104: 46.9 | F104: 46.4779 | G104: 46.2455105 | H104: 43.93323497 | I104: 41.73657323 | J104: 39.64974456 | K104: 39.05 | O104: Pennsylvania | P104: 33.82468114 | Q104: 31.44392833 | R104: 23.79554548 | S104: 21.72533302 | T104: 18.69828735 | U104: 17.76337298 | V104: 16.87520434 | W104: 16.03144412 | X104: 9.618866471
B105: Rhode Island | C105: 89 | D105: 80.4 | E105: 52.9 | F105: 52.4239 | G105: 52.1617805 | H105: 49.55369147 | I105: 47.0760069 | J105: 44.72220656 | K105: 44.5 | O105: Rhode Island | P105: 22.82315267 | Q105: 20.86717735 | R105: 15.69338126 | S105: 14.32805709 | T105: 12.33169261 | U105: 11.71510798 | V105: 11.12935258 | W105: 10.57288495 | X105: 6.343730969
B106: South Carolina | C106: 10.2 | D106: 9.5 | E106: 5.9 | F106: =E106*(1-F$7) -> 5.8469 | G106: 5.8176655 | H106: 5.526782225 | I106: 5.250443114 | J106: 4.987920958 | K106: 5.1 | O106: South Carolina | P106: 16.61315275 | Q106: 15.49584595 | R106: 12.34492622 | S106: =R106*(1-S$7) -> 11.27091764 | T106: 9.700512139 | U106: 9.215486532 | V106: 8.754712205 | W106: 8.316976595 | X106: 4.990185957
B107: South Dakota | C107: 68.9 | D107: 62.1 | E107: 39.9 | F107: 39.5409 | G107: 39.3431955 | H107: 37.37603573 | I107: 35.50723394 | J107: 33.73187224 | K107: 34.45 | O107: South Dakota | P107: 40.71684052 | Q107: 37.73204081 | R107: 26.98731167 | S107: 24.63941555 | T107: 21.20634338 | U107: 20.14602621 | V107: 19.1387249 | W107: 18.18178866 | X107: 10.90907319
B108: Tennessee | C108: 18.4 | D108: 16.6 | E108: 11 | F108: 10.901 | G108: 10.846495 | H108: 10.30417025 | I108: 9.788961737 | J108: 9.299513651 | K108: 9.2 | O108: Tennessee | P108: 26.68151465 | Q108: 25.02907138 | R108: 18.83820095 | S108: 17.19927746 | T108: 14.80285858 | U108: 14.06271565 | V108: 13.35957987 | W108: 12.69160087 | X108: 7.614960523
B109: Texas | C109: 20.9 | D109: 19.5 | E109: 13.8 | F109: 13.6758 | G109: 13.607421 | H109: 12.92704995 | I109: 12.28069745 | J109: 11.66666258 | K109: 10.45 | O109: Texas | P109: 17.00497889 | Q109: 15.96697949 | R109: 12.98405313 | S109: 11.8544405 | T109: 10.20273129 | U109: 9.692594721 | V109: 9.207964985 | W109: 8.747566736 | X109: 5.248540042
B110: Utah | C110: 58 | D110: 52.9 | E110: 35.8 | F110: 35.4778 | G110: 35.300411 | H110: 33.53539045 | I110: 31.85862093 | J110: 30.26568988 | K110: 29 | O110: Utah | P110: 21.06490522 | Q110: 19.60333399 | R110: 17.46426833 | S110: 15.94487699 | T110: 13.72323689 | U110: 13.03707505 | V110: 12.3852213 | W110: 11.76596023 | X110: 7.059576139
B111: Vermont | C111: 110.1 | D111: 99.3 | E111: 64.3 | F111: 63.7213 | G111: 63.4026935 | H111: 60.23255882 | I111: 57.22093088 | J111: 54.35988434 | K111: 55.05 | O111: Vermont | P111: 45.25178013 | Q111: 42.33735328 | R111: 34.38090179 | S111: 31.38976333 | T111: 27.01614811 | U111: 25.6653407 | V111: 24.38207367 | W111: 23.16296998 | X111: 13.89778199
B112: Virginia | C112: 13.6 | D112: 12.2 | E112: 7.8 | F112: 7.7298 | G112: 7.691151 | H112: 7.30659345 | I112: 6.941263777 | J112: 6.594200589 | K112: 6.8 | O112: Virginia | P112: 28.76462209 | Q112: 26.80941503 | R112: 20.00160205 | S112: 18.26146267 | T112: 15.71704683 | U112: 14.93119449 | V112: 14.18463476 | W112: 13.47540303 | X112: 8.085241816
B113: Washington | C113: 50.7 | D113: 46 | E113: 31 | F113: 30.721 | G113: 30.567395 | H113: 29.03902525 | I113: 27.58707399 | J113: 26.20772029 | K113: 25.35 | O113: Washington | P113: 21.41990353 | Q113: 20.15638628 | R113: 16.85780405 | S113: 15.39117509 | T113: 13.24668369 | U113: 12.5843495 | V113: 11.95513203 | W113: 11.35737543 | X113: 6.814425256
B114: West Virginia | C114: 16.1 | D114: 14.7 | E114: 9.8 | F114: 9.7118 | G114: 9.663241 | H114: 9.18007895 | I114: 8.721075002 | J114: 8.285021252 | K114: 8.05 | O114: West Virginia | P114: 31.05825477 | Q114: 28.43180405 | R114: 21.16638854 | S114: 19.32491274 | T114: 16.63232371 | U114: 15.80070752 | V114: 15.01067214 | W114: 14.26013854 | X114: 8.556083122
B115: Wisconsin | C115: 97.3 | D115: 88 | E115: 57.4 | F115: 56.8834 | G115: 56.598983 | H115: 53.76903385 | I115: 51.08058216 | J115: 48.52655305 | K115: 48.65 | O115: Wisconsin | P115: 39.50734472 | Q115: 37.30054525 | R115: 28.46165992 | S115: 25.98549551 | T115: 22.36487061 | U115: 21.24662708 | V115: 20.18429572 | W115: 19.17508094 | X115: 11.50504856
B116: Wyoming | C116: 84.8 | D116: 76.4 | E116: 48.9 | F116: =E116*(1-F$7) -> 48.4599 | G116: =F116*(1-G$7) -> 48.2176005 | H116: =G116*(1-H$7) -> 45.80672047 | I116: =H116*(1-I$7) -> 43.51638445 | J116: 41.34056523 | K116: 42.4 | O116: Wyoming | P116: 36.78756923 | Q116: 33.7591053 | R116: 25.24676677 | S116: =R116*(1-S$7) -> 23.05029806 | T116: =S116*(1-T$7) -> 19.83864166 | U116: =T116*(1-U$7) -> 18.84670957 | V116: 17.9043741 | W116: 17.00915539 | X116: 10.20549323

Sheet Energy Price Projections (hidden)
B2: Energy Price Projections
B4: Electricity Prices cents per kWh (2011$) | AK4: Natural Gas Prices $ / MMBtu (2011$)
C5: Source: AEO 2013, Electric Power Projection by Region, Tables 55.1-55.9 http://www.eia.gov/forecasts/aeo/data.cfm | AL5: Source: AEO 2013, Electric Power Projection by Region, Tables 55.1-55.9 http://www.eia.gov/forecasts/aeo/data.cfm
B7: Residential | AK7: Residential
B8: # | C8: Region | E8: 2011 | F8: 2012 | G8: 2013 | H8: 2014 | I8: 2015 | J8: 2016 | K8: 2017 | L8: 2018 | M8: 2019 | N8: 2020 | O8: 2021 | P8: 2022 | Q8: 2023 | R8: 2024 | S8: 2025 | T8: 2026 | U8: 2027 | V8: 2028 | W8: 2029 | X8: 2030 | Y8: 2031 | Z8: 2032 | AA8: 2033 | AB8: 2034 | AC8: 2035 | AD8: 2036 | AE8: 2037 | AF8: 2038 | AG8: 2039 | AH8: 2040 | AK8: # | AL8: Region | AN8: 2011 | AO8: 2012 | AP8: 2013 | AQ8: 2014 | AR8: 2015 | AS8: 2016 | AT8: 2017 | AU8: 2018 | AV8: 2019 | AW8: 2020 | AX8: 2021 | AY8: 2022 | AZ8: 2023 | BA8: 2024 | BB8: 2025 | BC8: 2026 | BD8: 2027 | BE8: 2028 | BF8: 2029 | BG8: 2030 | BH8: 2031 | BI8: 2032 | BJ8: 2033 | BK8: 2034 | BL8: 2035 | BM8: 2036 | BN8: 2037 | BO8: 2038 | BP8: 2039 | BQ8: 2040
B9: 1 | C9: ERCT | E9: 11.2751 | F9: 10.903941 | G9: 10.236698 | H9: 10.574727 | I9: 10.477393 | J9: 10.62415 | K9: 10.704326 | L9: 10.85952 | M9: 10.943073 | N9: 11.154491 | O9: 11.612803 | P9: 12.128242 | Q9: 11.978786 | R9: 12.191912 | S9: 12.21642 | T9: 12.52218 | U9: 12.929904 | V9: 13.285352 | W9: 13.581972 | X9: 13.656105 | Y9: 13.736882 | Z9: 13.854354 | AA9: 13.892647 | AB9: 14.160868 | AC9: 14.252434 | AD9: 14.575134 | AE9: 14.871424 | AF9: 15.087674 | AG9: 15.340457 | AH9: 15.364308 | AK9: 1 | AL9: New England | AN9: 13.749829 | AO9: 13.275833 | AP9: 13.334768 | AQ9: 13.121632 | AR9: 12.948215 | AS9: 13.402052 | AT9: 13.710036 | AU9: 14.113783 | AV9: 14.324925 | AW9: 14.487809 | AX9: 14.622537 | AY9: 14.828464 | AZ9: 15.006371 | BA9: 15.165295 | BB9: 15.286032 | BC9: 15.563174 | BD9: 15.648075 | BE9: 15.808321 | BF9: 15.961723 | BG9: 16.108686 | BH9: 16.30876 | BI9: 16.489443 | BJ9: 16.697668 | BK9: 16.986361 | BL9: 17.294346 | BM9: 17.693991 | BN9: 17.98826 | BO9: 18.41008 | BP9: 18.607292 | BQ9: 18.917871
B10: 2 | C10: RFCM | E10: 13.44 | F10: 11.623836 | G10: 11.348213 | H10: 11.615966 | I10: 12.008164 | J10: 12.341517 | K10: 12.698363 | L10: 12.692472 | M10: 12.684309 | N10: 12.675296 | O10: 12.663733 | P10: 12.67297 | Q10: 12.704707 | R10: 12.77537 | S10: 12.821477 | T10: 12.790317 | U10: 12.802173 | V10: 12.806567 | W10: 12.7753 | X10: 12.696932 | Y10: 12.678125 | Z10: 12.679476 | AA10: 12.70484 | AB10: 12.777378 | AC10: 12.825299 | AD10: 12.865972 | AE10: 12.877095 | AF10: 12.958899 | AG10: 13.068774 | AH10: 13.181979 | AK10: 2 | AL10: Middle Atlantic | AN10: 12.581223 | AO10: 12.153114 | AP10: 12.101941 | AQ10: 11.936802 | AR10: 11.756869 | AS10: 12.191467 | AT10: 12.421128 | AU10: 12.764744 | AV10: 12.938112 | AW10: 13.086956 | AX10: 13.202745 | AY10: 13.432504 | AZ10: 13.626386 | BA10: 13.782135 | BB10: 13.89576 | BC10: 14.181978 | BD10: 14.257023 | BE10: 14.409037 | BF10: 14.552016 | BG10: 14.687663 | BH10: 14.879704 | BI10: 15.024144 | BJ10: 15.213665 | BK10: 15.481662 | BL10: 15.763497 | BM10: 16.146065 | BN10: 16.413403 | BO10: 16.817993 | BP10: 16.999004 | BQ10: 17.306328
B11: 3 | C11: RFCW | E11: 11.1976 | F11: 11.602641 | G11: 11.315608 | H11: 11.33068 | I11: 11.380325 | J11: 11.665809 | K11: 11.961969 | L11: 12.052353 | M11: 12.00712 | N11: 11.928443 | O11: 12.030881 | P11: 12.090407 | Q11: 12.182265 | R11: 12.270333 | S11: 12.3384 | T11: 12.42054 | U11: 12.450538 | V11: 12.459259 | W11: 12.481164 | X11: 12.491015 | Y11: 12.502189 | Z11: 12.522827 | AA11: 12.558055 | AB11: 12.634216 | AC11: 12.712829 | AD11: 12.849988 | AE11: 12.979026 | AF11: 13.064727 | AG11: 13.166954 | AH11: 13.235924 | AK11: 3 | AL11: East North Central | AN11: 9.539204 | AO11: 9.186909 | AP11: 9.1247 | AQ11: 8.820626 | AR11: 8.550122 | AS11: 9.039904 | AT11: 9.375357 | AU11: 9.768979 | AV11: 9.975286 | AW11: 10.106405 | AX11: 10.267135 | AY11: 10.485552 | AZ11: 10.703625 | BA11: 10.842798 | BB11: 10.925519 | BC11: 11.0668 | BD11: 11.155076 | BE11: 11.297791 | BF11: 11.429873 | BG11: 11.542037 | BH11: 11.696441 | BI11: 11.849947 | BJ11: 12.053875 | BK11: 12.377588 | BL11: 12.729383 | BM11: 13.167735 | BN11: 13.586825 | BO11: 13.998824 | BP11: 14.203881 | BQ11: 14.493833
B12: 4 | C12: SRDA | E12: 8.973101 | F12: 9.321421 | G12: 9.107377 | H12: 9.504294 | I12: 9.696052 | J12: 9.956235 | K12: 10.121959 | L12: 9.986263 | M12: 9.96103 | N12: 10.007667 | O12: 10.037684 | P12: 10.149609 | Q12: 10.205803 | R12: 10.314123 | S12: 10.546971 | T12: 10.788559 | U12: 10.482264 | V12: 10.542453 | W12: 10.605243 | X12: 10.588309 | Y12: 10.608214 | Z12: 10.634311 | AA12: 10.645911 | AB12: 10.778063 | AC12: 11.058154 | AD12: 11.024497 | AE12: 11.103516 | AF12: 11.256134 | AG12: 11.363059 | AH12: 11.445002 | AK12: 4 | AL12: West North Central | AN12: 9.604981 | AO12: 9.368198 | AP12: 9.359465 | AQ12: 9.06966 | AR12: 8.806319 | AS12: 9.303412 | AT12: 9.701474 | AU12: 10.155554 | AV12: 10.406094 | AW12: 10.553319 | AX12: 10.740225 | AY12: 10.937573 | AZ12: 11.129166 | BA12: 11.253756 | BB12: 11.331192 | BC12: 11.451588 | BD12: 11.534085 | BE12: 11.667927 | BF12: 11.796045 | BG12: 11.901676 | BH12: 12.051771 | BI12: 12.234489 | BJ12: 12.450123 | BK12: 12.778774 | BL12: 13.151649 | BM12: 13.575757 | BN12: 13.998246 | BO12: 14.424415 | BP12: 14.653156 | BQ12: 14.941423
B13: 5 | C13: SRGW | E13: 9.9749 | F13: 9.12731 | G13: 8.83162 | H13: 8.872233 | I13: 8.918401 | J13: 9.185722 | K13: 9.454982 | L13: 9.501277 | M13: 9.529731 | N13: 9.537312 | O13: 9.551764 | P13: 9.600406 | Q13: 9.684451 | R13: 9.783978 | S13: 9.857778 | T13: 9.961262 | U13: 9.983706 | V13: 9.994899 | W13: 10.022199 | X13: 10.061538 | Y13: 10.104978 | Z13: 10.097747 | AA13: 10.093208 | AB13: 10.148059 | AC13: 10.222003 | AD13: 10.312419 | AE13: 10.356024 | AF13: 10.396266 | AG13: 10.477248 | AH13: 10.552441 | AK13: 5 | AL13: South Atlantic | AN13: 13.442408 | AO13: 13.281324 | AP13: 12.85813 | AQ13: 12.504448 | AR13: 12.268564 | AS13: 12.761268 | AT13: 13.028772 | AU13: 13.375015 | AV13: 13.560187 | AW13: 13.713871 | AX13: 13.887423 | AY13: 14.162614 | AZ13: 14.428838 | BA13: 14.606256 | BB13: 14.745145 | BC13: 14.95173 | BD13: 15.055439 | BE13: 15.242935 | BF13: 15.416039 | BG13: 15.609398 | BH13: 15.841572 | BI13: 15.993594 | BJ13: 16.20013 | BK13: 16.522535 | BL13: 16.876642 | BM13: 17.28269 | BN13: 17.671215 | BO13: 18.087904 | BP13: 18.256266 | BQ13: 18.582731
B14: 6 | C14: SRSE | E14: 11.290999 | F14: 9.941761 | G14: 9.865519 | H14: 10.165856 | I14: 10.241626 | J14: 10.415759 | K14: 10.676552 | L14: 10.798293 | M14: 10.710372 | N14: 10.660142 | O14: 10.63384 | P14: 10.575731 | Q14: 10.525303 | R14: 10.48702 | S14: 10.441585 | T14: 10.410137 | U14: 10.400852 | V14: 10.351478 | W14: 10.352418 | X14: 10.318818 | Y14: 10.226883 | Z14: 10.193469 | AA14: 10.209311 | AB14: 10.248857 | AC14: 10.314376 | AD14: 10.349117 | AE14: 10.377879 | AF14: 10.430519 | AG14: 10.476645 | AH14: 10.532926 | AK14: 6 | AL14: East South Central | AN14: 10.911719 | AO14: 11.438096 | AP14: 11.221843 | AQ14: 11.070755 | AR14: 10.871482 | AS14: 11.418558 | AT14: 11.719708 | AU14: 12.076003 | AV14: 12.257407 | AW14: 12.412654 | AX14: 12.594559 | AY14: 12.909585 | AZ14: 13.219925 | BA14: 13.419724 | BB14: 13.55006 | BC14: 13.76921 | BD14: 13.919069 | BE14: 14.128713 | BF14: 14.32741 | BG14: 14.507479 | BH14: 14.73184 | BI14: 14.915324 | BJ14: 15.179908 | BK14: 15.577893 | BL14: 15.979826 | BM14: 16.513201 | BN14: 17.005148 | BO14: 17.477543 | BP14: 17.724396 | BQ14: 18.089403
B15: 7 | C15: SRCE | E15: 9.79 | F15: 8.272248 | G15: 8.115436 | H15: 8.134234 | I15: 8.081908 | J15: 8.284976 | K15: 8.23508 | L15: 8.142943 | M15: 8.057612 | N15: 8.010503 | O15: 7.953893 | P15: 7.876516 | Q15: 7.801808 | R15: 7.737403 | S15: 7.748427 | T15: 7.731266 | U15: 7.714801 | V15: 7.703539 | W15: 7.65999 | X15: 7.622728 | Y15: 7.60957 | Z15: 7.568506 | AA15: 7.557376 | AB15: 7.597169 | AC15: 7.621582 | AD15: 7.590098 | AE15: 7.602805 | AF15: 7.629577 | AG15: 7.668273 | AH15: 7.709789 | AK15: 7 | AL15: West South Central | AN15: 10.608043 | AO15: 10.048954 | AP15: 10.009158 | AQ15: 9.825923 | AR15: 9.583883 | AS15: 10.073819 | AT15: 10.311289 | AU15: 10.60436 | AV15: 10.719398 | AW15: 10.813365 | AX15: 10.935657 | AY15: 11.191714 | AZ15: 11.440467 | BA15: 11.571147 | BB15: 11.64364 | BC15: 11.80394 | BD15: 11.901962 | BE15: 12.064407 | BF15: 12.209553 | BG15: 12.331403 | BH15: 12.49542 | BI15: 12.615643 | BJ15: 12.819463 | BK15: 13.153597 | BL15: 13.483853 | BM15: 13.949152 | BN15: 14.368548 | BO15: 14.763346 | BP15: 14.938097 | BQ15: 15.239687
B16: 8 | C16: SRVC | E16: 10.6319 | F16: 10.790006 | G16: 10.818404 | H16: 11.039133 | I16: 11.177967 | J16: 11.38108 | K16: 11.414375 | L16: 11.479349 | M16: 11.465106 | N16: 11.450068 | O16: 11.35204 | P16: 11.239317 | Q16: 11.169573 | R16: 11.109609 | S16: 11.035378 | T16: 10.987872 | U16: 10.872655 | V16: 10.812018 | W16: 10.760042 | X16: 10.694419 | Y16: 10.660457 | Z16: 10.626657 | AA16: 10.626606 | AB16: 10.660611 | AC16: 10.734175 | AD16: 10.785952 | AE16: 10.81746 | AF16: 10.868467 | AG16: 10.914493 | AH16: 10.930072 | AK16: 8 | AL16: Mountain | AN16: 9.195658 | AO16: 9.031557 | AP16: 9.422495 | AQ16: 9.33093 | AR16: 9.14788 | AS16: 9.706166 | AT16: 10.058242 | AU16: 10.496641 | AV16: 10.782866 | AW16: 10.945603 | AX16: 11.21826 | AY16: 11.528859 | AZ16: 11.81747 | BA16: 11.988287 | BB16: 12.081029 | BC16: 12.195162 | BD16: 12.307712 | BE16: 12.467549 | BF16: 12.632542 | BG16: 12.774614 | BH16: 12.954926 | BI16: 13.18342 | BJ16: 13.41061 | BK16: 13.731676 | BL16: 14.125484 | BM16: 14.51967 | BN16: 14.921716 | BO16: 15.368866 | BP16: 15.637118 | BQ16: 15.959471
B17: 9 | C17: SPNO | E17: 10.631801 | F17: 10.559501 | G17: 10.826866 | H17: 11.081832 | I17: 11.352964 | J17: 11.602431 | K17: 11.612165 | L17: 11.464801 | M17: 11.291704 | N17: 11.171062 | O17: 11.067067 | P17: 10.961516 | Q17: 10.922132 | R17: 10.896197 | S17: 10.875213 | T17: 10.762512 | U17: 10.698527 | V17: 10.64177 | W17: 10.659808 | X17: 10.668063 | Y17: 10.616701 | Z17: 10.592192 | AA17: 10.580127 | AB17: 10.545227 | AC17: 10.689876 | AD17: 10.927348 | AE17: 11.070015 | AF17: 11.103127 | AG17: 11.000064 | AH17: 10.882945 | AK17: 9 | AL17: Pacific | AN17: 10.123925 | AO17: 9.567021 | AP17: 9.877995 | AQ17: 9.738667 | AR17: 10.421348 | AS17: 11.023863 | AT17: 11.462261 | AU17: 11.995073 | AV17: 12.343087 | AW17: 12.51975 | AX17: 12.796441 | AY17: 13.024923 | AZ17: 13.236152 | BA17: 13.366071 | BB17: 13.378292 | BC17: 13.421481 | BD17: 13.489073 | BE17: 13.601 | BF17: 13.740866 | BG17: 13.858049 | BH17: 14.010242 | BI17: 14.236729 | BJ17: 14.468214 | BK17: 14.755683 | BL17: 15.126531 | BM17: 15.553555 | BN17: 15.995447 | BO17: 16.446211 | BP17: 16.694592 | BQ17: 16.989336
B18: 10 | C18: SPSO | E18: 9.262 | F18: 8.498077 | G18: 7.982616 | H18: 8.055909 | I18: 8.227084 | J18: 8.609535 | K18: 8.88076 | L18: 8.834737 | M18: 8.860644 | N18: 8.904373 | O18: 8.955399 | P18: 9.022945 | Q18: 9.129289 | R18: 9.222989 | S18: 9.293187 | T18: 9.373779 | U18: 9.468218 | V18: 9.627929 | W18: 9.682217 | X18: 9.64852 | Y18: 9.734647 | Z18: 9.813174 | AA18: 9.909608 | AB18: 9.892213 | AC18: 10.03434 | AD18: 10.269217 | AE18: 10.480426 | AF18: 10.641422 | AG18: 10.806365 | AH18: 10.86004
B19: 11 | C19: AZNM | E19: 11.345 | F19: 10.906844 | G19: 11.070109 | H19: 11.276503 | I19: 11.219054 | J19: 11.349253 | K19: 11.556325 | L19: 11.620948 | M19: 11.696259 | N19: 11.66051 | O19: 11.661696 | P19: 11.861238 | Q19: 12.063727 | R19: 12.271291 | S19: 12.318859 | T19: 12.338059 | U19: 12.530536 | V19: 12.663628 | W19: 12.783907 | X19: 12.902133 | Y19: 13.01858 | Z19: 13.160204 | AA19: 13.21816 | AB19: 13.277107 | AC19: 13.473025 | AD19: 13.738406 | AE19: 13.907271 | AF19: 14.020586 | AG19: 14.198801 | AH19: 14.393414 | AK19: Commercial
B20: 12 | C20: FRCC | E20: 11.472799 | F20: 10.464819 | G20: 10.443096 | H20: 10.736275 | I20: 10.882018 | J20: 11.090476 | K20: 11.109756 | L20: 11.071361 | M20: 10.99655 | N20: 10.943347 | O20: 10.909206 | P20: 10.919692 | Q20: 10.973964 | R20: 10.999347 | S20: 11.009847 | T20: 11.026038 | U20: 11.049128 | V20: 11.073651 | W20: 11.106154 | X20: 11.145986 | Y20: 11.202109 | Z20: 11.3026 | AA20: 11.421237 | AB20: 11.591183 | AC20: 11.780061 | AD20: 11.978584 | AE20: 12.198062 | AF20: 12.434176 | AG20: 12.612361 | AH20: 12.772627 | AK20: # | AL20: Region | AN20: 2011 | AO20: 2012 | AP20: 2013 | AQ20: 2014 | AR20: 2015 | AS20: 2016 | AT20: 2017 | AU20: 2018 | AV20: 2019 | AW20: 2020 | AX20: 2021 | AY20: 2022 | AZ20: 2023 | BA20: 2024 | BB20: 2025 | BC20: 2026 | BD20: 2027 | BE20: 2028 | BF20: 2029 | BG20: 2030 | BH20: 2031 | BI20: 2032 | BJ20: 2033 | BK20: 2034 | BL20: 2035 | BM20: 2036 | BN20: 2037 | BO20: 2038 | BP20: 2039 | BQ20: 2040
B21: 13 | C21: CAMX | E21: 14.840301 | F21: 15.389389 | G21: 15.277915 | H21: 15.357574 | I21: 15.310295 | J21: 15.317153 | K21: 15.234897 | L21: 15.093416 | M21: 14.992751 | N21: 15.373543 | O21: 15.620862 | P21: 15.258598 | Q21: 14.853904 | R21: 14.637694 | S21: 14.766253 | T21: 14.795333 | U21: 14.449744 | V21: 14.250397 | W21: 14.253649 | X21: 14.301803 | Y21: 14.594253 | Z21: 14.738571 | AA21: 14.626368 | AB21: 14.675742 | AC21: 14.858685 | AD21: 15.036013 | AE21: 15.206 | AF21: 15.378661 | AG21: 15.511561 | AH21: 15.628618 | AK21: 1 | AL21: New England | AN21: 10.728605 | AO21: 9.823797 | AP21: 10.255188 | AQ21: 9.974397 | AR21: 9.816154 | AS21: 10.197927 | AT21: 10.426213 | AU21: 10.752819 | AV21: 10.895094 | AW21: 10.997006 | AX21: 11.067231 | AY21: 11.21144 | AZ21: 11.32633 | BA21: 11.423717 | BB21: 11.481236 | BC21: 11.693796 | BD21: 11.711524 | BE21: 11.804751 | BF21: 11.890134 | BG21: 11.969632 | BH21: 12.102419 | BI21: 12.212009 | BJ21: 12.35079 | BK21: 12.571649 | BL21: 12.813385 | BM21: 13.149915 | BN21: 13.381804 | BO21: 13.746793 | BP21: 13.888895 | BQ21: 14.143449
B22: 14 | C22: NWPP | E22: 8.8338 | F22: 8.694322 | G22: 8.699628 | H22: 8.665254 | I22: 8.641425 | J22: 8.79769 | K22: 8.870104 | L22: 8.933241 | M22: 8.684357 | N22: 8.393668 | O22: 8.072851 | P22: 8.038288 | Q22: 8.191034 | R22: 8.232964 | S22: 8.255662 | T22: 8.23046 | U22: 8.359096 | V22: 8.487677 | W22: 8.550566 | X22: 8.631892 | Y22: 8.692389 | Z22: 8.750869 | AA22: 8.802015 | AB22: 8.852122 | AC22: 8.961074 | AD22: 9.06671 | AE22: 9.203217 | AF22: 9.366782 | AG22: 9.472928 | AH22: 9.629436 | AK22: 2 | AL22: Middle Atlantic | AN22: 9.439743 | AO22: 8.485619 | AP22: 8.919311 | AQ22: 8.669165 | AR22: 8.524491 | AS22: 8.900762 | AT22: 9.060043 | AU22: 9.33553 | AV22: 9.450287 | AW22: 9.547451 | AX22: 9.606102 | AY22: 9.781948 | AZ22: 9.922104 | BA22: 10.030037 | BB22: 10.090686 | BC22: 10.321918 | BD22: 10.341401 | BE22: 10.437936 | BF22: 10.524714 | BG22: 10.60498 | BH22: 10.740586 | BI22: 10.824242 | BJ22: 10.952262 | BK22: 11.156499 | BL22: 11.374598 | BM22: 11.696773 | BN22: 11.901158 | BO22: 12.249475 | BP22: 12.376627 | BQ22: 12.624857
B23: 15 | C23: RMPA | E23: 11.196 | F23: 10.528433 | G23: 10.414116 | H23: 10.515151 | I23: 10.520376 | J23: 10.600003 | K23: 10.582614 | L23: 10.515847 | M23: 10.405959 | N23: 10.500965 | O23: 10.588538 | P23: 10.627965 | Q23: 10.703526 | R23: 10.787676 | S23: 10.891413 | T23: 10.984649 | U23: 11.039798 | V23: 11.099677 | W23: 11.18507 | X23: 11.274909 | Y23: 11.354512 | Z23: 11.441249 | AA23: 11.575406 | AB23: 11.713836 | AC23: 11.836645 | AD23: 11.876145 | AE23: 11.960115 | AF23: 12.101997 | AG23: 12.395774 | AH23: 12.714858 | AK23: 3 | AL23: East North Central | AN23: 8.331079 | AO23: 7.455077 | AP23: 7.784678 | AQ23: 7.519557 | AR23: 7.316941 | AS23: 7.778795 | AT23: 8.078225 | AU23: 8.436495 | AV23: 8.614093 | AW23: 8.722398 | AX23: 8.859159 | AY23: 9.051394 | AZ23: 9.242074 | BA23: 9.355268 | BB23: 9.412073 | BC23: 9.525459 | BD23: 9.585485 | BE23: 9.698283 | BF23: 9.800019 | BG23: 9.881652 | BH23: 10.004682 | BI23: 10.124928 | BJ23: 10.294179 | BK23: 10.582219 | BL23: 10.898811 | BM23: 11.301737 | BN23: 11.686373 | BO23: 12.064664 | BP23: 12.23907 | BQ23: 12.498193
B24: 16 | C24: MORE | E24: 13.0043 | F24: 11.739101 | G24: 11.871543 | H24: 11.753579 | I24: 12.10002 | J24: 12.334332 | K24: 12.66995 | L24: 12.667361 | M24: 12.655402 | N24: 12.698564 | O24: 12.737334 | P24: 12.756645 | Q24: 12.764857 | R24: 12.780022 | S24: 12.778248 | T24: 12.772345 | U24: 12.767308 | V24: 12.760944 | W24: 12.756354 | X24: 12.761392 | Y24: 12.763434 | Z24: 12.78196 | AA24: 12.802402 | AB24: 12.82417 | AC24: 12.867152 | AD24: 12.93277 | AE24: 12.977814 | AF24: 13.019241 | AG24: 13.076917 | AH24: 13.067268 | AK24: 4 | AL24: West North Central | AN24: 7.968801 | AO24: 7.041784 | AP24: 7.462557 | AQ24: 7.192338 | AR24: 6.993398 | AS24: 7.456399 | AT24: 7.808504 | AU24: 8.216717 | AV24: 8.430439 | AW24: 8.548695 | AX24: 8.706059 | AY24: 8.873799 | AZ24: 9.034659 | BA24: 9.130689 | BB24: 9.17994 | BC24: 9.26954 | BD24: 9.321191 | BE24: 9.422387 | BF24: 9.51691 | BG24: 9.589631 | BH24: 9.705878 | BI24: 9.852855 | BJ24: 10.030964 | BK24: 10.320925 | BL24: 10.655412 | BM24: 11.041095 | BN24: 11.426074 | BO24: 11.81576 | BP24: 12.011249 | BQ24: 12.265513
B25: 17 | C25: MROW | E25: 10.333 | F25: 9.607291 | G25: 9.621439 | H25: 9.952361 | I25: 9.951421 | J25: 10.229722 | K25: 10.41653 | L25: 10.3568 | M25: 10.305233 | N25: 10.267836 | O25: 10.233947 | P25: 10.226598 | Q25: 10.241536 | R25: 10.279833 | S25: 10.289824 | T25: 10.288733 | U25: 10.287292 | V25: 10.293391 | W25: 10.294666 | X25: 10.295707 | Y25: 10.304479 | Z25: 10.363982 | AA25: 10.381564 | AB25: 10.36832 | AC25: 10.395522 | AD25: 10.427476 | AE25: 10.471437 | AF25: 10.485622 | AG25: 10.459373 | AH25: 10.432828 | AK25: 5 | AL25: South Atlantic | AN25: 10.100091 | AO25: 9.498646 | AP25: 9.728608 | AQ25: 9.39205 | AR25: 9.193204 | AS25: 9.641019 | AT25: 9.845044 | AU25: 10.136579 | AV25: 10.281843 | AW25: 10.401063 | AX25: 10.536677 | AY25: 10.770122 | AZ25: 10.994367 | BA25: 11.135033 | BB25: 11.2293 | BC25: 11.387961 | BD25: 11.446601 | BE25: 11.578026 | BF25: 11.693749 | BG25: 11.826081 | BH25: 11.998341 | BI25: 12.093648 | BJ25: 12.244495 | BK25: 12.512104 | BL25: 12.81263 | BM25: 13.171598 | BN25: 13.512217 | BO25: 13.877612 | BP25: 13.998561 | BQ25: 14.267849
B26: 18 | C26: NEWE | E26: 15.8948 | F26: 18.22888 | G26: 17.506399 | H26: 17.343632 | I26: 17.105629 | J26: 17.017925 | K26: 16.887978 | L26: 16.607458 | M26: 16.479324 | N26: 16.295551 | O26: 16.607973 | P26: 16.446213 | Q26: 16.860365 | R26: 16.824995 | S26: 16.953638 | T26: 17.03821 | U26: 18.042997 | V26: 18.099308 | W26: 18.259901 | X26: 18.316383 | Y26: 18.397099 | Z26: 18.475342 | AA26: 18.629629 | AB26: 17.895153 | AC26: 18.18828 | AD26: 18.785612 | AE26: 18.833334 | AF26: 18.753714 | AG26: 19.281641 | AH26: 18.933969 | AK26: 6 | AL26: East South Central | AN26: 9.086188 | AO26: 8.919822 | AP26: 9.211403 | AQ26: 9.003834 | AR26: 8.828352 | AS26: 9.311726 | AT26: 9.536889 | AU26: 9.825122 | AV26: 9.952608 | AW26: 10.05833 | AX26: 10.185912 | AY26: 10.43652 | AZ26: 10.682017 | BA26: 10.822475 | BB26: 10.89303 | BC26: 11.045582 | BD26: 11.126616 | BE26: 11.261551 | BF26: 11.380679 | BG26: 11.480158 | BH26: 11.620323 | BI26: 11.71631 | BJ26: 11.887424 | BK26: 12.188261 | BL26: 12.495105 | BM26: 12.929556 | BN26: 13.32302 | BO26: 13.695485 | BP26: 13.847458 | BQ26: 14.109158
B27: 19 | C27: NYCW | D27: NYC | E27: 26.320099 | F27: 20.984159 | G27: 19.74872 | H27: 20.481058 | I27: 20.890259 | J27: 21.201504 | K27: 21.253504 | L27: 21.55831 | M27: 21.62228 | N27: 21.177526 | O27: 20.951281 | P27: 20.962883 | Q27: 21.442451 | R27: 22.678673 | S27: 23.535568 | T27: 23.988184 | U27: 24.952271 | V27: 26.3521 | W27: 26.858 | X27: 26.546148 | Y27: 26.092554 | Z27: 26.149931 | AA27: 26.598499 | AB27: 27.538557 | AC27: 27.521591 | AD27: 26.525446 | AE27: 26.74021 | AF27: 27.626316 | AG27: 27.934372 | AH27: 28.20722 | AK27: 7 | AL27: West South Central | AN27: 7.908494 | AO27: 7.050135 | AP27: 7.427689 | AQ27: 7.248806 | AR27: 7.082387 | AS27: 7.566137 | AT27: 7.780998 | AU27: 8.066038 | AV27: 8.189382 | AW27: 8.294847 | AX27: 8.423442 | AY27: 8.676856 | AZ27: 8.925235 | BA27: 9.066236 | BB27: 9.145444 | BC27: 9.305071 | BD27: 9.385755 | BE27: 9.523242 | BF27: 9.639723 | BG27: 9.73236 | BH27: 9.865185 | BI27: 9.953785 | BJ27: 10.123506 | BK27: 10.424204 | BL27: 10.724948 | BM27: 11.161189 | BN27: 11.553965 | BO27: 11.921891 | BP27: 12.073345 | BQ27: 12.344336
B28: 20 | C28: NYLI | D28: Long Island | E28: 19.6185 | F28: 17.832134 | G28: 17.227554 | H28: 17.491198 | I28: 17.40313 | J28: 17.463428 | K28: 17.533245 | L28: 17.646217 | M28: 17.611578 | N28: 17.532801 | O28: 17.237967 | P28: 17.086609 | Q28: 17.357628 | R28: 18.399136 | S28: 18.88415 | T28: 19.374493 | U28: 19.782454 | V28: 20.029051 | W28: 18.900368 | X28: 19.072371 | Y28: 20.622587 | Z28: 20.711782 | AA28: 20.247625 | AB28: 19.24728 | AC28: 19.659401 | AD28: 21.3269 | AE28: 21.697454 | AF28: 20.270285 | AG28: 20.511522 | AH28: 21.71327 | AK28: 8 | AL28: Mountain | AN28: 7.874186 | AO28: 7.174302 | AP28: 7.746168 | AQ28: 7.633716 | AR28: 7.488576 | AS28: 8.010175 | AT28: 8.31918 | AU28: 8.719265 | AV28: 8.97302 | AW28: 9.103736 | AX28: 9.350928 | AY28: 9.629115 | AZ28: 9.873285 | BA28: 9.998729 | BB28: 10.036554 | BC28: 10.093163 | BD28: 10.150564 | BE28: 10.253963 | BF28: 10.363819 | BG28: 10.450238 | BH28: 10.573542 | BI28: 10.747622 | BJ28: 10.918634 | BK28: 11.187055 | BL28: 11.529501 | BM28: 11.879651 | BN28: 12.236231 | BO28: 12.635517 | BP28: 12.852019 | BQ28: 13.117968
B29: 21 | C29: NYUP | D29: NY Upstate | E29: 13.625101 | F29: 16.997343 | G29: 16.148972 | H29: 16.507921 | I29: 16.571718 | J29: 16.918783 | K29: 16.83573 | L29: 16.784777 | M29: 16.675678 | N29: 16.599728 | O29: 16.041895 | P29: 16.142773 | Q29: 16.118567 | R29: 16.504225 | S29: 16.825428 | T29: 17.169117 | U29: 17.441828 | V29: 17.7918 | W29: 17.611986 | X29: 17.864622 | Y29: 17.783945 | Z29: 17.882357 | AA29: 18.763332 | AB29: 18.678539 | AC29: 18.755774 | AD29: 19.014753 | AE29: 18.504593 | AF29: 18.713463 | AG29: 19.794842 | AH29: 19.487768 | AK29: 9 | AL29: Pacific | AN29: 8.705386 | AO29: 8.208624 | AP29: 8.742039 | AQ29: 8.636961 | AR29: 8.880636 | AS29: 9.42839 | AT29: 9.836247 | AU29: 10.345467 | AV29: 10.678704 | AW29: 10.849619 | AX29: 11.133604 | AY29: 11.353826 | AZ29: 11.556776 | BA29: 11.691551 | BB29: 11.715104 | BC29: 11.759116 | BD29: 11.820711 | BE29: 11.920539 | BF29: 12.047697 | BG29: 12.148438 | BH29: 12.280102 | BI29: 12.494268 | BJ29: 12.711579 | BK29: 12.988235 | BL29: 13.352546 | BM29: 13.773692 | BN29: 14.217068 | BO29: 14.670335 | BP29: 14.924726 | BQ29: 15.217713
B30: 22 | C30: RFCE | E30: 14.435 | F30: 14.28688 | G30: 13.777765 | H30: 13.85203 | I30: 13.612271 | J30: 13.587433 | K30: 13.392646 | L30: 13.369933 | M30: 13.158881 | N30: 13.275573 | O30: 13.1632 | P30: 13.078041 | Q30: 13.102422 | R30: 13.074889 | S30: 13.06869 | T30: 13.074111 | U30: 12.990509 | V30: 12.937169 | W30: 13.039884 | X30: 13.137115 | Y30: 13.268527 | Z30: 13.32461 | AA30: 13.382462 | AB30: 13.462491 | AC30: 13.617104 | AD30: 13.883661 | AE30: 14.143663 | AF30: 14.280513 | AG30: 14.466576 | AH30: 14.566902
B31: 23 | C31: New York Average | E31: =E29*0.53+E27*0.27+E28*0.2 -> 18.25143026 | F31: =F29*0.53+F27*0.27+F28*0.2 -> 18.24074152 | G31: 17.33662036 | H31: 17.77732339 | I31: 17.90400647 | J31: 18.18404667 | K31: 18.16803198 | L31: 18.24591891 | M31: 18.19844054 | N31: 18.02234806 | O31: 17.60664362 | P31: 17.6329699 | Q31: 17.80382788 | R31: 18.55030816 | S31: 19.0489102 | T31: 19.45134029 | U31: 19.93777281 | V31: 20.5505312 | W31: 20.36608618 | X31: 20.45018382 | Y31: 20.59499783 | Z31: 20.68048698 | AA31: 21.17568569 | AB31: 21.18449206 | AC31: 21.30326999 | AD31: 21.50506951 | AE31: 21.36678179 | AF31: 21.43129771 | AG31: 22.1358511 | AH31: 22.28712044 | AK31: Residential Incremental Prices
B32: 24 | C32: Illinois Average | E32: =(E13+E11)/2 -> 10.58625 | F32: =(F13+F11)/2 -> 10.3649755 | G32: 10.073614 | H32: 10.1014565 | I32: 10.149363 | J32: 10.4257655 | K32: 10.7084755 | L32: 10.776815 | M32: 10.7684255 | N32: 10.7328775 | O32: 10.7913225 | P32: 10.8454065 | Q32: 10.933358 | R32: 11.0271555 | S32: 11.098089 | T32: 11.190901 | U32: 11.217122 | V32: 11.227079 | W32: 11.2516815 | X32: 11.2762765 | Y32: 11.3035835 | Z32: 11.310287 | AA32: 11.3256315 | AB32: 11.3911375 | AC32: 11.467416 | AD32: 11.5812035 | AE32: 11.667525 | AF32: 11.7304965 | AG32: 11.822101 | AH32: 11.8941825 | AK32: 1 | AL32: 2 | AM32: 3 | AN32: 4 | AO32: 5 | AP32: 6 | AQ32: 7 | AR32: 8 | AS32: 9 | AT32: 10 | AU32: 11 | AV32: 12 | AW32: 13 | AX32: 14 | AY32: 15 | AZ32: 16 | BA32: 17 | BB32: 18 | BC32: 19 | BD32: 20 | BE32: 21 | BF32: 22 | BG32: 23 | BH32: 24 | BI32: 25 | BJ32: 26 | BK32: 27 | BL32: 28 | BM32: 29 | BN32: 30 | BO32: 31 | BP32: 32 | BQ32: 33
B33: 25 | C33: Missouri Average | E33: =(E17+E13)/2 -> 10.3033505 | F33: =(F17+F13)/2 -> 9.8434055 | G33: 9.829243 | H33: 9.9770325 | I33: 10.1356825 | J33: 10.3940765 | K33: 10.5335735 | L33: 10.483039 | M33: 10.4107175 | N33: 10.354187 | O33: 10.3094155 | P33: 10.280961 | Q33: 10.3032915 | R33: 10.3400875 | S33: 10.3664955 | T33: 10.361887 | U33: 10.3411165 | V33: 10.3183345 | W33: 10.3410035 | X33: 10.3648005 | Y33: 10.3608395 | Z33: 10.3449695 | AA33: 10.3366675 | AB33: 10.346643 | AC33: 10.4559395 | AD33: 10.6198835 | AE33: 10.7130195 | AF33: 10.7496965 | AG33: 10.738656 | AH33: 10.717693 | AK33: # | AL33: Region | AN33: 2011 | AO33: 2012 | AP33: 2013 | AQ33: 2014 | AR33: 2015 | AS33: 2016 | AT33: 2017 | AU33: 2018 | AV33: 2019 | AW33: 2020 | AX33: 2021 | AY33: 2022 | AZ33: 2023 | BA33: 2024 | BB33: 2025 | BC33: 2026 | BD33: 2027 | BE33: 2028 | BF33: 2029 | BG33: 2030 | BH33: 2031 | BI33: 2032 | BJ33: 2033 | BK33: 2034 | BL33: 2035 | BM33: 2036 | BN33: 2037 | BO33: 2038 | BP33: 2039 | BQ33: 2040
AK34: 1 | AL34: New England | AN34: n/a | AO34: =(AO9-AN9) -> -0.473996 | AP34: 0.058935 | AQ34: -0.213136 | AR34: -0.173417 | AS34: 0.453837 | AT34: 0.307984 | AU34: 0.403747 | AV34: 0.211142 | AW34: 0.162884 | AX34: 0.134728 | AY34: 0.205927 | AZ34: 0.177907 | BA34: 0.158924 | BB34: 0.120737 | BC34: 0.277142 | BD34: 0.084901 | BE34: 0.160246 | BF34: 0.153402 | BG34: 0.146963 | BH34: 0.200074 | BI34: 0.180683 | BJ34: 0.208225 | BK34: 0.288693 | BL34: 0.307985 | BM34: 0.399645 | BN34: 0.294269 | BO34: 0.42182 | BP34: 0.197212 | BQ34: 0.310579
B35: Commercial | AK35: 2 | AL35: Middle Atlantic | AN35: n/a | AO35: =(AO10-AN10) -> -0.428109 | AP35: -0.051173 | AQ35: -0.165139 | AR35: -0.179933 | AS35: 0.434598 | AT35: 0.229661 | AU35: 0.343616 | AV35: 0.173368 | AW35: 0.148844 | AX35: 0.115789 | AY35: 0.229759 | AZ35: 0.193882 | BA35: 0.155749 | BB35: 0.113625 | BC35: 0.286218 | BD35: 0.075045 | BE35: 0.152014 | BF35: 0.142979 | BG35: 0.135647 | BH35: 0.192041 | BI35: 0.14444 | BJ35: 0.189521 | BK35: 0.267997 | BL35: 0.281835 | BM35: 0.382568 | BN35: 0.267338 | BO35: 0.40459 | BP35: 0.181011 | BQ35: 0.307324
B36: # | C36: Region | E36: 2011 | F36: 2012 | G36: 2013 | H36: 2014 | I36: 2015 | J36: 2016 | K36: 2017 | L36: 2018 | M36: 2019 | N36: 2020 | O36: 2021 | P36: 2022 | Q36: 2023 | R36: 2024 | S36: 2025 | T36: 2026 | U36: 2027 | V36: 2028 | W36: 2029 | X36: 2030 | Y36: 2031 | Z36: 2032 | AA36: 2033 | AB36: 2034 | AC36: 2035 | AD36: 2036 | AE36: 2037 | AF36: 2038 | AG36: 2039 | AH36: 2040 | AK36: 3 | AL36: East North Central | AN36: n/a | AO36: =(AO11-AN11) -> -0.352295 | AP36: -0.062209 | AQ36: -0.304074 | AR36: -0.270504 | AS36: 0.489782 | AT36: 0.335453 | AU36: 0.393622 | AV36: 0.206307 | AW36: 0.131119 | AX36: 0.16073 | AY36: 0.218417 | AZ36: 0.218073 | BA36: 0.139173 | BB36: 0.082721 | BC36: 0.141281 | BD36: 0.088276 | BE36: 0.142715 | BF36: 0.132082 | BG36: 0.112164 | BH36: 0.154404 | BI36: 0.153506 | BJ36: 0.203928 | BK36: 0.323713 | BL36: 0.351795 | BM36: 0.438352 | BN36: 0.41909 | BO36: 0.411999 | BP36: 0.205057 | BQ36: 0.289952
B37: 1 | C37: ERCT | E37: 8.9525 | F37: 7.099549 | G37: 6.501847 | H37: 6.764222 | I37: 6.624041 | J37: 6.802791 | K37: 6.979771 | L37: 7.137944 | M37: 7.215312 | N37: 7.398286 | O37: 7.830024 | P37: 8.311273 | Q37: 8.086646 | R37: 8.151927 | S37: 7.946163 | T37: 8.018717 | U37: 8.285564 | V37: 8.571338 | W37: 8.847766 | X37: 8.919726 | Y37: 9.0022 | Z37: 9.114135 | AA37: 9.149771 | AB37: 9.417221 | AC37: 9.512444 | AD37: 9.835745 | AE37: 10.149821 | AF37: 10.385927 | AG37: 10.658129 | AH37: 10.707621 | AK37: 4 | AL37: West North Central | AN37: n/a | AO37: =(AO12-AN12) -> -0.236783 | AP37: -0.008733 | AQ37: -0.289805 | AR37: -0.263341 | AS37: 0.497093 | AT37: 0.398062 | AU37: 0.45408 | AV37: 0.25054 | AW37: 0.147225 | AX37: 0.186906 | AY37: 0.197348 | AZ37: 0.191593 | BA37: 0.12459 | BB37: 0.077436 | BC37: 0.120396 | BD37: 0.082497 | BE37: 0.133842 | BF37: 0.128118 | BG37: 0.105631 | BH37: 0.150095 | BI37: 0.182718 | BJ37: 0.215634 | BK37: 0.328651 | BL37: 0.372875 | BM37: 0.424108 | BN37: 0.422489 | BO37: 0.426169 | BP37: 0.228741 | BQ37: 0.288267
B38: 2 | C38: RFCM | E38: 10.345901 | F38: 8.755423 | G38: 8.639386 | H38: 8.718343 | I38: 8.956111 | J38: 9.21966 | K38: 9.49568 | L38: 9.479017 | M38: 9.464964 | N38: 9.41286 | O38: 9.372182 | P38: 9.359525 | Q38: 9.361456 | R38: 9.393856 | S38: 9.409595 | T38: 9.360222 | U38: 9.374461 | V38: 9.38898 | W38: 9.378404 | X38: 9.31935 | Y38: 9.319093 | Z38: 9.330377 | AA38: 9.370611 | AB38: 9.447993 | AC38: 9.508085 | AD38: 9.568355 | AE38: 9.602668 | AF38: 9.696017 | AG38: 9.805198 | AH38: 9.921412 | AK38: 5 | AL38: South Atlantic | AN38: n/a | AO38: =(AO13-AN13) -> -0.161084 | AP38: -0.423194 | AQ38: -0.353682 | AR38: -0.235884 | AS38: 0.492704 | AT38: 0.267504 | AU38: 0.346243 | AV38: 0.185172 | AW38: 0.153684 | AX38: 0.173552 | AY38: 0.275191 | AZ38: 0.266224 | BA38: 0.177418 | BB38: 0.138889 | BC38: 0.206585 | BD38: 0.103709 | BE38: 0.187496 | BF38: 0.173104 | BG38: 0.193359 | BH38: 0.232174 | BI38: 0.152022 | BJ38: 0.206536 | BK38: 0.322405 | BL38: 0.354107 | BM38: 0.406048 | BN38: 0.388525 | BO38: 0.416689 | BP38: 0.168362 | BQ38: 0.326465
